Workbook

Sheet Cover Sheet
F4: Waltham Forest Childhood Immunisations Dashboard
F6: Report designed following the parameters of the Public Health England COVER programme
F8: Contains data on immunisation uptake for children becoming 12m, 24m and 5yrs in the quarter
F10: Patients becoming 12m
F12: DTaP/IPV/Hib/HepB
F13: Men B
F14: PCV
F15: Rotavirus
F18: Patients becoming 24m
F20: DTaP/IPV/Hib/HepB
F21: MMR
F22: HiB/Men C
F23: PCV (Booster)
F24: Men B (Booster)
F25: Patients becoming 5y
F27: DTaP/IPV/Hib/HepB
F28: MMR (Primary)
F29: DTaP/IPV (Booster)
F30: MMR (Booster)
F31: HiB/Men C
F33: N.B. Rotavirus not included in performance target
F34: Version tracking
F35: Version 2.8 | G35: - PCV Schedule updated | M35: December 2020
F37: Version 2.7 | G37: - Removed the 5in1 from Patients becoming 12m, now only 6in1 | M37: April 2019
F39: Version 2.6 | G39: - Men B (Booster) included and 5in1 to have to become 6in1 for patients born after 01/08/2017 | M39: April 2018
F41: Version 2.5 | G41: - Men C removed Men B included | M41: May 2017
F43: Version 2.4 | G43: - DTaP/IPV (Booster) (NO LOWER AGE LIMIT) Removed | M43: May 2016
F45: Version 2.3 | G45: - Lower age limit for MMR, HiB/Men C and PCV adjusted to 1 year in line with NHSE guidance | M45: May 2015
F47: Version 2.2 | G47: - Cluster configuration and practice names updated | M47: April 2015
F49: Version 2.1 | G49: -DTaP/IPV/Hib/HepB (No lower age limit) added to 5yr cohort | M49: October 2014
F51: Version 2.0 | G51: - Specification and presentation used from CEG report for Tower Hamlets | M51: September 2014

Sheet Network Summary
M2: March 2023
E3: Waltham Forest Childhood Immunisations Dashboard: Metric Details
E4: Network Summary
E6: *report labelled 01-01-2023 will show above as December 2022 and reflect end 2022/23 Q3 data, i.e. children who became a certain age between 1st Oct 2022 and 31st Dec 2022, and had received a vaccination by the end of Dec 2022.
X7: 0.96 | Y7: 95% and over
E8: Coverage | F8: Percentage of target population immunised | X8: 0.94 | Y8: 0.9
E9: Activity | F9: Number of patients immunised | X9: 0.89 | Y9: 0.85
E10: Required | F10: Number of patients requiring immunisation for network to attain 95% coverage | X10: 0.1 | Y10: Less than 85%
I11: WF-1 | M11: WF-2 | Q11: WF-3 | U11: WF-4 | Y11: WF-5 | AC11: WF-6 | AG11: WF-7 | AK11: NW8
E12: Waltham Forest Total | H12: ='Control Panel'!I78 -> Chingford/ Walthamstow | L12: ='Control Panel'!I79 -> Chingford E4 | P12: ='Control Panel'!I80 -> Leyton Collaborative | T12: ='Control Panel'!I81 -> Forest Integrated Health | X12: ='Control Panel'!I82 -> South Leytonstone | AB12: ='Control Panel'!I83 -> Central Walthamstow | AF12: ='Control Panel'!I84 -> Walthamstow West
B15: (01) 12 MONTH COHORT | C15: ="Patients becoming 12m within "&'Control Panel'!$B$1 -> Patients becoming 12m within Q | F15: =I15+M15+Q15+U15+Y15+AC15+AG15 -> 916 | I15: =SUMIFS(OFFSET(REL_D,,MATCH(B15,IND,0)-1),REL_D,$M$2,total,$I$11) -> 171 | M15: =SUMIFS(OFFSET(REL_D,,MATCH(B15,IND,0)-1),REL_D,$M$2,total,$M$11) -> 132 | Q15: =SUMIFS(OFFSET(REL_D,,MATCH($B15,IND,0)-1),REL_D,$M$2,total,$Q$11) -> 88 | U15: =SUMIFS(OFFSET(REL_D,,MATCH($B15,IND,0)-1),REL_D,$M$2,total,$U$11) -> 180 | Y15: =SUMIFS(OFFSET(REL_D,,MATCH($B15,IND,0)-1),REL_D,$M$2,total,$Y$11) -> 82 | AC15: =SUMIFS(OFFSET(REL_D,,MATCH($B15,IND,0)-1),REL_D,$M$2,total,$AC$11) -> 121 | AG15: =SUMIFS(OFFSET(REL_D,,MATCH($B15,IND,0)-1),REL_D,$M$2,total,$AG$11) -> 142
E16: Coverage | F16: Activity | H16: Coverage | I16: Activity | J16: Required | L16: Coverage | M16: Activity | N16: Required | P16: Coverage | Q16: Activity | R16: Required | T16: Coverage | U16: Activity | V16: Required | X16: Coverage | Y16: Activity | Z16: Required | AB16: Coverage | AC16: Activity | AD16: Required | AF16: Coverage | AG16: Activity | AH16: Required
B17: ='Control Panel'!E4 -> (01.01) DTaP/IPV/Hib 6in1 | C17: DTaP/IPV/Hib/HepB | E17: =IFERROR(F17/F$15,"-") -> 0.8864628821 | F17: =I17+M17+Q17+U17+Y17+AC17+AG17 -> 812 | H17: =IFERROR(I17/I$15,"-") -> 0.9064327485 | I17: =SUMIFS(OFFSET(REL_D,,MATCH(B17,IND,0)-1),REL_D,$M$2,total,$I$11) -> 155 | J17: =IF(AND(I$15*0.9-I17<1,(I$15*0.9-I17>0)),1,IF(I$15*0.9-I17<=0,"",I$15*0.9-I17)) ->  | L17: =IFERROR(M17/M$15,"-") -> 0.9545454545 | M17: =SUMIFS(OFFSET(REL_D,,MATCH(B17,IND,0)-1),REL_D,$M$2,total,$M$11) -> 126 | N17: =IF(AND(M$15*0.9-M17<1,(M$15*0.9-M17>0)),1,IF(M$15*0.9-M17<=0,"",M$15*0.9-M17)) ->  | P17: =IFERROR(Q17/Q$15,"-") -> 0.8522727273 | Q17: =SUMIFS(OFFSET(REL_D,,MATCH($B17,IND,0)-1),REL_D,$M$2,total,$Q$11) -> 75 | R17: =IF(AND(Q$15*0.9-Q17<1,(Q$15*0.9-Q17>0)),1,IF(Q$15*0.9-Q17<=0,"",Q$15*0.9-Q17)) -> 4.2 | T17: =IFERROR(U17/U$15,"-") -> 0.8666666667 | U17: =SUMIFS(OFFSET(REL_D,,MATCH($B17,IND,0)-1),REL_D,$M$2,total,$U$11) -> 156 | V17: =IF(AND(U$15*0.9-U17<1,(U$15*0.9-U17>0)),1,IF(U$15*0.9-U17<=0,"",U$15*0.9-U17)) -> 6 | X17: =IFERROR(Y17/Y$15,"-") -> 0.8658536585 | Y17: =SUMIFS(OFFSET(REL_D,,MATCH($B17,IND,0)-1),REL_D,$M$2,total,$Y$11) -> 71 | Z17: =IF(AND(Y$15*0.9-Y17<1,(Y$15*0.9-Y17>0)),1,IF(Y$15*0.9-Y17<=0,"",Y$15*0.9-Y17)) -> 2.8 | AB17: =IFERROR(AC17/AC$15,"-") -> 0.9090909091 | AC17: =SUMIFS(OFFSET(REL_D,,MATCH($B17,IND,0)-1),REL_D,$M$2,total,$AC$11) -> 110 | AD17: =IF(AND(AC$15*0.9-AC17<1,(AC$15*0.9-AC17>0)),1,IF(AC$15*0.9-AC17<=0,"",AC$15*0.9-AC17)) ->  | AF17: =IFERROR(AG17/AG$15,"-") -> 0.838028169 | AG17: =SUMIFS(OFFSET(REL_D,,MATCH($B17,IND,0)-1),REL_D,$M$2,total,$AG$11) -> 119 | AH17: =IF(AND(AG$15*0.9-AG17<1,(AG$15*0.9-AG17>0)),1,IF(AG$15*0.9-AG17<=0,"",AG$15*0.9-AG17)) -> 8.8
B18: (01.02) Men B (1st and 2nd) | C18: Men B | E18: =IFERROR(F18/F$15,"-") -> 0.8679039301 | F18: =I18+M18+Q18+U18+Y18+AC18+AG18 -> 795 | H18: =IFERROR(I18/I$15,"-") -> 0.8947368421 | I18: =SUMIFS(OFFSET(REL_D,,MATCH(B18,IND,0)-1),REL_D,$M$2,total,$I$11) -> 153 | J18: =IF(AND(I$15*0.9-I18<1,(I$15*0.9-I18>0)),1,IF(I$15*0.9-I18<=0,"",I$15*0.9-I18)) -> 1 | L18: =IFERROR(M18/M$15,"-") -> 0.9318181818 | M18: =SUMIFS(OFFSET(REL_D,,MATCH(B18,IND,0)-1),REL_D,$M$2,total,$M$11) -> 123 | N18: =IF(AND(M$15*0.9-M18<1,(M$15*0.9-M18>0)),1,IF(M$15*0.9-M18<=0,"",M$15*0.9-M18)) ->  | P18: =IFERROR(Q18/Q$15,"-") -> 0.8522727273 | Q18: =SUMIFS(OFFSET(REL_D,,MATCH($B18,IND,0)-1),REL_D,$M$2,total,$Q$11) -> 75 | R18: =IF(AND(Q$15*0.9-Q18<1,(Q$15*0.9-Q18>0)),1,IF(Q$15*0.9-Q18<=0,"",Q$15*0.9-Q18)) -> 4.2 | T18: =IFERROR(U18/U$15,"-") -> 0.8444444444 | U18: =SUMIFS(OFFSET(REL_D,,MATCH($B18,IND,0)-1),REL_D,$M$2,total,$U$11) -> 152 | V18: =IF(AND(U$15*0.9-U18<1,(U$15*0.9-U18>0)),1,IF(U$15*0.9-U18<=0,"",U$15*0.9-U18)) -> 10 | X18: =IFERROR(Y18/Y$15,"-") -> 0.8414634146 | Y18: =SUMIFS(OFFSET(REL_D,,MATCH($B18,IND,0)-1),REL_D,$M$2,total,$Y$11) -> 69 | Z18: =IF(AND(Y$15*0.9-Y18<1,(Y$15*0.9-Y18>0)),1,IF(Y$15*0.9-Y18<=0,"",Y$15*0.9-Y18)) -> 4.8 | AB18: =IFERROR(AC18/AC$15,"-") -> 0.9008264463 | AC18: =SUMIFS(OFFSET(REL_D,,MATCH($B18,IND,0)-1),REL_D,$M$2,total,$AC$11) -> 109 | AD18: =IF(AND(AC$15*0.9-AC18<1,(AC$15*0.9-AC18>0)),1,IF(AC$15*0.9-AC18<=0,"",AC$15*0.9-AC18)) ->  | AF18: =IFERROR(AG18/AG$15,"-") -> 0.8028169014 | AG18: =SUMIFS(OFFSET(REL_D,,MATCH($B18,IND,0)-1),REL_D,$M$2,total,$AG$11) -> 114 | AH18: =IF(AND(AG$15*0.9-AG18<1,(AG$15*0.9-AG18>0)),1,IF(AG$15*0.9-AG18<=0,"",AG$15*0.9-AG18)) -> 13.8
B19: (01.03) PCV | C19: PCV | E19: 0.9246724891 | F19: 847 | H19: 0.9532163743 | I19: =SUMIFS(OFFSET(REL_D,,MATCH(B19,IND,0)-1),REL_D,$M$2,total,$I$11) -> 163 | J19: =IF(AND(I$15*0.9-I19<1,(I$15*0.9-I19>0)),1,IF(I$15*0.9-I19<=0,"",I$15*0.9-I19)) ->  | L19: 0.9621212121 | M19: =SUMIFS(OFFSET(REL_D,,MATCH(B19,IND,0)-1),REL_D,$M$2,total,$M$11) -> 127 | N19: =IF(AND(M$15*0.9-M19<1,(M$15*0.9-M19>0)),1,IF(M$15*0.9-M19<=0,"",M$15*0.9-M19)) ->  | P19: 0.9204545455 | Q19: =SUMIFS(OFFSET(REL_D,,MATCH($B19,IND,0)-1),REL_D,$M$2,total,$Q$11) -> 81 | R19: =IF(AND(Q$15*0.9-Q19<1,(Q$15*0.9-Q19>0)),1,IF(Q$15*0.9-Q19<=0,"",Q$15*0.9-Q19)) ->  | T19: 0.9055555556 | U19: =SUMIFS(OFFSET(REL_D,,MATCH($B19,IND,0)-1),REL_D,$M$2,total,$U$11) -> 163 | V19: =IF(AND(U$15*0.9-U19<1,(U$15*0.9-U19>0)),1,IF(U$15*0.9-U19<=0,"",U$15*0.9-U19)) ->  | X19: 0.9024390244 | Y19: =SUMIFS(OFFSET(REL_D,,MATCH($B19,IND,0)-1),REL_D,$M$2,total,$Y$11) -> 74 | Z19: =IF(AND(Y$15*0.9-Y19<1,(Y$15*0.9-Y19>0)),1,IF(Y$15*0.9-Y19<=0,"",Y$15*0.9-Y19)) ->  | AB19: 0.9421487603 | AC19: =SUMIFS(OFFSET(REL_D,,MATCH($B19,IND,0)-1),REL_D,$M$2,total,$AC$11) -> 114 | AD19: =IF(AND(AC$15*0.9-AC19<1,(AC$15*0.9-AC19>0)),1,IF(AC$15*0.9-AC19<=0,"",AC$15*0.9-AC19)) ->  | AF19: 0.8802816901 | AG19: =SUMIFS(OFFSET(REL_D,,MATCH($B19,IND,0)-1),REL_D,$M$2,total,$AG$11) -> 125 | AH19: =IF(AND(AG$15*0.9-AG19<1,(AG$15*0.9-AG19>0)),1,IF(AG$15*0.9-AG19<=0,"",AG$15*0.9-AG19)) -> 2.8
B20: (01.04) Rotavirus | C20: Rotavirus | E20: 0.8744541485 | F20: 801 | H20: 0.9064327485 | I20: =SUMIFS(OFFSET(REL_D,,MATCH(B20,IND,0)-1),REL_D,$M$2,total,$I$11) -> 155 | J20: =IF(AND(I$15*0.9-I20<1,(I$15*0.9-I20>0)),1,IF(I$15*0.9-I20<=0,"",I$15*0.9-I20)) ->  | L20: 0.9015151515 | M20: =SUMIFS(OFFSET(REL_D,,MATCH(B20,IND,0)-1),REL_D,$M$2,total,$M$11) -> 119 | N20: =IF(AND(M$15*0.9-M20<1,(M$15*0.9-M20>0)),1,IF(M$15*0.9-M20<=0,"",M$15*0.9-M20)) ->  | P20: 0.8636363636 | Q20: =SUMIFS(OFFSET(REL_D,,MATCH($B20,IND,0)-1),REL_D,$M$2,total,$Q$11) -> 76 | R20: =IF(AND(Q$15*0.9-Q20<1,(Q$15*0.9-Q20>0)),1,IF(Q$15*0.9-Q20<=0,"",Q$15*0.9-Q20)) -> 3.2 | T20: 0.8555555556 | U20: =SUMIFS(OFFSET(REL_D,,MATCH($B20,IND,0)-1),REL_D,$M$2,total,$U$11) -> 154 | V20: =IF(AND(U$15*0.9-U20<1,(U$15*0.9-U20>0)),1,IF(U$15*0.9-U20<=0,"",U$15*0.9-U20)) -> 8 | X20: 0.8414634146 | Y20: =SUMIFS(OFFSET(REL_D,,MATCH($B20,IND,0)-1),REL_D,$M$2,total,$Y$11) -> 69 | Z20: =IF(AND(Y$15*0.9-Y20<1,(Y$15*0.9-Y20>0)),1,IF(Y$15*0.9-Y20<=0,"",Y$15*0.9-Y20)) -> 4.8 | AB20: 0.8842975207 | AC20: =SUMIFS(OFFSET(REL_D,,MATCH($B20,IND,0)-1),REL_D,$M$2,total,$AC$11) -> 107 | AD20: =IF(AND(AC$15*0.9-AC20<1,(AC$15*0.9-AC20>0)),1,IF(AC$15*0.9-AC20<=0,"",AC$15*0.9-AC20)) -> 1.9 | AF20: 0.8521126761 | AG20: =SUMIFS(OFFSET(REL_D,,MATCH($B20,IND,0)-1),REL_D,$M$2,total,$AG$11) -> 121 | AH20: =IF(AND(AG$15*0.9-AG20<1,(AG$15*0.9-AG20>0)),1,IF(AG$15*0.9-AG20<=0,"",AG$15*0.9-AG20)) -> 6.8
B21: (01.05) BCG | C21: BCG | E21: 0 | F21: =I21+M21+Q21+U21+Y21+AC21+AG21+AK21 -> 0 | H21: 0 | I21: =SUMIFS(OFFSET(REL_D,,MATCH(B21,IND,0)-1),REL_D,$M$2,IF(LEFT($I$11,1)="W",NwID,OrgID),$I$11) -> 0 | J21: =IF(AND(I$15*0.9-I21<1,(I$15*0.9-I21>0)),1,IF(I$15*0.9-I21<=0,"",I$15*0.9-I21)) -> 153.9 | L21: 0 | M21: =SUMIFS(OFFSET(REL_D,,MATCH($B21,IND,0)-1),REL_D,$M$2,IF(LEFT($M$11,1)="W",NwID,OrgID),$M$11) -> 0 | N21: =IF(AND(M$15*0.9-M21<1,(M$15*0.9-M21>0)),1,IF(M$15*0.9-M21<=0,"",M$15*0.9-M21)) -> 118.8 | P21: 0 | Q21: =SUMIFS(OFFSET(REL_D,,MATCH($B21,IND,0)-1),REL_D,$M$2,IF(LEFT($Q$11,1)="W",NwID,OrgID),$Q$11) -> 0 | R21: =IF(AND(Q$15*0.9-Q21<1,(Q$15*0.9-Q21>0)),1,IF(Q$15*0.9-Q21<=0,"",Q$15*0.9-Q21)) -> 79.2 | T21: 0 | U21: =SUMIFS(OFFSET(REL_D,,MATCH($B21,IND,0)-1),REL_D,$M$2,IF(LEFT($U$11,1)="W",NwID,OrgID),$U$11) -> 0 | V21: =IF(AND(U$15*0.9-U21<1,(U$15*0.9-U21>0)),1,IF(U$15*0.9-U21<=0,"",U$15*0.9-U21)) -> 162 | X21: 0 | Y21: =SUMIFS(OFFSET(REL_D,,MATCH($B21,IND,0)-1),REL_D,$M$2,IF(LEFT($Y$11,1)="W",NwID,OrgID),$Y$11) -> 0 | Z21: =IF(AND(Y$15*0.9-Y21<1,(Y$15*0.9-Y21>0)),1,IF(Y$15*0.9-Y21<=0,"",Y$15*0.9-Y21)) -> 73.8 | AB21: 0 | AC21: =SUMIFS(OFFSET(REL_D,,MATCH($B21,IND,0)-1),REL_D,$M$2,IF(LEFT($AC$11,1)="W",NwID,OrgID),$AC$11) -> 0 | AD21: =IF(AND(AC$15*0.9-AC21<1,(AC$15*0.9-AC21>0)),1,IF(AC$15*0.9-AC21<=0,"",AC$15*0.9-AC21)) -> 108.9 | AF21: 0 | AG21: =SUMIFS(OFFSET(REL_D,,MATCH($B21,IND,0)-1),REL_D,$M$2,IF(LEFT($AG$11,1)="W",NwID,OrgID),$AG$11) -> 0 | AH21: =IF(AND(AG$15*0.9-AG21<1,(AG$15*0.9-AG21>0)),1,IF(AG$15*0.9-AG21<=0,"",AG$15*0.9-AG21)) -> 127.8
B23: (02) 24 MONTH COHORT | C23: ="Patients becoming 24m within "&'Control Panel'!$B$1 -> Patients becoming 24m within Q | F23: =I23+M23+Q23+U23+Y23+AC23+AG23 -> 939 | I23: =SUMIFS(OFFSET(REL_D,,MATCH(B23,IND,0)-1),REL_D,$M$2,total,$I$11) -> 186 | M23: =SUMIFS(OFFSET(REL_D,,MATCH(B23,IND,0)-1),REL_D,$M$2,total,$M$11) -> 156 | Q23: =SUMIFS(OFFSET(REL_D,,MATCH($B23,IND,0)-1),REL_D,$M$2,total,$Q$11) -> 87 | U23: =SUMIFS(OFFSET(REL_D,,MATCH($B23,IND,0)-1),REL_D,$M$2,total,$U$11) -> 138 | Y23: =SUMIFS(OFFSET(REL_D,,MATCH($B23,IND,0)-1),REL_D,$M$2,total,$Y$11) -> 106 | AC23: =SUMIFS(OFFSET(REL_D,,MATCH($B23,IND,0)-1),REL_D,$M$2,total,$AC$11) -> 123 | AG23: =SUMIFS(OFFSET(REL_D,,MATCH($B23,IND,0)-1),REL_D,$M$2,total,$AG$11) -> 143
E24: Coverage | F24: Activity | H24: Coverage | I24: Activity | J24: Required | L24: Coverage | M24: Activity | N24: Required | P24: Coverage | Q24: Activity | R24: Required | T24: Coverage | U24: Activity | V24: Required | X24: Coverage | Y24: Activity | Z24: Required | AB24: Coverage | AC24: Activity | AD24: Required | AF24: Coverage | AG24: Activity | AH24: Required
B25: ='Control Panel'!E27 -> (02.01) DTaP/IPV/Hib or DTaP/IPV/Hib/HepB | C25: DTaP/IPV/Hib/HepB | E25: =IFERROR(F25/F$23,"-") -> 0.887113951 | F25: =I25+M25+Q25+U25+Y25+AC25+AG25 -> 833 | H25: =IFERROR(I25/I$23,"-") -> 0.9086021505 | I25: =SUMIFS(OFFSET(REL_D,,MATCH(B25,IND,0)-1),REL_D,$M$2,total,$I$11) -> 169 | J25: =IF(AND(I$23*0.9-I25<1,(I$23*0.9-I25>0)),1,IF(I$23*0.9-I25<=0,"",I$23*0.9-I25)) ->  | L25: =IFERROR(M25/M$23,"-") -> 0.9294871795 | M25: =SUMIFS(OFFSET(REL_D,,MATCH(B25,IND,0)-1),REL_D,$M$2,total,$M$11) -> 145 | N25: =IF(AND(M$23*0.9-M25<1,(M$23*0.9-M25>0)),1,IF(M$23*0.9-M25<=0,"",M$23*0.9-M25)) ->  | P25: =IFERROR(Q25/Q$23,"-") -> 0.8850574713 | Q25: =SUMIFS(OFFSET(REL_D,,MATCH($B25,IND,0)-1),REL_D,$M$2,total,$Q$11) -> 77 | R25: =IF(AND(Q$23*0.9-Q25<1,(Q$23*0.9-Q25>0)),1,IF(Q$23*0.9-Q25<=0,"",Q$23*0.9-Q25)) -> 1.3 | T25: =IFERROR(U25/U$23,"-") -> 0.8768115942 | U25: =SUMIFS(OFFSET(REL_D,,MATCH($B25,IND,0)-1),REL_D,$M$2,total,$U$11) -> 121 | V25: =IF(AND(U$23*0.9-U25<1,(U$23*0.9-U25>0)),1,IF(U$23*0.9-U25<=0,"",U$23*0.9-U25)) -> 3.2 | X25: =IFERROR(Y25/Y$23,"-") -> 0.8679245283 | Y25: =SUMIFS(OFFSET(REL_D,,MATCH($B25,IND,0)-1),REL_D,$M$2,total,$Y$11) -> 92 | Z25: =IF(AND(Y$23*0.9-Y25<1,(Y$23*0.9-Y25>0)),1,IF(Y$23*0.9-Y25<=0,"",Y$23*0.9-Y25)) -> 3.4 | AB25: =IFERROR(AC25/AC$23,"-") -> 0.837398374 | AC25: =SUMIFS(OFFSET(REL_D,,MATCH($B25,IND,0)-1),REL_D,$M$2,total,$AC$11) -> 103 | AD25: =IF(AND(AC$23*0.9-AC25<1,(AC$23*0.9-AC25>0)),1,IF(AC$23*0.9-AC25<=0,"",AC$23*0.9-AC25)) -> 7.7 | AF25: =IFERROR(AG25/AG$23,"-") -> 0.8811188811 | AG25: =SUMIFS(OFFSET(REL_D,,MATCH($B25,IND,0)-1),REL_D,$M$2,total,$AG$11) -> 126 | AH25: =IF(AND(AG$23*0.9-AG25<1,(AG$23*0.9-AG25>0)),1,IF(AG$23*0.9-AG25<=0,"",AG$23*0.9-AG25)) -> 2.7
B26: (02.02) MMR | C26: MMR | E26: =IFERROR(F26/F$23,"-") -> 0.8477103301 | F26: 796 | H26: =IFERROR(I26/I$23,"-") -> 0.8870967742 | I26: =SUMIFS(OFFSET(REL_D,,MATCH(B26,IND,0)-1),REL_D,$M$2,total,$I$11) -> 165 | J26: =IF(AND(I$23*0.9-I26<1,(I$23*0.9-I26>0)),1,IF(I$23*0.9-I26<=0,"",I$23*0.9-I26)) -> 2.4 | L26: =IFERROR(M26/M$23,"-") -> 0.8333333333 | M26: =SUMIFS(OFFSET(REL_D,,MATCH(B26,IND,0)-1),REL_D,$M$2,total,$M$11) -> 130 | N26: =IF(AND(M$23*0.9-M26<1,(M$23*0.9-M26>0)),1,IF(M$23*0.9-M26<=0,"",M$23*0.9-M26)) -> 10.4 | P26: =IFERROR(Q26/Q$23,"-") -> 0.8965517241 | Q26: =SUMIFS(OFFSET(REL_D,,MATCH($B26,IND,0)-1),REL_D,$M$2,total,$Q$11) -> 78 | R26: =IF(AND(Q$23*0.9-Q26<1,(Q$23*0.9-Q26>0)),1,IF(Q$23*0.9-Q26<=0,"",Q$23*0.9-Q26)) -> 1 | T26: =IFERROR(U26/U$23,"-") -> 0.8405797101 | U26: =SUMIFS(OFFSET(REL_D,,MATCH($B26,IND,0)-1),REL_D,$M$2,total,$U$11) -> 116 | V26: =IF(AND(U$23*0.9-U26<1,(U$23*0.9-U26>0)),1,IF(U$23*0.9-U26<=0,"",U$23*0.9-U26)) -> 8.2 | X26: =IFERROR(Y26/Y$23,"-") -> 0.8018867925 | Y26: =SUMIFS(OFFSET(REL_D,,MATCH($B26,IND,0)-1),REL_D,$M$2,total,$Y$11) -> 85 | Z26: =IF(AND(Y$23*0.9-Y26<1,(Y$23*0.9-Y26>0)),1,IF(Y$23*0.9-Y26<=0,"",Y$23*0.9-Y26)) -> 10.4 | AB26: =IFERROR(AC26/AC$23,"-") -> 0.8292682927 | AC26: =SUMIFS(OFFSET(REL_D,,MATCH($B26,IND,0)-1),REL_D,$M$2,total,$AC$11) -> 102 | AD26: =IF(AND(AC$23*0.9-AC26<1,(AC$23*0.9-AC26>0)),1,IF(AC$23*0.9-AC26<=0,"",AC$23*0.9-AC26)) -> 8.7 | AF26: =IFERROR(AG26/AG$23,"-") -> 0.8391608392 | AG26: =SUMIFS(OFFSET(REL_D,,MATCH($B26,IND,0)-1),REL_D,$M$2,total,$AG$11) -> 120 | AH26: =IF(AND(AG$23*0.9-AG26<1,(AG$23*0.9-AG26>0)),1,IF(AG$23*0.9-AG26<=0,"",AG$23*0.9-AG26)) -> 8.7
B27: (02.03) HiB/Men C | C27: HiB/Men C | E27: 0.8434504792 | F27: 792 | H27: =IFERROR(I27/I$23,"-") -> 0.876344086 | I27: =SUMIFS(OFFSET(REL_D,,MATCH(B27,IND,0)-1),REL_D,$M$2,total,$I$11) -> 163 | J27: =IF(AND(I$23*0.9-I27<1,(I$23*0.9-I27>0)),1,IF(I$23*0.9-I27<=0,"",I$23*0.9-I27)) -> 4.4 | L27: 0.8461538462 | M27: =SUMIFS(OFFSET(REL_D,,MATCH(B27,IND,0)-1),REL_D,$M$2,total,$M$11) -> 132 | N27: =IF(AND(M$23*0.9-M27<1,(M$23*0.9-M27>0)),1,IF(M$23*0.9-M27<=0,"",M$23*0.9-M27)) -> 8.4 | P27: 0.8735632184 | Q27: =SUMIFS(OFFSET(REL_D,,MATCH($B27,IND,0)-1),REL_D,$M$2,total,$Q$11) -> 76 | R27: =IF(AND(Q$23*0.9-Q27<1,(Q$23*0.9-Q27>0)),1,IF(Q$23*0.9-Q27<=0,"",Q$23*0.9-Q27)) -> 2.3 | T27: 0.847826087 | U27: =SUMIFS(OFFSET(REL_D,,MATCH($B27,IND,0)-1),REL_D,$M$2,total,$U$11) -> 117 | V27: =IF(AND(U$23*0.9-U27<1,(U$23*0.9-U27>0)),1,IF(U$23*0.9-U27<=0,"",U$23*0.9-U27)) -> 7.2 | X27: 0.7641509434 | Y27: =SUMIFS(OFFSET(REL_D,,MATCH($B27,IND,0)-1),REL_D,$M$2,total,$Y$11) -> 81 | Z27: =IF(AND(Y$23*0.9-Y27<1,(Y$23*0.9-Y27>0)),1,IF(Y$23*0.9-Y27<=0,"",Y$23*0.9-Y27)) -> 14.4 | AB27: 0.837398374 | AC27: =SUMIFS(OFFSET(REL_D,,MATCH($B27,IND,0)-1),REL_D,$M$2,total,$AC$11) -> 103 | AD27: =IF(AND(AC$23*0.9-AC27<1,(AC$23*0.9-AC27>0)),1,IF(AC$23*0.9-AC27<=0,"",AC$23*0.9-AC27)) -> 7.7 | AF27: 0.8391608392 | AG27: =SUMIFS(OFFSET(REL_D,,MATCH($B27,IND,0)-1),REL_D,$M$2,total,$AG$11) -> 120 | AH27: =IF(AND(AG$23*0.9-AG27<1,(AG$23*0.9-AG27>0)),1,IF(AG$23*0.9-AG27<=0,"",AG$23*0.9-AG27)) -> 8.7
B28: (02.04) PCV (Booster) | C28: PCV (Booster) | E28: 0.8455804047 | F28: 794 | H28: =IFERROR(I28/I$23,"-") -> 0.8709677419 | I28: =SUMIFS(OFFSET(REL_D,,MATCH(B28,IND,0)-1),REL_D,$M$2,total,$I$11) -> 162 | J28: =IF(AND(I$23*0.9-I28<1,(I$23*0.9-I28>0)),1,IF(I$23*0.9-I28<=0,"",I$23*0.9-I28)) -> 5.4 | L28: 0.8397435897 | M28: =SUMIFS(OFFSET(REL_D,,MATCH(B28,IND,0)-1),REL_D,$M$2,total,$M$11) -> 131 | N28: =IF(AND(M$23*0.9-M28<1,(M$23*0.9-M28>0)),1,IF(M$23*0.9-M28<=0,"",M$23*0.9-M28)) -> 9.4 | P28: 0.8850574713 | Q28: =SUMIFS(OFFSET(REL_D,,MATCH($B28,IND,0)-1),REL_D,$M$2,total,$Q$11) -> 77 | R28: =IF(AND(Q$23*0.9-Q28<1,(Q$23*0.9-Q28>0)),1,IF(Q$23*0.9-Q28<=0,"",Q$23*0.9-Q28)) -> 1.3 | T28: 0.8405797101 | U28: =SUMIFS(OFFSET(REL_D,,MATCH($B28,IND,0)-1),REL_D,$M$2,total,$U$11) -> 116 | V28: =IF(AND(U$23*0.9-U28<1,(U$23*0.9-U28>0)),1,IF(U$23*0.9-U28<=0,"",U$23*0.9-U28)) -> 8.2 | X28: 0.8018867925 | Y28: =SUMIFS(OFFSET(REL_D,,MATCH($B28,IND,0)-1),REL_D,$M$2,total,$Y$11) -> 85 | Z28: =IF(AND(Y$23*0.9-Y28<1,(Y$23*0.9-Y28>0)),1,IF(Y$23*0.9-Y28<=0,"",Y$23*0.9-Y28)) -> 10.4 | AB28: 0.8455284553 | AC28: =SUMIFS(OFFSET(REL_D,,MATCH($B28,IND,0)-1),REL_D,$M$2,total,$AC$11) -> 104 | AD28: =IF(AND(AC$23*0.9-AC28<1,(AC$23*0.9-AC28>0)),1,IF(AC$23*0.9-AC28<=0,"",AC$23*0.9-AC28)) -> 6.7 | AF28: 0.8321678322 | AG28: =SUMIFS(OFFSET(REL_D,,MATCH($B28,IND,0)-1),REL_D,$M$2,total,$AG$11) -> 119 | AH28: =IF(AND(AG$23*0.9-AG28<1,(AG$23*0.9-AG28>0)),1,IF(AG$23*0.9-AG28<=0,"",AG$23*0.9-AG28)) -> 9.7
B29: (02.05) Men B (Booster) | C29: MenB (Booster) | E29: 0.8509052183 | F29: 799 | H29: =IFERROR(I29/I$23,"-") -> 0.8978494624 | I29: =SUMIFS(OFFSET(REL_D,,MATCH(B29,IND,0)-1),REL_D,$M$2,total,$I$11) -> 167 | J29: =IF(AND(I$23*0.9-I29<1,(I$23*0.9-I29>0)),1,IF(I$23*0.9-I29<=0,"",I$23*0.9-I29)) -> 1 | L29: 0.858974359 | M29: =SUMIFS(OFFSET(REL_D,,MATCH(B29,IND,0)-1),REL_D,$M$2,total,$M$11) -> 134 | N29: =IF(AND(M$23*0.9-M29<1,(M$23*0.9-M29>0)),1,IF(M$23*0.9-M29<=0,"",M$23*0.9-M29)) -> 6.4 | P29: 0.8735632184 | Q29: =SUMIFS(OFFSET(REL_D,,MATCH($B29,IND,0)-1),REL_D,$M$2,total,$Q$11) -> 76 | R29: =IF(AND(Q$23*0.9-Q29<1,(Q$23*0.9-Q29>0)),1,IF(Q$23*0.9-Q29<=0,"",Q$23*0.9-Q29)) -> 2.3 | T29: 0.847826087 | U29: =SUMIFS(OFFSET(REL_D,,MATCH($B29,IND,0)-1),REL_D,$M$2,total,$U$11) -> 117 | V29: =IF(AND(U$23*0.9-U29<1,(U$23*0.9-U29>0)),1,IF(U$23*0.9-U29<=0,"",U$23*0.9-U29)) -> 7.2 | X29: 0.7735849057 | Y29: =SUMIFS(OFFSET(REL_D,,MATCH($B29,IND,0)-1),REL_D,$M$2,total,$Y$11) -> 82 | Z29: =IF(AND(Y$23*0.9-Y29<1,(Y$23*0.9-Y29>0)),1,IF(Y$23*0.9-Y29<=0,"",Y$23*0.9-Y29)) -> 13.4 | AB29: 0.8536585366 | AC29: =SUMIFS(OFFSET(REL_D,,MATCH($B29,IND,0)-1),REL_D,$M$2,total,$AC$11) -> 105 | AD29: =IF(AND(AC$23*0.9-AC29<1,(AC$23*0.9-AC29>0)),1,IF(AC$23*0.9-AC29<=0,"",AC$23*0.9-AC29)) -> 5.7 | AF29: 0.8251748252 | AG29: =SUMIFS(OFFSET(REL_D,,MATCH($B29,IND,0)-1),REL_D,$M$2,total,$AG$11) -> 118 | AH29: =IF(AND(AG$23*0.9-AG29<1,(AG$23*0.9-AG29>0)),1,IF(AG$23*0.9-AG29<=0,"",AG$23*0.9-AG29)) -> 10.7
B31: (03) 5 YEAR COHORT | C31: ="Patients becoming 5y within "&'Control Panel'!$B$1 -> Patients becoming 5y within Q | F31: =I31+M31+Q31+U31+Y31+AC31+AG31 -> 867 | I31: =SUMIFS(OFFSET(REL_D,,MATCH(B31,IND,0)-1),REL_D,$M$2,total,$I$11) -> 158 | M31: =SUMIFS(OFFSET(REL_D,,MATCH(B31,IND,0)-1),REL_D,$M$2,total,$M$11) -> 155 | Q31: =SUMIFS(OFFSET(REL_D,,MATCH($B31,IND,0)-1),REL_D,$M$2,total,$Q$11) -> 100 | U31: =SUMIFS(OFFSET(REL_D,,MATCH($B31,IND,0)-1),REL_D,$M$2,total,$U$11) -> 154 | Y31: =SUMIFS(OFFSET(REL_D,,MATCH($B31,IND,0)-1),REL_D,$M$2,total,$Y$11) -> 83 | AC31: =SUMIFS(OFFSET(REL_D,,MATCH($B31,IND,0)-1),REL_D,$M$2,total,$AC$11) -> 115 | AG31: =SUMIFS(OFFSET(REL_D,,MATCH($B31,IND,0)-1),REL_D,$M$2,total,$AG$11) -> 102
E32: Coverage | F32: Activity | H32: Coverage | I32: Activity | J32: Required | L32: Coverage | M32: Activity | N32: Required | P32: Coverage | Q32: Activity | R32: Required | T32: Coverage | U32: Activity | V32: Required | X32: Coverage | Y32: Activity | Z32: Required | AB32: Coverage | AC32: Activity | AD32: Required | AF32: Coverage | AG32: Activity | AH32: Required
B33: ='Control Panel'!E50 -> (03.01) DTaP/IPV/Hib or DTaP/IPV/Hib/HepB | C33: DTaP/IPV/Hib/HepB | E33: =IFERROR(F33/F$31,"-") -> 0.8846597463 | F33: =I33+M33+Q33+U33+Y33+AC33+AG33 -> 767 | H33: =IFERROR(I33/I$31,"-") -> 0.8987341772 | I33: =SUMIFS(OFFSET(REL_D,,MATCH(B33,IND,0)-1),REL_D,$M$2,total,$I$11) -> 142 | J33: =IF(AND(I$31*0.9-I33<1,(I$31*0.9-I33>0)),1,IF(I$31*0.9-I33<=0,"",I$31*0.9-I33)) -> 1 | L33: =IFERROR(M33/M$31,"-") -> 0.9225806452 | M33: =SUMIFS(OFFSET(REL_D,,MATCH(B33,IND,0)-1),REL_D,$M$2,total,$M$11) -> 143 | N33: =IF(AND(M$31*0.9-M33<1,(M$31*0.9-M33>0)),1,IF(M$31*0.9-M33<=0,"",M$31*0.9-M33)) ->  | P33: =IFERROR(Q33/Q$31,"-") -> 0.83 | Q33: =SUMIFS(OFFSET(REL_D,,MATCH($B33,IND,0)-1),REL_D,$M$2,total,$Q$11) -> 83 | R33: =IF(AND(Q$31*0.9-Q33<1,(Q$31*0.9-Q33>0)),1,IF(Q$31*0.9-Q33<=0,"",Q$31*0.9-Q33)) -> 7 | T33: =IFERROR(U33/U$31,"-") -> 0.8376623377 | U33: =SUMIFS(OFFSET(REL_D,,MATCH($B33,IND,0)-1),REL_D,$M$2,total,$U$11) -> 129 | V33: =IF(AND(U$31*0.9-U33<1,(U$31*0.9-U33>0)),1,IF(U$31*0.9-U33<=0,"",U$31*0.9-U33)) -> 9.6 | X33: =IFERROR(Y33/Y$31,"-") -> 0.8674698795 | Y33: =SUMIFS(OFFSET(REL_D,,MATCH($B33,IND,0)-1),REL_D,$M$2,total,$Y$11) -> 72 | Z33: =IF(AND(Y$31*0.9-Y33<1,(Y$31*0.9-Y33>0)),1,IF(Y$31*0.9-Y33<=0,"",Y$31*0.9-Y33)) -> 2.7 | AB33: =IFERROR(AC33/AC$31,"-") -> 0.8782608696 | AC33: =SUMIFS(OFFSET(REL_D,,MATCH($B33,IND,0)-1),REL_D,$M$2,total,$AC$11) -> 101 | AD33: =IF(AND(AC$31*0.9-AC33<1,(AC$31*0.9-AC33>0)),1,IF(AC$31*0.9-AC33<=0,"",AC$31*0.9-AC33)) -> 2.5 | AF33: =IFERROR(AG33/AG$31,"-") -> 0.9509803922 | AG33: =SUMIFS(OFFSET(REL_D,,MATCH($B33,IND,0)-1),REL_D,$M$2,total,$AG$11) -> 97 | AH33: =IF(AND(AG$31*0.9-AG33<1,(AG$31*0.9-AG33>0)),1,IF(AG$31*0.9-AG33<=0,"",AG$31*0.9-AG33)) -> 
B34: (03.02) MMR (Primary) | C34: MMR (Primary) | E34: =IFERROR(F34/F$31,"-") -> 0.8846597463 | F34: 767 | H34: =IFERROR(I34/I$31,"-") -> 0.8860759494 | I34: =SUMIFS(OFFSET(REL_D,,MATCH(B34,IND,0)-1),REL_D,$M$2,total,$I$11) -> 140 | J34: =IF(AND(I$31*0.9-I34<1,(I$31*0.9-I34>0)),1,IF(I$31*0.9-I34<=0,"",I$31*0.9-I34)) -> 2.2 | L34: =IFERROR(M34/M$31,"-") -> 0.9225806452 | M34: =SUMIFS(OFFSET(REL_D,,MATCH(B34,IND,0)-1),REL_D,$M$2,total,$M$11) -> 143 | N34: =IF(AND(M$31*0.9-M34<1,(M$31*0.9-M34>0)),1,IF(M$31*0.9-M34<=0,"",M$31*0.9-M34)) ->  | P34: =IFERROR(Q34/Q$31,"-") -> 0.89 | Q34: =SUMIFS(OFFSET(REL_D,,MATCH($B34,IND,0)-1),REL_D,$M$2,total,$Q$11) -> 89 | R34: =IF(AND(Q$31*0.9-Q34<1,(Q$31*0.9-Q34>0)),1,IF(Q$31*0.9-Q34<=0,"",Q$31*0.9-Q34)) -> 1 | T34: =IFERROR(U34/U$31,"-") -> 0.8506493506 | U34: =SUMIFS(OFFSET(REL_D,,MATCH($B34,IND,0)-1),REL_D,$M$2,total,$U$11) -> 131 | V34: =IF(AND(U$31*0.9-U34<1,(U$31*0.9-U34>0)),1,IF(U$31*0.9-U34<=0,"",U$31*0.9-U34)) -> 7.6 | X34: =IFERROR(Y34/Y$31,"-") -> 0.8554216867 | Y34: =SUMIFS(OFFSET(REL_D,,MATCH($B34,IND,0)-1),REL_D,$M$2,total,$Y$11) -> 71 | Z34: =IF(AND(Y$31*0.9-Y34<1,(Y$31*0.9-Y34>0)),1,IF(Y$31*0.9-Y34<=0,"",Y$31*0.9-Y34)) -> 3.7 | AB34: =IFERROR(AC34/AC$31,"-") -> 0.852173913 | AC34: =SUMIFS(OFFSET(REL_D,,MATCH($B34,IND,0)-1),REL_D,$M$2,total,$AC$11) -> 98 | AD34: =IF(AND(AC$31*0.9-AC34<1,(AC$31*0.9-AC34>0)),1,IF(AC$31*0.9-AC34<=0,"",AC$31*0.9-AC34)) -> 5.5 | AF34: =IFERROR(AG34/AG$31,"-") -> 0.931372549 | AG34: =SUMIFS(OFFSET(REL_D,,MATCH($B34,IND,0)-1),REL_D,$M$2,total,$AG$11) -> 95 | AH34: =IF(AND(AG$31*0.9-AG34<1,(AG$31*0.9-AG34>0)),1,IF(AG$31*0.9-AG34<=0,"",AG$31*0.9-AG34)) -> 
B35: (03.03) DTaP/IPV (Booster) | C35: DTaP/IPV (Booster) | E35: 0.7912341407 | F35: 686 | H35: =IFERROR(I35/I$31,"-") -> 0.8101265823 | I35: =SUMIFS(OFFSET(REL_D,,MATCH(B35,IND,0)-1),REL_D,$M$2,total,$I$11) -> 128 | J35: =IF(AND(I$31*0.9-I35<1,(I$31*0.9-I35>0)),1,IF(I$31*0.9-I35<=0,"",I$31*0.9-I35)) -> 14.2 | L35: 0.8451612903 | M35: =SUMIFS(OFFSET(REL_D,,MATCH(B35,IND,0)-1),REL_D,$M$2,total,$M$11) -> 131 | N35: =IF(AND(M$31*0.9-M35<1,(M$31*0.9-M35>0)),1,IF(M$31*0.9-M35<=0,"",M$31*0.9-M35)) -> 8.5 | P35: 0.8 | Q35: =SUMIFS(OFFSET(REL_D,,MATCH($B35,IND,0)-1),REL_D,$M$2,total,$Q$11) -> 80 | R35: =IF(AND(Q$31*0.9-Q35<1,(Q$31*0.9-Q35>0)),1,IF(Q$31*0.9-Q35<=0,"",Q$31*0.9-Q35)) -> 10 | T35: 0.7142857143 | U35: =SUMIFS(OFFSET(REL_D,,MATCH($B35,IND,0)-1),REL_D,$M$2,total,$U$11) -> 110 | V35: =IF(AND(U$31*0.9-U35<1,(U$31*0.9-U35>0)),1,IF(U$31*0.9-U35<=0,"",U$31*0.9-U35)) -> 28.6 | X35: 0.7590361446 | Y35: =SUMIFS(OFFSET(REL_D,,MATCH($B35,IND,0)-1),REL_D,$M$2,total,$Y$11) -> 63 | Z35: =IF(AND(Y$31*0.9-Y35<1,(Y$31*0.9-Y35>0)),1,IF(Y$31*0.9-Y35<=0,"",Y$31*0.9-Y35)) -> 11.7 | AB35: 0.7739130435 | AC35: =SUMIFS(OFFSET(REL_D,,MATCH($B35,IND,0)-1),REL_D,$M$2,total,$AC$11) -> 89 | AD35: =IF(AND(AC$31*0.9-AC35<1,(AC$31*0.9-AC35>0)),1,IF(AC$31*0.9-AC35<=0,"",AC$31*0.9-AC35)) -> 14.5 | AF35: 0.8333333333 | AG35: =SUMIFS(OFFSET(REL_D,,MATCH($B35,IND,0)-1),REL_D,$M$2,total,$AG$11) -> 85 | AH35: =IF(AND(AG$31*0.9-AG35<1,(AG$31*0.9-AG35>0)),1,IF(AG$31*0.9-AG35<=0,"",AG$31*0.9-AG35)) -> 6.8
B36: (03.05) MMR (Booster) | C36: MMR (Booster) | E36: 0.7946943483 | F36: 689 | H36: 0.8101265823 | I36: =SUMIFS(OFFSET(REL_D,,MATCH(B36,IND,0)-1),REL_D,$M$2,total,$I$11) -> 128 | J36: =IF(AND(I$31*0.9-I36<1,(I$31*0.9-I36>0)),1,IF(I$31*0.9-I36<=0,"",I$31*0.9-I36)) -> 14.2 | L36: 0.864516129 | M36: =SUMIFS(OFFSET(REL_D,,MATCH(B36,IND,0)-1),REL_D,$M$2,total,$M$11) -> 134 | N36: =IF(AND(M$31*0.9-M36<1,(M$31*0.9-M36>0)),1,IF(M$31*0.9-M36<=0,"",M$31*0.9-M36)) -> 5.5 | P36: 0.78 | Q36: =SUMIFS(OFFSET(REL_D,,MATCH($B36,IND,0)-1),REL_D,$M$2,total,$Q$11) -> 78 | R36: =IF(AND(Q$31*0.9-Q36<1,(Q$31*0.9-Q36>0)),1,IF(Q$31*0.9-Q36<=0,"",Q$31*0.9-Q36)) -> 12 | T36: 0.7207792208 | U36: =SUMIFS(OFFSET(REL_D,,MATCH($B36,IND,0)-1),REL_D,$M$2,total,$U$11) -> 111 | V36: =IF(AND(U$31*0.9-U36<1,(U$31*0.9-U36>0)),1,IF(U$31*0.9-U36<=0,"",U$31*0.9-U36)) -> 27.6 | X36: 0.7469879518 | Y36: =SUMIFS(OFFSET(REL_D,,MATCH($B36,IND,0)-1),REL_D,$M$2,total,$Y$11) -> 62 | Z36: =IF(AND(Y$31*0.9-Y36<1,(Y$31*0.9-Y36>0)),1,IF(Y$31*0.9-Y36<=0,"",Y$31*0.9-Y36)) -> 12.7 | AB36: 0.7652173913 | AC36: =SUMIFS(OFFSET(REL_D,,MATCH($B36,IND,0)-1),REL_D,$M$2,total,$AC$11) -> 88 | AD36: =IF(AND(AC$31*0.9-AC36<1,(AC$31*0.9-AC36>0)),1,IF(AC$31*0.9-AC36<=0,"",AC$31*0.9-AC36)) -> 15.5 | AF36: 0.862745098 | AG36: =SUMIFS(OFFSET(REL_D,,MATCH($B36,IND,0)-1),REL_D,$M$2,total,$AG$11) -> 88 | AH36: =IF(AND(AG$31*0.9-AG36<1,(AG$31*0.9-AG36>0)),1,IF(AG$31*0.9-AG36<=0,"",AG$31*0.9-AG36)) -> 3.8
B37: (03.04) HiB/Men C | C37: HiB/Men C | E37: 0.8662053057 | F37: 751 | H37: 0.8797468354 | I37: =SUMIFS(OFFSET(REL_D,,MATCH(B37,IND,0)-1),REL_D,$M$2,total,$I$11) -> 139 | J37: =IF(AND(I$31*0.9-I37<1,(I$31*0.9-I37>0)),1,IF(I$31*0.9-I37<=0,"",I$31*0.9-I37)) -> 3.2 | L37: 0.8903225806 | M37: =SUMIFS(OFFSET(REL_D,,MATCH(B37,IND,0)-1),REL_D,$M$2,total,$M$11) -> 138 | N37: =IF(AND(M$31*0.9-M37<1,(M$31*0.9-M37>0)),1,IF(M$31*0.9-M37<=0,"",M$31*0.9-M37)) -> 1.5 | P37: 0.87 | Q37: =SUMIFS(OFFSET(REL_D,,MATCH($B37,IND,0)-1),REL_D,$M$2,total,$Q$11) -> 87 | R37: =IF(AND(Q$31*0.9-Q37<1,(Q$31*0.9-Q37>0)),1,IF(Q$31*0.9-Q37<=0,"",Q$31*0.9-Q37)) -> 3 | T37: 0.8181818182 | U37: =SUMIFS(OFFSET(REL_D,,MATCH($B37,IND,0)-1),REL_D,$M$2,total,$U$11) -> 126 | V37: =IF(AND(U$31*0.9-U37<1,(U$31*0.9-U37>0)),1,IF(U$31*0.9-U37<=0,"",U$31*0.9-U37)) -> 12.6 | X37: 0.8554216867 | Y37: =SUMIFS(OFFSET(REL_D,,MATCH($B37,IND,0)-1),REL_D,$M$2,total,$Y$11) -> 71 | Z37: =IF(AND(Y$31*0.9-Y37<1,(Y$31*0.9-Y37>0)),1,IF(Y$31*0.9-Y37<=0,"",Y$31*0.9-Y37)) -> 3.7 | AB37: 0.8434782609 | AC37: =SUMIFS(OFFSET(REL_D,,MATCH($B37,IND,0)-1),REL_D,$M$2,total,$AC$11) -> 97 | AD37: =IF(AND(AC$31*0.9-AC37<1,(AC$31*0.9-AC37>0)),1,IF(AC$31*0.9-AC37<=0,"",AC$31*0.9-AC37)) -> 6.5 | AF37: 0.9117647059 | AG37: =SUMIFS(OFFSET(REL_D,,MATCH($B37,IND,0)-1),REL_D,$M$2,total,$AG$11) -> 93 | AH37: =IF(AND(AG$31*0.9-AG37<1,(AG$31*0.9-AG37>0)),1,IF(AG$31*0.9-AG37<=0,"",AG$31*0.9-AG37)) -> 

Sheet Patients becoming 12m
D2: Waltham Forest Childhood Immunisations Dashboard: Metric Details
B3: =VLOOKUP(C5,'Control Panel'!Y49:Z60,2,FALSE) ->  | D3: Patients becoming 12m | F3: =E15 -> 916
B4: 2020-02-01
C5: March 2023 | D5: All Patients | E5: (01) 12 MONTH COHORT | F5: (01.01) DTaP/IPV/Hib 6in1 | G5: DTaP/IPV/Hib(%) | H5: Patients required to achieve NHSE Target (90%) | I5: (01.02) Men B (1st and 2nd) | J5: Men B(%) | K5: Patients required to achieve NHSE Target (90%) | L5: (01.03) PCV | M5: PCV(%) | N5: Patients required to achieve NHSE Target (90%) | O5: (01.04) Rotavirus | P5: Rotavirus(%)
B6: Home | D6: Listsize | E6: Patients becoming 12m | F6: DTaP/IPV/Hib/HepB | G6: DTaP/IPV/Hib/HepB(%) | H6: Patients required to achieve 95% | I6: Men B | J6: Men B(%) | K6: Patients required to achieve 95% | L6: PCV | M6: PCV(%) | N6: Patients required to achieve 95% | O6: Rotavirus | P6: Rotavirus(%)
A7: Cluster
A8: WF-1 | B8: Chingford/ Walthamstow | D8: =SUM(IF($A8=$A$19:$A$57,D$19:D$57)) -> 52462 | E8: =SUM(IF($A8=$A$19:$A$57,E$19:E$57)) -> 171 | F8: =SUM(IF($A8=$A$19:$A$57,F$19:F$57)) -> 155 | G8: =IF(OR(ISTEXT($E8),$E8=0),"N/A",F8/$E8) -> 0.9064327485 | I8: =SUM(IF($A8=$A$19:$A$57,I$19:I$57)) -> 153 | J8: =IF(OR(ISTEXT($E8),$E8=0),"N/A",I8/$E8) -> 0.8947368421 | L8: =SUM(IF($A8=$A$19:$A$57,L$19:L$57)) -> 163 | M8: =IF(OR(ISTEXT($E8),$E8=0),"N/A",L8/$E8) -> 0.9532163743 | O8: =SUM(IF($A8=$A$19:$A$57,O$19:O$57)) -> 155 | P8: =IF(OR(ISTEXT($E8),$E8=0),"N/A",O8/$E8) -> 0.9064327485
A9: WF-2 | B9: Chingford E4 | D9: =SUM(IF($A9=$A$19:$A$57,D$19:D$57)) -> 54070 | E9: =SUM(IF($A9=$A$19:$A$57,E$19:E$57)) -> 132 | F9: =SUM(IF($A9=$A$19:$A$57,F$19:F$57)) -> 126 | G9: 0.9545454545 | I9: =SUM(IF($A9=$A$19:$A$57,I$19:I$57)) -> 123 | J9: =IF(OR(ISTEXT($E9),$E9=0),"N/A",I9/$E9) -> 0.9318181818 | L9: =SUM(IF($A9=$A$19:$A$57,L$19:L$57)) -> 127 | M9: =IF(OR(ISTEXT($E9),$E9=0),"N/A",L9/$E9) -> 0.9621212121 | O9: =SUM(IF($A9=$A$19:$A$57,O$19:O$57)) -> 119 | P9: =IF(OR(ISTEXT($E9),$E9=0),"N/A",O9/$E9) -> 0.9015151515
A10: WF-3 | B10: Leyton Collaborative | D10: =SUM(IF($A10=$A$19:$A$57,D$19:D$57)) -> 35906 | E10: =SUM(IF($A10=$A$19:$A$57,E$19:E$57)) -> 88 | F10: =SUM(IF($A10=$A$19:$A$57,F$19:F$57)) -> 75 | G10: 0.8522727273 | I10: =SUM(IF($A10=$A$19:$A$57,I$19:I$57)) -> 75 | J10: 0.8522727273 | L10: =SUM(IF($A10=$A$19:$A$57,L$19:L$57)) -> 81 | M10: 0.9204545455 | O10: =SUM(IF($A10=$A$19:$A$57,O$19:O$57)) -> 76 | P10: 0.8636363636
A11: WF-4 | B11: Forest Integrated Health | D11: =SUM(IF($A11=$A$19:$A$57,D$19:D$57)) -> 58263 | E11: =SUM(IF($A11=$A$19:$A$57,E$19:E$57)) -> 180 | F11: =SUM(IF($A11=$A$19:$A$57,F$19:F$57)) -> 156 | G11: 0.8666666667 | I11: =SUM(IF($A11=$A$19:$A$57,I$19:I$57)) -> 152 | J11: 0.8444444444 | L11: =SUM(IF($A11=$A$19:$A$57,L$19:L$57)) -> 163 | M11: 0.9055555556 | O11: =SUM(IF($A11=$A$19:$A$57,O$19:O$57)) -> 154 | P11: 0.8555555556
A12: WF-5 | B12: South Leytonstone | D12: =SUM(IF($A12=$A$19:$A$57,D$19:D$57)) -> 36965 | E12: =SUM(IF($A12=$A$19:$A$57,E$19:E$57)) -> 82 | F12: =SUM(IF($A12=$A$19:$A$57,F$19:F$57)) -> 71 | G12: 0.8658536585 | I12: =SUM(IF($A12=$A$19:$A$57,I$19:I$57)) -> 69 | J12: 0.8414634146 | L12: =SUM(IF($A12=$A$19:$A$57,L$19:L$57)) -> 74 | M12: 0.9024390244 | O12: =SUM(IF($A12=$A$19:$A$57,O$19:O$57)) -> 69 | P12: 0.8414634146
A13: WF-6 | B13: Central Walthamstow | D13: =SUM(IF($A13=$A$19:$A$57,D$19:D$57)) -> 42920 | E13: =SUM(IF($A13=$A$19:$A$57,E$19:E$57)) -> 121 | F13: =SUM(IF($A13=$A$19:$A$57,F$19:F$57)) -> 110 | G13: 0.9090909091 | I13: =SUM(IF($A13=$A$19:$A$57,I$19:I$57)) -> 109 | J13: 0.9008264463 | L13: =SUM(IF($A13=$A$19:$A$57,L$19:L$57)) -> 114 | M13: 0.9421487603 | O13: =SUM(IF($A13=$A$19:$A$57,O$19:O$57)) -> 107 | P13: 0.8842975207
A14: WF-7 | B14: Walthamstow West | D14: =SUM(IF($A14=$A$19:$A$57,D$19:D$57)) -> 44861 | E14: =SUM(IF($A14=$A$19:$A$57,E$19:E$57)) -> 142 | F14: =SUM(IF($A14=$A$19:$A$57,F$19:F$57)) -> 119 | G14: 0.838028169 | I14: =SUM(IF($A14=$A$19:$A$57,I$19:I$57)) -> 114 | J14: 0.8028169014 | L14: =SUM(IF($A14=$A$19:$A$57,L$19:L$57)) -> 125 | M14: 0.8802816901 | O14: =SUM(IF($A14=$A$19:$A$57,O$19:O$57)) -> 121 | P14: 0.8521126761
A15: Total | D15: =SUM(D8:D14) -> 325447 | E15: =SUM(E8:E14) -> 916 | F15: =SUM(F8:F14) -> 812 | G15: 0.8864628821 | I15: =SUM(I8:I14) -> 795 | J15: 0.8679039301 | L15: =SUM(L8:L14) -> 847 | M15: 0.9246724891 | O15: =SUM(O8:O14) -> 801 | P15: 0.8744541485
A16: Minimum and Maximum % | F16: Min | G16: Max | I16: Min | J16: Max | L16: Min | M16: Max | O16: Min | P16: Max
F17: =SMALL(G19:G51,COUNTIF(G19:G51,0)+1) -> 0.625 | G17: =MAX(G19:G51) -> 1 | I17: =SMALL(J19:J51,COUNTIF(J19:J51,0)+1) -> 0.5625 | J17: =MAX(J19:J51) -> 1 | L17: =SMALL(M19:M51,COUNTIF(M19:M51,0)+1) -> 0.625 | M17: =MAX(M19:M51) -> 1 | O17: =SMALL(P19:P51,COUNTIF(P19:P51,0)+1) -> 0.6666666667 | P17: =MAX(P19:P51) -> 1
A18: Practices | B18: * SystmOne Practices - No Data
A19: =VLOOKUP(C19,'Control Panel'!$G$132:$K$171,5,FALSE) -> WF-1 | B19: =VLOOKUP(C19,'Control Panel'!$A$85:$F$124,2,FALSE) -> Kings Head Medical Practice | C19: F86700 | D19: =SUMIFS(OFFSET(REL_D,,MATCH($D$5,IND,0)-1),REL_D,$C$5,OrgID,$C19) -> 3845 | E19: =SUMIFS(OFFSET(REL_D,,MATCH($E$5,IND,0)-1),REL_D,$C$5,OrgID,$C19) -> 10 | F19: =SUMIFS(OFFSET(REL_D,,MATCH($F$5,IND,0)-1),REL_D,$C$5,OrgID,$C19) -> 7 | G19: =IF(OR(ISTEXT($E19),$E19=0),"N/A",F19/$E19) -> 0.7 | H19: =IFERROR(ROUNDUP(IF($E19*0.95-F19>=0,$E19*0.95-F19,""),0),"") -> 3 | I19: =SUMIFS(OFFSET(REL_D,,MATCH($I$5,IND,0)-1),REL_D,$C$5,OrgID,$C19) -> 6 | J19: =IF(OR(ISTEXT($E19),$E19=0),"N/A",I19/$E19) -> 0.6 | K19: =IFERROR(ROUNDUP(IF($E19*0.95-I19>=0,$E19*0.95-I19,""),0),"") -> 4 | L19: =SUMIFS(OFFSET(REL_D,,MATCH($L$5,IND,0)-1),REL_D,$C$5,OrgID,$C19) -> 9 | M19: =IF(OR(ISTEXT($E19),$E19=0),"N/A",L19/$E19) -> 0.9 | N19: =IFERROR(ROUNDUP(IF($E19*0.95-L19>=0,$E19*0.95-L19,""),0),"") -> 1 | O19: =SUMIFS(OFFSET(REL_D,,MATCH($O$5,IND,0)-1),REL_D,$C$5,OrgID,$C19) -> 7 | P19: =IF(OR(ISTEXT($E19),$E19=0),"N/A",O19/$E19) -> 0.7
A20: =VLOOKUP(C20,'Control Panel'!$G$132:$K$171,5,FALSE) -> WF-1 | B20: =VLOOKUP(C20,'Control Panel'!$A$85:$F$124,2,FALSE) -> Larkshall Medical Centre | C20: F86664 | D20: 8579 | E20: 18 | F20: 18 | G20: 1 | H20: =IFERROR(ROUNDUP(IF($E20*0.95-F20>=0,$E20*0.95-F20,""),0),"") ->  | I20: 17 | J20: 0.9444444444 | K20: =IFERROR(ROUNDUP(IF($E20*0.95-I20>=0,$E20*0.95-I20,""),0),"") -> 1 | L20: 18 | M20: 1 | N20: =IFERROR(ROUNDUP(IF($E20*0.95-L20>=0,$E20*0.95-L20,""),0),"") ->  | O20: 18 | P20: =IF(OR(ISTEXT($E20),$E20=0),"N/A",O20/$E20) -> 1
A21: =VLOOKUP(C21,'Control Panel'!$G$132:$K$171,5,FALSE) -> WF-1 | B21: =VLOOKUP(C21,'Control Panel'!$A$85:$F$124,2,FALSE) -> The Microfaculty* | C21: F86638 | D21: 4981 | E21: 11 | F21: 11 | G21: =IF(OR(ISTEXT($E21),$E21=0),"N/A",F21/$E21) -> 1 | I21: 11 | J21: =IF(OR(ISTEXT($E21),$E21=0),"N/A",I21/$E21) -> 1 | L21: 11 | M21: =IF(OR(ISTEXT($E21),$E21=0),"N/A",L21/$E21) -> 1 | O21: 10 | P21: =IF(OR(ISTEXT($E21),$E21=0),"N/A",O21/$E21) -> 0.9090909091
A22: =VLOOKUP(C22,'Control Panel'!$G$132:$K$171,5,FALSE) -> WF-1 | B22: =VLOOKUP(C22,'Control Panel'!$A$85:$F$124,2,FALSE) -> The Penryhn Surgery | C22: F86005 | D22: 9530 | E22: 44 | F22: 39 | G22: 0.8863636364 | H22: 3 | I22: 37 | J22: 0.8409090909 | K22: 5 | L22: 42 | M22: 0.9545454545 | O22: 39 | P22: 0.8863636364
A23: =VLOOKUP(C23,'Control Panel'!$G$132:$K$171,5,FALSE) -> WF-1 | B23: =VLOOKUP(C23,'Control Panel'!$A$85:$F$124,2,FALSE) -> Dr Shantir Practice | C23: F86626 | D23: 7441 | E23: 21 | F23: 20 | G23: 0.9523809524 | I23: 21 | J23: 1 | L23: 20 | M23: 0.9523809524 | O23: 20 | P23: 0.9523809524
A24: =VLOOKUP(C24,'Control Panel'!$G$132:$K$171,5,FALSE) -> WF-1 | B24: =VLOOKUP(C24,'Control Panel'!$A$85:$F$124,2,FALSE) -> Lime Tree & Sinnott Healthcare Ltd | C24: Y01839 | D24: 6601 | E24: 17 | F24: 16 | G24: =IF(OR(ISTEXT($E24),$E24=0),"N/A",F24/$E24) -> 0.9411764706 | H24: 1 | I24: 16 | J24: =IF(OR(ISTEXT($E24),$E24=0),"N/A",I24/$E24) -> 0.9411764706 | K24: 1 | L24: 17 | M24: =IF(OR(ISTEXT($E24),$E24=0),"N/A",L24/$E24) -> 1 | O24: 16 | P24: =IF(OR(ISTEXT($E24),$E24=0),"N/A",O24/$E24) -> 0.9411764706
A25: =VLOOKUP(C25,'Control Panel'!$G$132:$K$171,5,FALSE) -> WF-1 | B25: =VLOOKUP(C25,'Control Panel'!$A$85:$F$124,2,FALSE) -> The Bailey Practice | C25: F86689 | D25: 4367 | E25: 30 | F25: 26 | G25: 0.8666666667 | H25: 3 | I25: 26 | J25: 0.8666666667 | K25: 3 | L25: 27 | M25: 0.9 | N25: 2 | O25: 26 | P25: 0.8666666667
A26: =VLOOKUP(C26,'Control Panel'!$G$132:$K$171,5,FALSE) -> WF-1 | B26: =VLOOKUP(C26,'Control Panel'!$A$85:$F$124,2,FALSE) -> Forest Surgery* | C26: F86026 | D26: 7118 | E26: 20 | F26: 18 | G26: =IF(OR(ISTEXT($E26),$E26=0),"N/A",F26/$E26) -> 0.9 | H26: 1 | I26: 19 | J26: =IF(OR(ISTEXT($E26),$E26=0),"N/A",I26/$E26) -> 0.95 | K26: 0 | L26: 19 | M26: =IF(OR(ISTEXT($E26),$E26=0),"N/A",L26/$E26) -> 0.95 | N26: 0 | O26: 19 | P26: =IF(OR(ISTEXT($E26),$E26=0),"N/A",O26/$E26) -> 0.95
A27: =VLOOKUP(C27,'Control Panel'!$G$132:$K$171,5,FALSE) -> WF-2 | B27: =VLOOKUP(C27,'Control Panel'!$A$85:$F$124,2,FALSE) -> Handsworth Medical Centre* | C27: F86004 | D27: 16038 | E27: 29 | F27: 27 | G27: 0.9310344828 | H27: 1 | I27: 24 | J27: 0.8275862069 | K27: 4 | L27: 27 | M27: 0.9310344828 | N27: 1 | O27: 27 | P27: 0.9310344828
A28: =VLOOKUP(C28,'Control Panel'!$G$132:$K$171,5,FALSE) -> WF-2 | B28: =VLOOKUP(C28,'Control Panel'!$A$85:$F$124,2,FALSE) -> Chingford Medical Practice | C28: Y01291 | D28: 9699 | E28: 32 | F28: 31 | G28: 0.96875 | I28: 31 | J28: 0.96875 | L28: 31 | M28: 0.96875 | O28: 29 | P28: 0.90625
A29: =VLOOKUP(C29,'Control Panel'!$G$132:$K$171,5,FALSE) -> WF-2 | B29: =VLOOKUP(C29,'Control Panel'!$A$85:$F$124,2,FALSE) -> Churchill Medical Centre | C29: F86627 | D29: 13171 | E29: 21 | F29: 20 | G29: 0.9523809524 | I29: 20 | J29: 0.9523809524 | L29: 20 | M29: 0.9523809524 | O29: 17 | P29: 0.8095238095
A30: =VLOOKUP(C30,'Control Panel'!$G$132:$K$171,5,FALSE) -> WF-2 | B30: =VLOOKUP(C30,'Control Panel'!$A$85:$F$124,2,FALSE) -> The Ridgeway Surgery | C30: F86078 | D30: 6811 | E30: 12 | F30: 11 | G30: 0.9166666667 | H30: 1 | I30: 11 | J30: 0.9166666667 | K30: 1 | L30: 12 | M30: 1 | O30: 11 | P30: 0.9166666667
A31: =VLOOKUP(C31,'Control Panel'!$G$132:$K$171,5,FALSE) -> WF-2 | B31: =VLOOKUP(C31,'Control Panel'!$A$85:$F$124,2,FALSE) -> Old Church Surgery | C31: F86616 | D31: 8351 | E31: 38 | F31: 37 | G31: 0.9736842105 | I31: 37 | J31: 0.9736842105 | L31: 37 | M31: 0.9736842105 | O31: 35 | P31: 0.9210526316
A32: =VLOOKUP(C32,'Control Panel'!$G$132:$K$171,5,FALSE) -> WF-3 | B32: =VLOOKUP(C32,'Control Panel'!$A$85:$F$124,2,FALSE) -> The Manor Practice | C32: F86011 | D32: 9774 | E32: 20 | F32: 17 | G32: 0.85 | H32: 2 | I32: 16 | J32: 0.8 | K32: 3 | L32: 18 | M32: 0.9 | N32: 1 | O32: 17 | P32: 0.85
A33: =VLOOKUP(C33,'Control Panel'!$G$132:$K$171,5,FALSE) -> WF-3 | B33: =VLOOKUP(C33,'Control Panel'!$A$85:$F$124,2,FALSE) -> Sma Medical Centre | C33: F86038 | D33: 11059 | E33: 29 | F33: 22 | G33: =IF(OR(ISTEXT($E33),$E33=0),"N/A",F33/$E33) -> 0.7586206897 | H33: =IFERROR(ROUNDUP(IF($E33*0.95-F33>=0,$E33*0.95-F33,""),0),"") -> 6 | I33: 22 | J33: =IF(OR(ISTEXT($E33),$E33=0),"N/A",I33/$E33) -> 0.7586206897 | K33: =IFERROR(ROUNDUP(IF($E33*0.95-I33>=0,$E33*0.95-I33,""),0),"") -> 6 | L33: 25 | M33: =IF(OR(ISTEXT($E33),$E33=0),"N/A",L33/$E33) -> 0.8620689655 | N33: =IFERROR(ROUNDUP(IF($E33*0.95-L33>=0,$E33*0.95-L33,""),0),"") -> 3 | O33: 25 | P33: =IF(OR(ISTEXT($E33),$E33=0),"N/A",O33/$E33) -> 0.8620689655
A34: =VLOOKUP(C34,'Control Panel'!$G$132:$K$171,5,FALSE) -> WF-3 | B34: =VLOOKUP(C34,'Control Panel'!$A$85:$F$124,2,FALSE) -> Leyton Healthcare (Oliver Road)* | C34: F86074 | D34: 15073 | E34: 39 | F34: 36 | G34: 0.9230769231 | H34: 2 | I34: 37 | J34: 0.9487179487 | K34: 1 | L34: 38 | M34: 0.9743589744 | O34: 34 | P34: 0.8717948718
A35: =VLOOKUP(C35,'Control Panel'!$G$132:$K$171,5,FALSE) -> WF-4 | B35: =VLOOKUP(C35,'Control Panel'!$A$85:$F$124,2,FALSE) -> The Allum Medical Centre | C35: F86036 | D35: 14350 | E35: 43 | F35: 41 | G35: 0.9534883721 | I35: 40 | J35: 0.9302325581 | K35: 1 | L35: 41 | M35: 0.9534883721 | O35: 41 | P35: 0.9534883721
A36: =VLOOKUP(C36,'Control Panel'!$G$132:$K$171,5,FALSE) -> WF-4 | B36: =VLOOKUP(C36,'Control Panel'!$A$85:$F$124,2,FALSE) -> Crawley Road Medical Centre | C36: F86044 | D36: 10497 | E36: 27 | F36: 22 | G36: 0.8148148148 | H36: 4 | I36: 22 | J36: 0.8148148148 | K36: 4 | L36: 24 | M36: 0.8888888889 | N36: 2 | O36: 22 | P36: 0.8148148148
A37: =VLOOKUP(C37,'Control Panel'!$G$132:$K$171,5,FALSE) -> WF-4 | B37: =VLOOKUP(C37,'Control Panel'!$A$85:$F$124,2,FALSE) -> Francis Road Medical Centre | C37: F86696 | D37: 7132 | E37: 32 | F37: 25 | G37: 0.78125 | H37: 6 | I37: 22 | J37: 0.6875 | K37: 9 | L37: 27 | M37: 0.84375 | N37: 4 | O37: 23 | P37: 0.71875
A38: =VLOOKUP(C38,'Control Panel'!$G$132:$K$171,5,FALSE) -> WF-4 | B38: =VLOOKUP(C38,'Control Panel'!$A$85:$F$124,2,FALSE) -> Hampton Medical Centre | C38: F86712 | D38: 3433 | E38: 10 | F38: 10 | G38: 1 | I38: 9 | J38: 0.9 | K38: 1 | L38: 10 | M38: 1 | O38: 10 | P38: 1
A39: =VLOOKUP(C39,'Control Panel'!$G$132:$K$171,5,FALSE) -> WF-4 | B39: =VLOOKUP(C39,'Control Panel'!$A$85:$F$124,2,FALSE) -> Lime Tree Surgery | C39: F86650 | D39: 7953 | E39: 22 | F39: 17 | G39: 0.7727272727 | H39: 4 | I39: 17 | J39: 0.7727272727 | K39: 4 | L39: 18 | M39: 0.8181818182 | N39: 3 | O39: 15 | P39: 0.6818181818
A40: =VLOOKUP(C40,'Control Panel'!$G$132:$K$171,5,FALSE) -> WF-4 | B40: =VLOOKUP(C40,'Control Panel'!$A$85:$F$124,2,FALSE) -> The Lyndhurst Surgery | C40: F86088 | D40: 5098 | E40: 14 | F40: 13 | G40: 0.9285714286 | H40: 1 | I40: 13 | J40: 0.9285714286 | K40: 1 | L40: 13 | M40: 0.9285714286 | N40: 1 | O40: 13 | P40: 0.9285714286
A41: =VLOOKUP(C41,'Control Panel'!$G$132:$K$171,5,FALSE) -> WF-4 | B41: =VLOOKUP(C41,'Control Panel'!$A$85:$F$124,2,FALSE) -> The Ecclesbourne Practice* | C41: F86018 | D41: 9800 | E41: 32 | F41: 28 | G41: 0.875 | H41: 3 | I41: 29 | J41: 0.90625 | K41: 2 | L41: 30 | M41: 0.9375 | N41: 1 | O41: 30 | P41: 0.9375
A42: =VLOOKUP(C42,'Control Panel'!$G$132:$K$171,5,FALSE) -> WF-5 | B42: =VLOOKUP(C42,'Control Panel'!$A$85:$F$124,2,FALSE) -> Green Man Medical Centre | C42: F86621 | D42: 6805 | E42: 16 | F42: 10 | G42: 0.625 | H42: 6 | I42: 9 | J42: 0.5625 | K42: 7 | L42: 13 | M42: 0.8125 | N42: 3 | O42: 11 | P42: 0.6875
A43: =VLOOKUP(C43,'Control Panel'!$G$132:$K$171,5,FALSE) -> WF-5 | B43: =VLOOKUP(C43,'Control Panel'!$A$85:$F$124,2,FALSE) -> High Road Surgery | C43: F86045 | D43: 2032 | E43: 3 | F43: 3 | G43: 1 | I43: 3 | J43: 1 | L43: 3 | M43: 1 | O43: 3 | P43: 1
A44: =VLOOKUP(C44,'Control Panel'!$G$132:$K$171,5,FALSE) -> WF-5 | B44: =VLOOKUP(C44,'Control Panel'!$A$85:$F$124,2,FALSE) -> Kiyani Medical Practice | C44: F86701 | D44: 4010 | E44: 8 | F44: 6 | G44: 0.75 | H44: 2 | I44: 5 | J44: 0.625 | K44: 3 | L44: 5 | M44: 0.625 | N44: 3 | O44: 6 | P44: 0.75
A45: =VLOOKUP(C45,'Control Panel'!$G$132:$K$171,5,FALSE) -> WF-5 | B45: =VLOOKUP(C45,'Control Panel'!$A$85:$F$124,2,FALSE) -> LL Medical Care (Agarwal & Agrwal Practice) | C45: F86625 | D45: 5726 | E45: 6 | F45: 5 | G45: 0.8333333333 | H45: 1 | I45: 5 | J45: 0.8333333333 | K45: 1 | L45: 5 | M45: 0.8333333333 | N45: 1 | O45: 4 | P45: 0.6666666667
A46: =VLOOKUP(C46,'Control Panel'!$G$132:$K$171,5,FALSE) -> WF-5 | B46: =VLOOKUP(C46,'Control Panel'!$A$85:$F$124,2,FALSE) -> The Harrow Road Surgery | C46: F86666 | D46: 14945 | E46: 35 | F46: 33 | G46: 0.9428571429 | H46: 1 | I46: 33 | J46: 0.9428571429 | K46: 1 | L46: 34 | M46: 0.9714285714 | O46: 31 | P46: 0.8857142857
A47: =VLOOKUP(C47,'Control Panel'!$G$132:$K$171,5,FALSE) -> WF-5 | B47: =VLOOKUP(C47,'Control Panel'!$A$85:$F$124,2,FALSE) -> The Langthorne Sharma Family Practice | C47: F86705 | D47: 3447 | E47: 14 | F47: 14 | G47: 1 | I47: 14 | J47: 1 | L47: 14 | M47: 1 | O47: 14 | P47: 1
A48: =VLOOKUP(C48,'Control Panel'!$G$132:$K$171,5,FALSE) -> WF-6 | B48: =VLOOKUP(C48,'Control Panel'!$A$85:$F$124,2,FALSE) -> Addison Road Medical Practice | C48: F86607 | D48: 16152 | E48: 54 | F48: 53 | G48: 0.9814814815 | I48: 53 | J48: 0.9814814815 | L48: 54 | M48: 1 | O48: 50 | P48: 0.9259259259
A49: =VLOOKUP(C49,'Control Panel'!$G$132:$K$171,5,FALSE) -> WF-6 | B49: =VLOOKUP(C49,'Control Panel'!$A$85:$F$124,2,FALSE) -> Claremont Medical Centre | C49: F86708 | D49: 2843 | E49: 5 | F49: 4 | G49: 0.8 | H49: 1 | I49: 4 | J49: 0.8 | K49: 1 | L49: 4 | M49: 0.8 | N49: 1 | O49: 4 | P49: 0.8
A50: =VLOOKUP(C50,'Control Panel'!$G$132:$K$171,5,FALSE) -> WF-6 | B50: =VLOOKUP(C50,'Control Panel'!$A$85:$F$124,2,FALSE) -> The Firs | C50: F86001 | D50: 8444 | E50: 16 | F50: 11 | G50: 0.6875 | H50: 5 | I50: 10 | J50: 0.625 | K50: 6 | L50: 11 | M50: 0.6875 | N50: 5 | O50: 12 | P50: 0.75
A51: =VLOOKUP(C51,'Control Panel'!$G$132:$K$171,5,FALSE) -> WF-6 | B51: =VLOOKUP(C51,'Control Panel'!$A$85:$F$124,2,FALSE) -> Dr Dhital Practice | C51: F86086 | D51: 6398 | E51: 25 | F51: 22 | G51: 0.88 | H51: 2 | I51: 22 | J51: 0.88 | K51: 2 | L51: 25 | M51: 1 | O51: 22 | P51: 0.88
A52: =VLOOKUP(C52,'Control Panel'!$G$132:$K$171,5,FALSE) -> WF-6 | B52: =VLOOKUP(C52,'Control Panel'!$A$85:$F$124,2,FALSE) -> Waltham Forest Community & Family Health Services Ltd | C52: F86644 | D52: 9083 | E52: 21 | F52: 20 | G52: 0.9523809524 | I52: 20 | J52: 0.9523809524 | L52: 20 | M52: 0.9523809524 | O52: 19 | P52: 0.9047619048
A53: =VLOOKUP(C53,'Control Panel'!$G$132:$K$171,5,FALSE) -> WF-7 | B53: =VLOOKUP(C53,'Control Panel'!$A$85:$F$124,2,FALSE) -> Seymour Medical centre | C53: F86006 | D53: 7082 | E53: 16 | F53: 13 | G53: 0.8125 | H53: 3 | I53: 13 | J53: 0.8125 | K53: 3 | L53: 13 | M53: 0.8125 | N53: 3 | O53: 13 | P53: 0.8125
A54: =VLOOKUP(C54,'Control Panel'!$G$132:$K$171,5,FALSE) -> WF-7 | B54: =VLOOKUP(C54,'Control Panel'!$A$85:$F$124,2,FALSE) -> Queens Road Medical Centre | C54: F86030 | D54: 8280 | E54: 21 | F54: 17 | G54: 0.8095238095 | H54: 3 | I54: 16 | J54: 0.7619047619 | K54: 4 | L54: 20 | M54: 0.9523809524 | O54: 18 | P54: 0.8571428571
A55: =VLOOKUP(C55,'Control Panel'!$G$132:$K$171,5,FALSE) -> WF-7 | B55: =VLOOKUP(C55,'Control Panel'!$A$85:$F$124,2,FALSE) -> The Grove Road Medical Centre | C55: F86062 | D55: 7220 | E55: 23 | F55: 20 | G55: 0.8695652174 | H55: 2 | I55: 18 | J55: 0.7826086957 | K55: 4 | L55: 20 | M55: 0.8695652174 | N55: 2 | O55: 20 | P55: 0.8695652174
A56: =VLOOKUP(C56,'Control Panel'!$G$132:$K$171,5,FALSE) -> WF-7 | B56: =VLOOKUP(C56,'Control Panel'!$A$85:$F$124,2,FALSE) -> Higham Hill Medical Centre | C56: F86679 | D56: 6412 | E56: 26 | F56: 21 | G56: 0.8076923077 | H56: 4 | I56: 21 | J56: 0.8076923077 | K56: 4 | L56: 22 | M56: 0.8461538462 | N56: 3 | O56: 22 | P56: 0.8461538462
A57: =VLOOKUP(C57,'Control Panel'!$G$132:$K$171,5,FALSE) -> WF-7 | B57: =VLOOKUP(C57,'Control Panel'!$A$85:$F$124,2,FALSE) -> St James Medical Practice Ltd | C57: F86058 | D57: 15867 | E57: 56 | F57: 48 | G57: 0.8571428571 | H57: 6 | I57: 46 | J57: 0.8214285714 | K57: 8 | L57: 50 | M57: 0.8928571429 | N57: 4 | O57: 48 | P57: 0.8571428571

Sheet Patients becoming 24m
D2: Waltham Forest Childhood Immunisations Dashboard: Metric Details
B3: =VLOOKUP(C5,'Control Panel'!Y49:Z60,2,FALSE) ->  | D3: Patients becoming 24m | F3: =E15 -> 939
B4: 2020-02-01
C5: March 2023 | D5: All Patients | E5: (02) 24 MONTH COHORT | F5: (02.01) DTaP/IPV/Hib or DTaP/IPV/Hib/HepB | G5: DTaP/IPV/Hib(%) | H5: (02.02) MMR | I5: MMR(%) | J5: Patients required to achieve NHSE Target (90%) | K5: (02.03) HiB/Men C | L5: HiB/Men C (%) | M5: Patients required to achieve NHSE Target (90%) | N5: (02.04) PCV (Booster) | O5: PCV (Booster)(%) | P5: Patients required to achieve NHSE Target (90%) | Q5: (02.05) Men B (Booster) | R5: Men B (Booster)(%)
B6: Home | D6: Listsize | E6: Patients becoming 24m | F6: DTaP/IPV/Hib/HepB | G6: DTaP/IPV/Hib/HepB(%) | H6: MMR | I6: MMR(%) | J6: Patients required to achieve 95% | K6: HiB/Men C | L6: HiB/Men C (%) | M6: Patients required to achieve 95% | N6: PCV (Booster) | O6: PCV (Booster)(%) | P6: Patients required to achieve 95% | Q6: Men B (Booster) | R6: Men B (Booster)(%)
A7: Cluster
A8: WF-1 | B8: Chingford/ Walthamstow | D8: =SUM(IF($A8=$A$19:$A$57,D$19:D$57)) -> 52462 | E8: =SUM(IF($A8=$A$19:$A$57,E$19:E$57)) -> 186 | F8: =SUM(IF($A8=$A$19:$A$57,F$19:F$57)) -> 169 | G8: =IF(OR(ISTEXT($E8),$E8=0),"N/A",F8/$E8) -> 0.9086021505 | H8: =SUM(IF($A8=$A$19:$A$57,H$19:H$57)) -> 165 | I8: =IF(OR(ISTEXT($E8),$E8=0),"N/A",H8/$E8) -> 0.8870967742 | K8: =SUM(IF($A8=$A$19:$A$57,K$19:K$57)) -> 163 | L8: =IF(OR(ISTEXT($E8),$E8=0),"N/A",K8/$E8) -> 0.876344086 | N8: =SUM(IF($A8=$A$19:$A$57,N$19:N$57)) -> 162 | O8: =IF(OR(ISTEXT($E8),$E8=0),"N/A",N8/$E8) -> 0.8709677419 | Q8: =SUM(IF($A8=$A$19:$A$57,Q$19:Q$57)) -> 167 | R8: =IF(OR(ISTEXT($E8),$E8=0),"N/A",Q8/$E8) -> 0.8978494624
A9: WF-2 | B9: Chingford E4 | D9: =SUM(IF($A9=$A$19:$A$57,D$19:D$57)) -> 54070 | E9: =SUM(IF($A9=$A$19:$A$57,E$19:E$57)) -> 156 | F9: =SUM(IF($A9=$A$19:$A$57,F$19:F$57)) -> 145 | G9: =IF(OR(ISTEXT($E9),$E9=0),"N/A",F9/$E9) -> 0.9294871795 | H9: =SUM(IF($A9=$A$19:$A$57,H$19:H$57)) -> 130 | I9: =IF(OR(ISTEXT($E9),$E9=0),"N/A",H9/$E9) -> 0.8333333333 | K9: =SUM(IF($A9=$A$19:$A$57,K$19:K$57)) -> 132 | L9: =IF(OR(ISTEXT($E9),$E9=0),"N/A",K9/$E9) -> 0.8461538462 | N9: =SUM(IF($A9=$A$19:$A$57,N$19:N$57)) -> 131 | O9: =IF(OR(ISTEXT($E9),$E9=0),"N/A",N9/$E9) -> 0.8397435897 | Q9: =SUM(IF($A9=$A$19:$A$57,Q$19:Q$57)) -> 134 | R9: =IF(OR(ISTEXT($E9),$E9=0),"N/A",Q9/$E9) -> 0.858974359
A10: WF-3 | B10: Leyton Collaborative | D10: =SUM(IF($A10=$A$19:$A$57,D$19:D$57)) -> 35906 | E10: =SUM(IF($A10=$A$19:$A$57,E$19:E$57)) -> 87 | F10: =SUM(IF($A10=$A$19:$A$57,F$19:F$57)) -> 77 | G10: 0.8850574713 | H10: =SUM(IF($A10=$A$19:$A$57,H$19:H$57)) -> 78 | I10: 0.8965517241 | K10: =SUM(IF($A10=$A$19:$A$57,K$19:K$57)) -> 76 | L10: 0.8735632184 | N10: =SUM(IF($A10=$A$19:$A$57,N$19:N$57)) -> 77 | O10: 0.8850574713 | Q10: =SUM(IF($A10=$A$19:$A$57,Q$19:Q$57)) -> 76 | R10: 0.8735632184
A11: WF-4 | B11: Forest Integrated Health | D11: =SUM(IF($A11=$A$19:$A$57,D$19:D$57)) -> 58263 | E11: =SUM(IF($A11=$A$19:$A$57,E$19:E$57)) -> 138 | F11: =SUM(IF($A11=$A$19:$A$57,F$19:F$57)) -> 121 | G11: 0.8768115942 | H11: =SUM(IF($A11=$A$19:$A$57,H$19:H$57)) -> 116 | I11: 0.8405797101 | K11: =SUM(IF($A11=$A$19:$A$57,K$19:K$57)) -> 117 | L11: 0.847826087 | N11: =SUM(IF($A11=$A$19:$A$57,N$19:N$57)) -> 116 | O11: 0.8405797101 | Q11: =SUM(IF($A11=$A$19:$A$57,Q$19:Q$57)) -> 117 | R11: 0.847826087
A12: WF-5 | B12: South Leytonstone | D12: =SUM(IF($A12=$A$19:$A$57,D$19:D$57)) -> 36965 | E12: =SUM(IF($A12=$A$19:$A$57,E$19:E$57)) -> 106 | F12: =SUM(IF($A12=$A$19:$A$57,F$19:F$57)) -> 92 | G12: 0.8679245283 | H12: =SUM(IF($A12=$A$19:$A$57,H$19:H$57)) -> 85 | I12: 0.8018867925 | K12: =SUM(IF($A12=$A$19:$A$57,K$19:K$57)) -> 81 | L12: 0.7641509434 | N12: =SUM(IF($A12=$A$19:$A$57,N$19:N$57)) -> 85 | O12: 0.8018867925 | Q12: =SUM(IF($A12=$A$19:$A$57,Q$19:Q$57)) -> 82 | R12: 0.7735849057
A13: WF-6 | B13: Central Walthamstow | D13: =SUM(IF($A13=$A$19:$A$57,D$19:D$57)) -> 42920 | E13: =SUM(IF($A13=$A$19:$A$57,E$19:E$57)) -> 123 | F13: =SUM(IF($A13=$A$19:$A$57,F$19:F$57)) -> 103 | G13: 0.837398374 | H13: =SUM(IF($A13=$A$19:$A$57,H$19:H$57)) -> 102 | I13: 0.8292682927 | K13: =SUM(IF($A13=$A$19:$A$57,K$19:K$57)) -> 103 | L13: 0.837398374 | N13: =SUM(IF($A13=$A$19:$A$57,N$19:N$57)) -> 104 | O13: 0.8455284553 | Q13: =SUM(IF($A13=$A$19:$A$57,Q$19:Q$57)) -> 105 | R13: 0.8536585366
A14: WF-7 | B14: Walthamstow West | D14: =SUM(IF($A14=$A$19:$A$57,D$19:D$57)) -> 44861 | E14: =SUM(IF($A14=$A$19:$A$57,E$19:E$57)) -> 143 | F14: =SUM(IF($A14=$A$19:$A$57,F$19:F$57)) -> 126 | G14: 0.8811188811 | H14: =SUM(IF($A14=$A$19:$A$57,H$19:H$57)) -> 120 | I14: 0.8391608392 | K14: =SUM(IF($A14=$A$19:$A$57,K$19:K$57)) -> 120 | L14: 0.8391608392 | N14: =SUM(IF($A14=$A$19:$A$57,N$19:N$57)) -> 119 | O14: 0.8321678322 | Q14: =SUM(IF($A14=$A$19:$A$57,Q$19:Q$57)) -> 118 | R14: 0.8251748252
A15: Total | D15: =SUM(D8:D14) -> 325447 | E15: =SUM(E8:E14) -> 939 | F15: =SUM(F8:F14) -> 833 | G15: 0.887113951 | H15: =SUM(H8:H14) -> 796 | I15: 0.8477103301 | K15: =SUM(K8:K14) -> 792 | L15: 0.8434504792 | N15: =SUM(N8:N14) -> 794 | O15: 0.8455804047 | Q15: =SUM(Q8:Q14) -> 799 | R15: 0.8509052183
A16: Minimum and Maximum % | F16: Min | G16: Max | H16: Min | I16: Max | K16: Min | L16: Max | N16: Min | O16: Max | Q16: Min | R16: Max
F17: =SMALL(G19:G51,COUNTIF(G19:G51,0)+1) -> 0.75 | G17: =MAX(G19:G51) -> 1 | H17: =SMALL(I19:I51,COUNTIF(I19:I51,0)+1) -> 0.6666666667 | I17: =MAX(I19:I51) -> 1 | K17: =SMALL(L19:L51,COUNTIF(L19:L51,0)+1) -> 0.6 | L17: =MAX(L19:L51) -> 1 | N17: =SMALL(O19:O51,COUNTIF(O19:O51,0)+1) -> 0.6666666667 | O17: =MAX(O19:O51) -> 1 | Q17: =SMALL(R19:R51,COUNTIF(R19:R51,0)+1) -> 0.6 | R17: =MAX(R19:R51) -> 0.9811320755
A18: Practices | B18: * SystmOne Practices - No Data
A19: =VLOOKUP(C19,'Control Panel'!$G$132:$K$171,5,FALSE) -> WF-1 | B19: =VLOOKUP(C19,'Control Panel'!$A$85:$F$124,2,FALSE) -> Kings Head Medical Practice | C19: F86700 | D19: =SUMIFS(OFFSET(REL_D,,MATCH($D$5,IND,0)-1),REL_D,$C$5,OrgID,$C19) -> 3845 | E19: =SUMIFS(OFFSET(REL_D,,MATCH($E$5,IND,0)-1),REL_D,$C$5,OrgID,$C19) -> 11 | F19: =SUMIFS(OFFSET(REL_D,,MATCH($F$5,IND,0)-1),REL_D,$C$5,OrgID,$C19) -> 9 | G19: =IF(OR(ISTEXT($E19),$E19=0),"N/A",F19/$E19) -> 0.8181818182 | H19: =SUMIFS(OFFSET(REL_D,,MATCH($H$5,IND,0)-1),REL_D,$C$5,OrgID,$C19) -> 8 | I19: =IF(OR(ISTEXT($E19),$E19=0),"N/A",H19/$E19) -> 0.7272727273 | J19: =IFERROR(ROUNDUP(IF($E19*0.95-H19>=0,$E19*0.95-H19,""),0),"") -> 3 | K19: =SUMIFS(OFFSET(REL_D,,MATCH($K$5,IND,0)-1),REL_D,$C$5,OrgID,$C19) -> 8 | L19: =IF(OR(ISTEXT($E19),$E19=0),"N/A",K19/$E19) -> 0.7272727273 | M19: =IFERROR(ROUNDUP(IF($E19*0.95-K19>=0,$E19*0.95-K19,""),0),"") -> 3 | N19: =SUMIFS(OFFSET(REL_D,,MATCH($N$5,IND,0)-1),REL_D,$C$5,OrgID,$C19) -> 8 | O19: =IF(OR(ISTEXT($E19),$E19=0),"N/A",N19/$E19) -> 0.7272727273 | P19: =IFERROR(ROUNDUP(IF($E19*0.95-N19>=0,$E19*0.95-N19,""),0),"") -> 3 | Q19: =SUMIFS(OFFSET(REL_D,,MATCH($Q$5,IND,0)-1),REL_D,$C$5,OrgID,$C19) -> 8 | R19: =IF(OR(ISTEXT($E19),$E19=0),"N/A",Q19/$E19) -> 0.7272727273
A20: =VLOOKUP(C20,'Control Panel'!$G$132:$K$171,5,FALSE) -> WF-1 | B20: =VLOOKUP(C20,'Control Panel'!$A$85:$F$124,2,FALSE) -> Larkshall Medical Centre | C20: F86664 | D20: 8579 | E20: 34 | F20: 32 | G20: =IF(OR(ISTEXT($E20),$E20=0),"N/A",F20/$E20) -> 0.9411764706 | H20: 30 | I20: =IF(OR(ISTEXT($E20),$E20=0),"N/A",H20/$E20) -> 0.8823529412 | J20: =IFERROR(ROUNDUP(IF($E20*0.95-H20>=0,$E20*0.95-H20,""),0),"") -> 3 | K20: 30 | L20: =IF(OR(ISTEXT($E20),$E20=0),"N/A",K20/$E20) -> 0.8823529412 | M20: =IFERROR(ROUNDUP(IF($E20*0.95-K20>=0,$E20*0.95-K20,""),0),"") -> 3 | N20: =SUMIFS(OFFSET(REL_D,,MATCH($N$5,IND,0)-1),REL_D,$C$5,OrgID,$C20) -> 30 | O20: =IF(OR(ISTEXT($E20),$E20=0),"N/A",N20/$E20) -> 0.8823529412 | P20: =IFERROR(ROUNDUP(IF($E20*0.95-N20>=0,$E20*0.95-N20,""),0),"") -> 3 | Q20: 30 | R20: =IF(OR(ISTEXT($E20),$E20=0),"N/A",Q20/$E20) -> 0.8823529412
A21: =VLOOKUP(C21,'Control Panel'!$G$132:$K$171,5,FALSE) -> WF-1 | B21: =VLOOKUP(C21,'Control Panel'!$A$85:$F$124,2,FALSE) -> The Microfaculty* | C21: F86638 | D21: 4981 | E21: 18 | F21: 14 | G21: 0.7777777778 | H21: 12 | I21: 0.6666666667 | J21: 6 | K21: 13 | L21: 0.7222222222 | M21: 5 | N21: =SUMIFS(OFFSET(REL_D,,MATCH($N$5,IND,0)-1),REL_D,$C$5,OrgID,$C21) -> 12 | O21: 0.6666666667 | P21: 6 | Q21: 14 | R21: 0.7777777778
A22: =VLOOKUP(C22,'Control Panel'!$G$132:$K$171,5,FALSE) -> WF-1 | B22: =VLOOKUP(C22,'Control Panel'!$A$85:$F$124,2,FALSE) -> The Penryhn Surgery | C22: F86005 | D22: 9530 | E22: 39 | F22: 38 | G22: 0.9743589744 | H22: 38 | I22: 0.9743589744 | K22: 38 | L22: 0.9743589744 | N22: =SUMIFS(OFFSET(REL_D,,MATCH($N$5,IND,0)-1),REL_D,$C$5,OrgID,$C22) -> 37 | O22: 0.9487179487 | P22: 1 | Q22: 37 | R22: 0.9487179487
A23: =VLOOKUP(C23,'Control Panel'!$G$132:$K$171,5,FALSE) -> WF-1 | B23: =VLOOKUP(C23,'Control Panel'!$A$85:$F$124,2,FALSE) -> Dr Shantir Practice | C23: F86626 | D23: 7441 | E23: 25 | F23: 22 | G23: 0.88 | H23: 22 | I23: 0.88 | J23: 2 | K23: 20 | L23: 0.8 | M23: 4 | N23: =SUMIFS(OFFSET(REL_D,,MATCH($N$5,IND,0)-1),REL_D,$C$5,OrgID,$C23) -> 21 | O23: 0.84 | P23: 3 | Q23: 23 | R23: 0.92
A24: =VLOOKUP(C24,'Control Panel'!$G$132:$K$171,5,FALSE) -> WF-1 | B24: =VLOOKUP(C24,'Control Panel'!$A$85:$F$124,2,FALSE) -> Lime Tree & Sinnott Healthcare Ltd | C24: Y01839 | D24: 6601 | E24: 20 | F24: 19 | G24: 0.95 | H24: 19 | I24: 0.95 | J24: 0 | K24: 19 | L24: 0.95 | M24: 0 | N24: =SUMIFS(OFFSET(REL_D,,MATCH($N$5,IND,0)-1),REL_D,$C$5,OrgID,$C24) -> 19 | O24: 0.95 | P24: 0 | Q24: 19 | R24: 0.95
A25: =VLOOKUP(C25,'Control Panel'!$G$132:$K$171,5,FALSE) -> WF-1 | B25: =VLOOKUP(C25,'Control Panel'!$A$85:$F$124,2,FALSE) -> The Bailey Practice | C25: F86689 | D25: 4367 | E25: 21 | F25: 19 | G25: 0.9047619048 | H25: 21 | I25: 1 | K25: 21 | L25: 1 | N25: =SUMIFS(OFFSET(REL_D,,MATCH($N$5,IND,0)-1),REL_D,$C$5,OrgID,$C25) -> 21 | O25: 1 | Q25: 20 | R25: 0.9523809524
A26: =VLOOKUP(C26,'Control Panel'!$G$132:$K$171,5,FALSE) -> WF-1 | B26: =VLOOKUP(C26,'Control Panel'!$A$85:$F$124,2,FALSE) -> Forest Surgery* | C26: F86026 | D26: 7118 | E26: 18 | F26: 16 | G26: 0.8888888889 | H26: 15 | I26: 0.8333333333 | J26: 3 | K26: 14 | L26: 0.7777777778 | M26: 4 | N26: =SUMIFS(OFFSET(REL_D,,MATCH($N$5,IND,0)-1),REL_D,$C$5,OrgID,$C26) -> 14 | O26: 0.7777777778 | P26: 4 | Q26: 16 | R26: 0.8888888889
A27: =VLOOKUP(C27,'Control Panel'!$G$132:$K$171,5,FALSE) -> WF-2 | B27: =VLOOKUP(C27,'Control Panel'!$A$85:$F$124,2,FALSE) -> Handsworth Medical Centre* | C27: F86004 | D27: 16038 | E27: 53 | F27: 52 | G27: 0.9811320755 | H27: 48 | I27: 0.9056603774 | J27: 3 | K27: 50 | L27: 0.9433962264 | M27: 1 | N27: =SUMIFS(OFFSET(REL_D,,MATCH($N$5,IND,0)-1),REL_D,$C$5,OrgID,$C27) -> 50 | O27: 0.9433962264 | P27: 1 | Q27: 52 | R27: 0.9811320755
A28: =VLOOKUP(C28,'Control Panel'!$G$132:$K$171,5,FALSE) -> WF-2 | B28: =VLOOKUP(C28,'Control Panel'!$A$85:$F$124,2,FALSE) -> Chingford Medical Practice | C28: Y01291 | D28: 9699 | E28: 27 | F28: 25 | G28: 0.9259259259 | H28: 24 | I28: 0.8888888889 | J28: 2 | K28: 24 | L28: 0.8888888889 | M28: 2 | N28: =SUMIFS(OFFSET(REL_D,,MATCH($N$5,IND,0)-1),REL_D,$C$5,OrgID,$C28) -> 24 | O28: 0.8888888889 | P28: 2 | Q28: 24 | R28: 0.8888888889
A29: =VLOOKUP(C29,'Control Panel'!$G$132:$K$171,5,FALSE) -> WF-2 | B29: =VLOOKUP(C29,'Control Panel'!$A$85:$F$124,2,FALSE) -> Churchill Medical Centre | C29: F86627 | D29: 13171 | E29: 29 | F29: 26 | G29: 0.8965517241 | H29: 22 | I29: 0.7586206897 | J29: 6 | K29: 21 | L29: 0.724137931 | M29: 7 | N29: =SUMIFS(OFFSET(REL_D,,MATCH($N$5,IND,0)-1),REL_D,$C$5,OrgID,$C29) -> 20 | O29: 0.6896551724 | P29: 8 | Q29: 21 | R29: 0.724137931
A30: =VLOOKUP(C30,'Control Panel'!$G$132:$K$171,5,FALSE) -> WF-2 | B30: =VLOOKUP(C30,'Control Panel'!$A$85:$F$124,2,FALSE) -> The Ridgeway Surgery | C30: F86078 | D30: 6811 | E30: 12 | F30: 12 | G30: 1 | H30: 10 | I30: 0.8333333333 | J30: 2 | K30: 10 | L30: 0.8333333333 | M30: 2 | N30: =SUMIFS(OFFSET(REL_D,,MATCH($N$5,IND,0)-1),REL_D,$C$5,OrgID,$C30) -> 10 | O30: 0.8333333333 | P30: 2 | Q30: 10 | R30: 0.8333333333
A31: =VLOOKUP(C31,'Control Panel'!$G$132:$K$171,5,FALSE) -> WF-2 | B31: =VLOOKUP(C31,'Control Panel'!$A$85:$F$124,2,FALSE) -> Old Church Surgery | C31: F86616 | D31: 8351 | E31: 35 | F31: 30 | G31: 0.8571428571 | H31: 26 | I31: 0.7428571429 | J31: 8 | K31: 27 | L31: 0.7714285714 | M31: 7 | N31: =SUMIFS(OFFSET(REL_D,,MATCH($N$5,IND,0)-1),REL_D,$C$5,OrgID,$C31) -> 27 | O31: 0.7714285714 | P31: 7 | Q31: 27 | R31: 0.7714285714
A32: =VLOOKUP(C32,'Control Panel'!$G$132:$K$171,5,FALSE) -> WF-3 | B32: =VLOOKUP(C32,'Control Panel'!$A$85:$F$124,2,FALSE) -> The Manor Practice | C32: F86011 | D32: 9774 | E32: 25 | F32: 21 | G32: 0.84 | H32: 19 | I32: 0.76 | J32: 5 | K32: 19 | L32: 0.76 | M32: 5 | N32: =SUMIFS(OFFSET(REL_D,,MATCH($N$5,IND,0)-1),REL_D,$C$5,OrgID,$C32) -> 19 | O32: 0.76 | P32: 5 | Q32: 19 | R32: 0.76
A33: =VLOOKUP(C33,'Control Panel'!$G$132:$K$171,5,FALSE) -> WF-3 | B33: =VLOOKUP(C33,'Control Panel'!$A$85:$F$124,2,FALSE) -> Sma Medical Centre | C33: F86038 | D33: 11059 | E33: 26 | F33: 24 | G33: =IF(OR(ISTEXT($E33),$E33=0),"N/A",F33/$E33) -> 0.9230769231 | H33: 26 | I33: =IF(OR(ISTEXT($E33),$E33=0),"N/A",H33/$E33) -> 1 | J33: =IFERROR(ROUNDUP(IF($E33*0.95-H33>=0,$E33*0.95-H33,""),0),"") ->  | K33: 26 | L33: =IF(OR(ISTEXT($E33),$E33=0),"N/A",K33/$E33) -> 1 | M33: =IFERROR(ROUNDUP(IF($E33*0.95-K33>=0,$E33*0.95-K33,""),0),"") ->  | N33: =SUMIFS(OFFSET(REL_D,,MATCH($N$5,IND,0)-1),REL_D,$C$5,OrgID,$C33) -> 26 | O33: =IF(OR(ISTEXT($E33),$E33=0),"N/A",N33/$E33) -> 1 | P33: =IFERROR(ROUNDUP(IF($E33*0.95-N33>=0,$E33*0.95-N33,""),0),"") ->  | Q33: 25 | R33: =IF(OR(ISTEXT($E33),$E33=0),"N/A",Q33/$E33) -> 0.9615384615
A34: =VLOOKUP(C34,'Control Panel'!$G$132:$K$171,5,FALSE) -> WF-3 | B34: =VLOOKUP(C34,'Control Panel'!$A$85:$F$124,2,FALSE) -> Leyton Healthcare (Oliver Road)* | C34: F86074 | D34: 15073 | E34: 36 | F34: 32 | G34: 0.8888888889 | H34: 33 | I34: 0.9166666667 | J34: 2 | K34: 31 | L34: 0.8611111111 | M34: 4 | N34: =SUMIFS(OFFSET(REL_D,,MATCH($N$5,IND,0)-1),REL_D,$C$5,OrgID,$C34) -> 32 | O34: 0.8888888889 | P34: 3 | Q34: 32 | R34: 0.8888888889
A35: =VLOOKUP(C35,'Control Panel'!$G$132:$K$171,5,FALSE) -> WF-4 | B35: =VLOOKUP(C35,'Control Panel'!$A$85:$F$124,2,FALSE) -> The Allum Medical Centre | C35: F86036 | D35: 14350 | E35: 32 | F35: 29 | G35: 0.90625 | H35: 28 | I35: 0.875 | J35: 3 | K35: 28 | L35: 0.875 | M35: 3 | N35: =SUMIFS(OFFSET(REL_D,,MATCH($N$5,IND,0)-1),REL_D,$C$5,OrgID,$C35) -> 28 | O35: 0.875 | P35: 3 | Q35: 28 | R35: 0.875
A36: =VLOOKUP(C36,'Control Panel'!$G$132:$K$171,5,FALSE) -> WF-4 | B36: =VLOOKUP(C36,'Control Panel'!$A$85:$F$124,2,FALSE) -> Crawley Road Medical Centre | C36: F86044 | D36: 10497 | E36: 30 | F36: 26 | G36: 0.8666666667 | H36: 27 | I36: 0.9 | J36: 2 | K36: 27 | L36: 0.9 | M36: 2 | N36: =SUMIFS(OFFSET(REL_D,,MATCH($N$5,IND,0)-1),REL_D,$C$5,OrgID,$C36) -> 27 | O36: 0.9 | P36: 2 | Q36: 26 | R36: 0.8666666667
A37: =VLOOKUP(C37,'Control Panel'!$G$132:$K$171,5,FALSE) -> WF-4 | B37: =VLOOKUP(C37,'Control Panel'!$A$85:$F$124,2,FALSE) -> Francis Road Medical Centre | C37: F86696 | D37: 7132 | E37: 21 | F37: 19 | G37: 0.9047619048 | H37: 17 | I37: 0.8095238095 | J37: 3 | K37: 17 | L37: 0.8095238095 | M37: 3 | N37: =SUMIFS(OFFSET(REL_D,,MATCH($N$5,IND,0)-1),REL_D,$C$5,OrgID,$C37) -> 17 | O37: 0.8095238095 | P37: 3 | Q37: 17 | R37: 0.8095238095
A38: =VLOOKUP(C38,'Control Panel'!$G$132:$K$171,5,FALSE) -> WF-4 | B38: =VLOOKUP(C38,'Control Panel'!$A$85:$F$124,2,FALSE) -> Hampton Medical Centre | C38: F86712 | D38: 3433 | E38: 8 | F38: 6 | G38: 0.75 | H38: 6 | I38: 0.75 | J38: 2 | K38: 6 | L38: 0.75 | M38: 2 | N38: =SUMIFS(OFFSET(REL_D,,MATCH($N$5,IND,0)-1),REL_D,$C$5,OrgID,$C38) -> 6 | O38: 0.75 | P38: 2 | Q38: 6 | R38: 0.75
A39: =VLOOKUP(C39,'Control Panel'!$G$132:$K$171,5,FALSE) -> WF-4 | B39: =VLOOKUP(C39,'Control Panel'!$A$85:$F$124,2,FALSE) -> Lime Tree Surgery | C39: F86650 | D39: 7953 | E39: 20 | F39: 17 | G39: 0.85 | H39: 16 | I39: 0.8 | J39: 3 | K39: 16 | L39: 0.8 | M39: 3 | N39: =SUMIFS(OFFSET(REL_D,,MATCH($N$5,IND,0)-1),REL_D,$C$5,OrgID,$C39) -> 16 | O39: 0.8 | P39: 3 | Q39: 16 | R39: 0.8
A40: =VLOOKUP(C40,'Control Panel'!$G$132:$K$171,5,FALSE) -> WF-4 | B40: =VLOOKUP(C40,'Control Panel'!$A$85:$F$124,2,FALSE) -> The Lyndhurst Surgery | C40: F86088 | D40: 5098 | E40: 11 | F40: 9 | G40: 0.8181818182 | H40: 9 | I40: 0.8181818182 | J40: 2 | K40: 9 | L40: 0.8181818182 | M40: 2 | N40: =SUMIFS(OFFSET(REL_D,,MATCH($N$5,IND,0)-1),REL_D,$C$5,OrgID,$C40) -> 9 | O40: 0.8181818182 | P40: 2 | Q40: 9 | R40: 0.8181818182
A41: =VLOOKUP(C41,'Control Panel'!$G$132:$K$171,5,FALSE) -> WF-4 | B41: =VLOOKUP(C41,'Control Panel'!$A$85:$F$124,2,FALSE) -> The Ecclesbourne Practice* | C41: F86018 | D41: 9800 | E41: 16 | F41: 15 | G41: 0.9375 | H41: 13 | I41: 0.8125 | J41: 3 | K41: 14 | L41: 0.875 | M41: 2 | N41: =SUMIFS(OFFSET(REL_D,,MATCH($N$5,IND,0)-1),REL_D,$C$5,OrgID,$C41) -> 13 | O41: 0.8125 | P41: 3 | Q41: 15 | R41: 0.9375
A42: =VLOOKUP(C42,'Control Panel'!$G$132:$K$171,5,FALSE) -> WF-5 | B42: =VLOOKUP(C42,'Control Panel'!$A$85:$F$124,2,FALSE) -> Green Man Medical Centre | C42: F86621 | D42: 6805 | E42: 25 | F42: 21 | G42: 0.84 | H42: 19 | I42: 0.76 | J42: 5 | K42: 19 | L42: 0.76 | M42: 5 | N42: =SUMIFS(OFFSET(REL_D,,MATCH($N$5,IND,0)-1),REL_D,$C$5,OrgID,$C42) -> 20 | O42: 0.8 | P42: 4 | Q42: 18 | R42: 0.72
A43: =VLOOKUP(C43,'Control Panel'!$G$132:$K$171,5,FALSE) -> WF-5 | B43: =VLOOKUP(C43,'Control Panel'!$A$85:$F$124,2,FALSE) -> High Road Surgery | C43: F86045 | D43: 2032 | E43: 6 | F43: 6 | G43: 1 | H43: 5 | I43: 0.8333333333 | J43: 1 | K43: 5 | L43: 0.8333333333 | M43: 1 | N43: =SUMIFS(OFFSET(REL_D,,MATCH($N$5,IND,0)-1),REL_D,$C$5,OrgID,$C43) -> 5 | O43: 0.8333333333 | P43: 1 | Q43: 5 | R43: 0.8333333333
A44: =VLOOKUP(C44,'Control Panel'!$G$132:$K$171,5,FALSE) -> WF-5 | B44: =VLOOKUP(C44,'Control Panel'!$A$85:$F$124,2,FALSE) -> Kiyani Medical Practice | C44: F86701 | D44: 4010 | E44: 11 | F44: 10 | G44: 0.9090909091 | H44: 8 | I44: 0.7272727273 | J44: 3 | K44: 8 | L44: 0.7272727273 | M44: 3 | N44: =SUMIFS(OFFSET(REL_D,,MATCH($N$5,IND,0)-1),REL_D,$C$5,OrgID,$C44) -> 9 | O44: 0.8181818182 | P44: 2 | Q44: 9 | R44: 0.8181818182
A45: =VLOOKUP(C45,'Control Panel'!$G$132:$K$171,5,FALSE) -> WF-5 | B45: =VLOOKUP(C45,'Control Panel'!$A$85:$F$124,2,FALSE) -> LL Medical Care (Agarwal & Agrwal Practice) | C45: F86625 | D45: 5726 | E45: 9 | F45: 7 | G45: 0.7777777778 | H45: 7 | I45: 0.7777777778 | J45: 2 | K45: 7 | L45: 0.7777777778 | M45: 2 | N45: =SUMIFS(OFFSET(REL_D,,MATCH($N$5,IND,0)-1),REL_D,$C$5,OrgID,$C45) -> 7 | O45: 0.7777777778 | P45: 2 | Q45: 7 | R45: 0.7777777778
A46: =VLOOKUP(C46,'Control Panel'!$G$132:$K$171,5,FALSE) -> WF-5 | B46: =VLOOKUP(C46,'Control Panel'!$A$85:$F$124,2,FALSE) -> The Harrow Road Surgery | C46: F86666 | D46: 14945 | E46: 50 | F46: 43 | G46: 0.86 | H46: 41 | I46: 0.82 | J46: 7 | K46: 39 | L46: 0.78 | M46: 9 | N46: =SUMIFS(OFFSET(REL_D,,MATCH($N$5,IND,0)-1),REL_D,$C$5,OrgID,$C46) -> 40 | O46: 0.8 | P46: 8 | Q46: 40 | R46: 0.8
A47: =VLOOKUP(C47,'Control Panel'!$G$132:$K$171,5,FALSE) -> WF-5 | B47: =VLOOKUP(C47,'Control Panel'!$A$85:$F$124,2,FALSE) -> The Langthorne Sharma Family Practice | C47: F86705 | D47: 3447 | E47: 5 | F47: 5 | G47: 1 | H47: 5 | I47: 1 | K47: 3 | L47: 0.6 | M47: 2 | N47: =SUMIFS(OFFSET(REL_D,,MATCH($N$5,IND,0)-1),REL_D,$C$5,OrgID,$C47) -> 4 | O47: 0.8 | P47: 1 | Q47: 3 | R47: 0.6
A48: =VLOOKUP(C48,'Control Panel'!$G$132:$K$171,5,FALSE) -> WF-6 | B48: =VLOOKUP(C48,'Control Panel'!$A$85:$F$124,2,FALSE) -> Addison Road Medical Practice | C48: F86607 | D48: 16152 | E48: 50 | F48: 39 | G48: 0.78 | H48: 44 | I48: 0.88 | J48: 4 | K48: 44 | L48: 0.88 | M48: 4 | N48: =SUMIFS(OFFSET(REL_D,,MATCH($N$5,IND,0)-1),REL_D,$C$5,OrgID,$C48) -> 44 | O48: 0.88 | P48: 4 | Q48: 45 | R48: 0.9
A49: =VLOOKUP(C49,'Control Panel'!$G$132:$K$171,5,FALSE) -> WF-6 | B49: =VLOOKUP(C49,'Control Panel'!$A$85:$F$124,2,FALSE) -> Claremont Medical Centre | C49: F86708 | D49: 2843 | E49: 7 | F49: 6 | G49: 0.8571428571 | H49: 6 | I49: 0.8571428571 | J49: 1 | K49: 5 | L49: 0.7142857143 | M49: 2 | N49: =SUMIFS(OFFSET(REL_D,,MATCH($N$5,IND,0)-1),REL_D,$C$5,OrgID,$C49) -> 6 | O49: 0.8571428571 | P49: 1 | Q49: 5 | R49: 0.7142857143
A50: =VLOOKUP(C50,'Control Panel'!$G$132:$K$171,5,FALSE) -> WF-6 | B50: =VLOOKUP(C50,'Control Panel'!$A$85:$F$124,2,FALSE) -> The Firs | C50: F86001 | D50: 8444 | E50: 17 | F50: 15 | G50: 0.8823529412 | H50: 13 | I50: 0.7647058824 | J50: 4 | K50: 13 | L50: 0.7647058824 | M50: 4 | N50: =SUMIFS(OFFSET(REL_D,,MATCH($N$5,IND,0)-1),REL_D,$C$5,OrgID,$C50) -> 13 | O50: 0.7647058824 | P50: 4 | Q50: 14 | R50: 0.8235294118
A51: =VLOOKUP(C51,'Control Panel'!$G$132:$K$171,5,FALSE) -> WF-6 | B51: =VLOOKUP(C51,'Control Panel'!$A$85:$F$124,2,FALSE) -> Dr Dhital Practice | C51: F86086 | D51: 6398 | E51: 27 | F51: 22 | G51: 0.8148148148 | H51: 20 | I51: 0.7407407407 | J51: 6 | K51: 20 | L51: 0.7407407407 | M51: 6 | N51: =SUMIFS(OFFSET(REL_D,,MATCH($N$5,IND,0)-1),REL_D,$C$5,OrgID,$C51) -> 20 | O51: 0.7407407407 | P51: 6 | Q51: 20 | R51: 0.7407407407
A52: =VLOOKUP(C52,'Control Panel'!$G$132:$K$171,5,FALSE) -> WF-6 | B52: =VLOOKUP(C52,'Control Panel'!$A$85:$F$124,2,FALSE) -> Waltham Forest Community & Family Health Services Ltd | C52: F86644 | D52: 9083 | E52: 22 | F52: 21 | G52: 0.9545454545 | H52: 19 | I52: 0.8636363636 | J52: 2 | K52: 21 | L52: 0.9545454545 | N52: =SUMIFS(OFFSET(REL_D,,MATCH($N$5,IND,0)-1),REL_D,$C$5,OrgID,$C52) -> 21 | O52: 0.9545454545 | Q52: 21 | R52: 0.9545454545
A53: =VLOOKUP(C53,'Control Panel'!$G$132:$K$171,5,FALSE) -> WF-7 | B53: =VLOOKUP(C53,'Control Panel'!$A$85:$F$124,2,FALSE) -> Seymour Medical centre | C53: F86006 | D53: 7082 | E53: 22 | F53: 21 | G53: 0.9545454545 | H53: 21 | I53: 0.9545454545 | K53: 20 | L53: 0.9090909091 | M53: 1 | N53: =SUMIFS(OFFSET(REL_D,,MATCH($N$5,IND,0)-1),REL_D,$C$5,OrgID,$C53) -> 19 | O53: 0.8636363636 | P53: 2 | Q53: 20 | R53: 0.9090909091
A54: =VLOOKUP(C54,'Control Panel'!$G$132:$K$171,5,FALSE) -> WF-7 | B54: =VLOOKUP(C54,'Control Panel'!$A$85:$F$124,2,FALSE) -> Queens Road Medical Centre | C54: F86030 | D54: 8280 | E54: 24 | F54: 19 | G54: 0.7916666667 | H54: 21 | I54: 0.875 | J54: 2 | K54: 21 | L54: 0.875 | M54: 2 | N54: =SUMIFS(OFFSET(REL_D,,MATCH($N$5,IND,0)-1),REL_D,$C$5,OrgID,$C54) -> 19 | O54: 0.7916666667 | P54: 4 | Q54: 19 | R54: 0.7916666667
A55: =VLOOKUP(C55,'Control Panel'!$G$132:$K$171,5,FALSE) -> WF-7 | B55: =VLOOKUP(C55,'Control Panel'!$A$85:$F$124,2,FALSE) -> The Grove Road Medical Centre | C55: F86062 | D55: 7220 | E55: 6 | F55: 5 | G55: 0.8333333333 | H55: 4 | I55: 0.6666666667 | J55: 2 | K55: 4 | L55: 0.6666666667 | M55: 2 | N55: =SUMIFS(OFFSET(REL_D,,MATCH($N$5,IND,0)-1),REL_D,$C$5,OrgID,$C55) -> 4 | O55: 0.6666666667 | P55: 2 | Q55: 4 | R55: 0.6666666667
A56: =VLOOKUP(C56,'Control Panel'!$G$132:$K$171,5,FALSE) -> WF-7 | B56: =VLOOKUP(C56,'Control Panel'!$A$85:$F$124,2,FALSE) -> Higham Hill Medical Centre | C56: F86679 | D56: 6412 | E56: 30 | F56: 27 | G56: 0.9 | H56: 23 | I56: 0.7666666667 | J56: 6 | K56: 23 | L56: 0.7666666667 | M56: 6 | N56: =SUMIFS(OFFSET(REL_D,,MATCH($N$5,IND,0)-1),REL_D,$C$5,OrgID,$C56) -> 23 | O56: 0.7666666667 | P56: 6 | Q56: 23 | R56: 0.7666666667
A57: =VLOOKUP(C57,'Control Panel'!$G$132:$K$171,5,FALSE) -> WF-7 | B57: =VLOOKUP(C57,'Control Panel'!$A$85:$F$124,2,FALSE) -> St James Medical Practice Ltd | C57: F86058 | D57: 15867 | E57: 61 | F57: 54 | G57: 0.8852459016 | H57: 51 | I57: 0.8360655738 | J57: 7 | K57: 52 | L57: 0.8524590164 | M57: 6 | N57: =SUMIFS(OFFSET(REL_D,,MATCH($N$5,IND,0)-1),REL_D,$C$5,OrgID,$C57) -> 54 | O57: 0.8852459016 | P57: 4 | Q57: 52 | R57: 0.8524590164

Sheet Patients becoming 5y
D2: Waltham Forest Childhood Immunisations Dashboard: Metric Details
B3: =VLOOKUP(C5,'Control Panel'!Y49:Z60,2,FALSE) ->  | D3: Patients becoming 5y | F3: =E15 -> 867
B4: 2020-02-01
C5: March 2023 | D5: All Patients | E5: (03) 5 YEAR COHORT | F5: (03.01) DTaP/IPV/Hib or DTaP/IPV/Hib/HepB | G5: DTaP/IPV/Hib(%) | H5: (03.02) MMR (Primary) | I5: MMR (Primary)(%) | J5: (03.03) DTaP/IPV (Booster) | K5: DTaP/IPV (Booster)(%) | L5: Patients required to achieve NHSE Target (90%) | M5: (03.05) MMR (Booster) | N5: MMR (Booster)(%) | O5: Patients required to achieve NHSE Target (90%) | P5: (03.04) HiB/Men C | Q5: HiB/Men C(%)
B6: Home | D6: Listsize | E6: Patients becoming 5y | F6: DTaP/IPV/Hib/HepB | G6: DTaP/IPV/Hib/HepB(%) | H6: MMR (Primary) | I6: MMR (Primary)(%) | J6: DTaP/IPV (Booster) | K6: DTaP/IPV (Booster)(%) | L6: Patients required to achieve 95% | M6: MMR (Booster) | N6: MMR (Booster)(%) | O6: Patients required to achieve 95% | P6: HiB/Men C | Q6: HiB/Men C(%)
A7: Cluster
A8: WF-1 | B8: Chingford/ Walthamstow | D8: =SUM(IF($A8=$A$19:$A$57,D$19:D$57)) -> 52462 | E8: =SUM(IF($A8=$A$19:$A$57,E$19:E$57)) -> 158 | F8: =SUM(IF($A8=$A$19:$A$57,F$19:F$57)) -> 142 | G8: =IF(OR(ISTEXT($E8),$E8=0),"N/A",F8/$E8) -> 0.8987341772 | H8: =SUM(IF($A8=$A$19:$A$57,H$19:H$57)) -> 140 | I8: =IF(OR(ISTEXT($E8),$E8=0),"N/A",H8/$E8) -> 0.8860759494 | J8: =SUM(IF($A8=$A$19:$A$57,J$19:J$57)) -> 128 | K8: =IF(OR(ISTEXT($E8),$E8=0),"N/A",J8/$E8) -> 0.8101265823 | M8: =SUM(IF($A8=$A$19:$A$57,M$19:M$57)) -> 128 | N8: =IF(OR(ISTEXT($E8),$E8=0),"N/A",M8/$E8) -> 0.8101265823 | P8: =SUM(IF($A8=$A$19:$A$57,P$19:P$57)) -> 139 | Q8: =IF(OR(ISTEXT($E8),$E8=0),"N/A",P8/$E8) -> 0.8797468354
A9: WF-2 | B9: Chingford E4 | D9: =SUM(IF($A9=$A$19:$A$57,D$19:D$57)) -> 54070 | E9: =SUM(IF($A9=$A$19:$A$57,E$19:E$57)) -> 155 | F9: =SUM(IF($A9=$A$19:$A$57,F$19:F$57)) -> 143 | G9: =IF(OR(ISTEXT($E9),$E9=0),"N/A",F9/$E9) -> 0.9225806452 | H9: =SUM(IF($A9=$A$19:$A$57,H$19:H$57)) -> 143 | I9: =IF(OR(ISTEXT($E9),$E9=0),"N/A",H9/$E9) -> 0.9225806452 | J9: =SUM(IF($A9=$A$19:$A$57,J$19:J$57)) -> 131 | K9: =IF(OR(ISTEXT($E9),$E9=0),"N/A",J9/$E9) -> 0.8451612903 | M9: =SUM(IF($A9=$A$19:$A$57,M$19:M$57)) -> 134 | N9: =IF(OR(ISTEXT($E9),$E9=0),"N/A",M9/$E9) -> 0.864516129 | P9: =SUM(IF($A9=$A$19:$A$57,P$19:P$57)) -> 138 | Q9: =IF(OR(ISTEXT($E9),$E9=0),"N/A",P9/$E9) -> 0.8903225806
A10: WF-3 | B10: Leyton Collaborative | D10: =SUM(IF($A10=$A$19:$A$57,D$19:D$57)) -> 35906 | E10: =SUM(IF($A10=$A$19:$A$57,E$19:E$57)) -> 100 | F10: =SUM(IF($A10=$A$19:$A$57,F$19:F$57)) -> 83 | G10: 0.83 | H10: =SUM(IF($A10=$A$19:$A$57,H$19:H$57)) -> 89 | I10: 0.89 | J10: =SUM(IF($A10=$A$19:$A$57,J$19:J$57)) -> 80 | K10: 0.8 | M10: =SUM(IF($A10=$A$19:$A$57,M$19:M$57)) -> 78 | N10: 0.78 | P10: =SUM(IF($A10=$A$19:$A$57,P$19:P$57)) -> 87 | Q10: 0.87
A11: WF-4 | B11: Forest Integrated Health | D11: =SUM(IF($A11=$A$19:$A$57,D$19:D$57)) -> 58263 | E11: =SUM(IF($A11=$A$19:$A$57,E$19:E$57)) -> 154 | F11: =SUM(IF($A11=$A$19:$A$57,F$19:F$57)) -> 129 | G11: 0.8376623377 | H11: =SUM(IF($A11=$A$19:$A$57,H$19:H$57)) -> 131 | I11: 0.8506493506 | J11: =SUM(IF($A11=$A$19:$A$57,J$19:J$57)) -> 110 | K11: 0.7142857143 | M11: =SUM(IF($A11=$A$19:$A$57,M$19:M$57)) -> 111 | N11: 0.7207792208 | P11: =SUM(IF($A11=$A$19:$A$57,P$19:P$57)) -> 126 | Q11: 0.8181818182
A12: WF-5 | B12: South Leytonstone | D12: =SUM(IF($A12=$A$19:$A$57,D$19:D$57)) -> 36965 | E12: =SUM(IF($A12=$A$19:$A$57,E$19:E$57)) -> 83 | F12: =SUM(IF($A12=$A$19:$A$57,F$19:F$57)) -> 72 | G12: 0.8674698795 | H12: =SUM(IF($A12=$A$19:$A$57,H$19:H$57)) -> 71 | I12: 0.8554216867 | J12: =SUM(IF($A12=$A$19:$A$57,J$19:J$57)) -> 63 | K12: 0.7590361446 | M12: =SUM(IF($A12=$A$19:$A$57,M$19:M$57)) -> 62 | N12: 0.7469879518 | P12: =SUM(IF($A12=$A$19:$A$57,P$19:P$57)) -> 71 | Q12: 0.8554216867
A13: WF-6 | B13: Central Walthamstow | D13: =SUM(IF($A13=$A$19:$A$57,D$19:D$57)) -> 42920 | E13: =SUM(IF($A13=$A$19:$A$57,E$19:E$57)) -> 115 | F13: =SUM(IF($A13=$A$19:$A$57,F$19:F$57)) -> 101 | G13: 0.8782608696 | H13: =SUM(IF($A13=$A$19:$A$57,H$19:H$57)) -> 98 | I13: 0.852173913 | J13: =SUM(IF($A13=$A$19:$A$57,J$19:J$57)) -> 89 | K13: 0.7739130435 | M13: =SUM(IF($A13=$A$19:$A$57,M$19:M$57)) -> 88 | N13: 0.7652173913 | P13: =SUM(IF($A13=$A$19:$A$57,P$19:P$57)) -> 97 | Q13: 0.8434782609
A14: WF-7 | B14: Walthamstow West | D14: =SUM(IF($A14=$A$19:$A$57,D$19:D$57)) -> 44861 | E14: =SUM(IF($A14=$A$19:$A$57,E$19:E$57)) -> 102 | F14: =SUM(IF($A14=$A$19:$A$57,F$19:F$57)) -> 97 | G14: 0.9509803922 | H14: =SUM(IF($A14=$A$19:$A$57,H$19:H$57)) -> 95 | I14: 0.931372549 | J14: =SUM(IF($A14=$A$19:$A$57,J$19:J$57)) -> 85 | K14: 0.8333333333 | M14: =SUM(IF($A14=$A$19:$A$57,M$19:M$57)) -> 88 | N14: 0.862745098 | P14: =SUM(IF($A14=$A$19:$A$57,P$19:P$57)) -> 93 | Q14: 0.9117647059
A15: Total | D15: =SUM(D8:D14) -> 325447 | E15: =SUM(E8:E14) -> 867 | F15: =SUM(F8:F14) -> 767 | G15: 0.8846597463 | H15: =SUM(H8:H14) -> 767 | I15: 0.8846597463 | J15: =SUM(J8:J14) -> 686 | K15: 0.7912341407 | M15: =SUM(M8:M14) -> 689 | N15: 0.7946943483 | P15: =SUM(P8:P14) -> 751 | Q15: 0.8662053057
A16: Minimum and Maximum % | F16: Min | G16: Max | H16: Min | I16: Max | J16: Min | K16: Max | M16: Min | N16: Max | P16: Min | Q16: Max
F17: =SMALL(G19:G51,COUNTIF(G19:G51,0)+1) -> 0.7058823529 | G17: =MAX(G19:G51) -> 1 | H17: =SMALL(I19:I51,COUNTIF(I19:I51,0)+1) -> 0.5882352941 | I17: =MAX(I19:I51) -> 1 | J17: =SMALL(K19:K51,COUNTIF(K19:K51,0)+1) -> 0.5757575758 | K17: =MAX(K19:K51) -> 1 | M17: =SMALL(N19:N51,COUNTIF(N19:N51,0)+1) -> 0.5882352941 | N17: =MAX(N19:N51) -> 1 | P17: =SMALL(Q19:Q51,COUNTIF(Q19:Q51,0)+1) -> 0.5882352941 | Q17: =MAX(Q19:Q51) -> 1
A18: Practices | B18: * SystmOne Practices - No Data
A19: =VLOOKUP(C19,'Control Panel'!$G$132:$K$171,5,FALSE) -> WF-1 | B19: =VLOOKUP(C19,'Control Panel'!$A$85:$F$124,2,FALSE) -> Kings Head Medical Practice | C19: F86700 | D19: =SUMIFS(OFFSET(REL_D,,MATCH($D$5,IND,0)-1),REL_D,$C$5,OrgID,$C19) -> 3845 | E19: =SUMIFS(OFFSET(REL_D,,MATCH($E$5,IND,0)-1),REL_D,$C$5,OrgID,$C19) -> 10 | F19: =SUMIFS(OFFSET(REL_D,,MATCH($F$5,IND,0)-1),REL_D,$C$5,OrgID,$C19) -> 9 | G19: =IF(OR(ISTEXT($E19),$E19=0),"N/A",F19/$E19) -> 0.9 | H19: =SUMIFS(OFFSET(REL_D,,MATCH($H$5,IND,0)-1),REL_D,$C$5,OrgID,$C19) -> 9 | I19: =IF(OR(ISTEXT($E19),$E19=0),"N/A",H19/$E19) -> 0.9 | J19: =SUMIFS(OFFSET(REL_D,,MATCH($J$5,IND,0)-1),REL_D,$C$5,OrgID,$C19) -> 9 | K19: =IF(OR(ISTEXT($E19),$E19=0),"N/A",J19/$E19) -> 0.9 | L19: =IFERROR(ROUNDUP(IF($E19*0.95-J19>=0,$E19*0.95-J19,""),0),"") -> 1 | M19: =SUMIFS(OFFSET(REL_D,,MATCH($M$5,IND,0)-1),REL_D,$C$5,OrgID,$C19) -> 9 | N19: =IF(OR(ISTEXT($E19),$E19=0),"N/A",M19/$E19) -> 0.9 | O19: =IFERROR(ROUNDUP(IF($E19*0.95-M19>=0,$E19*0.95-M19,""),0),"") -> 1 | P19: =SUMIFS(OFFSET(REL_D,,MATCH($P$5,IND,0)-1),REL_D,$C$5,OrgID,$C19) -> 9 | Q19: =IF(OR(ISTEXT($E19),$E19=0),"N/A",P19/$E19) -> 0.9
A20: =VLOOKUP(C20,'Control Panel'!$G$132:$K$171,5,FALSE) -> WF-1 | B20: =VLOOKUP(C20,'Control Panel'!$A$85:$F$124,2,FALSE) -> Larkshall Medical Centre | C20: F86664 | D20: 8579 | E20: 18 | F20: 16 | G20: =IF(OR(ISTEXT($E20),$E20=0),"N/A",F20/$E20) -> 0.8888888889 | H20: 15 | I20: =IF(OR(ISTEXT($E20),$E20=0),"N/A",H20/$E20) -> 0.8333333333 | J20: 13 | K20: =IF(OR(ISTEXT($E20),$E20=0),"N/A",J20/$E20) -> 0.7222222222 | L20: =IFERROR(ROUNDUP(IF($E20*0.95-J20>=0,$E20*0.95-J20,""),0),"") -> 5 | M20: =SUMIFS(OFFSET(REL_D,,MATCH($M$5,IND,0)-1),REL_D,$C$5,OrgID,$C20) -> 13 | N20: =IF(OR(ISTEXT($E20),$E20=0),"N/A",M20/$E20) -> 0.7222222222 | O20: =IFERROR(ROUNDUP(IF($E20*0.95-M20>=0,$E20*0.95-M20,""),0),"") -> 5 | P20: 15 | Q20: =IF(OR(ISTEXT($E20),$E20=0),"N/A",P20/$E20) -> 0.8333333333
A21: =VLOOKUP(C21,'Control Panel'!$G$132:$K$171,5,FALSE) -> WF-1 | B21: =VLOOKUP(C21,'Control Panel'!$A$85:$F$124,2,FALSE) -> The Microfaculty* | C21: F86638 | D21: 4981 | E21: 18 | F21: 16 | G21: 0.8888888889 | H21: 15 | I21: 0.8333333333 | J21: 13 | K21: 0.7222222222 | L21: 5 | M21: =SUMIFS(OFFSET(REL_D,,MATCH($M$5,IND,0)-1),REL_D,$C$5,OrgID,$C21) -> 13 | N21: 0.7222222222 | O21: 5 | P21: 15 | Q21: 0.8333333333
A22: =VLOOKUP(C22,'Control Panel'!$G$132:$K$171,5,FALSE) -> WF-1 | B22: =VLOOKUP(C22,'Control Panel'!$A$85:$F$124,2,FALSE) -> The Penryhn Surgery | C22: F86005 | D22: 9530 | E22: 34 | F22: 32 | G22: 0.9411764706 | H22: 31 | I22: 0.9117647059 | J22: 28 | K22: =IF(OR(ISTEXT($E22),$E22=0),"N/A",J22/$E22) -> 0.8235294118 | L22: 5 | M22: =SUMIFS(OFFSET(REL_D,,MATCH($M$5,IND,0)-1),REL_D,$C$5,OrgID,$C22) -> 28 | N22: 0.8235294118 | O22: 5 | P22: 30 | Q22: 0.8823529412
A23: =VLOOKUP(C23,'Control Panel'!$G$132:$K$171,5,FALSE) -> WF-1 | B23: =VLOOKUP(C23,'Control Panel'!$A$85:$F$124,2,FALSE) -> Dr Shantir Practice | C23: F86626 | D23: 7441 | E23: 20 | F23: 18 | G23: 0.9 | H23: 18 | I23: 0.9 | J23: 18 | K23: 0.9 | L23: 1 | M23: =SUMIFS(OFFSET(REL_D,,MATCH($M$5,IND,0)-1),REL_D,$C$5,OrgID,$C23) -> 18 | N23: 0.9 | O23: 1 | P23: 18 | Q23: 0.9
A24: =VLOOKUP(C24,'Control Panel'!$G$132:$K$171,5,FALSE) -> WF-1 | B24: =VLOOKUP(C24,'Control Panel'!$A$85:$F$124,2,FALSE) -> Lime Tree & Sinnott Healthcare Ltd | C24: Y01839 | D24: 6601 | E24: 20 | F24: 18 | G24: 0.9 | H24: 16 | I24: 0.8 | J24: 14 | K24: 0.7 | L24: 5 | M24: =SUMIFS(OFFSET(REL_D,,MATCH($M$5,IND,0)-1),REL_D,$C$5,OrgID,$C24) -> 14 | N24: 0.7 | O24: 5 | P24: 16 | Q24: 0.8
A25: =VLOOKUP(C25,'Control Panel'!$G$132:$K$171,5,FALSE) -> WF-1 | B25: =VLOOKUP(C25,'Control Panel'!$A$85:$F$124,2,FALSE) -> The Bailey Practice | C25: F86689 | D25: 4367 | E25: 21 | F25: 21 | G25: 1 | H25: 20 | I25: 0.9523809524 | J25: 19 | K25: 0.9047619048 | L25: 1 | M25: =SUMIFS(OFFSET(REL_D,,MATCH($M$5,IND,0)-1),REL_D,$C$5,OrgID,$C25) -> 19 | N25: 0.9047619048 | O25: 1 | P25: 20 | Q25: 0.9523809524
A26: =VLOOKUP(C26,'Control Panel'!$G$132:$K$171,5,FALSE) -> WF-1 | B26: =VLOOKUP(C26,'Control Panel'!$A$85:$F$124,2,FALSE) -> Forest Surgery* | C26: F86026 | D26: 7118 | E26: 17 | F26: 12 | G26: 0.7058823529 | H26: 16 | I26: 0.9411764706 | J26: 14 | K26: 0.8235294118 | L26: 3 | M26: =SUMIFS(OFFSET(REL_D,,MATCH($M$5,IND,0)-1),REL_D,$C$5,OrgID,$C26) -> 14 | N26: 0.8235294118 | O26: 3 | P26: 16 | Q26: 0.9411764706
A27: =VLOOKUP(C27,'Control Panel'!$G$132:$K$171,5,FALSE) -> WF-2 | B27: =VLOOKUP(C27,'Control Panel'!$A$85:$F$124,2,FALSE) -> Handsworth Medical Centre* | C27: F86004 | D27: 16038 | E27: 47 | F27: 44 | G27: 0.9361702128 | H27: 44 | I27: 0.9361702128 | J27: 40 | K27: 0.8510638298 | L27: 5 | M27: =SUMIFS(OFFSET(REL_D,,MATCH($M$5,IND,0)-1),REL_D,$C$5,OrgID,$C27) -> 42 | N27: 0.8936170213 | O27: 3 | P27: 42 | Q27: 0.8936170213
A28: =VLOOKUP(C28,'Control Panel'!$G$132:$K$171,5,FALSE) -> WF-2 | B28: =VLOOKUP(C28,'Control Panel'!$A$85:$F$124,2,FALSE) -> Chingford Medical Practice | C28: Y01291 | D28: 9699 | E28: 32 | F28: 29 | G28: 0.90625 | H28: 28 | I28: 0.875 | J28: 28 | K28: 0.875 | L28: 3 | M28: =SUMIFS(OFFSET(REL_D,,MATCH($M$5,IND,0)-1),REL_D,$C$5,OrgID,$C28) -> 28 | N28: 0.875 | O28: 3 | P28: 27 | Q28: 0.84375
A29: =VLOOKUP(C29,'Control Panel'!$G$132:$K$171,5,FALSE) -> WF-2 | B29: =VLOOKUP(C29,'Control Panel'!$A$85:$F$124,2,FALSE) -> Churchill Medical Centre | C29: F86627 | D29: 13171 | E29: 32 | F29: 30 | G29: 0.9375 | H29: 30 | I29: 0.9375 | J29: 25 | K29: 0.78125 | L29: 6 | M29: =SUMIFS(OFFSET(REL_D,,MATCH($M$5,IND,0)-1),REL_D,$C$5,OrgID,$C29) -> 26 | N29: 0.8125 | O29: 5 | P29: 29 | Q29: 0.90625
A30: =VLOOKUP(C30,'Control Panel'!$G$132:$K$171,5,FALSE) -> WF-2 | B30: =VLOOKUP(C30,'Control Panel'!$A$85:$F$124,2,FALSE) -> The Ridgeway Surgery | C30: F86078 | D30: 6811 | E30: 13 | F30: 13 | G30: 1 | H30: 13 | I30: 1 | J30: 12 | K30: 0.9230769231 | L30: 1 | M30: =SUMIFS(OFFSET(REL_D,,MATCH($M$5,IND,0)-1),REL_D,$C$5,OrgID,$C30) -> 11 | N30: 0.8461538462 | O30: 2 | P30: 13 | Q30: 1
A31: =VLOOKUP(C31,'Control Panel'!$G$132:$K$171,5,FALSE) -> WF-2 | B31: =VLOOKUP(C31,'Control Panel'!$A$85:$F$124,2,FALSE) -> Old Church Surgery | C31: F86616 | D31: 8351 | E31: 31 | F31: 27 | G31: 0.8709677419 | H31: 28 | I31: 0.9032258065 | J31: 26 | K31: 0.8387096774 | L31: 4 | M31: =SUMIFS(OFFSET(REL_D,,MATCH($M$5,IND,0)-1),REL_D,$C$5,OrgID,$C31) -> 27 | N31: 0.8709677419 | O31: 3 | P31: 27 | Q31: 0.8709677419
A32: =VLOOKUP(C32,'Control Panel'!$G$132:$K$171,5,FALSE) -> WF-3 | B32: =VLOOKUP(C32,'Control Panel'!$A$85:$F$124,2,FALSE) -> The Manor Practice | C32: F86011 | D32: 9774 | E32: 21 | F32: 20 | G32: 0.9523809524 | H32: 19 | I32: 0.9047619048 | J32: 15 | K32: 0.7142857143 | L32: 5 | M32: =SUMIFS(OFFSET(REL_D,,MATCH($M$5,IND,0)-1),REL_D,$C$5,OrgID,$C32) -> 15 | N32: 0.7142857143 | O32: 5 | P32: 18 | Q32: 0.8571428571
A33: =VLOOKUP(C33,'Control Panel'!$G$132:$K$171,5,FALSE) -> WF-3 | B33: =VLOOKUP(C33,'Control Panel'!$A$85:$F$124,2,FALSE) -> Sma Medical Centre | C33: F86038 | D33: 11059 | E33: 39 | F33: 34 | G33: =IF(OR(ISTEXT($E33),$E33=0),"N/A",F33/$E33) -> 0.8717948718 | H33: 34 | I33: =IF(OR(ISTEXT($E33),$E33=0),"N/A",H33/$E33) -> 0.8717948718 | J33: 31 | K33: =IF(OR(ISTEXT($E33),$E33=0),"N/A",J33/$E33) -> 0.7948717949 | L33: =IFERROR(ROUNDUP(IF($E33*0.95-J33>=0,$E33*0.95-J33,""),0),"") -> 7 | M33: =SUMIFS(OFFSET(REL_D,,MATCH($M$5,IND,0)-1),REL_D,$C$5,OrgID,$C33) -> 30 | N33: =IF(OR(ISTEXT($E33),$E33=0),"N/A",M33/$E33) -> 0.7692307692 | O33: =IFERROR(ROUNDUP(IF($E33*0.95-M33>=0,$E33*0.95-M33,""),0),"") -> 8 | P33: 34 | Q33: =IF(OR(ISTEXT($E33),$E33=0),"N/A",P33/$E33) -> 0.8717948718
A34: =VLOOKUP(C34,'Control Panel'!$G$132:$K$171,5,FALSE) -> WF-3 | B34: =VLOOKUP(C34,'Control Panel'!$A$85:$F$124,2,FALSE) -> Leyton Healthcare (Oliver Road)* | C34: F86074 | D34: 15073 | E34: 40 | F34: 29 | G34: 0.725 | H34: 36 | I34: 0.9 | J34: 34 | K34: 0.85 | L34: 4 | M34: =SUMIFS(OFFSET(REL_D,,MATCH($M$5,IND,0)-1),REL_D,$C$5,OrgID,$C34) -> 33 | N34: 0.825 | O34: 5 | P34: 35 | Q34: 0.875
A35: =VLOOKUP(C35,'Control Panel'!$G$132:$K$171,5,FALSE) -> WF-4 | B35: =VLOOKUP(C35,'Control Panel'!$A$85:$F$124,2,FALSE) -> The Allum Medical Centre | C35: F86036 | D35: 14350 | E35: 36 | F35: 34 | G35: 0.9444444444 | H35: 33 | I35: 0.9166666667 | J35: 31 | K35: 0.8611111111 | L35: 4 | M35: =SUMIFS(OFFSET(REL_D,,MATCH($M$5,IND,0)-1),REL_D,$C$5,OrgID,$C35) -> 31 | N35: 0.8611111111 | O35: 4 | P35: 33 | Q35: 0.9166666667
A36: =VLOOKUP(C36,'Control Panel'!$G$132:$K$171,5,FALSE) -> WF-4 | B36: =VLOOKUP(C36,'Control Panel'!$A$85:$F$124,2,FALSE) -> Crawley Road Medical Centre | C36: F86044 | D36: 10497 | E36: 30 | F36: 24 | G36: 0.8 | H36: 27 | I36: 0.9 | J36: 23 | K36: 0.7666666667 | L36: 6 | M36: =SUMIFS(OFFSET(REL_D,,MATCH($M$5,IND,0)-1),REL_D,$C$5,OrgID,$C36) -> 23 | N36: 0.7666666667 | O36: 6 | P36: 25 | Q36: 0.8333333333
A37: =VLOOKUP(C37,'Control Panel'!$G$132:$K$171,5,FALSE) -> WF-4 | B37: =VLOOKUP(C37,'Control Panel'!$A$85:$F$124,2,FALSE) -> Francis Road Medical Centre | C37: F86696 | D37: 7132 | E37: 21 | F37: 18 | G37: 0.8571428571 | H37: 17 | I37: 0.8095238095 | J37: 14 | K37: 0.6666666667 | L37: 6 | M37: =SUMIFS(OFFSET(REL_D,,MATCH($M$5,IND,0)-1),REL_D,$C$5,OrgID,$C37) -> 13 | N37: 0.619047619 | O37: 7 | P37: 17 | Q37: 0.8095238095
A38: =VLOOKUP(C38,'Control Panel'!$G$132:$K$171,5,FALSE) -> WF-4 | B38: =VLOOKUP(C38,'Control Panel'!$A$85:$F$124,2,FALSE) -> Hampton Medical Centre | C38: F86712 | D38: 3433 | E38: 11 | F38: 8 | G38: 0.7272727273 | H38: 8 | I38: 0.7272727273 | J38: 8 | K38: 0.7272727273 | L38: 3 | M38: =SUMIFS(OFFSET(REL_D,,MATCH($M$5,IND,0)-1),REL_D,$C$5,OrgID,$C38) -> 7 | N38: 0.6363636364 | O38: 4 | P38: 7 | Q38: 0.6363636364
A39: =VLOOKUP(C39,'Control Panel'!$G$132:$K$171,5,FALSE) -> WF-4 | B39: =VLOOKUP(C39,'Control Panel'!$A$85:$F$124,2,FALSE) -> Lime Tree Surgery | C39: F86650 | D39: 7953 | E39: 16 | F39: 13 | G39: 0.8125 | H39: 14 | I39: 0.875 | J39: 10 | K39: 0.625 | L39: 6 | M39: =SUMIFS(OFFSET(REL_D,,MATCH($M$5,IND,0)-1),REL_D,$C$5,OrgID,$C39) -> 10 | N39: 0.625 | O39: 6 | P39: 14 | Q39: 0.875
A40: =VLOOKUP(C40,'Control Panel'!$G$132:$K$171,5,FALSE) -> WF-4 | B40: =VLOOKUP(C40,'Control Panel'!$A$85:$F$124,2,FALSE) -> The Lyndhurst Surgery | C40: F86088 | D40: 5098 | E40: 7 | F40: 5 | G40: 0.7142857143 | H40: 5 | I40: 0.7142857143 | J40: 5 | K40: 0.7142857143 | L40: 2 | M40: =SUMIFS(OFFSET(REL_D,,MATCH($M$5,IND,0)-1),REL_D,$C$5,OrgID,$C40) -> 5 | N40: 0.7142857143 | O40: 2 | P40: 5 | Q40: 0.7142857143
A41: =VLOOKUP(C41,'Control Panel'!$G$132:$K$171,5,FALSE) -> WF-4 | B41: =VLOOKUP(C41,'Control Panel'!$A$85:$F$124,2,FALSE) -> The Ecclesbourne Practice* | C41: F86018 | D41: 9800 | E41: 33 | F41: 27 | G41: 0.8181818182 | H41: 27 | I41: 0.8181818182 | J41: 19 | K41: 0.5757575758 | L41: 13 | M41: =SUMIFS(OFFSET(REL_D,,MATCH($M$5,IND,0)-1),REL_D,$C$5,OrgID,$C41) -> 22 | N41: 0.6666666667 | O41: 10 | P41: 25 | Q41: 0.7575757576
A42: =VLOOKUP(C42,'Control Panel'!$G$132:$K$171,5,FALSE) -> WF-5 | B42: =VLOOKUP(C42,'Control Panel'!$A$85:$F$124,2,FALSE) -> Green Man Medical Centre | C42: F86621 | D42: 6805 | E42: 12 | F42: 11 | G42: 0.9166666667 | H42: 12 | I42: 1 | J42: 9 | K42: 0.75 | L42: 3 | M42: =SUMIFS(OFFSET(REL_D,,MATCH($M$5,IND,0)-1),REL_D,$C$5,OrgID,$C42) -> 9 | N42: 0.75 | O42: 3 | P42: 11 | Q42: 0.9166666667
A43: =VLOOKUP(C43,'Control Panel'!$G$132:$K$171,5,FALSE) -> WF-5 | B43: =VLOOKUP(C43,'Control Panel'!$A$85:$F$124,2,FALSE) -> High Road Surgery | C43: F86045 | D43: 2032 | E43: 4 | F43: 4 | G43: 1 | H43: 4 | I43: 1 | J43: 4 | K43: 1 | M43: =SUMIFS(OFFSET(REL_D,,MATCH($M$5,IND,0)-1),REL_D,$C$5,OrgID,$C43) -> 4 | N43: 1 | P43: 3 | Q43: 0.75
A44: =VLOOKUP(C44,'Control Panel'!$G$132:$K$171,5,FALSE) -> WF-5 | B44: =VLOOKUP(C44,'Control Panel'!$A$85:$F$124,2,FALSE) -> Kiyani Medical Practice | C44: F86701 | D44: 4010 | E44: 7 | F44: 7 | G44: 1 | H44: 7 | I44: 1 | J44: 7 | K44: 1 | M44: =SUMIFS(OFFSET(REL_D,,MATCH($M$5,IND,0)-1),REL_D,$C$5,OrgID,$C44) -> 7 | N44: 1 | P44: 7 | Q44: 1
A45: =VLOOKUP(C45,'Control Panel'!$G$132:$K$171,5,FALSE) -> WF-5 | B45: =VLOOKUP(C45,'Control Panel'!$A$85:$F$124,2,FALSE) -> LL Medical Care (Agarwal & Agrwal Practice) | C45: F86625 | D45: 5726 | E45: 18 | F45: 16 | G45: 0.8888888889 | H45: 15 | I45: 0.8333333333 | J45: 11 | K45: 0.6111111111 | L45: 7 | M45: =SUMIFS(OFFSET(REL_D,,MATCH($M$5,IND,0)-1),REL_D,$C$5,OrgID,$C45) -> 11 | N45: 0.6111111111 | O45: 7 | P45: 15 | Q45: 0.8333333333
A46: =VLOOKUP(C46,'Control Panel'!$G$132:$K$171,5,FALSE) -> WF-5 | B46: =VLOOKUP(C46,'Control Panel'!$A$85:$F$124,2,FALSE) -> The Harrow Road Surgery | C46: F86666 | D46: 14945 | E46: 34 | F46: 28 | G46: 0.8235294118 | H46: 27 | I46: 0.7941176471 | J46: 26 | K46: 0.7647058824 | L46: 7 | M46: =SUMIFS(OFFSET(REL_D,,MATCH($M$5,IND,0)-1),REL_D,$C$5,OrgID,$C46) -> 25 | N46: 0.7352941176 | O46: 8 | P46: 29 | Q46: 0.8529411765
A47: =VLOOKUP(C47,'Control Panel'!$G$132:$K$171,5,FALSE) -> WF-5 | B47: =VLOOKUP(C47,'Control Panel'!$A$85:$F$124,2,FALSE) -> The Langthorne Sharma Family Practice | C47: F86705 | D47: 3447 | E47: 8 | F47: 6 | G47: 0.75 | H47: 6 | I47: 0.75 | J47: 6 | K47: 0.75 | L47: 2 | M47: =SUMIFS(OFFSET(REL_D,,MATCH($M$5,IND,0)-1),REL_D,$C$5,OrgID,$C47) -> 6 | N47: 0.75 | O47: 2 | P47: 6 | Q47: 0.75
A48: =VLOOKUP(C48,'Control Panel'!$G$132:$K$171,5,FALSE) -> WF-6 | B48: =VLOOKUP(C48,'Control Panel'!$A$85:$F$124,2,FALSE) -> Addison Road Medical Practice | C48: F86607 | D48: 16152 | E48: 49 | F48: 44 | G48: 0.8979591837 | H48: 42 | I48: 0.8571428571 | J48: 41 | K48: 0.8367346939 | L48: 6 | M48: =SUMIFS(OFFSET(REL_D,,MATCH($M$5,IND,0)-1),REL_D,$C$5,OrgID,$C48) -> 40 | N48: 0.8163265306 | O48: 7 | P48: 43 | Q48: 0.8775510204
A49: =VLOOKUP(C49,'Control Panel'!$G$132:$K$171,5,FALSE) -> WF-6 | B49: =VLOOKUP(C49,'Control Panel'!$A$85:$F$124,2,FALSE) -> Claremont Medical Centre | C49: F86708 | D49: 2843 | E49: 7 | F49: 6 | G49: 0.8571428571 | H49: 6 | I49: 0.8571428571 | J49: 5 | K49: 0.7142857143 | L49: 2 | M49: =SUMIFS(OFFSET(REL_D,,MATCH($M$5,IND,0)-1),REL_D,$C$5,OrgID,$C49) -> 5 | N49: 0.7142857143 | O49: 2 | P49: 5 | Q49: 0.7142857143
A50: =VLOOKUP(C50,'Control Panel'!$G$132:$K$171,5,FALSE) -> WF-6 | B50: =VLOOKUP(C50,'Control Panel'!$A$85:$F$124,2,FALSE) -> The Firs | C50: F86001 | D50: 8444 | E50: 17 | F50: 12 | G50: 0.7058823529 | H50: 10 | I50: 0.5882352941 | J50: 10 | K50: 0.5882352941 | L50: 7 | M50: =SUMIFS(OFFSET(REL_D,,MATCH($M$5,IND,0)-1),REL_D,$C$5,OrgID,$C50) -> 10 | N50: 0.5882352941 | O50: 7 | P50: 10 | Q50: 0.5882352941
A51: =VLOOKUP(C51,'Control Panel'!$G$132:$K$171,5,FALSE) -> WF-6 | B51: =VLOOKUP(C51,'Control Panel'!$A$85:$F$124,2,FALSE) -> Dr Dhital Practice | C51: F86086 | D51: 6398 | E51: 24 | F51: 22 | G51: 0.9166666667 | H51: 23 | I51: 0.9583333333 | J51: 18 | K51: 0.75 | L51: 5 | M51: =SUMIFS(OFFSET(REL_D,,MATCH($M$5,IND,0)-1),REL_D,$C$5,OrgID,$C51) -> 18 | N51: 0.75 | O51: 5 | P51: 23 | Q51: 0.9583333333
A52: =VLOOKUP(C52,'Control Panel'!$G$132:$K$171,5,FALSE) -> WF-6 | B52: =VLOOKUP(C52,'Control Panel'!$A$85:$F$124,2,FALSE) -> Waltham Forest Community & Family Health Services Ltd | C52: F86644 | D52: 9083 | E52: 18 | F52: 17 | G52: 0.9444444444 | H52: 17 | I52: 0.9444444444 | J52: 15 | K52: 0.8333333333 | L52: 3 | M52: =SUMIFS(OFFSET(REL_D,,MATCH($M$5,IND,0)-1),REL_D,$C$5,OrgID,$C52) -> 15 | N52: 0.8333333333 | O52: 3 | P52: 16 | Q52: 0.8888888889
A53: =VLOOKUP(C53,'Control Panel'!$G$132:$K$171,5,FALSE) -> WF-7 | B53: =VLOOKUP(C53,'Control Panel'!$A$85:$F$124,2,FALSE) -> Seymour Medical centre | C53: F86006 | D53: 7082 | E53: 18 | F53: 16 | G53: 0.8888888889 | H53: 15 | I53: 0.8333333333 | J53: 15 | K53: 0.8333333333 | L53: 3 | M53: =SUMIFS(OFFSET(REL_D,,MATCH($M$5,IND,0)-1),REL_D,$C$5,OrgID,$C53) -> 15 | N53: 0.8333333333 | O53: 3 | P53: 15 | Q53: 0.8333333333
A54: =VLOOKUP(C54,'Control Panel'!$G$132:$K$171,5,FALSE) -> WF-7 | B54: =VLOOKUP(C54,'Control Panel'!$A$85:$F$124,2,FALSE) -> Queens Road Medical Centre | C54: F86030 | D54: 8280 | E54: 16 | F54: 16 | G54: 1 | H54: 15 | I54: 0.9375 | J54: 14 | K54: 0.875 | L54: 2 | M54: =SUMIFS(OFFSET(REL_D,,MATCH($M$5,IND,0)-1),REL_D,$C$5,OrgID,$C54) -> 14 | N54: 0.875 | O54: 2 | P54: 15 | Q54: 0.9375
A55: =VLOOKUP(C55,'Control Panel'!$G$132:$K$171,5,FALSE) -> WF-7 | B55: =VLOOKUP(C55,'Control Panel'!$A$85:$F$124,2,FALSE) -> The Grove Road Medical Centre | C55: F86062 | D55: 7220 | E55: 13 | F55: 12 | G55: 0.9230769231 | H55: 13 | I55: 1 | J55: 11 | K55: 0.8461538462 | L55: 2 | M55: =SUMIFS(OFFSET(REL_D,,MATCH($M$5,IND,0)-1),REL_D,$C$5,OrgID,$C55) -> 11 | N55: 0.8461538462 | O55: 2 | P55: 12 | Q55: 0.9230769231
A56: =VLOOKUP(C56,'Control Panel'!$G$132:$K$171,5,FALSE) -> WF-7 | B56: =VLOOKUP(C56,'Control Panel'!$A$85:$F$124,2,FALSE) -> Higham Hill Medical Centre | C56: F86679 | D56: 6412 | E56: 13 | F56: 12 | G56: 0.9230769231 | H56: 13 | I56: 1 | J56: 11 | K56: 0.8461538462 | L56: 2 | M56: =SUMIFS(OFFSET(REL_D,,MATCH($M$5,IND,0)-1),REL_D,$C$5,OrgID,$C56) -> 12 | N56: 0.9230769231 | O56: 1 | P56: 13 | Q56: 1
A57: =VLOOKUP(C57,'Control Panel'!$G$132:$K$171,5,FALSE) -> WF-7 | B57: =VLOOKUP(C57,'Control Panel'!$A$85:$F$124,2,FALSE) -> St James Medical Practice Ltd | C57: F86058 | D57: 15867 | E57: 42 | F57: 41 | G57: 0.9761904762 | H57: 39 | I57: 0.9285714286 | J57: 34 | K57: 0.8095238095 | L57: 6 | M57: =SUMIFS(OFFSET(REL_D,,MATCH($M$5,IND,0)-1),REL_D,$C$5,OrgID,$C57) -> 36 | N57: 0.8571428571 | O57: 4 | P57: 38 | Q57: 0.9047619048

Sheet Trending
D1: Waltham Forest - Childhood Immunisations | M1: ="'"&K3&"'!$C$9:$AT$71" -> '1st April 2016'!$C$9:$AT$71
G2: Waltham Forest
B3: 2015/16 Q1 | C3: =VLOOKUP(D3,'Control Panel'!J77:K119,2,FALSE) -> Total | D3: =VLOOKUP(G2,'Control Panel'!I77:J119,2,FALSE) -> Total | E3: =IF(D3="Total",TRUE,IF(LEFT($C$3,1)="*",TRUE,FALSE)) -> TRUE | F3: =IF(D3="Total","WF",D3) -> WF | G3: FHV | K3: 1st April 2016
G4: Patient becoming 12m | H4: Control Panel'!J34:J36
B6: =INDEX(INDIRECT(VLOOKUP($G$4,'Control Panel'!$J$41:$K$43,2,FALSE)),COLUMN(Rows!A1)) -> (01) 12 MONTH COHORT | C6: =INDEX(INDIRECT(VLOOKUP($G$4,'Control Panel'!$J$41:$K$43,2,FALSE)),COLUMN(Rows!B1)) -> (01.01) DTaP/IPV/Hib 6in1 | D6: =INDEX(INDIRECT(VLOOKUP($G$4,'Control Panel'!$J$41:$K$43,2,FALSE)),COLUMN(Rows!C1)) -> (01.02) Men B (1st and 2nd) | E6: =INDEX(INDIRECT(VLOOKUP($G$4,'Control Panel'!$J$41:$K$43,2,FALSE)),COLUMN(Rows!D1)) -> (01.03) PCV
A7: Time Stamp | B7: =IFERROR(INDEX(INDIRECT(VLOOKUP($G$4,'Control Panel'!$J$36:$L$38,3,FALSE)),COLUMN(Rows!B17)),"") -> DTaP/IPV/Hib % | C7: =IFERROR(INDEX(INDIRECT(VLOOKUP($G$4,'Control Panel'!$J$36:$L$38,3,FALSE)),COLUMN(Rows!C17)),"") -> Men C / Men B % | D7: =IFERROR(INDEX(INDIRECT(VLOOKUP($G$4,'Control Panel'!$J$36:$L$38,3,FALSE)),COLUMN(Rows!D17)),"") -> PCV %
A8: 2019/20 Q1 | B8: =IFERROR(C56/B56,"") -> 0.86 | C8: =IFERROR(D56/B56,"") -> 0.8578947368 | D8: =IFERROR(E56/B56,NA()) -> 0.8757894737
A9: 2019/20 Q2 | B9: =IFERROR(C57/B57,"") -> 0.8812691914 | C9: =IFERROR(D57/B57,"") -> 0.8700102354 | D9: =IFERROR(E57/B57,NA()) -> 0.8863868987
A10: 2019/20 Q3 | B10: 0.885177453 | C10: 0.8903966597 | D10: 0.8997912317
A11: 2019/20 Q4 | B11: 0.8951048951 | C11: 0.8869463869 | D11: 0.8997668998
A12: 2020/21 Q1 | B12: 0.8981972428 | C12: 0.8907741251 | D12: 0.9098621421
A13: 2020/21 Q2 | B13: 0.8780487805 | C13: 0.8813747228 | D13: 0.8924611973
A14: 2020/21 Q3 | B14: 0.8648648649 | C14: 0.8648648649 | D14: 0.8432432432
A15: 2020/21 Q4 | B15: 0.8691037736 | C15: 0.8691037736 | D15: 0.9115566038
A16: 2021/22 Q1 | B16: 0.8489278752 | C16: 0.8479532164 | D16: 0.8723196881
A17: 2021/22 Q2 | B17: 0.867967853 | C17: 0.8576349024 | D17: 0.8920780712
A18: 2021/22 Q3 | B18: 0.9070904645 | C18: 0.8936430318 | D18: 0.9205378973
A19: 2021/22 Q4 | B19: 0.8924598269 | C19: 0.8850432633 | D19: 0.9245982695
A20: 2022/23 Q1 | B20: 0.9009803922 | C20: 0.8892156863 | D20: 0.918627451
A21: 2022/23 Q2 | B21: 0.8987929434 | C21: 0.8857938719 | D21: 0.9025069638
A22: 2022/23 Q3 | B22: 0.9071146245 | C22: 0.8982213439 | D22: 0.9367588933
A23: 2022/23 Q4 | B23: =IFERROR(C71/B71,"") -> 0.8864628821 | C23: =IFERROR(D71/B71,"") -> 0.8679039301 | D23: =IFERROR(E71/B71,NA()) -> 0.9246724891
B24: =IFERROR(C75/B75,"") ->  | C24: =IFERROR(D75/B75,"") ->  | D24: =IFERROR(E75/B75,NA()) -> 
B35: =IFERROR(C86/B86,"") ->  | C35: =IFERROR(D86/B86,"") ->  | D35: =IFERROR(E86/B86,NA()) -> 
B36: =IFERROR(C87/B87,"") ->  | C36: =IFERROR(D87/B87,"") ->  | D36: =IFERROR(E87/B87,NA()) -> 
B37: =IFERROR(C88/B88,"") ->  | C37: =IFERROR(D88/B88,"") ->  | D37: =IFERROR(E88/B88,NA()) -> 
B38: =IFERROR(C89/B89,"") ->  | C38: =IFERROR(D89/B89,"") ->  | D38: =IFERROR(E89/B89,NA()) -> 
B39: =IFERROR(C90/B90,"") ->  | C39: =IFERROR(D90/B90,"") ->  | D39: =IFERROR(E90/B90,NA()) -> 
B40: =IFERROR(C91/B91,"") ->  | C40: =IFERROR(D91/B91,"") ->  | D40: =IFERROR(E91/B91,NA()) -> 
B41: =IFERROR(C92/B92,"") ->  | C41: =IFERROR(D92/B92,"") ->  | D41: =IFERROR(E92/B92,NA()) -> 
B42: =IFERROR(C93/B93,"") ->  | C42: =IFERROR(D93/B93,"") ->  | D42: =IFERROR(E93/B93,NA()) ->  | E42: =IFERROR(SUMIFS(OFFSET(REL_D,,MATCH($E$6,IND,0)-1),REL_D,$A29,IF(LEFT($D$3,1)="W",NwID,OrgID),$D$3),"") -> 0
B43: =IFERROR(C94/B94,"") ->  | C43: =IFERROR(D94/B94,"") ->  | D43: =IFERROR(E94/B94,NA()) -> 
A47: 2019-04-01 | B47: =SUMIFS(OFFSET(REL_D,,MATCH($B$6,IND,0)-1),REL_D,$A47,IF($E$3,NwID,OrgID),$F$3) -> 0 | C47: =SUMIFS(OFFSET(REL_D,,MATCH($C$6,IND,0)-1),REL_D,$A47,IF($E$3,NwID,OrgID),$F$3) -> 0 | D47: =SUMIFS(OFFSET(REL_D,,MATCH($D$6,IND,0)-1),REL_D,$A47,IF($E$3,NwID,OrgID),$F$3) -> 0 | E47: =SUMIFS(OFFSET(REL_D,,MATCH($E$6,IND,0)-1),REL_D,$A47,IF($E$3,NwID,OrgID),$F$3) -> 0
A48: 2019-05-01 | B48: =SUMIFS(OFFSET(REL_D,,MATCH($B$6,IND,0)-1),REL_D,$A48,IF($E$3,NwID,OrgID),$F$3) -> 0 | C48: =SUMIFS(OFFSET(REL_D,,MATCH($C$6,IND,0)-1),REL_D,$A48,IF($E$3,NwID,OrgID),$F$3) -> 0 | D48: =SUMIFS(OFFSET(REL_D,,MATCH($D$6,IND,0)-1),REL_D,$A48,IF($E$3,NwID,OrgID),$F$3) -> 0 | E48: =SUMIFS(OFFSET(REL_D,,MATCH($E$6,IND,0)-1),REL_D,$A48,IF($E$3,NwID,OrgID),$F$3) -> 0
A49: 2019-06-01 | B49: =SUMIFS(OFFSET(REL_D,,MATCH($B$6,IND,0)-1),REL_D,$A49,IF($E$3,NwID,OrgID),$F$3) -> 0 | C49: =SUMIFS(OFFSET(REL_D,,MATCH($C$6,IND,0)-1),REL_D,$A49,IF($E$3,NwID,OrgID),$F$3) -> 0 | D49: =SUMIFS(OFFSET(REL_D,,MATCH($D$6,IND,0)-1),REL_D,$A49,IF($E$3,NwID,OrgID),$F$3) -> 0 | E49: =SUMIFS(OFFSET(REL_D,,MATCH($E$6,IND,0)-1),REL_D,$A49,IF($E$3,NwID,OrgID),$F$3) -> 0
A50: 2019-07-01 | B50: =SUMIFS(OFFSET(REL_D,,MATCH($B$6,IND,0)-1),REL_D,$A50,IF($E$3,NwID,OrgID),$F$3) -> 0 | C50: =SUMIFS(OFFSET(REL_D,,MATCH($C$6,IND,0)-1),REL_D,$A50,IF($E$3,NwID,OrgID),$F$3) -> 0 | D50: =SUMIFS(OFFSET(REL_D,,MATCH($D$6,IND,0)-1),REL_D,$A50,IF($E$3,NwID,OrgID),$F$3) -> 0 | E50: =SUMIFS(OFFSET(REL_D,,MATCH($E$6,IND,0)-1),REL_D,$A50,IF($E$3,NwID,OrgID),$F$3) -> 0
A51: 2019-08-01 | B51: =SUMIFS(OFFSET(REL_D,,MATCH($B$6,IND,0)-1),REL_D,$A51,IF($E$3,NwID,OrgID),$F$3) -> 0 | C51: =SUMIFS(OFFSET(REL_D,,MATCH($C$6,IND,0)-1),REL_D,$A51,IF($E$3,NwID,OrgID),$F$3) -> 0 | D51: =SUMIFS(OFFSET(REL_D,,MATCH($D$6,IND,0)-1),REL_D,$A51,IF($E$3,NwID,OrgID),$F$3) -> 0 | E51: =SUMIFS(OFFSET(REL_D,,MATCH($E$6,IND,0)-1),REL_D,$A51,IF($E$3,NwID,OrgID),$F$3) -> 0
A52: 2019-09-01 | B52: =SUMIFS(OFFSET(REL_D,,MATCH($B$6,IND,0)-1),REL_D,$A52,IF($E$3,NwID,OrgID),$F$3) -> 0 | C52: =SUMIFS(OFFSET(REL_D,,MATCH($C$6,IND,0)-1),REL_D,$A52,IF($E$3,NwID,OrgID),$F$3) -> 0 | D52: =SUMIFS(OFFSET(REL_D,,MATCH($D$6,IND,0)-1),REL_D,$A52,IF($E$3,NwID,OrgID),$F$3) -> 0 | E52: =SUMIFS(OFFSET(REL_D,,MATCH($E$6,IND,0)-1),REL_D,$A52,IF($E$3,NwID,OrgID),$F$3) -> 0
A53: 2019-10-01 | B53: =SUMIFS(OFFSET(REL_D,,MATCH($B$6,IND,0)-1),REL_D,$A53,IF($E$3,NwID,OrgID),$F$3) -> 0 | C53: =SUMIFS(OFFSET(REL_D,,MATCH($C$6,IND,0)-1),REL_D,$A53,IF($E$3,NwID,OrgID),$F$3) -> 0 | D53: =SUMIFS(OFFSET(REL_D,,MATCH($D$6,IND,0)-1),REL_D,$A53,IF($E$3,NwID,OrgID),$F$3) -> 0 | E53: =SUMIFS(OFFSET(REL_D,,MATCH($E$6,IND,0)-1),REL_D,$A53,IF($E$3,NwID,OrgID),$F$3) -> 0
A54: 2019-11-01 | B54: =SUMIFS(OFFSET(REL_D,,MATCH($B$6,IND,0)-1),REL_D,$A54,IF($E$3,NwID,OrgID),$F$3) -> 0 | C54: =SUMIFS(OFFSET(REL_D,,MATCH($C$6,IND,0)-1),REL_D,$A54,IF($E$3,NwID,OrgID),$F$3) -> 0 | D54: =SUMIFS(OFFSET(REL_D,,MATCH($D$6,IND,0)-1),REL_D,$A54,IF($E$3,NwID,OrgID),$F$3) -> 0 | E54: =SUMIFS(OFFSET(REL_D,,MATCH($E$6,IND,0)-1),REL_D,$A54,IF($E$3,NwID,OrgID),$F$3) -> 0
A55: 2019-12-01 | B55: =SUMIFS(OFFSET(REL_D,,MATCH($B$6,IND,0)-1),REL_D,$A55,IF($E$3,NwID,OrgID),$F$3) -> 0 | C55: =SUMIFS(OFFSET(REL_D,,MATCH($C$6,IND,0)-1),REL_D,$A55,IF($E$3,NwID,OrgID),$F$3) -> 0 | D55: =SUMIFS(OFFSET(REL_D,,MATCH($D$6,IND,0)-1),REL_D,$A55,IF($E$3,NwID,OrgID),$F$3) -> 0 | E55: =SUMIFS(OFFSET(REL_D,,MATCH($E$6,IND,0)-1),REL_D,$A55,IF($E$3,NwID,OrgID),$F$3) -> 0
A56: 2019-06-01 | B56: =SUMIFS(OFFSET(REL_D,,MATCH($B$6,IND,0)-1),REL_D,$A56,IF(LEFT($D$3,1)="W",NwID,OrgID),$D$3) -> 950 | C56: =SUMIFS(OFFSET(REL_D,,MATCH($C$6,IND,0)-1),REL_D,$A56,IF(LEFT($D$3,1)="W",NwID,OrgID),$D$3) -> 817 | D56: =SUMIFS(OFFSET(REL_D,,MATCH($D$6,IND,0)-1),REL_D,$A56,IF(LEFT($D$3,1)="W",NwID,OrgID),$D$3) -> 815 | E56: =SUMIFS(OFFSET(REL_D,,MATCH($E$6,IND,0)-1),REL_D,$A56,IF(LEFT($D$3,1)="W",NwID,OrgID),$D$3) -> 832
A57: 2019-09-01 | B57: =SUMIFS(OFFSET(REL_D,,MATCH($B$6,IND,0)-1),REL_D,$A57,IF(LEFT($D$3,1)="W",NwID,OrgID),$D$3) -> 977 | C57: =SUMIFS(OFFSET(REL_D,,MATCH($C$6,IND,0)-1),REL_D,$A57,IF(LEFT($D$3,1)="W",NwID,OrgID),$D$3) -> 861 | D57: =SUMIFS(OFFSET(REL_D,,MATCH($D$6,IND,0)-1),REL_D,$A57,IF(LEFT($D$3,1)="W",NwID,OrgID),$D$3) -> 850 | E57: =SUMIFS(OFFSET(REL_D,,MATCH($E$6,IND,0)-1),REL_D,$A57,IF(LEFT($D$3,1)="W",NwID,OrgID),$D$3) -> 866
A58: 2019-12-01 | B58: =SUMIFS(OFFSET(REL_D,,MATCH($B$6,IND,0)-1),REL_D,$A58,IF(LEFT($D$3,1)="W",NwID,OrgID),$D$3) -> 958 | C58: =SUMIFS(OFFSET(REL_D,,MATCH($C$6,IND,0)-1),REL_D,$A58,IF(LEFT($D$3,1)="W",NwID,OrgID),$D$3) -> 848 | D58: =SUMIFS(OFFSET(REL_D,,MATCH($D$6,IND,0)-1),REL_D,$A58,IF(LEFT($D$3,1)="W",NwID,OrgID),$D$3) -> 853 | E58: =SUMIFS(OFFSET(REL_D,,MATCH($E$6,IND,0)-1),REL_D,$A58,IF(LEFT($D$3,1)="W",NwID,OrgID),$D$3) -> 862
A59: 2020-03-01 | B59: =SUMIFS(OFFSET(REL_D,,MATCH($B$6,IND,0)-1),REL_D,$A59,IF(LEFT($D$3,1)="W",NwID,OrgID),$D$3) -> 858 | C59: =SUMIFS(OFFSET(REL_D,,MATCH($C$6,IND,0)-1),REL_D,$A59,IF(LEFT($D$3,1)="W",NwID,OrgID),$D$3) -> 768 | D59: =SUMIFS(OFFSET(REL_D,,MATCH($D$6,IND,0)-1),REL_D,$A59,IF(LEFT($D$3,1)="W",NwID,OrgID),$D$3) -> 761 | E59: =SUMIFS(OFFSET(REL_D,,MATCH($E$6,IND,0)-1),REL_D,$A59,IF(LEFT($D$3,1)="W",NwID,OrgID),$D$3) -> 772
A60: 2020-06-01 | B60: =SUMIFS(OFFSET(REL_D,,MATCH($B$6,IND,0)-1),REL_D,$A60,IF(LEFT($D$3,1)="W",NwID,OrgID),$D$3) -> 943 | C60: =SUMIFS(OFFSET(REL_D,,MATCH($C$6,IND,0)-1),REL_D,$A60,IF(LEFT($D$3,1)="W",NwID,OrgID),$D$3) -> 847 | D60: =SUMIFS(OFFSET(REL_D,,MATCH($D$6,IND,0)-1),REL_D,$A60,IF(LEFT($D$3,1)="W",NwID,OrgID),$D$3) -> 840 | E60: =SUMIFS(OFFSET(REL_D,,MATCH($E$6,IND,0)-1),REL_D,$A60,IF(LEFT($D$3,1)="W",NwID,OrgID),$D$3) -> 858
A61: 2020-09-01 | B61: =SUMIFS(OFFSET(REL_D,,MATCH($B$6,IND,0)-1),REL_D,$A61,IF(LEFT($D$3,1)="W",NwID,OrgID),$D$3) -> 902 | C61: =SUMIFS(OFFSET(REL_D,,MATCH($C$6,IND,0)-1),REL_D,$A61,IF(LEFT($D$3,1)="W",NwID,OrgID),$D$3) -> 792 | D61: =SUMIFS(OFFSET(REL_D,,MATCH($D$6,IND,0)-1),REL_D,$A61,IF(LEFT($D$3,1)="W",NwID,OrgID),$D$3) -> 795 | E61: =SUMIFS(OFFSET(REL_D,,MATCH($E$6,IND,0)-1),REL_D,$A61,IF(LEFT($D$3,1)="W",NwID,OrgID),$D$3) -> 805
A62: 2020-12-01 | B62: =SUMIFS(OFFSET(REL_D,,MATCH($B$6,IND,0)-1),REL_D,$A62,IF(LEFT($D$3,1)="W",NwID,OrgID),$D$3) -> 925 | C62: =SUMIFS(OFFSET(REL_D,,MATCH($C$6,IND,0)-1),REL_D,$A62,IF(LEFT($D$3,1)="W",NwID,OrgID),$D$3) -> 800 | D62: =SUMIFS(OFFSET(REL_D,,MATCH($D$6,IND,0)-1),REL_D,$A62,IF(LEFT($D$3,1)="W",NwID,OrgID),$D$3) -> 800 | E62: =SUMIFS(OFFSET(REL_D,,MATCH($E$6,IND,0)-1),REL_D,$A62,IF(LEFT($D$3,1)="W",NwID,OrgID),$D$3) -> 780
A63: 2021-03-01 | B63: =SUMIFS(OFFSET(REL_D,,MATCH($B$6,IND,0)-1),REL_D,$A63,IF(LEFT($D$3,1)="W",NwID,OrgID),$D$3) -> 848 | C63: =SUMIFS(OFFSET(REL_D,,MATCH($C$6,IND,0)-1),REL_D,$A63,IF(LEFT($D$3,1)="W",NwID,OrgID),$D$3) -> 737 | D63: =SUMIFS(OFFSET(REL_D,,MATCH($D$6,IND,0)-1),REL_D,$A63,IF(LEFT($D$3,1)="W",NwID,OrgID),$D$3) -> 737 | E63: =SUMIFS(OFFSET(REL_D,,MATCH($E$6,IND,0)-1),REL_D,$A63,IF(LEFT($D$3,1)="W",NwID,OrgID),$D$3) -> 773
A64: 2021-06-01 | B64: =SUMIFS(OFFSET(REL_D,,MATCH($B$6,IND,0)-1),REL_D,$A64,IF(LEFT($D$3,1)="W",NwID,OrgID),$D$3) -> 1026 | C64: =SUMIFS(OFFSET(REL_D,,MATCH($C$6,IND,0)-1),REL_D,$A64,IF(LEFT($D$3,1)="W",NwID,OrgID),$D$3) -> 871 | D64: =SUMIFS(OFFSET(REL_D,,MATCH($D$6,IND,0)-1),REL_D,$A64,IF(LEFT($D$3,1)="W",NwID,OrgID),$D$3) -> 870 | E64: =SUMIFS(OFFSET(REL_D,,MATCH($E$6,IND,0)-1),REL_D,$A64,IF(LEFT($D$3,1)="W",NwID,OrgID),$D$3) -> 895
A65: 2021-09-01 | B65: =SUMIFS(OFFSET(REL_D,,MATCH($B$6,IND,0)-1),REL_D,$A65,IF(LEFT($D$3,1)="W",NwID,OrgID),$D$3) -> 871 | C65: =SUMIFS(OFFSET(REL_D,,MATCH($C$6,IND,0)-1),REL_D,$A65,IF(LEFT($D$3,1)="W",NwID,OrgID),$D$3) -> 756 | D65: =SUMIFS(OFFSET(REL_D,,MATCH($D$6,IND,0)-1),REL_D,$A65,IF(LEFT($D$3,1)="W",NwID,OrgID),$D$3) -> 747 | E65: =SUMIFS(OFFSET(REL_D,,MATCH($E$6,IND,0)-1),REL_D,$A65,IF(LEFT($D$3,1)="W",NwID,OrgID),$D$3) -> 777
A66: 2021-12-01 | B66: =SUMIFS(OFFSET(REL_D,,MATCH($B$6,IND,0)-1),REL_D,$A66,IF(LEFT($D$3,1)="W",NwID,OrgID),$D$3) -> 818 | C66: =SUMIFS(OFFSET(REL_D,,MATCH($C$6,IND,0)-1),REL_D,$A66,IF(LEFT($D$3,1)="W",NwID,OrgID),$D$3) -> 742 | D66: =SUMIFS(OFFSET(REL_D,,MATCH($D$6,IND,0)-1),REL_D,$A66,IF(LEFT($D$3,1)="W",NwID,OrgID),$D$3) -> 731 | E66: =SUMIFS(OFFSET(REL_D,,MATCH($E$6,IND,0)-1),REL_D,$A66,IF(LEFT($D$3,1)="W",NwID,OrgID),$D$3) -> 753
A67: 2022-03-01 | B67: =SUMIFS(OFFSET(REL_D,,MATCH($B$6,IND,0)-1),REL_D,$A67,IF(LEFT($D$3,1)="W",NwID,OrgID),$D$3) -> 809 | C67: =SUMIFS(OFFSET(REL_D,,MATCH($C$6,IND,0)-1),REL_D,$A67,IF(LEFT($D$3,1)="W",NwID,OrgID),$D$3) -> 722 | D67: =SUMIFS(OFFSET(REL_D,,MATCH($D$6,IND,0)-1),REL_D,$A67,IF(LEFT($D$3,1)="W",NwID,OrgID),$D$3) -> 716 | E67: =SUMIFS(OFFSET(REL_D,,MATCH($E$6,IND,0)-1),REL_D,$A67,IF(LEFT($D$3,1)="W",NwID,OrgID),$D$3) -> 748
A68: 2022-06-01 | B68: =SUMIFS(OFFSET(REL_D,,MATCH($B$6,IND,0)-1),REL_D,$A68,IF(LEFT($D$3,1)="W",NwID,OrgID),$D$3) -> 1020 | C68: =SUMIFS(OFFSET(REL_D,,MATCH($C$6,IND,0)-1),REL_D,$A68,IF(LEFT($D$3,1)="W",NwID,OrgID),$D$3) -> 919 | D68: =SUMIFS(OFFSET(REL_D,,MATCH($D$6,IND,0)-1),REL_D,$A68,IF(LEFT($D$3,1)="W",NwID,OrgID),$D$3) -> 907 | E68: =SUMIFS(OFFSET(REL_D,,MATCH($E$6,IND,0)-1),REL_D,$A68,IF(LEFT($D$3,1)="W",NwID,OrgID),$D$3) -> 937
A69: 2022-09-01 | B69: =SUMIFS(OFFSET(REL_D,,MATCH($B$6,IND,0)-1),REL_D,$A69,IF(LEFT($D$3,1)="W",NwID,OrgID),$D$3) -> 1077 | C69: =SUMIFS(OFFSET(REL_D,,MATCH($C$6,IND,0)-1),REL_D,$A69,IF(LEFT($D$3,1)="W",NwID,OrgID),$D$3) -> 968 | D69: =SUMIFS(OFFSET(REL_D,,MATCH($D$6,IND,0)-1),REL_D,$A69,IF(LEFT($D$3,1)="W",NwID,OrgID),$D$3) -> 954 | E69: =SUMIFS(OFFSET(REL_D,,MATCH($E$6,IND,0)-1),REL_D,$A69,IF(LEFT($D$3,1)="W",NwID,OrgID),$D$3) -> 972
A70: 2022-12-01 | B70: =SUMIFS(OFFSET(REL_D,,MATCH($B$6,IND,0)-1),REL_D,$A70,IF(LEFT($D$3,1)="W",NwID,OrgID),$D$3) -> 1012 | C70: =SUMIFS(OFFSET(REL_D,,MATCH($C$6,IND,0)-1),REL_D,$A70,IF(LEFT($D$3,1)="W",NwID,OrgID),$D$3) -> 918 | D70: =SUMIFS(OFFSET(REL_D,,MATCH($D$6,IND,0)-1),REL_D,$A70,IF(LEFT($D$3,1)="W",NwID,OrgID),$D$3) -> 909 | E70: =SUMIFS(OFFSET(REL_D,,MATCH($E$6,IND,0)-1),REL_D,$A70,IF(LEFT($D$3,1)="W",NwID,OrgID),$D$3) -> 948
A71: 2023-03-01 | B71: =SUMIFS(OFFSET(REL_D,,MATCH($B$6,IND,0)-1),REL_D,$A71,IF(LEFT($D$3,1)="W",NwID,OrgID),$D$3) -> 916 | C71: =SUMIFS(OFFSET(REL_D,,MATCH($C$6,IND,0)-1),REL_D,$A71,IF(LEFT($D$3,1)="W",NwID,OrgID),$D$3) -> 812 | D71: =SUMIFS(OFFSET(REL_D,,MATCH($D$6,IND,0)-1),REL_D,$A71,IF(LEFT($D$3,1)="W",NwID,OrgID),$D$3) -> 795 | E71: =SUMIFS(OFFSET(REL_D,,MATCH($E$6,IND,0)-1),REL_D,$A71,IF(LEFT($D$3,1)="W",NwID,OrgID),$D$3) -> 847
B72: =SUMIFS(OFFSET(REL_D,,MATCH($B$6,IND,0)-1),REL_D,$A72,IF($E$3,NwID,OrgID),$F$3) -> 0 | C72: =SUMIFS(OFFSET(REL_D,,MATCH($C$6,IND,0)-1),REL_D,$A72,IF($E$3,NwID,OrgID),$F$3) -> 0 | D72: =SUMIFS(OFFSET(REL_D,,MATCH($D$6,IND,0)-1),REL_D,$A72,IF($E$3,NwID,OrgID),$F$3) -> 0 | E72: =SUMIFS(OFFSET(REL_D,,MATCH($E$6,IND,0)-1),REL_D,$A72,IF($E$3,NwID,OrgID),$F$3) -> 0
B73: =SUMIFS(OFFSET(REL_D,,MATCH($B$6,IND,0)-1),REL_D,$A73,IF($E$3,NwID,OrgID),$F$3) -> 0 | C73: =SUMIFS(OFFSET(REL_D,,MATCH($C$6,IND,0)-1),REL_D,$A73,IF($E$3,NwID,OrgID),$F$3) -> 0 | D73: =SUMIFS(OFFSET(REL_D,,MATCH($D$6,IND,0)-1),REL_D,$A73,IF($E$3,NwID,OrgID),$F$3) -> 0 | E73: =SUMIFS(OFFSET(REL_D,,MATCH($E$6,IND,0)-1),REL_D,$A73,IF($E$3,NwID,OrgID),$F$3) -> 0
B74: =SUMIFS(OFFSET(REL_D,,MATCH($B$6,IND,0)-1),REL_D,$A74,IF($E$3,NwID,OrgID),$F$3) -> 0 | C74: =SUMIFS(OFFSET(REL_D,,MATCH($C$6,IND,0)-1),REL_D,$A74,IF($E$3,NwID,OrgID),$F$3) -> 0 | D74: =SUMIFS(OFFSET(REL_D,,MATCH($D$6,IND,0)-1),REL_D,$A74,IF($E$3,NwID,OrgID),$F$3) -> 0 | E74: =SUMIFS(OFFSET(REL_D,,MATCH($E$6,IND,0)-1),REL_D,$A74,IF($E$3,NwID,OrgID),$F$3) -> 0
B75: =SUMIFS(OFFSET(REL_D,,MATCH($B$6,IND,0)-1),REL_D,$A75,IF($E$3,NwID,OrgID),$F$3) -> 0 | C75: =SUMIFS(OFFSET(REL_D,,MATCH($C$6,IND,0)-1),REL_D,$A75,IF($E$3,NwID,OrgID),$F$3) -> 0 | D75: =SUMIFS(OFFSET(REL_D,,MATCH($D$6,IND,0)-1),REL_D,$A75,IF($E$3,NwID,OrgID),$F$3) -> 0 | E75: =SUMIFS(OFFSET(REL_D,,MATCH($E$6,IND,0)-1),REL_D,$A75,IF($E$3,NwID,OrgID),$F$3) -> 0
B76: =SUMIFS(OFFSET(REL_D,,MATCH($B$6,IND,0)-1),REL_D,$A76,IF($E$3,NwID,OrgID),$F$3) -> 0 | C76: =SUMIFS(OFFSET(REL_D,,MATCH($C$6,IND,0)-1),REL_D,$A76,IF($E$3,NwID,OrgID),$F$3) -> 0 | D76: =SUMIFS(OFFSET(REL_D,,MATCH($D$6,IND,0)-1),REL_D,$A76,IF($E$3,NwID,OrgID),$F$3) -> 0 | E76: =SUMIFS(OFFSET(REL_D,,MATCH($E$6,IND,0)-1),REL_D,$A76,IF($E$3,NwID,OrgID),$F$3) -> 0
B77: =SUMIFS(OFFSET(REL_D,,MATCH($B$6,IND,0)-1),REL_D,$A77,IF($E$3,NwID,OrgID),$F$3) -> 0 | C77: =SUMIFS(OFFSET(REL_D,,MATCH($C$6,IND,0)-1),REL_D,$A77,IF($E$3,NwID,OrgID),$F$3) -> 0 | D77: =SUMIFS(OFFSET(REL_D,,MATCH($D$6,IND,0)-1),REL_D,$A77,IF($E$3,NwID,OrgID),$F$3) -> 0 | E77: =SUMIFS(OFFSET(REL_D,,MATCH($E$6,IND,0)-1),REL_D,$A77,IF($E$3,NwID,OrgID),$F$3) -> 0
B78: =SUMIFS(OFFSET(REL_D,,MATCH($B$6,IND,0)-1),REL_D,$A78,IF($E$3,NwID,OrgID),$F$3) -> 0 | C78: =SUMIFS(OFFSET(REL_D,,MATCH($C$6,IND,0)-1),REL_D,$A78,IF($E$3,NwID,OrgID),$F$3) -> 0 | D78: =SUMIFS(OFFSET(REL_D,,MATCH($D$6,IND,0)-1),REL_D,$A78,IF($E$3,NwID,OrgID),$F$3) -> 0 | E78: =SUMIFS(OFFSET(REL_D,,MATCH($E$6,IND,0)-1),REL_D,$A78,IF($E$3,NwID,OrgID),$F$3) -> 0
B79: =SUMIFS(OFFSET(REL_D,,MATCH($B$6,IND,0)-1),REL_D,$A79,IF($E$3,NwID,OrgID),$F$3) -> 0 | C79: =SUMIFS(OFFSET(REL_D,,MATCH($C$6,IND,0)-1),REL_D,$A79,IF($E$3,NwID,OrgID),$F$3) -> 0 | D79: =SUMIFS(OFFSET(REL_D,,MATCH($D$6,IND,0)-1),REL_D,$A79,IF($E$3,NwID,OrgID),$F$3) -> 0 | E79: =SUMIFS(OFFSET(REL_D,,MATCH($E$6,IND,0)-1),REL_D,$A79,IF($E$3,NwID,OrgID),$F$3) -> 0
B80: =SUMIFS(OFFSET(REL_D,,MATCH($B$6,IND,0)-1),REL_D,$A80,IF($E$3,NwID,OrgID),$F$3) -> 0 | C80: =SUMIFS(OFFSET(REL_D,,MATCH($C$6,IND,0)-1),REL_D,$A80,IF($E$3,NwID,OrgID),$F$3) -> 0 | D80: =SUMIFS(OFFSET(REL_D,,MATCH($D$6,IND,0)-1),REL_D,$A80,IF($E$3,NwID,OrgID),$F$3) -> 0 | E80: =SUMIFS(OFFSET(REL_D,,MATCH($E$6,IND,0)-1),REL_D,$A80,IF($E$3,NwID,OrgID),$F$3) -> 0
B81: =SUMIFS(OFFSET(REL_D,,MATCH($B$6,IND,0)-1),REL_D,$A81,IF($E$3,NwID,OrgID),$F$3) -> 0 | C81: =SUMIFS(OFFSET(REL_D,,MATCH($C$6,IND,0)-1),REL_D,$A81,IF($E$3,NwID,OrgID),$F$3) -> 0 | D81: =SUMIFS(OFFSET(REL_D,,MATCH($D$6,IND,0)-1),REL_D,$A81,IF($E$3,NwID,OrgID),$F$3) -> 0 | E81: =SUMIFS(OFFSET(REL_D,,MATCH($E$6,IND,0)-1),REL_D,$A81,IF($E$3,NwID,OrgID),$F$3) -> 0
B82: =SUMIFS(OFFSET(REL_D,,MATCH($B$6,IND,0)-1),REL_D,$A82,IF($E$3,NwID,OrgID),$F$3) -> 0 | C82: =SUMIFS(OFFSET(REL_D,,MATCH($C$6,IND,0)-1),REL_D,$A82,IF($E$3,NwID,OrgID),$F$3) -> 0 | D82: =SUMIFS(OFFSET(REL_D,,MATCH($D$6,IND,0)-1),REL_D,$A82,IF($E$3,NwID,OrgID),$F$3) -> 0 | E82: =SUMIFS(OFFSET(REL_D,,MATCH($E$6,IND,0)-1),REL_D,$A82,IF($E$3,NwID,OrgID),$F$3) -> 0
B83: =SUMIFS(OFFSET(REL_D,,MATCH($B$6,IND,0)-1),REL_D,$A83,IF($E$3,NwID,OrgID),$F$3) -> 0 | C83: =SUMIFS(OFFSET(REL_D,,MATCH($C$6,IND,0)-1),REL_D,$A83,IF($E$3,NwID,OrgID),$F$3) -> 0 | D83: =SUMIFS(OFFSET(REL_D,,MATCH($D$6,IND,0)-1),REL_D,$A83,IF($E$3,NwID,OrgID),$F$3) -> 0 | E83: =SUMIFS(OFFSET(REL_D,,MATCH($E$6,IND,0)-1),REL_D,$A83,IF($E$3,NwID,OrgID),$F$3) -> 0
B84: =SUMIFS(OFFSET(REL_D,,MATCH($B$6,IND,0)-1),REL_D,$A84,IF($E$3,NwID,OrgID),$F$3) -> 0 | C84: =SUMIFS(OFFSET(REL_D,,MATCH($C$6,IND,0)-1),REL_D,$A84,IF($E$3,NwID,OrgID),$F$3) -> 0 | D84: =SUMIFS(OFFSET(REL_D,,MATCH($D$6,IND,0)-1),REL_D,$A84,IF($E$3,NwID,OrgID),$F$3) -> 0 | E84: =SUMIFS(OFFSET(REL_D,,MATCH($E$6,IND,0)-1),REL_D,$A84,IF($E$3,NwID,OrgID),$F$3) -> 0
B85: =SUMIFS(OFFSET(REL_D,,MATCH($B$6,IND,0)-1),REL_D,$A85,IF($E$3,NwID,OrgID),$F$3) -> 0 | C85: =SUMIFS(OFFSET(REL_D,,MATCH($C$6,IND,0)-1),REL_D,$A85,IF($E$3,NwID,OrgID),$F$3) -> 0 | D85: =SUMIFS(OFFSET(REL_D,,MATCH($D$6,IND,0)-1),REL_D,$A85,IF($E$3,NwID,OrgID),$F$3) -> 0 | E85: =SUMIFS(OFFSET(REL_D,,MATCH($E$6,IND,0)-1),REL_D,$A85,IF($E$3,NwID,OrgID),$F$3) -> 0
B86: =SUMIFS(OFFSET(REL_D,,MATCH($B$6,IND,0)-1),REL_D,$A86,IF($E$3,NwID,OrgID),$F$3) -> 0 | C86: =SUMIFS(OFFSET(REL_D,,MATCH($C$6,IND,0)-1),REL_D,$A86,IF($E$3,NwID,OrgID),$F$3) -> 0 | D86: =SUMIFS(OFFSET(REL_D,,MATCH($D$6,IND,0)-1),REL_D,$A86,IF($E$3,NwID,OrgID),$F$3) -> 0 | E86: =SUMIFS(OFFSET(REL_D,,MATCH($E$6,IND,0)-1),REL_D,$A86,IF($E$3,NwID,OrgID),$F$3) -> 0
B87: =SUMIFS(OFFSET(REL_D,,MATCH($B$6,IND,0)-1),REL_D,$A87,IF($E$3,NwID,OrgID),$F$3) -> 0 | C87: =SUMIFS(OFFSET(REL_D,,MATCH($C$6,IND,0)-1),REL_D,$A87,IF($E$3,NwID,OrgID),$F$3) -> 0 | D87: =SUMIFS(OFFSET(REL_D,,MATCH($D$6,IND,0)-1),REL_D,$A87,IF($E$3,NwID,OrgID),$F$3) -> 0 | E87: =SUMIFS(OFFSET(REL_D,,MATCH($E$6,IND,0)-1),REL_D,$A87,IF($E$3,NwID,OrgID),$F$3) -> 0
B88: =SUMIFS(OFFSET(REL_D,,MATCH($B$6,IND,0)-1),REL_D,$A88,IF($E$3,NwID,OrgID),$F$3) -> 0 | C88: =SUMIFS(OFFSET(REL_D,,MATCH($C$6,IND,0)-1),REL_D,$A88,IF($E$3,NwID,OrgID),$F$3) -> 0 | D88: =SUMIFS(OFFSET(REL_D,,MATCH($D$6,IND,0)-1),REL_D,$A88,IF($E$3,NwID,OrgID),$F$3) -> 0 | E88: =SUMIFS(OFFSET(REL_D,,MATCH($E$6,IND,0)-1),REL_D,$A88,IF($E$3,NwID,OrgID),$F$3) -> 0
B89: =SUMIFS(OFFSET(REL_D,,MATCH($B$6,IND,0)-1),REL_D,$A89,IF($E$3,NwID,OrgID),$F$3) -> 0 | C89: =SUMIFS(OFFSET(REL_D,,MATCH($C$6,IND,0)-1),REL_D,$A89,IF($E$3,NwID,OrgID),$F$3) -> 0 | D89: =SUMIFS(OFFSET(REL_D,,MATCH($D$6,IND,0)-1),REL_D,$A89,IF($E$3,NwID,OrgID),$F$3) -> 0 | E89: =SUMIFS(OFFSET(REL_D,,MATCH($E$6,IND,0)-1),REL_D,$A89,IF($E$3,NwID,OrgID),$F$3) -> 0
B90: =SUMIFS(OFFSET(REL_D,,MATCH($B$6,IND,0)-1),REL_D,$A90,IF($E$3,NwID,OrgID),$F$3) -> 0 | C90: =SUMIFS(OFFSET(REL_D,,MATCH($C$6,IND,0)-1),REL_D,$A90,IF($E$3,NwID,OrgID),$F$3) -> 0 | D90: =SUMIFS(OFFSET(REL_D,,MATCH($D$6,IND,0)-1),REL_D,$A90,IF($E$3,NwID,OrgID),$F$3) -> 0 | E90: =SUMIFS(OFFSET(REL_D,,MATCH($E$6,IND,0)-1),REL_D,$A90,IF($E$3,NwID,OrgID),$F$3) -> 0
B91: =SUMIFS(OFFSET(REL_D,,MATCH($B$6,IND,0)-1),REL_D,$A91,IF($E$3,NwID,OrgID),$F$3) -> 0 | C91: =SUMIFS(OFFSET(REL_D,,MATCH($C$6,IND,0)-1),REL_D,$A91,IF($E$3,NwID,OrgID),$F$3) -> 0 | D91: =SUMIFS(OFFSET(REL_D,,MATCH($D$6,IND,0)-1),REL_D,$A91,IF($E$3,NwID,OrgID),$F$3) -> 0 | E91: =SUMIFS(OFFSET(REL_D,,MATCH($E$6,IND,0)-1),REL_D,$A91,IF($E$3,NwID,OrgID),$F$3) -> 0
B92: =SUMIFS(OFFSET(REL_D,,MATCH($B$6,IND,0)-1),REL_D,$A92,IF($E$3,NwID,OrgID),$F$3) -> 0 | C92: =SUMIFS(OFFSET(REL_D,,MATCH($C$6,IND,0)-1),REL_D,$A92,IF($E$3,NwID,OrgID),$F$3) -> 0 | D92: =SUMIFS(OFFSET(REL_D,,MATCH($D$6,IND,0)-1),REL_D,$A92,IF($E$3,NwID,OrgID),$F$3) -> 0 | E92: =SUMIFS(OFFSET(REL_D,,MATCH($E$6,IND,0)-1),REL_D,$A92,IF($E$3,NwID,OrgID),$F$3) -> 0
B93: =SUMIFS(OFFSET(REL_D,,MATCH($B$6,IND,0)-1),REL_D,$A93,IF($E$3,NwID,OrgID),$F$3) -> 0 | C93: =SUMIFS(OFFSET(REL_D,,MATCH($C$6,IND,0)-1),REL_D,$A93,IF($E$3,NwID,OrgID),$F$3) -> 0 | D93: =SUMIFS(OFFSET(REL_D,,MATCH($D$6,IND,0)-1),REL_D,$A93,IF($E$3,NwID,OrgID),$F$3) -> 0 | E93: =SUMIFS(OFFSET(REL_D,,MATCH($E$6,IND,0)-1),REL_D,$A93,IF($E$3,NwID,OrgID),$F$3) -> 0

Sheet Rows (hidden)

Sheet Lookup (hidden)
A1: listsize.csv | B1: All Patients
A2: (01)_12_MONTH_COHORT.csv | B2: (01) 12 MONTH COHORT
A3: (01.01)_DTaP_IPV_Hib_HepB.csv | B3: (01.01) DTaP/IPV/Hib 6in1
A4: (01.02)_Men_B_(1st_and_2nd).csv | B4: (01.02) Men B (1st and 2nd)
A5: (01.03)_PCV.csv | B5: (01.03) PCV
A6: (01.04)_Rotavirus.csv | B6: (01.04) Rotavirus
A7: (01.05)_BCG.csv | B7: (01.05) BCG
A8: (02)_24_MONTH_COHORT.csv | B8: (02) 24 MONTH COHORT
A9: (02.01)_DTaP_IPV_Hib_or_DTaP_IPV_Hib_HepB.csv | B9: (02.01) DTaP/IPV/Hib Combined
A10: (02.02)_MMR.csv | B10: (02.02) MMR
A11: (02.03)_HiB_Men_C.csv | B11: (02.03) HiB/Men C
A12: (02.04)_PCV_(Booster).csv | B12: (02.04) PCV (Booster)
A13: (03)_5_YEAR_COHORT.csv | B13: (03) 5 YEAR COHORT
A14: (03.01)_DTaP_IPV_Hib_or_DTaP_IPV_Hib_HepB.csv | B14: (03.01) DTaP/IPV/Hib Combined
A15: (03.02)_MMR_(Primary).csv | B15: (03.02) MMR (Primary)
B16: (03.03) DTaP/IPV (Booster)
A17: (03.04)_HiB_Men_C.csv | B17: (03.04) HiB/Men C
B18: (03.05) MMR (Booster)
A19: (02.05)_Men_B_(Booster).csv | B19: (02.05) Men B (Booster)
A22: listsize_(WF_Dashboards_CEG___COVER_Audit_Child_Imms).csv | B22: All Patients | F22: listsize_(CEG_Dashboards___COVER_Audit_Child_Imms).csv | G22: (01)_12_MONTH_COHORT_(CEG_Dashboards___COVER_Audit_Child_Imms).csv | H22: (01.01)_DTaP_IPV_Hib_HepB_(CEG_Dashboards___COVER_Audit_Child_Imms).csv | I22: (01.02)_Men_B_(1st_and_2nd)_(CEG_Dashboards___COVER_Audit_Child_Imms).csv | J22: (01.03)_PCV_(CEG_Dashboards___COVER_Audit_Child_Imms).csv | K22: (01.04)_Rotavirus_(CEG_Dashboards___COVER_Audit_Child_Imms).csv | L22: (01.05)_BCG_(CEG_Dashboards___COVER_Audit_Child_Imms).csv | M22: (02)_24_MONTH_COHORT_(CEG_Dashboards___COVER_Audit_Child_Imms).csv | N22: (02.01)_DTaP_IPV_Hib_HepB_(CEG_Dashboards___COVER_Audit_Child_Imms).csv | O22: (02.02)_MMR_(CEG_Dashboards___COVER_Audit_Child_Imms).csv | P22: (02.03)_HiB_Men_C_(CEG_Dashboards___COVER_Audit_Child_Imms).csv | Q22: (02.04)_PCV_(Booster)_(CEG_Dashboards___COVER_Audit_Child_Imms).csv | R22: (02.05)_Men_B_(Booster)_(CEG_Dashboards___COVER_Audit_Child_Imms).csv | S22: (03)_5_YEAR_COHORT_(CEG_Dashboards___COVER_Audit_Child_Imms).csv | T22: (03.01)_DTaP_IPV_Hib_or_DTaP_IPV_Hib_HepB_(CEG_Dashboards___COVER_Audit_Child_Imms).csv | U22: (03.02)_MMR_(Primary)_(CEG_Dashboards___COVER_Audit_Child_Imms).csv | V22: (03.03)_DTaP_IPV_(Booster)_(CEG_Dashboards___COVER_Audit_Child_Imms).csv | W22: (03.04)_HiB_Men_C_(CEG_Dashboards___COVER_Audit_Child_Imms).csv | X22: (03.05)_MMR_(Booster)_(CEG_Dashboards___COVER_Audit_Child_Imms).csv
A23: (01)_12_MONTH_COHORT_(WF_Dashboards_CEG___COVER_Audit_Child_Imms).csv | B23: (01) 12 MONTH COHORT | E23: F86004 | F23: =VLOOKUP($E23,_S1[#All],MATCH(Lookup!F$22,_S1[#Headers],0),FALSE) -> 16038 | G23: =VLOOKUP($E23,_S1[#All],MATCH(Lookup!G$22,_S1[#Headers],0),FALSE) -> 29 | H23: =VLOOKUP($E23,_S1[#All],MATCH(Lookup!H$22,_S1[#Headers],0),FALSE) -> 27 | I23: =VLOOKUP($E23,_S1[#All],MATCH(Lookup!I$22,_S1[#Headers],0),FALSE) -> 24 | J23: =VLOOKUP($E23,_S1[#All],MATCH(Lookup!J$22,_S1[#Headers],0),FALSE) -> 27 | K23: =VLOOKUP($E23,_S1[#All],MATCH(Lookup!K$22,_S1[#Headers],0),FALSE) -> 27 | M23: =VLOOKUP($E23,_S1[#All],MATCH(Lookup!M$22,_S1[#Headers],0),FALSE) -> 53 | N23: =VLOOKUP($E23,_S1[#All],MATCH(Lookup!N$22,_S1[#Headers],0),FALSE) -> 52 | O23: =VLOOKUP($E23,_S1[#All],MATCH(Lookup!O$22,_S1[#Headers],0),FALSE) -> 48 | P23: =VLOOKUP($E23,_S1[#All],MATCH(Lookup!P$22,_S1[#Headers],0),FALSE) -> 50 | Q23: =VLOOKUP($E23,_S1[#All],MATCH(Lookup!Q$22,_S1[#Headers],0),FALSE) -> 50 | R23: =VLOOKUP($E23,_S1[#All],MATCH(Lookup!R$22,_S1[#Headers],0),FALSE) -> 52 | S23: =VLOOKUP($E23,_S1[#All],MATCH(Lookup!S$22,_S1[#Headers],0),FALSE) -> 47 | T23: =VLOOKUP($E23,_S1[#All],MATCH(Lookup!T$22,_S1[#Headers],0),FALSE) -> 44 | U23: =VLOOKUP($E23,_S1[#All],MATCH(Lookup!U$22,_S1[#Headers],0),FALSE) -> 44 | V23: =VLOOKUP($E23,_S1[#All],MATCH(Lookup!V$22,_S1[#Headers],0),FALSE) -> 40 | W23: =VLOOKUP($E23,_S1[#All],MATCH(Lookup!W$22,_S1[#Headers],0),FALSE) -> 42 | X23: =VLOOKUP($E23,_S1[#All],MATCH(Lookup!X$22,_S1[#Headers],0),FALSE) -> 42
A24: (01.01)_DTaP_IPV_Hib_HepB_(WF_Dashboards_CEG___COVER_Audit_Child_Imms).csv | B24: (01.01) DTaP/IPV/Hib 6in1 | E24: F86018 | F24: =VLOOKUP($E24,_S1[#All],MATCH(Lookup!F$22,_S1[#Headers],0),FALSE) -> 9800 | G24: =VLOOKUP($E24,_S1[#All],MATCH(Lookup!G$22,_S1[#Headers],0),FALSE) -> 32 | H24: =VLOOKUP($E24,_S1[#All],MATCH(Lookup!H$22,_S1[#Headers],0),FALSE) -> 28 | I24: =VLOOKUP($E24,_S1[#All],MATCH(Lookup!I$22,_S1[#Headers],0),FALSE) -> 29 | J24: =VLOOKUP($E24,_S1[#All],MATCH(Lookup!J$22,_S1[#Headers],0),FALSE) -> 30 | K24: =VLOOKUP($E24,_S1[#All],MATCH(Lookup!K$22,_S1[#Headers],0),FALSE) -> 30 | M24: =VLOOKUP($E24,_S1[#All],MATCH(Lookup!M$22,_S1[#Headers],0),FALSE) -> 16 | N24: =VLOOKUP($E24,_S1[#All],MATCH(Lookup!N$22,_S1[#Headers],0),FALSE) -> 15 | O24: =VLOOKUP($E24,_S1[#All],MATCH(Lookup!O$22,_S1[#Headers],0),FALSE) -> 13 | P24: =VLOOKUP($E24,_S1[#All],MATCH(Lookup!P$22,_S1[#Headers],0),FALSE) -> 14 | Q24: =VLOOKUP($E24,_S1[#All],MATCH(Lookup!Q$22,_S1[#Headers],0),FALSE) -> 13 | R24: =VLOOKUP($E24,_S1[#All],MATCH(Lookup!R$22,_S1[#Headers],0),FALSE) -> 15 | S24: =VLOOKUP($E24,_S1[#All],MATCH(Lookup!S$22,_S1[#Headers],0),FALSE) -> 33 | T24: =VLOOKUP($E24,_S1[#All],MATCH(Lookup!T$22,_S1[#Headers],0),FALSE) -> 27 | U24: =VLOOKUP($E24,_S1[#All],MATCH(Lookup!U$22,_S1[#Headers],0),FALSE) -> 27 | V24: =VLOOKUP($E24,_S1[#All],MATCH(Lookup!V$22,_S1[#Headers],0),FALSE) -> 19 | W24: =VLOOKUP($E24,_S1[#All],MATCH(Lookup!W$22,_S1[#Headers],0),FALSE) -> 25 | X24: =VLOOKUP($E24,_S1[#All],MATCH(Lookup!X$22,_S1[#Headers],0),FALSE) -> 22
A25: (01.02)_Men_B_(1st_and_2nd)_(WF_Dashboards_CEG___COVER_Audit_Child_Imms).csv | B25: (01.02) Men B (1st and 2nd) | E25: F86026 | F25: =VLOOKUP($E25,_S1[#All],MATCH(Lookup!F$22,_S1[#Headers],0),FALSE) -> 7118 | G25: =VLOOKUP($E25,_S1[#All],MATCH(Lookup!G$22,_S1[#Headers],0),FALSE) -> 20 | H25: =VLOOKUP($E25,_S1[#All],MATCH(Lookup!H$22,_S1[#Headers],0),FALSE) -> 18 | I25: =VLOOKUP($E25,_S1[#All],MATCH(Lookup!I$22,_S1[#Headers],0),FALSE) -> 19 | J25: =VLOOKUP($E25,_S1[#All],MATCH(Lookup!J$22,_S1[#Headers],0),FALSE) -> 19 | K25: =VLOOKUP($E25,_S1[#All],MATCH(Lookup!K$22,_S1[#Headers],0),FALSE) -> 19 | M25: =VLOOKUP($E25,_S1[#All],MATCH(Lookup!M$22,_S1[#Headers],0),FALSE) -> 18 | N25: =VLOOKUP($E25,_S1[#All],MATCH(Lookup!N$22,_S1[#Headers],0),FALSE) -> 16 | O25: =VLOOKUP($E25,_S1[#All],MATCH(Lookup!O$22,_S1[#Headers],0),FALSE) -> 15 | P25: =VLOOKUP($E25,_S1[#All],MATCH(Lookup!P$22,_S1[#Headers],0),FALSE) -> 14 | Q25: =VLOOKUP($E25,_S1[#All],MATCH(Lookup!Q$22,_S1[#Headers],0),FALSE) -> 14 | R25: =VLOOKUP($E25,_S1[#All],MATCH(Lookup!R$22,_S1[#Headers],0),FALSE) -> 16 | S25: =VLOOKUP($E25,_S1[#All],MATCH(Lookup!S$22,_S1[#Headers],0),FALSE) -> 17 | T25: =VLOOKUP($E25,_S1[#All],MATCH(Lookup!T$22,_S1[#Headers],0),FALSE) -> 12 | U25: =VLOOKUP($E25,_S1[#All],MATCH(Lookup!U$22,_S1[#Headers],0),FALSE) -> 16 | V25: =VLOOKUP($E25,_S1[#All],MATCH(Lookup!V$22,_S1[#Headers],0),FALSE) -> 14 | W25: =VLOOKUP($E25,_S1[#All],MATCH(Lookup!W$22,_S1[#Headers],0),FALSE) -> 16 | X25: =VLOOKUP($E25,_S1[#All],MATCH(Lookup!X$22,_S1[#Headers],0),FALSE) -> 14
A26: (01.03)_PCV_(WF_Dashboards_CEG___COVER_Audit_Child_Imms).csv | B26: (01.03) PCV | E26: F86074 | F26: =VLOOKUP($E26,_S1[#All],MATCH(Lookup!F$22,_S1[#Headers],0),FALSE) -> 15073 | G26: =VLOOKUP($E26,_S1[#All],MATCH(Lookup!G$22,_S1[#Headers],0),FALSE) -> 39 | H26: =VLOOKUP($E26,_S1[#All],MATCH(Lookup!H$22,_S1[#Headers],0),FALSE) -> 36 | I26: =VLOOKUP($E26,_S1[#All],MATCH(Lookup!I$22,_S1[#Headers],0),FALSE) -> 37 | J26: =VLOOKUP($E26,_S1[#All],MATCH(Lookup!J$22,_S1[#Headers],0),FALSE) -> 38 | K26: =VLOOKUP($E26,_S1[#All],MATCH(Lookup!K$22,_S1[#Headers],0),FALSE) -> 34 | M26: =VLOOKUP($E26,_S1[#All],MATCH(Lookup!M$22,_S1[#Headers],0),FALSE) -> 36 | N26: =VLOOKUP($E26,_S1[#All],MATCH(Lookup!N$22,_S1[#Headers],0),FALSE) -> 32 | O26: =VLOOKUP($E26,_S1[#All],MATCH(Lookup!O$22,_S1[#Headers],0),FALSE) -> 33 | P26: =VLOOKUP($E26,_S1[#All],MATCH(Lookup!P$22,_S1[#Headers],0),FALSE) -> 31 | Q26: =VLOOKUP($E26,_S1[#All],MATCH(Lookup!Q$22,_S1[#Headers],0),FALSE) -> 32 | R26: =VLOOKUP($E26,_S1[#All],MATCH(Lookup!R$22,_S1[#Headers],0),FALSE) -> 32 | S26: =VLOOKUP($E26,_S1[#All],MATCH(Lookup!S$22,_S1[#Headers],0),FALSE) -> 40 | T26: =VLOOKUP($E26,_S1[#All],MATCH(Lookup!T$22,_S1[#Headers],0),FALSE) -> 29 | U26: =VLOOKUP($E26,_S1[#All],MATCH(Lookup!U$22,_S1[#Headers],0),FALSE) -> 36 | V26: =VLOOKUP($E26,_S1[#All],MATCH(Lookup!V$22,_S1[#Headers],0),FALSE) -> 34 | W26: =VLOOKUP($E26,_S1[#All],MATCH(Lookup!W$22,_S1[#Headers],0),FALSE) -> 35 | X26: =VLOOKUP($E26,_S1[#All],MATCH(Lookup!X$22,_S1[#Headers],0),FALSE) -> 33
A27: (01.04)_Rotavirus_(WF_Dashboards_CEG___COVER_Audit_Child_Imms).csv | B27: (01.04) Rotavirus | E27: F86638 | F27: =VLOOKUP($E27,_S1[#All],MATCH(Lookup!F$22,_S1[#Headers],0),FALSE) -> 4981 | G27: =VLOOKUP($E27,_S1[#All],MATCH(Lookup!G$22,_S1[#Headers],0),FALSE) -> 11 | H27: =VLOOKUP($E27,_S1[#All],MATCH(Lookup!H$22,_S1[#Headers],0),FALSE) -> 11 | I27: =VLOOKUP($E27,_S1[#All],MATCH(Lookup!I$22,_S1[#Headers],0),FALSE) -> 11 | J27: =VLOOKUP($E27,_S1[#All],MATCH(Lookup!J$22,_S1[#Headers],0),FALSE) -> 11 | K27: =VLOOKUP($E27,_S1[#All],MATCH(Lookup!K$22,_S1[#Headers],0),FALSE) -> 10 | M27: =VLOOKUP($E27,_S1[#All],MATCH(Lookup!M$22,_S1[#Headers],0),FALSE) -> 18 | N27: =VLOOKUP($E27,_S1[#All],MATCH(Lookup!N$22,_S1[#Headers],0),FALSE) -> 14 | O27: =VLOOKUP($E27,_S1[#All],MATCH(Lookup!O$22,_S1[#Headers],0),FALSE) -> 12 | P27: =VLOOKUP($E27,_S1[#All],MATCH(Lookup!P$22,_S1[#Headers],0),FALSE) -> 13 | Q27: =VLOOKUP($E27,_S1[#All],MATCH(Lookup!Q$22,_S1[#Headers],0),FALSE) -> 12 | R27: =VLOOKUP($E27,_S1[#All],MATCH(Lookup!R$22,_S1[#Headers],0),FALSE) -> 14 | S27: =VLOOKUP($E27,_S1[#All],MATCH(Lookup!S$22,_S1[#Headers],0),FALSE) -> 18 | T27: =VLOOKUP($E27,_S1[#All],MATCH(Lookup!T$22,_S1[#Headers],0),FALSE) -> 16 | U27: =VLOOKUP($E27,_S1[#All],MATCH(Lookup!U$22,_S1[#Headers],0),FALSE) -> 15 | V27: =VLOOKUP($E27,_S1[#All],MATCH(Lookup!V$22,_S1[#Headers],0),FALSE) -> 13 | W27: =VLOOKUP($E27,_S1[#All],MATCH(Lookup!W$22,_S1[#Headers],0),FALSE) -> 15 | X27: =VLOOKUP($E27,_S1[#All],MATCH(Lookup!X$22,_S1[#Headers],0),FALSE) -> 13
A28: (01.05)_BCG_(WF_Dashboards_CEG___COVER_Audit_Child_Imms).csv | B28: (01.05) BCG
A29: (02)_24_MONTH_COHORT_(WF_Dashboards_CEG___COVER_Audit_Child_Imms).csv | B29: (02) 24 MONTH COHORT | F29: All Patients | G29: (01) 12 MONTH COHORT | H29: (01.01) DTaP/IPV/Hib 6in1 | I29: (01.02) Men B (1st and 2nd) | J29: (01.03) PCV | K29: (01.04) Rotavirus | L29: (01.05) BCG | M29: (02) 24 MONTH COHORT | N29: (02.01) DTaP/IPV/Hib Combined | O29: (02.02) MMR | P29: (02.03) HiB/Men C | Q29: (02.04) PCV (Booster) | R29: (02.05) Men B (Booster) | S29: (03) 5 YEAR COHORT | T29: (03.01) DTaP/IPV/Hib Combined | U29: (03.02) MMR (Primary) | V29: (03.03) DTaP/IPV (Booster) | W29: (03.04) HiB/Men C | X29: (03.05) MMR (Booster)
A30: (02.01)_DTaP_IPV_Hib_or_DTaP_IPV_Hib_HepB_(WF_Dashboards_CEG___COVER_Audit_Child_Imms).csv | B30: (02.01) DTaP/IPV/Hib Combined
A31: (02.02)_MMR_(WF_Dashboards_CEG___COVER_Audit_Child_Imms).csv | B31: (02.02) MMR
A32: (02.03)_HiB_Men_C_(WF_Dashboards_CEG___COVER_Audit_Child_Imms).csv | B32: (02.03) HiB/Men C | H32: _(WF_Dashboards_CEG___COVER_Audit_Child_Imms).csv
A33: (02.04)_PCV_(Booster)_(WF_Dashboards_CEG___COVER_Audit_Child_Imms).csv | B33: (02.04) PCV (Booster)
A34: (03)_5_YEAR_COHORT_(WF_Dashboards_CEG___COVER_Audit_Child_Imms).csv | B34: (03) 5 YEAR COHORT
A35: (03.01)_DTaP_IPV_Hib_or_DTaP_IPV_Hib_HepB_(WF_Dashboards_CEG___COVER_Audit_Child_Imms).csv | B35: (03.01) DTaP/IPV/Hib Combined
A36: (03.02)_MMR_(Primary)_(WF_Dashboards_CEG___COVER_Audit_Child_Imms).csv | B36: (03.02) MMR (Primary) | G36: _(WF_Dashboards_CEG___COVER_Audit_Child_Imms).csv
A37: (03.03)_DTaP_IPV_(Booster)_(WF_Dashboards_CEG___COVER_Audit_Child_Imms).csv | B37: (03.03) DTaP/IPV (Booster)
A38: (03.04)_HiB_Men_C_(WF_Dashboards_CEG___COVER_Audit_Child_Imms).csv | B38: (03.04) HiB/Men C
A39: (03.05)_MMR_(Booster)_(WF_Dashboards_CEG___COVER_Audit_Child_Imms).csv | B39: (03.05) MMR (Booster)
A40: (02.05)_Men_B_(Booster)_(WF_Dashboards_CEG___COVER_Audit_Child_Imms).csv | B40: (02.05) Men B (Booster)

Sheet Control Panel (hidden)
B1: Q | E1: Search Title | F1: Report Title | I1: 2019-03-01
E2: All Patients | F2: Listsize | I2: April 2022 | J2: Q1 | K2: Q1: April 2017 - June 2017 | M2: Select Dates | U2: total | V2: 2 | W2: =$V$7&ADDRESS(1,V2)&":"&ADDRESS($V$8,V2) -> 'Data'!$B$1:$B$2000
E3: (01) 12 MONTH COHORT | F3: Patients becoming 12m | I3: May 2022 | J3: Q1 | K3: Q1: April 2017 - June 2017 | M3: 2017-04-01 | O3: - | P3: Select Practice | Q3: DN Team | R3: Patch | S3: Network | U3: OrgID | V3: 10 | W3: =$V$7&ADDRESS(1,V3)&":"&ADDRESS($V$8,V3) -> 'Data'!$J$1:$J$2000
E4: (01.01) DTaP/IPV/Hib 6in1 | F4: DTaP/IPV/Hib/HepB | I4: June 2022 | J4: Q1 | K4: Q1: April 2017 - June 2017 | M4: 2017-05-01 | N4: Bethnal Green Health Centre | O4: F84083 | P4: Bethnal Green Health Centre | S4: NW1 | U4: REL_D | V4: 1 | W4: =$V$7&ADDRESS(1,V4)&":"&ADDRESS($V$8,V4) -> 'Data'!$A$1:$A$2000
E5: DTaP/IPV/Hib(%) | F5: DTaP/IPV/Hib/HepB(%) | I5: July 2022 | J5: Q2 | K5: Q2: July 2017 - September 2017 | M5: 2017-06-01 | N5: The Mission Practice | O5: F84016 | P5: The Mission Practice | S5: NW1 | U5: IND | V5: - | W5: =$V$7&ADDRESS(V12,1)&":"&ADDRESS(V12,V9) -> 'Data'!$A$1:$AD$1
E6: Patients required to achieve NHSE Target (90%) | F6: Patients required to achieve NHSE Target (90%) | I6: August 2022 | J6: Q2 | K6: Q2: July 2017 - September 2017 | M6: 2017-07-01 | N6: Globe Town Surgery | O6: F84123 | P6: Globe Town Surgery | S6: NW1 | U6: NwID | V6: 2 | W6: =$V$7&ADDRESS(1,V6)&":"&ADDRESS($V$8,V6) -> 'Data'!$B$1:$B$2000
E7: Patients required to achieve CCG Target (95%) | F7: Patients required to achieve CCG Target (95%) | I7: September 2022 | J7: Q2 | K7: Q2: July 2017 - September 2017 | M7: 2017-08-01 | N7: Pollard Row Surgery | O7: Y00212 | P7: Pollard Row Surgery | S7: NW1 | U7: Data | V7: =IF(V10="N","BLANK!","'"&V11&"'!") -> 'Data'!
E8: (01.02) Men B (1st and 2nd) | F8: Men B | I8: October 2022 | J8: Q3 | K8: Q3: October 2017 - December 2017 | M8: 2017-09-01 | N8: Strouts Place Medical Centre | O8: F84051 | P8: Strouts Place Medical Centre | S8: NW1 | U8: Rows | V8: 2000
B9: Waltham Forest | C9: Total | E9: Men B(%) | F9: Men B(%) | I9: November 2022 | J9: Q3 | K9: Q3: October 2017 - December 2017 | M9: 2017-10-01 | N9: Spitalfields Practice | O9: F84081 | P9: Spitalfields Practice | S9: NW2 | U9: Columns | V9: 30
A10: LC1 | B10: Chingford Locality | C10: LC1 | E10: Patients required to achieve NHSE Target (90%) | F10: Patients required to achieve NHSE Target (90%) | I10: December 2022 | J10: Q3 | K10: Q3: October 2017 - December 2017 | M10: 2017-11-01 | N10: Blithehale Medical Centre | O10: F84718 | P10: Blithehale Medical Centre | S10: NW2 | U10: Data (Y/N) | V10: Y
A11: LC2 | B11: Leyton & Leytonstone Locality | C11: LC2 | E11: Patients required to achieve CCG Target (95%) | F11: Patients required to achieve CCG Target (95%) | I11: January 2023 | J11: Q4 | K11: Q4: January 2018 - March 2018 | M11: 2017-12-01 | N11: Health E1 | O11: F84733 | P11: Health E1 | S11: NW2 | U11: Q Work Sheet | V11: Data | W11: =$V$7&ADDRESS(1,1)&":"&ADDRESS(V8,V9) -> 'Data'!$A$1:$AD$2000
A12: LC3 | B12: Walthamstow Locality | C12: LC3 | E12: (01.03) PCV | F12: PCV | I12: February 2023 | J12: Q4 | K12: Q4: January 2018 - March 2018 | M12: 2018-01-01 | N12: Albion Health Centre | O12: F84012 | P12: Albion Health Centre | S12: NW2 | U12: Header Row | V12: 1
A13: LC1 | B13: =VLOOKUP(C13,$C$132:$D$171,2,FALSE) -> Chingford Medical Practice | C13: Y01291 | D13: LC3 | E13: PCV(%) | F13: PCV(%) | I13: March 2023 | J13: Q4 | K13: Q4: January 2018 - March 2018 | M13: 2018-02-01 | N13: Harford Health Centre | O13: F84087 | P13: Harford Health Centre | S13: NW3 | U13: Header Row 2 | V13: 3
A14: LC1 | B14: Churchill Medical Centre | C14: F86627 | D14: LC1 | E14: Patients required to achieve NHSE Target (90%) | F14: Patients required to achieve NHSE Target (90%) | M14: 2018-03-01 | N14: Brayford Square (Dr Varma) | O14: F84046 | P14: Brayford Square (Dr Varma) | S14: NW3
A15: LC1 | B15: Kings Head Medical Practice | C15: F86700 | D15: LC1 | E15: Patients required to achieve CCG Target (95%) | F15: Patients required to achieve CCG Target (95%) | N15: Whitechapel Health (Shah Jalal) | O15: F84039 | P15: Whitechapel Health (Shah Jalal) | S15: NW3
A16: LC1 | B16: Larkshall Medical Centre | C16: F86664 | D16: LC3 | E16: (01.04) Rotavirus | F16: Rotavirus | N16: City Wellbeing Practice (Tower Medical) | O16: F84114 | P16: City Wellbeing Practice (Tower Medical) | S16: NW3
A17: LC1 | B17: Old Church Surgery | C17: F86616 | D17: LC2 | E17: Rotavirus(%) | F17: Rotavirus(%) | N17: Wapping Group Practice | O17: F84079 | P17: Wapping Group Practice | S17: NW4
A18: LC1 | B18: The Ridgeway Surgery | C18: F86078 | D18: LC3 | N18: Jubilee Street Practice | O18: F84031 | P18: Jubilee Street Practice | S18: NW4 | V18: Patients becoming 12m | Z18: Patients becoming 12m
A19: LC2 | B19: Crawley Road Medical Centre | C19: F86044 | D19: LC3 | K19: 2015/16 Q1 | N19: St Katharine Docks Practice | O19: F84731 | P19: St Katharine Docks Practice | S19: NW4 | V19: DTaP/IPV/Hib | Z19: DTaP/IPV/Hib %
A20: LC2 | B20: Francis Road Medical Centre | C20: F86696 | D20: LC2 | K20: 2015/16 Q2 | N20: East One Health | O20: F84682 | P20: East One Health | S20: NW4 | V20: Men B | Z20: Men C / Men B %
A21: LC2 | B21: Green Man Medical Centre | C21: F86621 | D21: LC2 | K21: 2015/16 Q3 | N21: Harley Grove Medical Centre | O21: F84044 | P21: Harley Grove Medical Centre | S21: NW5 | V21: PCV | Z21: PCV %
A22: LC2 | B22: Hampton Medical Centre | C22: F86712 | D22: LC2 | K22: 2015/16 Q4 | N22: St Stephens Health Centre | O22: F84034 | P22: St Stephens Health Centre | S22: NW5
A23: LC2 | B23: High Road Surgery | C23: F86045 | D23: LC2 | K23: 2016/17 Q1 | N23: Ruston Street Clinic (Dr Amin) | O23: F84030 | P23: Ruston Street Clinic (Dr Amin) | S23: NW5 | V23: Patients becoming 24m | Z23: Patients becoming 24m
A24: LC2 | B24: Kiyani Medical Practice | C24: F86701 | D24: LC3 | K24: 2016/17 Q2 | N24: Grove Road Surgery (Dr Shah) | O24: F84055 | P24: Grove Road Surgery (Dr Shah) | S24: NW5 | V24: MMR | Z24: MMR %
A25: LC2 | B25: LL Medical Care (Agarwal & Agrwal Practice) | C25: F86625 | D25: LC1 | E25: All Patients | F25: Listsize | K25: 2016/17 Q3 | N25: The Tredegar Practice | O25: F84696 | P25: The Tredegar Practice | S25: NW5 | V25: HiB/Men C | Z25: HiB/Men C %
A26: LC2 | B26: The Langthorne Sharma Family Practice | C26: F86705 | D26: LC2 | E26: (02) 24 MONTH COHORT | F26: Patients becoming 24m | K26: 2016/17 Q4 | N26: Stroudley Walk Centre | O26: F84676 | P26: Stroudley Walk Centre | S26: NW6 | V26: PCV (Booster) | Z26: PCV (Booster) %
A27: LC2 | B27: Lime Tree Surgery | C27: F86650 | D27: LC2 | E27: (02.01) DTaP/IPV/Hib or DTaP/IPV/Hib/HepB | F27: DTaP/IPV/Hib | K27: 2017/18 Q1 | N27: St Andrews Health Centre | O27: Y03023 | P27: St Andrews Health Centre | S27: NW6
A28: LC2 | B28: Sma Medical Centre | C28: F86038 | D28: LC2 | E28: DTaP/IPV/Hib(%) | F28: DTaP/IPV/Hib(%) | K28: 2017/18 Q2 | N28: Merchant Street (Dr Rana) | O28: F84118 | P28: Merchant Street (Dr Rana) | S28: NW6 | V28: Patients becoming 5y | Z28: Patients becoming 5y
A29: LC2 | B29: The Allum Medical Centre | C29: F86036 | D29: LC1 | E29: Patients required to achieve NHSE Target (90%) | F29: Patients required to achieve NHSE Target (90%) | K29: 2017/18 Q3 | N29: St Pauls Way Medical Centre | O29: F84714 | P29: St Pauls Way Medical Centre | S29: NW6 | V29: DTaP/IPV (Booster)(%) | Z29: DTaP/IPV (Booster)(%)
A30: LC2 | B30: The Harrow Road Surgery | C30: F86666 | D30: LC3 | E30: Patients required to achieve CCG Target (95%) | F30: Patients required to achieve CCG Target (95%) | K30: 2017/18 Q4 | N30: Bromley-By-Bow Health Centre / XX Place | O30: F84122 | P30: Bromley-By-Bow Health Centre / XX Place | S30: NW6 | V30: MMR (Booster)(%) | Z30: MMR (Booster)(%)
A31: LC2 | B31: The Lyndhurst Surgery | C31: F86088 | D31: LC2 | E31: (02.02) MMR | F31: MMR | K31: 2018/19 Q1 | N31: Limehouse Practice (Gill Street) | O31: F84054 | P31: Limehouse Practice (Gill Street) | S31: NW7
A32: LC2 | B32: The Manor Practice | C32: F86011 | D32: LC3 | E32: MMR(%) | F32: MMR(%) | K32: 2018/19 Q2 | N32: Chrisp Street Health Centre | O32: F84062 | P32: Chrisp Street Health Centre | S32: NW7 | V32: (01) 12 MONTH COHORT
A33: LC3 | B33: =VLOOKUP(C33,$C$132:$D$171,2,FALSE) -> Addison Road Medical Practice | C33: F86607 | D33: LC3 | E33: Patients required to achieve NHSE Target (90%) | F33: Patients required to achieve NHSE Target (90%) | K33: 2018/19 Q3 | N33: Aberfeldy Practice | O33: F84698 | P33: Aberfeldy Practice | S33: NW7 | V33: (01.01) DTaP/IPV/Hib 6in1
A34: LC3 | B34: Claremont Medical Centre | C34: F86708 | D34: LC2 | E34: Patients required to achieve CCG Target (95%) | F34: Patients required to achieve CCG Target (95%) | K34: 2018/19 Q4 | N34: Gough Walk (Dr Selvan) | O34: F84025 | P34: Gough Walk (Dr Selvan) | S34: NW7 | V34: (01.02) Men B (1st and 2nd)
A35: LC3 | B35: Dr Dhital Practice | C35: F86086 | D35: LC3 | E35: (02.03) HiB/Men C | F35: HiB/Men C | N35: Island Health | O35: F84710 | P35: Island Health | S35: NW8 | V35: (01.03) PCV
A36: LC3 | B36: Dr Shantir Practice | C36: F86626 | D36: LC2 | E36: HiB/Men C (%) | F36: HiB/Men C (%) | J36: Patient becoming 12m | K36: 'Control Panel'!$V$18:$V$21 | L36: 'Control Panel'!$Z$18:$Z$21 | N36: Docklands Medical Centre | O36: F84656 | P36: Docklands Medical Centre | S36: NW8
A37: LC3 | B37: Higham Hill Medical Centre | C37: F86679 | D37: LC3 | E37: Patients required to achieve NHSE Target (90%) | F37: Patients required to achieve NHSE Target (90%) | J37: Patient becoming 24m | K37: 'Control Panel'!$V23:$V$26 | L37: 'Control Panel'!$Z23:$Z$26 | N37: Island Medical Centre | O37: F84647 | P37: Island Medical Centre | S37: NW8 | V37: (02) 24 MONTH COHORT
A38: LC3 | B38: Lime Tree & Sinnott Healthcare Ltd | C38: Y01839 | D38: LC3 | E38: Patients required to achieve CCG Target (95%) | F38: Patients required to achieve CCG Target (95%) | J38: Patient becoming 5y | K38: 'Control Panel'!$V28:$V$30 | L38: 'Control Panel'!$Z28:$Z$30 | N38: Barkantine Practice | O38: F84747 | P38: Barkantine Practice | S38: NW8 | V38: (02.02) MMR
A39: LC3 | B39: The Penryhn Surgery | C39: F86005 | D39: LC3 | E39: (02.04) PCV (Booster) | F39: PCV (Booster) | N39: Tower Hamlets | O39: Total | P39: Tower Hamlets | V39: (02.03) HiB/Men C
A40: LC3 | B40: Queens Road Medical Centre | C40: F86030 | D40: LC2 | E40: PCV (Booster)(%) | F40: PCV (Booster)(%) | N40: The One Network | O40: NW1 | P40: The One Network | S40: NW1 | V40: (02.04) PCV (Booster)
A41: LC3 | B41: Seymour Medical Centre | C41: F86006 | D41: LC2 | E41: Patients required to achieve NHSE Target (90%) | F41: Patients required to achieve NHSE Target (90%) | J41: Patient becoming 12m | K41: 'Control Panel'!$V$32:$V$35 | N41: East End Health Network | O41: NW2 | P41: East End Health Network | S41: NW2
A42: LC3 | B42: St James Medical Practice Ltd | C42: F86058 | D42: LC2 | E42: Patients required to achieve CCG Target (95%) | F42: Patients required to achieve CCG Target (95%) | J42: Patient becoming 24m | K42: 'Control Panel'!$V37:$V$40 | N42: Stepney and Whitechapel Network | O42: NW3 | P42: Stepney and Whitechapel Network | S42: NW3 | V42: (03) 5 YEAR COHORT
A43: LC3 | B43: The Bailey Practice | C43: F86689 | D43: LC1 | E43: (02.05) Men B (Booster) | F43: Men B (Booster) | J43: Patient becoming 5y | K43: 'Control Panel'!$V42:$V$44 | N43: The Highway Network | O43: NW4 | P43: The Highway Network | S43: NW4 | V43: (03.03) DTaP/IPV (Booster)
A44: LC3 | B44: The Firs | C44: F86001 | D44: LC2 | E44: Men B (Booster)(%) | F44: Men B (Booster)(%) | N44: Bow Health Network | O44: NW5 | P44: Bow Health Network | S44: NW5 | V44: (03.05) MMR (Booster)
A45: LC3 | B45: Grove Surgery | C45: F86062 | D45: LC1 | N45: Mile End East and Bromley by Bow Network | O45: NW6 | P45: Mile End East and Bromley by Bow Network | S45: NW6
A46: LC3 | B46: Waltham Forest Community & Family Health Services Ltd | C46: F86644 | D46: LC3 | N46: Poplar and Limehouse Network | O46: NW7 | P46: Poplar and Limehouse Network | S46: NW7
N47: Healthy Island Network | O47: NW8 | P47: Healthy Island Network | S47: NW8
E48: All Patients | F48: Listsize
E49: (03) 5 YEAR COHORT | F49: Patients becoming 5y | Y49: April 2019 | Z49: 2019-05-01
E50: (03.01) DTaP/IPV/Hib or DTaP/IPV/Hib/HepB | F50: DTaP/IPV/Hib | Y50: May 2019 | Z50: 2019-06-01
E51: DTaP/IPV/Hib(%) | F51: DTaP/IPV/Hib(%) | N51: xx | R51: bbb | Y51: June 2019 | Z51: 2019-07-01
E52: (03.02) MMR (Primary) | F52: MMR (Primary) | Y52: July 2019 | Z52: 2019-08-01
E53: MMR (Primary)(%) | F53: MMR (Primary)(%) | J53: Data | N53: Array Start | O53: Array End | P53: Array as Text | R53: Array Start | S53: Array End | Y53: August 2019 | Z53: 2019-09-01
E54: (03.03) DTaP/IPV (Booster) | F54: DTaP/IPV (Booster) | N54: ="'XX place'!"&ADDRESS(MATCH(I56,#REF!,0)+7,2) ->  | O54: =ADDRESS(MATCH(I56,#REF!,0)+43,3) ->  | P54: =TEXT(N54&":"&O54,"") ->  | R54: ="'BBB'!"&ADDRESS(MATCH(I56,#REF!,0)+7,2) ->  | S54: =ADDRESS(MATCH(I56,#REF!,0)+43,3) ->  | Y54: September 2019 | Z54: 2019-10-01
E55: DTaP/IPV (Booster)(%) | F55: DTaP/IPV (Booster)(%) | I55: Search Title | J55: Array Start | K55: Array End | L55: Array as Text | N55: ="'XX place'!"&ADDRESS(MATCH(I57,#REF!,0)+7,2) ->  | O55: =ADDRESS(MATCH(I57,#REF!,0)+43,3) ->  | R55: ="'BBB'!"&ADDRESS(MATCH(I57,#REF!,0)+7,2) ->  | S55: =ADDRESS(MATCH(I57,#REF!,0)+43,3) ->  | T55: Array as Text | Y55: October 2019 | Z55: 2019-11-01
E56: Patients required to achieve NHSE Target (90%) | F56: Patients required to achieve NHSE Target (90%) | I56: All Patients | J56: ="Data!"&ADDRESS(MATCH(I56,#REF!,0)+7,2) ->  | K56: =ADDRESS(MATCH(I56,#REF!,0)+46,3) ->  | L56: =TEXT(J56&":"&K56,"") ->  | N56: ="'XX place'!"&ADDRESS(MATCH(I58,#REF!,0)+7,2) ->  | O56: =ADDRESS(MATCH(I58,#REF!,0)+43,3) ->  | R56: ="'BBB'!"&ADDRESS(MATCH(I58,#REF!,0)+7,2) ->  | S56: =ADDRESS(MATCH(I58,#REF!,0)+43,3) ->  | T56: =TEXT(R54&":"&S54,"") ->  | Y56: November 2019 | Z56: 2019-12-01
E57: Patients required to achieve CCG Target (95%) | F57: Patients required to achieve CCG Target (95%) | I57: (01) 12 MONTH COHORT | J57: ="Data!"&ADDRESS(MATCH(I57,#REF!,0)+7,2) ->  | K57: =ADDRESS(MATCH(I57,#REF!,0)+46,3) ->  | N57: ="'XX place'!"&ADDRESS(MATCH(I59,#REF!,0)+7,2) ->  | O57: =ADDRESS(MATCH(I59,#REF!,0)+43,3) ->  | R57: ="'BBB'!"&ADDRESS(MATCH(I59,#REF!,0)+7,2) ->  | S57: =ADDRESS(MATCH(I59,#REF!,0)+43,3) ->  | Y57: December 2019 | Z57: 2020-01-01
E58: (03.05) MMR (Booster) | F58: MMR (Booster) | I58: (01.01) DTaP/IPV/Hib | J58: ="Data!"&ADDRESS(MATCH(I58,#REF!,0)+7,2) ->  | K58: =ADDRESS(MATCH(I58,#REF!,0)+46,3) ->  | N58: ="'XX place'!"&ADDRESS(MATCH(I60,#REF!,0)+7,2) ->  | O58: =ADDRESS(MATCH(I60,#REF!,0)+43,3) ->  | R58: ="'BBB'!"&ADDRESS(MATCH(I60,#REF!,0)+7,2) ->  | S58: =ADDRESS(MATCH(I60,#REF!,0)+43,3) ->  | Y58: January 2020 | Z58: 2020-02-01
E59: MMR (Booster)(%) | F59: MMR (Booster)(%) | I59: (01.02) Men C | J59: ="Data!"&ADDRESS(MATCH(I59,#REF!,0)+7,2) ->  | K59: =ADDRESS(MATCH(I59,#REF!,0)+46,3) ->  | N59: ="'XX place'!"&ADDRESS(MATCH(I61,#REF!,0)+7,2) ->  | O59: =ADDRESS(MATCH(I61,#REF!,0)+43,3) ->  | R59: ="'BBB'!"&ADDRESS(MATCH(I61,#REF!,0)+7,2) ->  | S59: =ADDRESS(MATCH(I61,#REF!,0)+43,3) ->  | Y59: February 2020 | Z59: 2020-03-01
E60: Patients required to achieve NHSE Target (90%) | F60: Patients required to achieve NHSE Target (90%) | I60: (01.03) PCV | J60: ="Data!"&ADDRESS(MATCH(I60,#REF!,0)+7,2) ->  | K60: =ADDRESS(MATCH(I60,#REF!,0)+46,3) ->  | N60: ="'XX place'!"&ADDRESS(MATCH(I62,#REF!,0)+7,2) ->  | O60: =ADDRESS(MATCH(I62,#REF!,0)+43,3) ->  | R60: ="'BBB'!"&ADDRESS(MATCH(I62,#REF!,0)+7,2) ->  | S60: =ADDRESS(MATCH(I62,#REF!,0)+43,3) ->  | Y60: March 2020 | Z60: 2020-04-01
E61: Patients required to achieve CCG Target (95%) | F61: Patients required to achieve CCG Target (95%) | I61: (01.04) Rotavirus | J61: ="Data!"&ADDRESS(MATCH(I61,#REF!,0)+7,2) ->  | K61: =ADDRESS(MATCH(I61,#REF!,0)+46,3) ->  | N61: ="'XX place'!"&ADDRESS(MATCH(I63,#REF!,0)+7,2) ->  | O61: =ADDRESS(MATCH(I63,#REF!,0)+43,3) ->  | R61: ="'BBB'!"&ADDRESS(MATCH(I63,#REF!,0)+7,2) ->  | S61: =ADDRESS(MATCH(I63,#REF!,0)+43,3) -> 
E62: (03.04) HiB/Men C | F62: HiB/Men C | I62: (01.05) BCG | J62: ="Data!"&ADDRESS(MATCH(I62,#REF!,0)+7,2) ->  | K62: =ADDRESS(MATCH(I62,#REF!,0)+46,3) ->  | N62: ="'XX place'!"&ADDRESS(MATCH(I64,#REF!,0)+7,2) ->  | O62: =ADDRESS(MATCH(I64,#REF!,0)+43,3) ->  | R62: ="'BBB'!"&ADDRESS(MATCH(I64,#REF!,0)+7,2) ->  | S62: =ADDRESS(MATCH(I64,#REF!,0)+43,3) -> 
E63: HiB/Men C(%) | F63: HiB/Men C(%) | I63: (02) 24 MONTH COHORT | J63: ="Data!"&ADDRESS(MATCH(I63,#REF!,0)+7,2) ->  | K63: =ADDRESS(MATCH(I63,#REF!,0)+46,3) ->  | N63: ="'XX place'!"&ADDRESS(MATCH(I65,#REF!,0)+7,2) ->  | O63: =ADDRESS(MATCH(I65,#REF!,0)+43,3) ->  | R63: ="'BBB'!"&ADDRESS(MATCH(I65,#REF!,0)+7,2) ->  | S63: =ADDRESS(MATCH(I65,#REF!,0)+43,3) -> 
I64: (02.01) DTaP/IPV/Hib | J64: ="Data!"&ADDRESS(MATCH(I64,#REF!,0)+7,2) ->  | K64: =ADDRESS(MATCH(I64,#REF!,0)+46,3) ->  | N64: ="'XX place'!"&ADDRESS(MATCH(I66,#REF!,0)+7,2) ->  | O64: =ADDRESS(MATCH(I66,#REF!,0)+43,3) ->  | R64: ="'BBB'!"&ADDRESS(MATCH(I66,#REF!,0)+7,2) ->  | S64: =ADDRESS(MATCH(I66,#REF!,0)+43,3) -> 
I65: (02.02) MMR | J65: ="Data!"&ADDRESS(MATCH(I65,#REF!,0)+7,2) ->  | K65: =ADDRESS(MATCH(I65,#REF!,0)+46,3) ->  | N65: ="'XX place'!"&ADDRESS(MATCH(I67,#REF!,0)+7,2) ->  | O65: =ADDRESS(MATCH(I67,#REF!,0)+43,3) ->  | R65: ="'BBB'!"&ADDRESS(MATCH(I67,#REF!,0)+7,2) ->  | S65: =ADDRESS(MATCH(I67,#REF!,0)+43,3) -> 
I66: (02.03) HiB/Men C | J66: ="Data!"&ADDRESS(MATCH(I66,#REF!,0)+7,2) ->  | K66: =ADDRESS(MATCH(I66,#REF!,0)+46,3) ->  | N66: ="'XX place'!"&ADDRESS(MATCH(I68,#REF!,0)+7,2) ->  | O66: =ADDRESS(MATCH(I68,#REF!,0)+43,3) ->  | R66: ="'BBB'!"&ADDRESS(MATCH(I68,#REF!,0)+7,2) ->  | S66: =ADDRESS(MATCH(I68,#REF!,0)+43,3) -> 
E67: 3rd DTAP/IPV/Hib | F67: 'Control Panel'!$G$67:$G$69 | G67: (01) 12 MONTH COHORT | I67: (02.04) PCV (Booster) | J67: ="Data!"&ADDRESS(MATCH(I67,#REF!,0)+7,2) ->  | K67: =ADDRESS(MATCH(I67,#REF!,0)+46,3) ->  | N67: ="'XX place'!"&ADDRESS(MATCH(I69,#REF!,0)+7,2) ->  | O67: =ADDRESS(MATCH(I69,#REF!,0)+43,3) ->  | R67: ="'BBB'!"&ADDRESS(MATCH(I69,#REF!,0)+7,2) ->  | S67: =ADDRESS(MATCH(I69,#REF!,0)+43,3) -> 
E68: MMR 1 at 2years | F68: 'Control Panel'!$G$70:$G$72 | G68: (01.01) DTaP/IPV/Hib | I68: (03) 5 YEAR COHORT | J68: ="Data!"&ADDRESS(MATCH(I68,#REF!,0)+7,2) ->  | K68: =ADDRESS(MATCH(I68,#REF!,0)+46,3) ->  | N68: ="'XX place'!"&ADDRESS(MATCH(I70,#REF!,0)+7,2) ->  | O68: =ADDRESS(MATCH(I70,#REF!,0)+43,3) ->  | R68: ="'BBB'!"&ADDRESS(MATCH(I70,#REF!,0)+7,2) ->  | S68: =ADDRESS(MATCH(I70,#REF!,0)+43,3) -> 
E69: MMR 2 at 5yrs | F69: 'Control Panel'!$G$73:$G$75 | G69: DTaP/IPV/Hib(%) | I69: (03.01) DTaP/IPV/Hib | J69: ="Data!"&ADDRESS(MATCH(I69,#REF!,0)+7,2) ->  | K69: =ADDRESS(MATCH(I69,#REF!,0)+46,3) ->  | N69: ="'XX place'!"&ADDRESS(MATCH(I71,#REF!,0)+7,2) ->  | O69: =ADDRESS(MATCH(I71,#REF!,0)+43,3) ->  | R69: ="'BBB'!"&ADDRESS(MATCH(I71,#REF!,0)+7,2) ->  | S69: =ADDRESS(MATCH(I71,#REF!,0)+43,3) -> 
E70: 3rd DTAP/IPV/Hib at 1 year | F70: 'Control Panel'!$G$67:$G$69 | G70: (02) 24 MONTH COHORT | I70: (03.02) MMR (Primary) | J70: ="Data!"&ADDRESS(MATCH(I70,#REF!,0)+7,2) ->  | K70: =ADDRESS(MATCH(I70,#REF!,0)+46,3) ->  | N70: ="'XX place'!"&ADDRESS(MATCH(I72,#REF!,0)+7,2) ->  | O70: =ADDRESS(MATCH(I72,#REF!,0)+43,3) ->  | R70: ="'BBB'!"&ADDRESS(MATCH(I72,#REF!,0)+7,2) ->  | S70: =ADDRESS(MATCH(I72,#REF!,0)+43,3) -> 
E71: MMR 1 at 2 years | F71: 'Control Panel'!$G$70:$G$72 | G71: (02.02) MMR | I71: (03.03) DTaP/IPV (Booster) | J71: ="Data!"&ADDRESS(MATCH(I71,#REF!,0)+7,2) ->  | K71: =ADDRESS(MATCH(I71,#REF!,0)+46,3) ->  | N71: ="'XX place'!"&ADDRESS(MATCH(I73,#REF!,0)+7,2) ->  | O71: =ADDRESS(MATCH(I73,#REF!,0)+43,3) ->  | P71: =TEXT(N71&":"&O71,"") ->  | R71: ="'BBB'!"&ADDRESS(MATCH(I73,#REF!,0)+7,2) ->  | S71: =ADDRESS(MATCH(I73,#REF!,0)+43,3) -> 
E72: Pre-school booster at 5years | F72: 'Control Panel'!$G$76:$G$78 | G72: MMR(%) | I72: (03.04) HiB/Men C | J72: ="Data!"&ADDRESS(MATCH(I72,#REF!,0)+7,2) ->  | K72: =ADDRESS(MATCH(I72,#REF!,0)+46,3) -> 
G73: (03) 5 YEAR COHORT | I73: (03.05) MMR (Booster) | J73: ="Data!"&ADDRESS(MATCH(I73,#REF!,0)+7,2) ->  | K73: =ADDRESS(MATCH(I73,#REF!,0)+46,3) ->  | L73: =TEXT(J73&":"&K73,"") ->  | T73: =TEXT(R71&":"&S71,"") -> 
G74: (03.02) MMR (Primary)
G75: MMR (Primary)(%)
G76: (03) 5 YEAR COHORT
G77: (03.05) MMR (Booster) | I77: Waltham Forest | J77: Total | K77: Total
G78: MMR (Booster)(%) | H78: WF-1 | I78: Chingford/ Walthamstow | J78: WF-1 | K78: *WF-1
H79: WF-2 | I79: Chingford E4 | J79: WF-2 | K79: *WF-2
H80: WF-3 | I80: Leyton Collaborative | J80: WF-3 | K80: *WF-3
H81: WF-4 | I81: Forest Integrated Health | J81: WF-4 | K81: *WF-4
H82: WF-5 | I82: South Leytonstone | J82: WF-5 | K82: *WF-5
H83: WF-6 | I83: Central Walthamstow | J83: WF-6 | K83: *WF-6
H84: WF-7 | I84: Walthamstow West | J84: WF-7 | K84: *WF-7
A85: F86700 | B85: Kings Head Medical Practice | C85: WF | D85: Waltham Forest | E85: WF-1 | F85: Chingford E4 | H85: WF-1 | I85: Dr Shantir Practice | J85: F86626 | K85: WF-6
A86: F86664 | B86: Larkshall Medical Centre | C86: WF | D86: Waltham Forest | E86: WF-1 | F86: Chingford E4 | H86: WF-1 | I86: Kings Head Medical Practice | J86: F86700 | K86: WF-2
A87: F86638 | B87: The Microfaculty* | C87: WF | D87: Waltham Forest | E87: WF-1 | F87: Chingford E4 | H87: WF-1 | I87: Larkshall Medical Centre | J87: F86664 | K87: WF-2
A88: F86005 | B88: The Penryhn Surgery | C88: WF | D88: Waltham Forest | E88: WF-1 | F88: Chingford/ Walthamstow | H88: WF-1 | I88: Lime Tree & Sinnott Healthcare Ltd | J88: Y01839 | K88: WF-6
A89: F86626 | B89: Dr Shantir Practice | C89: WF | D89: Waltham Forest | E89: WF-1 | F89: Chingford/ Walthamstow | H89: WF-1 | I89: The Penryhn Surgery | J89: F86005 | K89: WF-4
A90: Y01839 | B90: Lime Tree & Sinnott Healthcare Ltd | C90: WF | D90: Waltham Forest | E90: WF-1 | F90: Chingford E4 | H90: WF-1 | I90: The Bailey Practice | J90: F86689 | K90: WF-6
A91: F86689 | B91: The Bailey Practice | C91: WF | D91: Waltham Forest | E91: WF-1 | F91: Chingford/ Walthamstow | H91: WF-2 | I91: Chingford Medical Practice | J91: Y01291 | K91: WF-1
A92: F86026 | B92: Forest Surgery* | C92: WF | D92: Waltham Forest | E92: WF-1 | F92: Leyton Collaborative | H92: WF-2 | I92: Churchill Medical Centre | J92: F86627 | K92: WF-4
A93: F86004 | B93: Handsworth Medical Centre* | C93: WF | D93: Waltham Forest | E93: WF-1 | F93: Forest Integrated Health | H93: WF-2 | I93: Old Church Surgery | J93: F86616 | K93: WF-5
A94: Y01291 | B94: Chingford Medical Practice | C94: WF | D94: Waltham Forest | E94: WF-2 | F94: Leyton Collaborative | H94: WF-2 | I94: The Ridgeway Surgery | J94: F86078 | K94: WF-4
A95: F86627 | B95: Churchill Medical Centre | C95: WF | D95: Waltham Forest | E95: WF-2 | F95: Forest Integrated Health | H95: WF-3 | I95: Sma Medical Centre | J95: F86038 | K95: WF-5
A96: F86078 | B96: The Ridgeway Surgery | C96: WF | D96: Waltham Forest | E96: WF-2 | F96: Forest Integrated Health | H96: WF-3 | I96: The Manor Practice | J96: F86011 | K96: WF-7
A97: F86616 | B97: Old Church Surgery | C97: WF | D97: Waltham Forest | E97: WF-2 | F97: South Leytonstone | H97: WF-4 | I97: Crawley Road Medical Centre | J97: F86044 | K97: WF-5
A98: F86011 | B98: The Manor Practice | C98: WF | D98: Waltham Forest | E98: WF-3 | F98: Forest Integrated Health | H98: WF-4 | I98: Francis Road Medical Centre | J98: F86696 | K98: WF-5
A99: F86038 | B99: Sma Medical Centre | C99: WF | D99: Waltham Forest | E99: WF-3 | F99: South Leytonstone | H99: WF-4 | I99: Hampton Medical Centre | J99: F86712 | K99: WF-5
A100: F86074 | B100: Leyton Healthcare (Oliver Road)* | C100: WF | D100: Waltham Forest | E100: WF-3 | F100: South Leytonstone | H100: WF-4 | I100: Lime Tree Surgery | J100: F86650 | K100: WF-1
A101: F86036 | B101: The Allum Medical Centre | C101: WF | D101: Waltham Forest | E101: WF-4 | F101: Forest Integrated Health | H101: WF-4 | I101: The Allum Medical Centre | J101: F86036 | K101: WF-1
A102: F86044 | B102: Crawley Road Medical Centre | C102: WF | D102: Waltham Forest | E102: WF-4 | F102: South Leytonstone | H102: WF-4 | I102: The Lyndhurst Surgery | J102: F86088 | K102: WF-4
A103: F86696 | B103: Francis Road Medical Centre | C103: WF | D103: Waltham Forest | E103: WF-4 | F103: South Leytonstone | H103: WF-5 | I103: Green Man Medical Centre | J103: F86621 | K103: WF-1
A104: F86712 | B104: Hampton Medical Centre | C104: WF | D104: Waltham Forest | E104: WF-4 | F104: South Leytonstone | H104: WF-5 | I104: High Road Surgery | J104: F86045 | K104: WF-7
A105: F86650 | B105: Lime Tree Surgery | C105: WF | D105: Waltham Forest | E105: WF-4 | F105: Forest Integrated Health | H105: WF-5 | I105: Kiyani Medical Practice | J105: F86701 | K105: WF-7
A106: F86088 | B106: The Lyndhurst Surgery | C106: WF | D106: Waltham Forest | E106: WF-4 | F106: Leyton Collaborative | H106: WF-5 | I106: LL Medical Care (Agarwal & Agrwal Practice) | J106: F86625 | K106: WF-3
A107: F86018 | B107: The Ecclesbourne Practice* | C107: WF | D107: Waltham Forest | E107: WF-4 | F107: Leyton Collaborative | H107: WF-5 | I107: The Langthorne Sharma Family Practice | J107: F86705 | K107: WF-7
A108: F86621 | B108: Green Man Medical Centre | C108: WF | D108: Waltham Forest | E108: WF-5 | F108: Forest Integrated Health | H108: WF-5 | I108: The Harrow Road Surgery | J108: F86666 | K108: WF-4
A109: F86045 | B109: High Road Surgery | C109: WF | D109: Waltham Forest | E109: WF-5 | F109: Central Walthamstow | H109: WF-6 | I109: Addison Road Medical Practice | J109: F86607 | K109: WF-1
A110: F86701 | B110: Kiyani Medical Practice | C110: WF | D110: Waltham Forest | E110: WF-5 | F110: Central Walthamstow | H110: WF-6 | I110: Claremont Medical Centre | J110: F86708 | K110: WF-6
A111: F86625 | B111: LL Medical Care (Agarwal & Agrwal Practice) | C111: WF | D111: Waltham Forest | E111: WF-5 | F111: Central Walthamstow | H111: WF-6 | I111: Dr Dhital Practice | J111: F86086 | K111: WF-7
A112: F86666 | B112: The Harrow Road Surgery | C112: WF | D112: Waltham Forest | E112: WF-5 | F112: Chingford/ Walthamstow | H112: WF-6 | I112: The Firs | J112: F86001 | K112: WF-5
A113: F86705 | B113: The Langthorne Sharma Family Practice | C113: WF | D113: Waltham Forest | E113: WF-5 | F113: Central Walthamstow | H113: WF-6 | I113: Waltham Forest Community & Family Health Services Ltd | J113: F86644 | K113: WF-4
A114: F86607 | B114: Addison Road Medical Practice | C114: WF | D114: Waltham Forest | E114: WF-6 | F114: Walthamstow West | H114: WF-7 | I114: Higham Hill Medical Centre | J114: F86679 | K114: WF-3
A115: F86708 | B115: Claremont Medical Centre | C115: WF | D115: Waltham Forest | E115: WF-6 | F115: Chingford/ Walthamstow | H115: WF-7 | I115: Queens Road Medical Centre | J115: F86030 | K115: WF-2
A116: F86001 | B116: The Firs | C116: WF | D116: Waltham Forest | E116: WF-6 | F116: Walthamstow West | H116: WF-7 | I116: Seymour Medical centre | J116: F86006 | K116: WF-3
A117: F86086 | B117: Dr Dhital Practice | C117: WF | D117: Waltham Forest | E117: WF-6 | F117: Walthamstow West | H117: WF-7 | I117: St James Medical Practice Ltd | J117: F86058 | K117: WF-2
A118: F86644 | B118: Waltham Forest Community & Family Health Services Ltd | C118: WF | D118: Waltham Forest | E118: WF-6 | F118: Walthamstow West | H118: WF-7 | I118: The Grove Road Medical Centre | J118: F86062 | K118: WF-6
A119: F86006 | B119: Seymour Medical centre | C119: WF | D119: Waltham Forest | E119: WF-7 | F119: Chingford/ Walthamstow
A120: F86030 | B120: Queens Road Medical Centre | C120: WF | D120: Waltham Forest | E120: WF-7 | F120: Walthamstow West
A121: F86062 | B121: The Grove Road Medical Centre | C121: WF | D121: Waltham Forest | E121: WF-7 | F121: Chingford/ Walthamstow
A122: F86679 | B122: Higham Hill Medical Centre | C122: WF | D122: Waltham Forest | E122: WF-7 | F122: Central Walthamstow
A123: F86058 | B123: St James Medical Practice Ltd | C123: WF | D123: Waltham Forest | E123: WF-7 | F123: Chingford/ Walthamstow
F124: Chingford/ Walthamstow
B132: =VLOOKUP(D132,$B$13:$C$47,2,FALSE) -> F86700 | C132: F86700 | D132: Kings Head Medical Practice | G132: F86700 | H132: Kings Head Medical Practice | I132: WF | J132: Waltham Forest | K132: WF-1
B133: =VLOOKUP(D133,$B$13:$C$47,2,FALSE) -> F86664 | C133: F86664 | D133: Larkshall Medical Centre | G133: F86664 | H133: Larkshall Medical Centre | I133: WF | J133: Waltham Forest | K133: WF-1
C134: F86638 | D134: The Microfaculty | G134: F86638 | H134: The Microfaculty | I134: WF | J134: Waltham Forest | K134: WF-1
B135: F86005 | C135: F86005 | D135: The Penryhn Surgery | G135: F86005 | H135: The Penryhn Surgery | I135: WF | J135: Waltham Forest | K135: WF-1
B136: F86626 | C136: F86626 | D136: Dr Shantir Practice | G136: F86626 | H136: Dr Shantir Practice | I136: WF | J136: Waltham Forest | K136: WF-1
B137: Y01839 | C137: Y01839 | D137: Lime Tree & Sinnott Healthcare Ltd | G137: Y01839 | H137: Lime Tree & Sinnott Healthcare Ltd | I137: WF | J137: Waltham Forest | K137: WF-1
B138: F86689 | C138: F86689 | D138: The Bailey Practice | G138: F86689 | H138: The Bailey Practice | I138: WF | J138: Waltham Forest | K138: WF-1
C139: F86026 | D139: Forest Surgery | G139: F86026 | H139: Forest Surgery | I139: WF | J139: Waltham Forest | K139: WF-1
C140: F86004 | D140: Handsworth Medical Centre | G140: F86004 | H140: Handsworth Medical Centre | I140: WF | J140: Waltham Forest | K140: WF-2
B141: Y01291 | C141: Y01291 | D141: Chingford Medical Practice | G141: Y01291 | H141: Chingford Medical Practice | I141: WF | J141: Waltham Forest | K141: WF-2
B142: F86627 | C142: F86627 | D142: Churchill Medical Centre | G142: F86627 | H142: Churchill Medical Centre | I142: WF | J142: Waltham Forest | K142: WF-2
B143: F86078 | C143: F86078 | D143: The Ridgeway Surgery | G143: F86078 | H143: The Ridgeway Surgery | I143: WF | J143: Waltham Forest | K143: WF-2
B144: F86616 | C144: F86616 | D144: Old Church Surgery | G144: F86616 | H144: Old Church Surgery | I144: WF | J144: Waltham Forest | K144: WF-2
B145: F86011 | C145: F86011 | D145: The Manor Practice | G145: F86011 | H145: The Manor Practice | I145: WF | J145: Waltham Forest | K145: WF-3
B146: F86038 | C146: F86038 | D146: Sma Medical Centre | G146: F86038 | H146: Sma Medical Centre | I146: WF | J146: Waltham Forest | K146: WF-3
C147: Y02585 | D147: The Orient Practice | G147: Y02585 | H147: The Orient Practice | I147: WF | J147: Waltham Forest | K147: WF-3
C148: F86074 | D148: Leyton Healthcare (Oliver Road) | G148: F86074 | H148: Leyton Healthcare (Oliver Road) | I148: WF | J148: Waltham Forest | K148: WF-3
B149: F86036 | C149: F86036 | D149: The Allum Medical Centre | G149: F86036 | H149: The Allum Medical Centre | I149: WF | J149: Waltham Forest | K149: WF-4
B150: F86044 | C150: F86044 | D150: Crawley Road Medical Centre | G150: F86044 | H150: Crawley Road Medical Centre | I150: WF | J150: Waltham Forest | K150: WF-4
B151: F86696 | C151: F86696 | D151: Francis Road Medical Centre | G151: F86696 | H151: Francis Road Medical Centre | I151: WF | J151: Waltham Forest | K151: WF-4
B152: F86712 | C152: F86712 | D152: Hampton Medical Centre | G152: F86712 | H152: Hampton Medical Centre | I152: WF | J152: Waltham Forest | K152: WF-4
B153: F86650 | C153: F86650 | D153: Lime Tree Surgery | G153: F86650 | H153: Lime Tree Surgery | I153: WF | J153: Waltham Forest | K153: WF-4
B154: F86088 | C154: F86088 | D154: The Lyndhurst Surgery | G154: F86088 | H154: The Lyndhurst Surgery | I154: WF | J154: Waltham Forest | K154: WF-4
C155: F86018 | D155: The Ecclesbourne Practice | G155: F86018 | H155: The Ecclesbourne Practice | I155: WF | J155: Waltham Forest | K155: WF-4
B156: F86621 | C156: F86621 | D156: Green Man Medical Centre | G156: F86621 | H156: Green Man Medical Centre | I156: WF | J156: Waltham Forest | K156: WF-5
B157: F86045 | C157: F86045 | D157: High Road Surgery | G157: F86045 | H157: High Road Surgery | I157: WF | J157: Waltham Forest | K157: WF-5
B158: F86701 | C158: F86701 | D158: Kiyani Medical Practice | G158: F86701 | H158: Kiyani Medical Practice | I158: WF | J158: Waltham Forest | K158: WF-5
B159: F86625 | C159: F86625 | D159: LL Medical Care (Agarwal & Agrwal Practice) | G159: F86625 | H159: LL Medical Care (Agarwal & Agrwal Practice) | I159: WF | J159: Waltham Forest | K159: WF-5
B160: F86666 | C160: F86666 | D160: The Harrow Road Surgery | G160: F86666 | H160: The Harrow Road Surgery | I160: WF | J160: Waltham Forest | K160: WF-5
B161: F86705 | C161: F86705 | D161: The Langthorne Sharma Family Practice | G161: F86705 | H161: The Langthorne Sharma Family Practice | I161: WF | J161: Waltham Forest | K161: WF-5
B162: F86607 | C162: F86607 | D162: Addison Road Medical Practice | G162: F86607 | H162: Addison Road Medical Practice | I162: WF | J162: Waltham Forest | K162: WF-6
B163: F86708 | C163: F86708 | D163: Claremont Medical Centre | G163: F86708 | H163: Claremont Medical Centre | I163: WF | J163: Waltham Forest | K163: WF-6
B164: F86001 | C164: F86001 | D164: The Firs | G164: F86001 | H164: The Firs | I164: WF | J164: Waltham Forest | K164: WF-6
B165: F86086 | C165: F86086 | D165: Dr Dhital Practice | G165: F86086 | H165: Dr Dhital Practice | I165: WF | J165: Waltham Forest | K165: WF-6
B166: F86644 | C166: F86644 | D166: Waltham Forest Community & Family Health Services Ltd | G166: F86644 | H166: Waltham Forest Community & Family Health Services Ltd | I166: WF | J166: Waltham Forest | K166: WF-6
B167: F86006 | C167: F86006 | D167: Seymour Medical Centre | G167: F86006 | H167: Seymour Medical Centre | I167: WF | J167: Waltham Forest | K167: WF-7
B168: F86030 | C168: F86030 | D168: Queens Road Medical Centre | G168: F86030 | H168: Queens Road Medical Centre | I168: WF | J168: Waltham Forest | K168: WF-7
B169: F86062 | C169: F86062 | D169: Grove Surgery | G169: F86062 | H169: Grove Surgery | I169: WF | J169: Waltham Forest | K169: WF-7
B170: F86679 | C170: F86679 | D170: Higham Hill Medical Centre | G170: F86679 | H170: Higham Hill Medical Centre | I170: WF | J170: Waltham Forest | K170: WF-7
B171: F86058 | C171: F86058 | D171: St James Medical Practice Ltd | G171: F86058 | H171: St James Medical Practice Ltd | I171: WF | J171: Waltham Forest | K171: WF-7

Sheet Data (hidden)
A1: 2019-04-01 | B1: =VLOOKUP(J1,'Control Panel'!$G$132:$K$171,5,FALSE) ->  | C1: Childhood Immunisations Q1 | E1: Last Run: | G1: Population Count | H1: 283256 | K1: Search | L1: All Patients | M1: (01) 12 MONTH COHORT | N1: (01.01) DTaP/IPV/Hib 6in1 | O1: (01.02) Men B (1st and 2nd) | P1: (01.03) PCV | Q1: (01.04) Rotavirus | R1: (01.05) BCG | S1: (02) 24 MONTH COHORT | T1: (02.01) DTaP/IPV/Hib or DTaP/IPV/Hib/HepB | U1: (02.02) MMR | V1: (02.03) HiB/Men C | W1: (02.04) PCV (Booster) | X1: (02.05) Men B (Booster) | Y1: (03) 5 YEAR COHORT | Z1: (03.01) DTaP/IPV/Hib or DTaP/IPV/Hib/HepB | AA1: (03.02) MMR (Primary) | AB1: (03.03) DTaP/IPV (Booster) | AC1: (03.04) HiB/Men C | AD1: (03.05) MMR (Booster)
A2: 2019-04-01 | B2: =VLOOKUP(J2,'Control Panel'!$G$132:$K$171,5,FALSE) ->  | E2: 2019-05-14T11:19:00 | G2: Males | H2: 144492 | J2: Organisation Code
A3: 2019-04-01 | B3: =VLOOKUP(J3,'Control Panel'!$G$132:$K$171,5,FALSE) -> WF-6 | C3: WF | E3: Relative Date: | G3: Females | H3: 138764 | J3: F86001 | L3: 7940 | M3: 21 | N3: 21 | O3: 21 | P3: 21 | Q3: 19 | R3: 3 | S3: 30 | T3: 25 | U3: 20 | V3: 20 | W3: 20 | X3: 20 | Y3: 22 | Z3: 17 | AA3: 15 | AB3: 10 | AC3: 16 | AD3: 12
A4: 2019-04-01 | B4: =VLOOKUP(J4,'Control Panel'!$G$132:$K$171,5,FALSE) -> WF-1 | C4: WF | E4: 2019-05-01 | J4: F86005 | L4: 8200 | M4: 54 | N4: 45 | O4: 45 | P4: 46 | Q4: 47 | R4: 3 | S4: 31 | T4: 31 | U4: 30 | V4: 29 | W4: 29 | X4: 30 | Y4: 28 | Z4: 27 | AA4: 26 | AB4: 19 | AC4: 26 | AD4: 20
A5: 2019-04-01 | B5: =VLOOKUP(J5,'Control Panel'!$G$132:$K$171,5,FALSE) -> WF-7 | C5: WF | J5: F86006 | L5: 6199 | M5: 23 | N5: 17 | O5: 17 | P5: 17 | Q5: 18 | R5: 3 | S5: 26 | T5: 24 | U5: 22 | V5: 22 | W5: 23 | X5: 22 | Y5: 19 | Z5: 17 | AA5: 16 | AB5: 11 | AC5: 15 | AD5: 11
A6: 2019-04-01 | B6: =VLOOKUP(J6,'Control Panel'!$G$132:$K$171,5,FALSE) -> WF-3 | C6: WF | J6: F86011 | L6: 9264 | M6: 29 | N6: 22 | O6: 23 | P6: 23 | Q6: 20 | R6: 2 | S6: 28 | T6: 23 | U6: 21 | V6: 20 | W6: 21 | X6: 20 | Y6: 17 | Z6: 14 | AA6: 15 | AB6: 14 | AC6: 14 | AD6: 14
A7: 2019-04-01 | B7: =VLOOKUP(J7,'Control Panel'!$G$132:$K$171,5,FALSE) -> WF-7 | C7: WF | J7: F86030 | L7: 8091 | M7: 39 | N7: 34 | O7: 34 | P7: 35 | Q7: 33 | R7: 13 | S7: 41 | T7: 40 | U7: 40 | V7: 40 | W7: 40 | X7: 40 | Y7: 22 | Z7: 20 | AA7: 21 | AB7: 18 | AC7: 21 | AD7: 20
A8: 2019-04-01 | B8: =VLOOKUP(J8,'Control Panel'!$G$132:$K$171,5,FALSE) -> WF-4 | C8: WF | J8: F86036 | L8: 15793 | M8: 44 | N8: 41 | O8: 41 | P8: 41 | Q8: 40 | R8: 20 | S8: 50 | T8: 48 | U8: 45 | V8: 45 | W8: 45 | X8: 45 | Y8: 43 | Z8: 39 | AA8: 40 | AB8: 38 | AC8: 39 | AD8: 37
A9: 2019-04-01 | B9: =VLOOKUP(J9,'Control Panel'!$G$132:$K$171,5,FALSE) -> WF-3 | C9: WF | J9: F86038 | L9: 10989 | M9: 47 | N9: 37 | O9: 37 | P9: 38 | Q9: 37 | R9: 3 | S9: 43 | T9: 38 | U9: 34 | V9: 35 | W9: 35 | X9: 34 | Y9: 38 | Z9: 32 | AA9: 32 | AB9: 24 | AC9: 30 | AD9: 25
A10: 2019-04-01 | B10: =VLOOKUP(J10,'Control Panel'!$G$132:$K$171,5,FALSE) -> WF-4 | C10: WF | J10: F86044 | L10: 8955 | M10: 35 | N10: 27 | O10: 27 | P10: 27 | Q10: 26 | R10: 7 | S10: 35 | T10: 27 | U10: 25 | V10: 26 | W10: 26 | X10: 25 | Y10: 22 | Z10: 16 | AA10: 17 | AB10: 13 | AC10: 16 | AD10: 14
A11: 2019-04-01 | B11: =VLOOKUP(J11,'Control Panel'!$G$132:$K$171,5,FALSE) -> WF-5 | C11: WF | J11: F86045 | L11: 1912 | M11: 4 | N11: 4 | O11: 3 | P11: 4 | Q11: 4 | R11: 2 | S11: 0 | T11: 0 | U11: 0 | V11: 0 | W11: 0 | X11: 0 | Y11: 4 | Z11: 4 | AA11: 4 | AB11: 4 | AC11: 3 | AD11: 4
A12: 2019-04-01 | B12: =VLOOKUP(J12,'Control Panel'!$G$132:$K$171,5,FALSE) -> WF-7 | C12: WF | J12: F86058 | L12: 15128 | M12: 65 | N12: 51 | O12: 51 | P12: 51 | Q12: 53 | R12: 12 | S12: 68 | T12: 55 | U12: 51 | V12: 51 | W12: 52 | X12: 52 | Y12: 62 | Z12: 55 | AA12: 52 | AB12: 42 | AC12: 53 | AD12: 44
A13: 2019-04-01 | B13: =VLOOKUP(J13,'Control Panel'!$G$132:$K$171,5,FALSE) -> WF-7 | C13: WF | J13: F86062 | L13: 7084 | M13: 28 | N13: 24 | O13: 24 | P13: 25 | Q13: 25 | R13: 9 | S13: 21 | T13: 19 | U13: 16 | V13: 16 | W13: 16 | X13: 16 | Y13: 22 | Z13: 20 | AA13: 20 | AB13: 14 | AC13: 19 | AD13: 15
A14: 2019-04-01 | B14: =VLOOKUP(J14,'Control Panel'!$G$132:$K$171,5,FALSE) -> WF-2 | C14: WF | J14: F86078 | L14: 7360 | M14: 14 | N14: 13 | O14: 13 | P14: 13 | Q14: 10 | R14: 6 | S14: 13 | T14: 13 | U14: 12 | V14: 12 | W14: 12 | X14: 12 | Y14: 18 | Z14: 18 | AA14: 17 | AB14: 11 | AC14: 17 | AD14: 14
A15: 2019-04-01 | B15: =VLOOKUP(J15,'Control Panel'!$G$132:$K$171,5,FALSE) -> WF-6 | C15: WF | J15: F86086 | L15: 5885 | M15: 22 | N15: 20 | O15: 20 | P15: 20 | Q15: 19 | R15: 7 | S15: 30 | T15: 26 | U15: 22 | V15: 22 | W15: 22 | X15: 22 | Y15: 21 | Z15: 6 | AA15: 18 | AB15: 12 | AC15: 17 | AD15: 14
A16: 2019-04-01 | B16: =VLOOKUP(J16,'Control Panel'!$G$132:$K$171,5,FALSE) -> WF-4 | C16: WF | J16: F86088 | L16: 4746 | M16: 11 | N16: 9 | O16: 9 | P16: 9 | Q16: 9 | R16: 1 | S16: 7 | T16: 6 | U16: 3 | V16: 3 | W16: 4 | X16: 3 | Y16: 5 | Z16: 3 | AA16: 4 | AB16: 3 | AC16: 5 | AD16: 3
A17: 2019-04-01 | B17: =VLOOKUP(J17,'Control Panel'!$G$132:$K$171,5,FALSE) -> WF-6 | C17: WF | J17: F86607 | L17: 14154 | M17: 55 | N17: 48 | O17: 48 | P17: 49 | Q17: 48 | R17: 22 | S17: 48 | T17: 45 | U17: 42 | V17: 44 | W17: 42 | X17: 43 | Y17: 48 | Z17: 46 | AA17: 43 | AB17: 38 | AC17: 42 | AD17: 45
A18: 2019-04-01 | B18: =VLOOKUP(J18,'Control Panel'!$G$132:$K$171,5,FALSE) -> WF-2 | C18: WF | J18: F86616 | L18: 6670 | M18: 18 | N18: 13 | O18: 13 | P18: 15 | Q18: 15 | R18: 1 | S18: 45 | T18: 39 | U18: 36 | V18: 37 | W18: 37 | X18: 35 | Y18: 15 | Z18: 13 | AA18: 12 | AB18: 11 | AC18: 11 | AD18: 10
A19: 2019-04-01 | B19: =VLOOKUP(J19,'Control Panel'!$G$132:$K$171,5,FALSE) -> WF-5 | C19: WF | J19: F86621 | L19: 5674 | M19: 19 | N19: 17 | O19: 18 | P19: 18 | Q19: 19 | R19: 7 | S19: 22 | T19: 21 | U19: 20 | V19: 20 | W19: 20 | X19: 19 | Y19: 12 | Z19: 2 | AA19: 2 | AB19: 8 | AC19: 2 | AD19: 9
A20: 2019-04-01 | B20: =VLOOKUP(J20,'Control Panel'!$G$132:$K$171,5,FALSE) -> WF-5 | C20: WF | J20: F86625 | L20: 6111 | M20: 15 | N20: 12 | O20: 12 | P20: 12 | Q20: 12 | R20: 4 | S20: 19 | T20: 17 | U20: 17 | V20: 17 | W20: 17 | X20: 17 | Y20: 18 | Z20: 17 | AA20: 15 | AB20: 13 | AC20: 4 | AD20: 14
A21: 2019-04-01 | B21: =VLOOKUP(J21,'Control Panel'!$G$132:$K$171,5,FALSE) -> WF-1 | C21: WF | J21: F86626 | L21: 5297 | M21: 14 | N21: 11 | O21: 11 | P21: 11 | Q21: 13 | R21: 4 | S21: 13 | T21: 13 | U21: 10 | V21: 10 | W21: 11 | X21: 11 | Y21: 22 | Z21: 22 | AA21: 18 | AB21: 15 | AC21: 13 | AD21: 15
A22: 2019-04-01 | B22: =VLOOKUP(J22,'Control Panel'!$G$132:$K$171,5,FALSE) -> WF-2 | C22: WF | J22: F86627 | L22: 13888 | M22: 35 | N22: 31 | O22: 29 | P22: 31 | Q22: 27 | R22: 11 | S22: 33 | T22: 33 | U22: 28 | V22: 29 | W22: 29 | X22: 29 | Y22: 42 | Z22: 36 | AA22: 36 | AB22: 35 | AC22: 35 | AD22: 35
A23: 2019-04-01 | B23: =VLOOKUP(J23,'Control Panel'!$G$132:$K$171,5,FALSE) -> WF-6 | C23: WF | J23: F86644 | L23: 10867 | M23: 34 | N23: 25 | O23: 25 | P23: 26 | Q23: 24 | R23: 6 | S23: 39 | T23: 36 | U23: 28 | V23: 28 | W23: 30 | X23: 30 | Y23: 37 | Z23: 32 | AA23: 34 | AB23: 18 | AC23: 30 | AD23: 27
A24: 2019-04-01 | B24: =VLOOKUP(J24,'Control Panel'!$G$132:$K$171,5,FALSE) -> WF-4 | C24: WF | J24: F86650 | L24: 8202 | M24: 32 | N24: 24 | O24: 24 | P24: 24 | Q24: 23 | R24: 3 | S24: 29 | T24: 26 | U24: 24 | V24: 24 | W24: 24 | X24: 23 | Y24: 24 | Z24: 20 | AA24: 19 | AB24: 11 | AC24: 20 | AD24: 11
A25: 2019-04-01 | B25: =VLOOKUP(J25,'Control Panel'!$G$132:$K$171,5,FALSE) -> WF-1 | C25: WF | J25: F86664 | L25: 8332 | M25: 25 | N25: 22 | O25: 21 | P25: 22 | Q25: 23 | R25: 2 | S25: 27 | T25: 25 | U25: 23 | V25: 23 | W25: 24 | X25: 23 | Y25: 32 | Z25: 30 | AA25: 27 | AB25: 28 | AC25: 28 | AD25: 28
A26: 2019-04-01 | B26: =VLOOKUP(J26,'Control Panel'!$G$132:$K$171,5,FALSE) -> WF-5 | C26: WF | J26: F86666 | L26: 14133 | M26: 43 | N26: 39 | O26: 38 | P26: 38 | Q26: 38 | R26: 14 | S26: 44 | T26: 41 | U26: 38 | V26: 39 | W26: 39 | X26: 39 | Y26: 52 | Z26: 43 | AA26: 44 | AB26: 41 | AC26: 43 | AD26: 43
A27: 2019-04-01 | B27: =VLOOKUP(J27,'Control Panel'!$G$132:$K$171,5,FALSE) -> WF-7 | C27: WF | J27: F86679 | L27: 5757 | M27: 30 | N27: 27 | O27: 25 | P27: 26 | Q27: 27 | R27: 9 | S27: 21 | T27: 18 | U27: 19 | V27: 19 | W27: 20 | X27: 19 | Y27: 18 | Z27: 6 | AA27: 7 | AB27: 11 | AC27: 8 | AD27: 13
A28: 2019-04-01 | B28: =VLOOKUP(J28,'Control Panel'!$G$132:$K$171,5,FALSE) -> WF-1 | C28: WF | J28: F86689 | L28: 4059 | M28: 36 | N28: 36 | O28: 35 | P28: 36 | Q28: 36 | R28: 9 | S28: 30 | T28: 25 | U28: 24 | V28: 25 | W28: 25 | X28: 25 | Y28: 13 | Z28: 7 | AA28: 11 | AB28: 8 | AC28: 11 | AD28: 8
A29: 2019-04-01 | B29: =VLOOKUP(J29,'Control Panel'!$G$132:$K$171,5,FALSE) -> WF-4 | C29: WF | J29: F86696 | L29: 5139 | M29: 11 | N29: 10 | O29: 10 | P29: 11 | Q29: 10 | R29: 0 | S29: 18 | T29: 13 | U29: 13 | V29: 14 | W29: 13 | X29: 12 | Y29: 18 | Z29: 16 | AA29: 16 | AB29: 12 | AC29: 16 | AD29: 14
A30: 2019-04-01 | B30: =VLOOKUP(J30,'Control Panel'!$G$132:$K$171,5,FALSE) -> WF-1 | C30: WF | J30: F86700 | L30: 3772 | M30: 13 | N30: 12 | O30: 12 | P30: 12 | Q30: 12 | R30: 3 | S30: 11 | T30: 11 | U30: 10 | V30: 10 | W30: 10 | X30: 9 | Y30: 15 | Z30: 15 | AA30: 15 | AB30: 14 | AC30: 15 | AD30: 15
A31: 2019-04-01 | B31: =VLOOKUP(J31,'Control Panel'!$G$132:$K$171,5,FALSE) -> WF-5 | C31: WF | J31: F86701 | L31: 3282 | M31: 9 | N31: 9 | O31: 9 | P31: 9 | Q31: 9 | R31: 1 | S31: 9 | T31: 9 | U31: 9 | V31: 9 | W31: 9 | X31: 9 | Y31: 11 | Z31: 6 | AA31: 6 | AB31: 8 | AC31: 5 | AD31: 9
A32: 2019-04-01 | B32: =VLOOKUP(J32,'Control Panel'!$G$132:$K$171,5,FALSE) -> WF-5 | C32: WF | J32: F86705 | L32: 3029 | M32: 14 | N32: 13 | O32: 13 | P32: 13 | Q32: 13 | R32: 10 | S32: 10 | T32: 10 | U32: 8 | V32: 6 | W32: 6 | X32: 7 | Y32: 10 | Z32: 10 | AA32: 10 | AB32: 9 | AC32: 9 | AD32: 9
A33: 2019-04-01 | B33: =VLOOKUP(J33,'Control Panel'!$G$132:$K$171,5,FALSE) -> WF-6 | C33: WF | J33: F86708 | L33: 2776 | M33: 9 | N33: 9 | O33: 9 | P33: 9 | Q33: 8 | R33: 6 | S33: 9 | T33: 8 | U33: 7 | V33: 7 | W33: 7 | X33: 7 | Y33: 4 | Z33: 4 | AA33: 3 | AB33: 2 | AC33: 3 | AD33: 2
A34: 2019-04-01 | B34: =VLOOKUP(J34,'Control Panel'!$G$132:$K$171,5,FALSE) -> WF-4 | C34: WF | J34: F86712 | L34: 3085 | M34: 4 | N34: 3 | O34: 3 | P34: 3 | Q34: 3 | R34: 1 | S34: 7 | T34: 6 | U34: 6 | V34: 6 | W34: 6 | X34: 6 | Y34: 8 | Z34: 2 | AA34: 6 | AB34: 5 | AC34: 6 | AD34: 6
A35: 2019-04-01 | B35: =VLOOKUP(J35,'Control Panel'!$G$132:$K$171,5,FALSE) -> WF-2 | C35: WF | J35: Y01291 | L35: 8792 | M35: 24 | N35: 23 | O35: 23 | P35: 23 | Q35: 19 | R35: 4 | S35: 32 | T35: 30 | U35: 29 | V35: 29 | W35: 29 | X35: 29 | Y35: 33 | Z35: 33 | AA35: 32 | AB35: 30 | AC35: 31 | AD35: 30
A36: 2019-04-01 | B36: =VLOOKUP(J36,'Control Panel'!$G$132:$K$171,5,FALSE) -> WF-1 | C36: WF | J36: Y01839 | L36: 6549 | M36: 32 | N36: 27 | O36: 27 | P36: 27 | Q36: 27 | R36: 8 | S36: 23 | T36: 22 | U36: 20 | V36: 21 | W36: 21 | X36: 21 | Y36: 30 | Z36: 28 | AA36: 28 | AB36: 24 | AC36: 28 | AD36: 24
A37: 2019-04-01 | B37: =VLOOKUP(J37,'Control Panel'!$G$132:$K$171,5,FALSE) -> WF-3 | C37: WF | J37: Y02585 | L37: 8112 | M37: 30 | N37: 21 | O37: 20 | P37: 21 | Q37: 20 | R37: 13 | S37: 36 | T37: 30 | U37: 23 | V37: 23 | W37: 25 | X37: 26 | Y37: 31 | Z37: 30 | AA37: 28 | AB37: 24 | AC37: 29 | AD37: 25
A38: 2019-04-01 | B38: =VLOOKUP(J38,'Control Panel'!$G$132:$K$171,5,FALSE) ->  | J38: Total | L38: 269627 | M38: 950 | N38: 809 | O38: 801 | P38: 818 | Q38: 798 | R38: 236 | S38: 960 | T38: 864 | U38: 785 | V38: 791 | W38: 799 | X38: 790 | Y38: 848 | Z38: 716 | AA38: 719 | AB38: 607 | AC38: 690 | AD38: 648
A39: 2019-03-01 | B39: =VLOOKUP(J39,'Control Panel'!$G$132:$K$171,5,FALSE) ->  | C39: Childhood Immunisations Q4 | E39: Last Run: | G39: Population Count | H39: 281164 | K39: Search | L39: All Patients | M39: (01) 12 MONTH COHORT | N39: (01.01) DTaP/IPV/Hib 6in1 | O39: (01.02) Men B (1st and 2nd) | P39: (01.03) PCV | Q39: (01.04) Rotavirus | R39: (01.05) BCG | S39: (02) 24 MONTH COHORT | T39: (02.01) DTaP/IPV/Hib Combined | U39: (02.02) MMR | V39: (02.03) HiB/Men C | W39: (02.04) PCV (Booster) | X39: (02.05) Men B (Booster) | Y39: (03) 5 YEAR COHORT | Z39: (03.01) DTaP/IPV/Hib Combined | AA39: (03.02) MMR (Primary) | AB39: (03.03) DTaP/IPV (Booster) | AC39: (03.04) HiB/Men C | AD39: (03.05) MMR (Booster)
A40: 2019-03-01 | B40: =VLOOKUP(J40,'Control Panel'!$G$132:$K$171,5,FALSE) ->  | E40: 2019-05-14T13:20:00 | G40: Males | H40: 143400 | J40: Organisation Code
A41: 2019-03-01 | B41: =VLOOKUP(J41,'Control Panel'!$G$132:$K$171,5,FALSE) ->  | E41: Relative Date: | G41: Females | H41: 137764 | J41: F84676 | L41: 4393 | M41: 10 | N41: 10 | O41: 10 | P41: 10 | Q41: 10 | R41: 1 | S41: 16 | T41: 14 | U41: 14 | V41: 14 | W41: 14 | X41: 14 | Y41: 19 | Z41: 18 | AA41: 18 | AB41: 19 | AC41: 18 | AD41: 18
A42: 2019-03-01 | B42: =VLOOKUP(J42,'Control Panel'!$G$132:$K$171,5,FALSE) -> WF-6 | C42: WF | E42: 2019-04-01 | J42: F86001 | L42: 7948 | M42: 18 | N42: 17 | O42: 17 | P42: 17 | Q42: 16 | R42: 7 | S42: 33 | T42: 32 | U42: 27 | V42: 27 | W42: 29 | X42: 29 | Y42: 18 | Z42: 18 | AA42: 12 | AB42: 15 | AC42: 18 | AD42: 17
A43: 2019-03-01 | B43: =VLOOKUP(J43,'Control Panel'!$G$132:$K$171,5,FALSE) -> WF-1 | C43: WF | J43: F86005 | L43: 8169 | M43: 43 | N43: 39 | O43: 38 | P43: 41 | Q43: 39 | R43: 4 | S43: 36 | T43: 34 | U43: 32 | V43: 31 | W43: 31 | X43: 30 | Y43: 29 | Z43: 10 | AA43: 27 | AB43: 22 | AC43: 24 | AD43: 25
A44: 2019-03-01 | B44: =VLOOKUP(J44,'Control Panel'!$G$132:$K$171,5,FALSE) -> WF-7 | C44: WF | J44: F86006 | L44: 6181 | M44: 21 | N44: 18 | O44: 17 | P44: 18 | Q44: 17 | R44: 2 | S44: 20 | T44: 16 | U44: 17 | V44: 16 | W44: 16 | X44: 16 | Y44: 15 | Z44: 15 | AA44: 15 | AB44: 9 | AC44: 15 | AD44: 13
A45: 2019-03-01 | B45: =VLOOKUP(J45,'Control Panel'!$G$132:$K$171,5,FALSE) -> WF-3 | C45: WF | J45: F86011 | L45: 9257 | M45: 23 | N45: 19 | O45: 19 | P45: 19 | Q45: 21 | R45: 3 | S45: 19 | T45: 15 | U45: 12 | V45: 13 | W45: 13 | X45: 13 | Y45: 28 | Z45: 24 | AA45: 23 | AB45: 21 | AC45: 24 | AD45: 19
A46: 2019-03-01 | B46: =VLOOKUP(J46,'Control Panel'!$G$132:$K$171,5,FALSE) -> WF-7 | C46: WF | J46: F86030 | L46: 8111 | M46: 17 | N46: 14 | O46: 16 | P46: 16 | Q46: 14 | R46: 3 | S46: 29 | T46: 29 | U46: 27 | V46: 27 | W46: 27 | X46: 26 | Y46: 27 | Z46: 26 | AA46: 26 | AB46: 26 | AC46: 25 | AD46: 27
A47: 2019-03-01 | B47: =VLOOKUP(J47,'Control Panel'!$G$132:$K$171,5,FALSE) -> WF-4 | C47: WF | J47: F86036 | L47: 15689 | M47: 48 | N47: 45 | O47: 44 | P47: 45 | Q47: 43 | R47: 27 | S47: 51 | T47: 51 | U47: 48 | V47: 48 | W47: 49 | X47: 49 | Y47: 44 | Z47: 42 | AA47: 41 | AB47: 36 | AC47: 40 | AD47: 36
A48: 2019-03-01 | B48: =VLOOKUP(J48,'Control Panel'!$G$132:$K$171,5,FALSE) -> WF-3 | C48: WF | J48: F86038 | L48: 10936 | M48: 46 | N48: 44 | O48: 44 | P48: 44 | Q48: 41 | R48: 1 | S48: 29 | T48: 27 | U48: 26 | V48: 26 | W48: 25 | X48: 27 | Y48: 32 | Z48: 29 | AA48: 30 | AB48: 24 | AC48: 30 | AD48: 24
A49: 2019-03-01 | B49: =VLOOKUP(J49,'Control Panel'!$G$132:$K$171,5,FALSE) -> WF-4 | C49: WF | J49: F86044 | L49: 8829 | M49: 44 | N49: 35 | O49: 35 | P49: 36 | Q49: 30 | R49: 11 | S49: 33 | T49: 30 | U49: 24 | V49: 24 | W49: 24 | X49: 23 | Y49: 15 | Z49: 13 | AA49: 11 | AB49: 9 | AC49: 11 | AD49: 8
A50: 2019-03-01 | B50: =VLOOKUP(J50,'Control Panel'!$G$132:$K$171,5,FALSE) -> WF-5 | C50: WF | J50: F86045 | L50: 1901 | M50: 4 | N50: 4 | O50: 4 | P50: 4 | Q50: 4 | R50: 2 | S50: 7 | T50: 6 | U50: 3 | V50: 3 | W50: 3 | X50: 3 | Y50: 3 | Z50: 3 | AA50: 2 | AB50: 2 | AC50: 2 | AD50: 2
A51: 2019-03-01 | B51: =VLOOKUP(J51,'Control Panel'!$G$132:$K$171,5,FALSE) -> WF-7 | C51: WF | J51: F86058 | L51: 15046 | M51: 56 | N51: 46 | O51: 47 | P51: 47 | Q51: 45 | R51: 6 | S51: 50 | T51: 48 | U51: 43 | V51: 43 | W51: 43 | X51: 42 | Y51: 51 | Z51: 41 | AA51: 44 | AB51: 32 | AC51: 43 | AD51: 33
A52: 2019-03-01 | B52: =VLOOKUP(J52,'Control Panel'!$G$132:$K$171,5,FALSE) -> WF-7 | C52: WF | J52: F86062 | L52: 7020 | M52: 12 | N52: 12 | O52: 12 | P52: 12 | Q52: 12 | R52: 3 | S52: 25 | T52: 22 | U52: 21 | V52: 21 | W52: 21 | X52: 21 | Y52: 26 | Z52: 23 | AA52: 21 | AB52: 14 | AC52: 20 | AD52: 16
A53: 2019-03-01 | B53: =VLOOKUP(J53,'Control Panel'!$G$132:$K$171,5,FALSE) -> WF-2 | C53: WF | J53: F86078 | L53: 7367 | M53: 18 | N53: 18 | O53: 18 | P53: 18 | Q53: 18 | R53: 3 | S53: 15 | T53: 11 | U53: 12 | V53: 12 | W53: 12 | X53: 12 | Y53: 21 | Z53: 18 | AA53: 16 | AB53: 15 | AC53: 17 | AD53: 14
A54: 2019-03-01 | B54: =VLOOKUP(J54,'Control Panel'!$G$132:$K$171,5,FALSE) -> WF-6 | C54: WF | J54: F86086 | L54: 5823 | M54: 30 | N54: 27 | O54: 27 | P54: 27 | Q54: 27 | R54: 6 | S54: 31 | T54: 27 | U54: 22 | V54: 22 | W54: 23 | X54: 24 | Y54: 26 | Z54: 11 | AA54: 24 | AB54: 13 | AC54: 24 | AD54: 15
A55: 2019-03-01 | B55: =VLOOKUP(J55,'Control Panel'!$G$132:$K$171,5,FALSE) -> WF-4 | C55: WF | J55: F86088 | L55: 4712 | M55: 8 | N55: 6 | O55: 5 | P55: 6 | Q55: 6 | R55: 3 | S55: 13 | T55: 12 | U55: 7 | V55: 8 | W55: 8 | X55: 8 | Y55: 5 | Z55: 0 | AA55: 3 | AB55: 3 | AC55: 3 | AD55: 3
A56: 2019-03-01 | B56: =VLOOKUP(J56,'Control Panel'!$G$132:$K$171,5,FALSE) -> WF-6 | C56: WF | J56: F86607 | L56: 14184 | M56: 67 | N56: 59 | O56: 58 | P56: 59 | Q56: 55 | R56: 19 | S56: 53 | T56: 48 | U56: 44 | V56: 44 | W56: 43 | X56: 44 | Y56: 46 | Z56: 43 | AA56: 43 | AB56: 37 | AC56: 43 | AD56: 37
A57: 2019-03-01 | B57: =VLOOKUP(J57,'Control Panel'!$G$132:$K$171,5,FALSE) -> WF-2 | C57: WF | J57: F86616 | L57: 6599 | M57: 36 | N57: 33 | O57: 34 | P57: 34 | Q57: 33 | R57: 2 | S57: 22 | T57: 20 | U57: 18 | V57: 18 | W57: 19 | X57: 17 | Y57: 28 | Z57: 23 | AA57: 24 | AB57: 20 | AC57: 24 | AD57: 20
A58: 2019-03-01 | B58: =VLOOKUP(J58,'Control Panel'!$G$132:$K$171,5,FALSE) -> WF-5 | C58: WF | J58: F86621 | L58: 5650 | M58: 19 | N58: 17 | O58: 17 | P58: 17 | Q58: 17 | R58: 11 | S58: 14 | T58: 13 | U58: 13 | V58: 13 | W58: 13 | X58: 13 | Y58: 13 | Z58: 2 | AA58: 5 | AB58: 10 | AC58: 4 | AD58: 10
A59: 2019-03-01 | B59: =VLOOKUP(J59,'Control Panel'!$G$132:$K$171,5,FALSE) -> WF-5 | C59: WF | J59: F86625 | L59: 6116 | M59: 16 | N59: 16 | O59: 16 | P59: 16 | Q59: 16 | R59: 3 | S59: 17 | T59: 16 | U59: 11 | V59: 11 | W59: 11 | X59: 11 | Y59: 19 | Z59: 18 | AA59: 16 | AB59: 7 | AC59: 2 | AD59: 8
A60: 2019-03-01 | B60: =VLOOKUP(J60,'Control Panel'!$G$132:$K$171,5,FALSE) -> WF-1 | C60: WF | J60: F86626 | L60: 5280 | M60: 16 | N60: 15 | O60: 14 | P60: 15 | Q60: 13 | R60: 2 | S60: 20 | T60: 19 | U60: 18 | V60: 19 | W60: 19 | X60: 17 | Y60: 8 | Z60: 8 | AA60: 8 | AB60: 7 | AC60: 2 | AD60: 7
A61: 2019-03-01 | B61: =VLOOKUP(J61,'Control Panel'!$G$132:$K$171,5,FALSE) -> WF-2 | C61: WF | J61: F86627 | L61: 13926 | M61: 32 | N61: 29 | O61: 27 | P61: 29 | Q61: 27 | R61: 5 | S61: 36 | T61: 35 | U61: 32 | V61: 32 | W61: 30 | X61: 31 | Y61: 29 | Z61: 26 | AA61: 26 | AB61: 22 | AC61: 26 | AD61: 24
A62: 2019-03-01 | B62: =VLOOKUP(J62,'Control Panel'!$G$132:$K$171,5,FALSE) -> WF-6 | C62: WF | J62: F86644 | L62: 10812 | M62: 28 | N62: 24 | O62: 25 | P62: 25 | Q62: 24 | R62: 0 | S62: 32 | T62: 29 | U62: 28 | V62: 28 | W62: 27 | X62: 28 | Y62: 41 | Z62: 40 | AA62: 37 | AB62: 17 | AC62: 37 | AD62: 32
A63: 2019-03-01 | B63: =VLOOKUP(J63,'Control Panel'!$G$132:$K$171,5,FALSE) -> WF-4 | C63: WF | J63: F86650 | L63: 8170 | M63: 21 | N63: 16 | O63: 15 | P63: 17 | Q63: 17 | R63: 8 | S63: 20 | T63: 14 | U63: 13 | V63: 12 | W63: 12 | X63: 12 | Y63: 24 | Z63: 21 | AA63: 21 | AB63: 14 | AC63: 21 | AD63: 14
A64: 2019-03-01 | B64: =VLOOKUP(J64,'Control Panel'!$G$132:$K$171,5,FALSE) -> WF-1 | C64: WF | J64: F86664 | L64: 8254 | M64: 15 | N64: 14 | O64: 14 | P64: 14 | Q64: 14 | R64: 3 | S64: 24 | T64: 22 | U64: 22 | V64: 21 | W64: 22 | X64: 21 | Y64: 19 | Z64: 18 | AA64: 18 | AB64: 16 | AC64: 18 | AD64: 16
A65: 2019-03-01 | B65: =VLOOKUP(J65,'Control Panel'!$G$132:$K$171,5,FALSE) -> WF-5 | C65: WF | J65: F86666 | L65: 14094 | M65: 35 | N65: 28 | O65: 24 | P65: 28 | Q65: 26 | R65: 13 | S65: 45 | T65: 39 | U65: 36 | V65: 36 | W65: 36 | X65: 37 | Y65: 37 | Z65: 35 | AA65: 33 | AB65: 27 | AC65: 31 | AD65: 28
A66: 2019-03-01 | B66: =VLOOKUP(J66,'Control Panel'!$G$132:$K$171,5,FALSE) -> WF-7 | C66: WF | J66: F86679 | L66: 5734 | M66: 19 | N66: 18 | O66: 18 | P66: 18 | Q66: 17 | R66: 3 | S66: 27 | T66: 24 | U66: 23 | V66: 23 | W66: 23 | X66: 23 | Y66: 18 | Z66: 12 | AA66: 11 | AB66: 13 | AC66: 10 | AD66: 13
A67: 2019-03-01 | B67: =VLOOKUP(J67,'Control Panel'!$G$132:$K$171,5,FALSE) -> WF-1 | C67: WF | J67: F86689 | L67: 4008 | M67: 15 | N67: 12 | O67: 12 | P67: 12 | Q67: 11 | R67: 4 | S67: 17 | T67: 17 | U67: 13 | V67: 13 | W67: 13 | X67: 13 | Y67: 17 | Z67: 9 | AA67: 11 | AB67: 11 | AC67: 11 | AD67: 13
A68: 2019-03-01 | B68: =VLOOKUP(J68,'Control Panel'!$G$132:$K$171,5,FALSE) -> WF-4 | C68: WF | J68: F86696 | L68: 5091 | M68: 19 | N68: 15 | O68: 16 | P68: 15 | Q68: 15 | R68: 0 | S68: 18 | T68: 17 | U68: 17 | V68: 17 | W68: 17 | X68: 16 | Y68: 13 | Z68: 12 | AA68: 12 | AB68: 10 | AC68: 11 | AD68: 10
A69: 2019-03-01 | B69: =VLOOKUP(J69,'Control Panel'!$G$132:$K$171,5,FALSE) -> WF-1 | C69: WF | J69: F86700 | L69: 3756 | M69: 7 | N69: 7 | O69: 7 | P69: 7 | Q69: 6 | R69: 2 | S69: 13 | T69: 13 | U69: 11 | V69: 12 | W69: 12 | X69: 12 | Y69: 7 | Z69: 7 | AA69: 7 | AB69: 6 | AC69: 7 | AD69: 6
A70: 2019-03-01 | B70: =VLOOKUP(J70,'Control Panel'!$G$132:$K$171,5,FALSE) -> WF-5 | C70: WF | J70: F86701 | L70: 3264 | M70: 6 | N70: 5 | O70: 4 | P70: 5 | Q70: 4 | R70: 3 | S70: 8 | T70: 6 | U70: 5 | V70: 5 | W70: 6 | X70: 6 | Y70: 10 | Z70: 1 | AA70: 4 | AB70: 9 | AC70: 4 | AD70: 9
A71: 2019-03-01 | B71: =VLOOKUP(J71,'Control Panel'!$G$132:$K$171,5,FALSE) -> WF-5 | C71: WF | J71: F86705 | L71: 2995 | M71: 9 | N71: 7 | O71: 7 | P71: 7 | Q71: 7 | R71: 3 | S71: 9 | T71: 8 | U71: 8 | V71: 8 | W71: 8 | X71: 8 | Y71: 8 | Z71: 8 | AA71: 8 | AB71: 7 | AC71: 8 | AD71: 7
A72: 2019-03-01 | B72: =VLOOKUP(J72,'Control Panel'!$G$132:$K$171,5,FALSE) -> WF-6 | C72: WF | J72: F86708 | L72: 2775 | M72: 7 | N72: 6 | O72: 6 | P72: 6 | Q72: 5 | R72: 5 | S72: 9 | T72: 7 | U72: 6 | V72: 6 | W72: 6 | X72: 6 | Y72: 13 | Z72: 11 | AA72: 11 | AB72: 9 | AC72: 11 | AD72: 9
A73: 2019-03-01 | B73: =VLOOKUP(J73,'Control Panel'!$G$132:$K$171,5,FALSE) -> WF-4 | C73: WF | J73: F86712 | L73: 3055 | M73: 11 | N73: 10 | O73: 10 | P73: 10 | Q73: 9 | R73: 0 | S73: 8 | T73: 8 | U73: 8 | V73: 8 | W73: 8 | X73: 8 | Y73: 4 | Z73: 2 | AA73: 2 | AB73: 3 | AC73: 2 | AD73: 3
A74: 2019-03-01 | B74: =VLOOKUP(J74,'Control Panel'!$G$132:$K$171,5,FALSE) -> WF-2 | C74: WF | J74: Y01291 | L74: 8779 | M74: 28 | N74: 24 | O74: 24 | P74: 24 | Q74: 23 | R74: 17 | S74: 26 | T74: 26 | U74: 26 | V74: 26 | W74: 25 | X74: 26 | Y74: 30 | Z74: 30 | AA74: 28 | AB74: 26 | AC74: 28 | AD74: 26
A75: 2019-03-01 | B75: =VLOOKUP(J75,'Control Panel'!$G$132:$K$171,5,FALSE) -> WF-1 | C75: WF | J75: Y01839 | L75: 6534 | M75: 30 | N75: 27 | O75: 27 | P75: 28 | Q75: 25 | R75: 6 | S75: 24 | T75: 22 | U75: 20 | V75: 20 | W75: 21 | X75: 21 | Y75: 21 | Z75: 21 | AA75: 19 | AB75: 16 | AC75: 19 | AD75: 16
A76: 2019-03-01 | B76: =VLOOKUP(J76,'Control Panel'!$G$132:$K$171,5,FALSE) -> WF-3 | C76: WF | J76: Y02585 | L76: 8112 | M76: 24 | N76: 22 | O76: 22 | P76: 22 | Q76: 23 | R76: 11 | S76: 32 | T76: 29 | U76: 22 | V76: 21 | W76: 22 | X76: 21 | Y76: 26 | Z76: 18 | AA76: 18 | AB76: 14 | AC76: 18 | AD76: 14
A77: 2019-03-01 | B77: =VLOOKUP(J77,'Control Panel'!$G$132:$K$171,5,FALSE) ->  | J77: Total | L77: 268570 | M77: 858 | N77: 758 | O77: 750 | P77: 768 | Q77: 730 | R77: 202 | S77: 881 | T77: 806 | U77: 729 | V77: 728 | W77: 731 | X77: 728 | Y77: 790 | Z77: 656 | AA77: 675 | AB77: 561 | AC77: 651 | AD77: 592
A78: 2019-05-01 | B78: =VLOOKUP(J78,'Control Panel'!$G$132:$K$171,5,FALSE) ->  | C78: Childhood Immunisations Q1 | E78: Last Run: | G78: Population Count | H78: 283847 | K78: Search | L78: All Patients | M78: (01) 12 MONTH COHORT | N78: (01.01) DTaP/IPV/Hib 6in1 | O78: (01.02) Men B (1st and 2nd) | P78: (01.03) PCV | Q78: (01.04) Rotavirus | R78: (01.05) BCG | S78: (02) 24 MONTH COHORT | T78: (02.01) DTaP/IPV/Hib or DTaP/IPV/Hib/HepB | U78: (02.02) MMR | V78: (02.03) HiB/Men C | W78: (02.04) PCV (Booster) | X78: (02.05) Men B (Booster) | Y78: (03) 5 YEAR COHORT | Z78: (03.01) DTaP/IPV/Hib or DTaP/IPV/Hib/HepB | AA78: (03.02) MMR (Primary) | AB78: (03.03) DTaP/IPV (Booster) | AC78: (03.04) HiB/Men C | AD78: (03.05) MMR (Booster)
A79: 2019-05-01 | B79: =VLOOKUP(J79,'Control Panel'!$G$132:$K$171,5,FALSE) ->  | E79: 2019-06-03T13:16:00 | G79: Males | H79: 144788 | J79: Organisation Code
A80: 2019-05-01 | B80: =VLOOKUP(J80,'Control Panel'!$G$132:$K$171,5,FALSE) ->  | E80: Relative Date: | G80: Females | H80: 139059 | J80: F84676 | L80: 4396 | M80: 12 | N80: 12 | O80: 11 | P80: 12 | Q80: 12 | R80: 7 | S80: 12 | T80: 11 | U80: 10 | V80: 10 | W80: 10 | X80: 10 | Y80: 12 | Z80: 10 | AA80: 10 | AB80: 9 | AC80: 10 | AD80: 9
A81: 2019-05-01 | B81: =VLOOKUP(J81,'Control Panel'!$G$132:$K$171,5,FALSE) -> WF-6 | C81: WF | E81: 2019-06-01 | J81: F86001 | L81: 7931 | M81: 20 | N81: 20 | O81: 20 | P81: 20 | Q81: 19 | R81: 3 | S81: 30 | T81: 25 | U81: 20 | V81: 20 | W81: 20 | X81: 20 | Y81: 22 | Z81: 17 | AA81: 15 | AB81: 10 | AC81: 16 | AD81: 12
A82: 2019-05-01 | B82: =VLOOKUP(J82,'Control Panel'!$G$132:$K$171,5,FALSE) -> WF-1 | C82: WF | J82: F86005 | L82: 8218 | M82: 54 | N82: 45 | O82: 45 | P82: 46 | Q82: 47 | R82: 3 | S82: 31 | T82: 31 | U82: 30 | V82: 29 | W82: 29 | X82: 30 | Y82: 26 | Z82: 25 | AA82: 25 | AB82: 18 | AC82: 25 | AD82: 19
A83: 2019-05-01 | B83: =VLOOKUP(J83,'Control Panel'!$G$132:$K$171,5,FALSE) -> WF-7 | C83: WF | J83: F86006 | L83: 6212 | M83: 24 | N83: 17 | O83: 17 | P83: 18 | Q83: 19 | R83: 3 | S83: 24 | T83: 22 | U83: 20 | V83: 21 | W83: 21 | X83: 21 | Y83: 19 | Z83: 17 | AA83: 16 | AB83: 11 | AC83: 15 | AD83: 11
A84: 2019-05-01 | B84: =VLOOKUP(J84,'Control Panel'!$G$132:$K$171,5,FALSE) -> WF-3 | C84: WF | J84: F86011 | L84: 9226 | M84: 29 | N84: 23 | O84: 24 | P84: 24 | Q84: 20 | R84: 2 | S84: 27 | T84: 23 | U84: 21 | V84: 20 | W84: 21 | X84: 20 | Y84: 17 | Z84: 14 | AA84: 15 | AB84: 14 | AC84: 14 | AD84: 14
A85: 2019-05-01 | B85: =VLOOKUP(J85,'Control Panel'!$G$132:$K$171,5,FALSE) -> WF-7 | C85: WF | J85: F86030 | L85: 8103 | M85: 39 | N85: 34 | O85: 34 | P85: 35 | Q85: 33 | R85: 13 | S85: 41 | T85: 40 | U85: 40 | V85: 40 | W85: 40 | X85: 40 | Y85: 21 | Z85: 19 | AA85: 20 | AB85: 17 | AC85: 20 | AD85: 19
A86: 2019-05-01 | B86: =VLOOKUP(J86,'Control Panel'!$G$132:$K$171,5,FALSE) -> WF-4 | C86: WF | J86: F86036 | L86: 15884 | M86: 45 | N86: 43 | O86: 43 | P86: 43 | Q86: 42 | R86: 23 | S86: 51 | T86: 49 | U86: 45 | V86: 45 | W86: 45 | X86: 45 | Y86: 45 | Z86: 39 | AA86: 40 | AB86: 39 | AC86: 39 | AD86: 38
A87: 2019-05-01 | B87: =VLOOKUP(J87,'Control Panel'!$G$132:$K$171,5,FALSE) -> WF-3 | C87: WF | J87: F86038 | L87: 11020 | M87: 47 | N87: 37 | O87: 37 | P87: 38 | Q87: 37 | R87: 3 | S87: 44 | T87: 39 | U87: 35 | V87: 36 | W87: 36 | X87: 35 | Y87: 38 | Z87: 32 | AA87: 32 | AB87: 27 | AC87: 30 | AD87: 28
A88: 2019-05-01 | B88: =VLOOKUP(J88,'Control Panel'!$G$132:$K$171,5,FALSE) -> WF-4 | C88: WF | J88: F86044 | L88: 8989 | M88: 33 | N88: 26 | O88: 26 | P88: 26 | Q88: 24 | R88: 7 | S88: 33 | T88: 25 | U88: 23 | V88: 24 | W88: 24 | X88: 23 | Y88: 22 | Z88: 16 | AA88: 17 | AB88: 13 | AC88: 16 | AD88: 14
A89: 2019-05-01 | B89: =VLOOKUP(J89,'Control Panel'!$G$132:$K$171,5,FALSE) -> WF-5 | C89: WF | J89: F86045 | L89: 1921 | M89: 4 | N89: 4 | O89: 3 | P89: 4 | Q89: 4 | R89: 2 | S89: 0 | T89: 0 | U89: 0 | V89: 0 | W89: 0 | X89: 0 | Y89: 4 | Z89: 4 | AA89: 4 | AB89: 4 | AC89: 3 | AD89: 4
A90: 2019-05-01 | B90: =VLOOKUP(J90,'Control Panel'!$G$132:$K$171,5,FALSE) -> WF-7 | C90: WF | J90: F86058 | L90: 15141 | M90: 66 | N90: 51 | O90: 51 | P90: 51 | Q90: 53 | R90: 13 | S90: 67 | T90: 53 | U90: 49 | V90: 49 | W90: 50 | X90: 50 | Y90: 58 | Z90: 52 | AA90: 49 | AB90: 41 | AC90: 50 | AD90: 42
A91: 2019-05-01 | B91: =VLOOKUP(J91,'Control Panel'!$G$132:$K$171,5,FALSE) -> WF-7 | C91: WF | J91: F86062 | L91: 7086 | M91: 28 | N91: 24 | O91: 24 | P91: 25 | Q91: 25 | R91: 9 | S91: 21 | T91: 19 | U91: 17 | V91: 17 | W91: 17 | X91: 17 | Y91: 23 | Z91: 20 | AA91: 20 | AB91: 14 | AC91: 19 | AD91: 15
A92: 2019-05-01 | B92: =VLOOKUP(J92,'Control Panel'!$G$132:$K$171,5,FALSE) -> WF-2 | C92: WF | J92: F86078 | L92: 7358 | M92: 14 | N92: 13 | O92: 13 | P92: 13 | Q92: 10 | R92: 6 | S92: 13 | T92: 13 | U92: 12 | V92: 12 | W92: 12 | X92: 12 | Y92: 18 | Z92: 18 | AA92: 17 | AB92: 11 | AC92: 17 | AD92: 14
A93: 2019-05-01 | B93: =VLOOKUP(J93,'Control Panel'!$G$132:$K$171,5,FALSE) -> WF-6 | C93: WF | J93: F86086 | L93: 5939 | M93: 24 | N93: 21 | O93: 21 | P93: 21 | Q93: 20 | R93: 7 | S93: 30 | T93: 26 | U93: 22 | V93: 22 | W93: 22 | X93: 22 | Y93: 22 | Z93: 7 | AA93: 19 | AB93: 13 | AC93: 18 | AD93: 15
A94: 2019-05-01 | B94: =VLOOKUP(J94,'Control Panel'!$G$132:$K$171,5,FALSE) -> WF-4 | C94: WF | J94: F86088 | L94: 4791 | M94: 11 | N94: 9 | O94: 9 | P94: 9 | Q94: 9 | R94: 1 | S94: 7 | T94: 6 | U94: 3 | V94: 3 | W94: 4 | X94: 3 | Y94: 5 | Z94: 3 | AA94: 4 | AB94: 3 | AC94: 5 | AD94: 3
A95: 2019-05-01 | B95: =VLOOKUP(J95,'Control Panel'!$G$132:$K$171,5,FALSE) -> WF-6 | C95: WF | J95: F86607 | L95: 14162 | M95: 55 | N95: 48 | O95: 48 | P95: 49 | Q95: 48 | R95: 23 | S95: 48 | T95: 45 | U95: 42 | V95: 44 | W95: 42 | X95: 43 | Y95: 48 | Z95: 46 | AA95: 43 | AB95: 38 | AC95: 42 | AD95: 45
A96: 2019-05-01 | B96: =VLOOKUP(J96,'Control Panel'!$G$132:$K$171,5,FALSE) -> WF-2 | C96: WF | J96: F86616 | L96: 6736 | M96: 18 | N96: 14 | O96: 13 | P96: 15 | Q96: 15 | R96: 1 | S96: 44 | T96: 39 | U96: 37 | V96: 38 | W96: 38 | X96: 35 | Y96: 15 | Z96: 13 | AA96: 12 | AB96: 12 | AC96: 11 | AD96: 11
A97: 2019-05-01 | B97: =VLOOKUP(J97,'Control Panel'!$G$132:$K$171,5,FALSE) -> WF-5 | C97: WF | J97: F86621 | L97: 5695 | M97: 19 | N97: 17 | O97: 18 | P97: 18 | Q97: 19 | R97: 7 | S97: 22 | T97: 21 | U97: 20 | V97: 20 | W97: 20 | X97: 19 | Y97: 12 | Z97: 2 | AA97: 2 | AB97: 8 | AC97: 2 | AD97: 9
A98: 2019-05-01 | B98: =VLOOKUP(J98,'Control Panel'!$G$132:$K$171,5,FALSE) -> WF-5 | C98: WF | J98: F86625 | L98: 6101 | M98: 14 | N98: 12 | O98: 12 | P98: 12 | Q98: 12 | R98: 3 | S98: 19 | T98: 17 | U98: 17 | V98: 17 | W98: 17 | X98: 17 | Y98: 18 | Z98: 17 | AA98: 15 | AB98: 13 | AC98: 4 | AD98: 14
A99: 2019-05-01 | B99: =VLOOKUP(J99,'Control Panel'!$G$132:$K$171,5,FALSE) -> WF-1 | C99: WF | J99: F86626 | L99: 5320 | M99: 13 | N99: 13 | O99: 13 | P99: 13 | Q99: 13 | R99: 5 | S99: 14 | T99: 13 | U99: 11 | V99: 11 | W99: 12 | X99: 12 | Y99: 20 | Z99: 20 | AA99: 17 | AB99: 14 | AC99: 13 | AD99: 14
A100: 2019-05-01 | B100: =VLOOKUP(J100,'Control Panel'!$G$132:$K$171,5,FALSE) -> WF-2 | C100: WF | J100: F86627 | L100: 13877 | M100: 36 | N100: 31 | O100: 30 | P100: 32 | Q100: 27 | R100: 11 | S100: 33 | T100: 33 | U100: 28 | V100: 29 | W100: 29 | X100: 29 | Y100: 42 | Z100: 36 | AA100: 36 | AB100: 35 | AC100: 35 | AD100: 35
A101: 2019-05-01 | B101: =VLOOKUP(J101,'Control Panel'!$G$132:$K$171,5,FALSE) -> WF-6 | C101: WF | J101: F86644 | L101: 10912 | M101: 33 | N101: 25 | O101: 24 | P101: 25 | Q101: 23 | R101: 6 | S101: 38 | T101: 35 | U101: 27 | V101: 27 | W101: 29 | X101: 29 | Y101: 37 | Z101: 32 | AA101: 34 | AB101: 18 | AC101: 30 | AD101: 27
A102: 2019-05-01 | B102: =VLOOKUP(J102,'Control Panel'!$G$132:$K$171,5,FALSE) -> WF-4 | C102: WF | J102: F86650 | L102: 8208 | M102: 32 | N102: 24 | O102: 24 | P102: 24 | Q102: 23 | R102: 3 | S102: 29 | T102: 26 | U102: 24 | V102: 24 | W102: 24 | X102: 23 | Y102: 24 | Z102: 20 | AA102: 19 | AB102: 12 | AC102: 20 | AD102: 12
A103: 2019-05-01 | B103: =VLOOKUP(J103,'Control Panel'!$G$132:$K$171,5,FALSE) -> WF-1 | C103: WF | J103: F86664 | L103: 8337 | M103: 25 | N103: 22 | O103: 21 | P103: 22 | Q103: 23 | R103: 2 | S103: 27 | T103: 25 | U103: 24 | V103: 24 | W103: 25 | X103: 24 | Y103: 32 | Z103: 30 | AA103: 28 | AB103: 28 | AC103: 29 | AD103: 29
A104: 2019-05-01 | B104: =VLOOKUP(J104,'Control Panel'!$G$132:$K$171,5,FALSE) -> WF-5 | C104: WF | J104: F86666 | L104: 14214 | M104: 43 | N104: 38 | O104: 38 | P104: 38 | Q104: 38 | R104: 14 | S104: 45 | T104: 42 | U104: 39 | V104: 40 | W104: 40 | X104: 40 | Y104: 52 | Z104: 43 | AA104: 44 | AB104: 41 | AC104: 43 | AD104: 43
A105: 2019-05-01 | B105: =VLOOKUP(J105,'Control Panel'!$G$132:$K$171,5,FALSE) -> WF-7 | C105: WF | J105: F86679 | L105: 5788 | M105: 29 | N105: 27 | O105: 25 | P105: 25 | Q105: 26 | R105: 8 | S105: 22 | T105: 19 | U105: 20 | V105: 20 | W105: 21 | X105: 20 | Y105: 18 | Z105: 6 | AA105: 7 | AB105: 12 | AC105: 8 | AD105: 14
A106: 2019-05-01 | B106: =VLOOKUP(J106,'Control Panel'!$G$132:$K$171,5,FALSE) -> WF-1 | C106: WF | J106: F86689 | L106: 4092 | M106: 37 | N106: 36 | O106: 36 | P106: 37 | Q106: 37 | R106: 9 | S106: 30 | T106: 25 | U106: 24 | V106: 25 | W106: 25 | X106: 25 | Y106: 13 | Z106: 7 | AA106: 11 | AB106: 9 | AC106: 11 | AD106: 9
A107: 2019-05-01 | B107: =VLOOKUP(J107,'Control Panel'!$G$132:$K$171,5,FALSE) -> WF-4 | C107: WF | J107: F86696 | L107: 5140 | M107: 11 | N107: 10 | O107: 10 | P107: 11 | Q107: 10 | R107: 0 | S107: 17 | T107: 12 | U107: 12 | V107: 13 | W107: 12 | X107: 11 | Y107: 17 | Z107: 16 | AA107: 16 | AB107: 12 | AC107: 16 | AD107: 14
A108: 2019-05-01 | B108: =VLOOKUP(J108,'Control Panel'!$G$132:$K$171,5,FALSE) -> WF-1 | C108: WF | J108: F86700 | L108: 3810 | M108: 13 | N108: 12 | O108: 12 | P108: 12 | Q108: 12 | R108: 3 | S108: 11 | T108: 11 | U108: 10 | V108: 10 | W108: 10 | X108: 9 | Y108: 15 | Z108: 15 | AA108: 15 | AB108: 14 | AC108: 15 | AD108: 15
A109: 2019-05-01 | B109: =VLOOKUP(J109,'Control Panel'!$G$132:$K$171,5,FALSE) -> WF-5 | C109: WF | J109: F86701 | L109: 3308 | M109: 9 | N109: 9 | O109: 9 | P109: 9 | Q109: 9 | R109: 1 | S109: 9 | T109: 9 | U109: 9 | V109: 9 | W109: 9 | X109: 9 | Y109: 11 | Z109: 6 | AA109: 6 | AB109: 8 | AC109: 5 | AD109: 9
A110: 2019-05-01 | B110: =VLOOKUP(J110,'Control Panel'!$G$132:$K$171,5,FALSE) -> WF-5 | C110: WF | J110: F86705 | L110: 3024 | M110: 14 | N110: 13 | O110: 13 | P110: 13 | Q110: 13 | R110: 10 | S110: 9 | T110: 9 | U110: 7 | V110: 5 | W110: 5 | X110: 6 | Y110: 10 | Z110: 10 | AA110: 10 | AB110: 9 | AC110: 9 | AD110: 9
A111: 2019-05-01 | B111: =VLOOKUP(J111,'Control Panel'!$G$132:$K$171,5,FALSE) -> WF-6 | C111: WF | J111: F86708 | L111: 2786 | M111: 9 | N111: 9 | O111: 9 | P111: 9 | Q111: 8 | R111: 6 | S111: 9 | T111: 8 | U111: 7 | V111: 7 | W111: 7 | X111: 7 | Y111: 4 | Z111: 4 | AA111: 3 | AB111: 2 | AC111: 3 | AD111: 2
A112: 2019-05-01 | B112: =VLOOKUP(J112,'Control Panel'!$G$132:$K$171,5,FALSE) -> WF-4 | C112: WF | J112: F86712 | L112: 3101 | M112: 4 | N112: 3 | O112: 3 | P112: 3 | Q112: 3 | R112: 1 | S112: 7 | T112: 6 | U112: 6 | V112: 6 | W112: 6 | X112: 6 | Y112: 8 | Z112: 2 | AA112: 6 | AB112: 5 | AC112: 6 | AD112: 6
A113: 2019-05-01 | B113: =VLOOKUP(J113,'Control Panel'!$G$132:$K$171,5,FALSE) -> WF-2 | C113: WF | J113: Y01291 | L113: 8804 | M113: 24 | N113: 23 | O113: 23 | P113: 24 | Q113: 19 | R113: 5 | S113: 32 | T113: 30 | U113: 29 | V113: 29 | W113: 29 | X113: 29 | Y113: 33 | Z113: 33 | AA113: 32 | AB113: 30 | AC113: 31 | AD113: 30
A114: 2019-05-01 | B114: =VLOOKUP(J114,'Control Panel'!$G$132:$K$171,5,FALSE) -> WF-1 | C114: WF | J114: Y01839 | L114: 6550 | M114: 32 | N114: 27 | O114: 27 | P114: 27 | Q114: 27 | R114: 9 | S114: 23 | T114: 22 | U114: 20 | V114: 21 | W114: 21 | X114: 21 | Y114: 30 | Z114: 28 | AA114: 28 | AB114: 24 | AC114: 28 | AD114: 24
A115: 2019-05-01 | B115: =VLOOKUP(J115,'Control Panel'!$G$132:$K$171,5,FALSE) -> WF-3 | C115: WF | J115: Y02585 | L115: 8051 | M115: 29 | N115: 20 | O115: 19 | P115: 20 | Q115: 19 | R115: 12 | S115: 36 | T115: 30 | U115: 24 | V115: 24 | W115: 25 | X115: 26 | Y115: 30 | Z115: 29 | AA115: 27 | AB115: 24 | AC115: 28 | AD115: 25
A116: 2019-05-01 | B116: =VLOOKUP(J116,'Control Panel'!$G$132:$K$171,5,FALSE) ->  | J116: Total | L116: 270231 | M116: 949 | N116: 812 | O116: 805 | P116: 823 | Q116: 798 | R116: 241 | S116: 955 | T116: 859 | U116: 784 | V116: 791 | W116: 797 | X116: 788 | Y116: 841 | Z116: 708 | AA116: 714 | AB116: 612 | AC116: 686 | AD116: 653
A117: 2019-06-01 | B117: =VLOOKUP(J117,'Control Panel'!$G$132:$K$171,5,FALSE) ->  | C117: Childhood Immunisations Q1 | E117: Last Run: | G117: Population Count | H117: 284503 | K117: Search | L117: All Patients | M117: (01) 12 MONTH COHORT | N117: (01.01) DTaP/IPV/Hib 6in1 | O117: (01.02) Men B (1st and 2nd) | P117: (01.03) PCV | Q117: (01.04) Rotavirus | R117: (01.05) BCG | S117: (02) 24 MONTH COHORT | T117: (02.01) DTaP/IPV/Hib or DTaP/IPV/Hib/HepB | U117: (02.02) MMR | V117: (02.03) HiB/Men C | W117: (02.04) PCV (Booster) | X117: (02.05) Men B (Booster) | Y117: (03) 5 YEAR COHORT | Z117: (03.01) DTaP/IPV/Hib or DTaP/IPV/Hib/HepB | AA117: (03.02) MMR (Primary) | AB117: (03.03) DTaP/IPV (Booster) | AC117: (03.04) HiB/Men C | AD117: (03.05) MMR (Booster)
A118: 2019-06-01 | B118: =VLOOKUP(J118,'Control Panel'!$G$132:$K$171,5,FALSE) ->  | E118: 2019-07-02T09:45:00 | G118: Males | H118: 145114 | J118: Organisation Code
A119: 2019-06-01 | B119: =VLOOKUP(J119,'Control Panel'!$G$132:$K$171,5,FALSE) ->  | E119: Relative Date: | G119: Females | H119: 139389 | J119: F84676 | L119: 4383 | M119: 12 | N119: 12 | O119: 11 | P119: 12 | Q119: 12 | R119: 9 | S119: 12 | T119: 11 | U119: 10 | V119: 10 | W119: 10 | X119: 10 | Y119: 12 | Z119: 10 | AA119: 10 | AB119: 9 | AC119: 10 | AD119: 9
A120: 2019-06-01 | B120: =VLOOKUP(J120,'Control Panel'!$G$132:$K$171,5,FALSE) -> WF-6 | C120: WF | E120: 2019-07-01 | J120: F86001 | L120: 7931 | M120: 21 | N120: 21 | O120: 21 | P120: 21 | Q120: 20 | R120: 3 | S120: 30 | T120: 25 | U120: 20 | V120: 20 | W120: 20 | X120: 20 | Y120: 21 | Z120: 17 | AA120: 15 | AB120: 10 | AC120: 16 | AD120: 12
A121: 2019-06-01 | B121: =VLOOKUP(J121,'Control Panel'!$G$132:$K$171,5,FALSE) -> WF-1 | C121: WF | J121: F86005 | L121: 8304 | M121: 56 | N121: 47 | O121: 47 | P121: 48 | Q121: 50 | R121: 3 | S121: 31 | T121: 31 | U121: 30 | V121: 29 | W121: 29 | X121: 30 | Y121: 26 | Z121: 25 | AA121: 25 | AB121: 18 | AC121: 25 | AD121: 19
A122: 2019-06-01 | B122: =VLOOKUP(J122,'Control Panel'!$G$132:$K$171,5,FALSE) -> WF-7 | C122: WF | J122: F86006 | L122: 6248 | M122: 25 | N122: 19 | O122: 20 | P122: 20 | Q122: 20 | R122: 3 | S122: 24 | T122: 22 | U122: 20 | V122: 21 | W122: 21 | X122: 21 | Y122: 18 | Z122: 16 | AA122: 15 | AB122: 10 | AC122: 14 | AD122: 10
A123: 2019-06-01 | B123: =VLOOKUP(J123,'Control Panel'!$G$132:$K$171,5,FALSE) -> WF-3 | C123: WF | J123: F86011 | L123: 9216 | M123: 30 | N123: 24 | O123: 25 | P123: 25 | Q123: 21 | R123: 2 | S123: 27 | T123: 23 | U123: 21 | V123: 20 | W123: 21 | X123: 20 | Y123: 18 | Z123: 15 | AA123: 16 | AB123: 15 | AC123: 15 | AD123: 15
A124: 2019-06-01 | B124: =VLOOKUP(J124,'Control Panel'!$G$132:$K$171,5,FALSE) -> WF-7 | C124: WF | J124: F86030 | L124: 8163 | M124: 39 | N124: 34 | O124: 34 | P124: 35 | Q124: 33 | R124: 13 | S124: 42 | T124: 41 | U124: 41 | V124: 41 | W124: 41 | X124: 41 | Y124: 22 | Z124: 19 | AA124: 20 | AB124: 17 | AC124: 20 | AD124: 19
A125: 2019-06-01 | B125: =VLOOKUP(J125,'Control Panel'!$G$132:$K$171,5,FALSE) -> WF-4 | C125: WF | J125: F86036 | L125: 15971 | M125: 44 | N125: 43 | O125: 43 | P125: 43 | Q125: 41 | R125: 23 | S125: 50 | T125: 48 | U125: 45 | V125: 45 | W125: 45 | X125: 45 | Y125: 45 | Z125: 39 | AA125: 40 | AB125: 39 | AC125: 39 | AD125: 38
A126: 2019-06-01 | B126: =VLOOKUP(J126,'Control Panel'!$G$132:$K$171,5,FALSE) -> WF-3 | C126: WF | J126: F86038 | L126: 11048 | M126: 45 | N126: 36 | O126: 36 | P126: 37 | Q126: 36 | R126: 3 | S126: 45 | T126: 39 | U126: 35 | V126: 36 | W126: 36 | X126: 35 | Y126: 38 | Z126: 32 | AA126: 32 | AB126: 27 | AC126: 30 | AD126: 28
A127: 2019-06-01 | B127: =VLOOKUP(J127,'Control Panel'!$G$132:$K$171,5,FALSE) -> WF-4 | C127: WF | J127: F86044 | L127: 8948 | M127: 33 | N127: 25 | O127: 25 | P127: 25 | Q127: 23 | R127: 7 | S127: 33 | T127: 26 | U127: 24 | V127: 25 | W127: 25 | X127: 24 | Y127: 22 | Z127: 16 | AA127: 17 | AB127: 13 | AC127: 16 | AD127: 14
A128: 2019-06-01 | B128: =VLOOKUP(J128,'Control Panel'!$G$132:$K$171,5,FALSE) -> WF-5 | C128: WF | J128: F86045 | L128: 1940 | M128: 4 | N128: 4 | O128: 3 | P128: 4 | Q128: 4 | R128: 2 | S128: 0 | T128: 0 | U128: 0 | V128: 0 | W128: 0 | X128: 0 | Y128: 4 | Z128: 4 | AA128: 4 | AB128: 4 | AC128: 3 | AD128: 4
A129: 2019-06-01 | B129: =VLOOKUP(J129,'Control Panel'!$G$132:$K$171,5,FALSE) -> WF-7 | C129: WF | J129: F86058 | L129: 15254 | M129: 66 | N129: 52 | O129: 53 | P129: 53 | Q129: 53 | R129: 13 | S129: 67 | T129: 53 | U129: 49 | V129: 49 | W129: 50 | X129: 50 | Y129: 58 | Z129: 52 | AA129: 49 | AB129: 41 | AC129: 50 | AD129: 42
A130: 2019-06-01 | B130: =VLOOKUP(J130,'Control Panel'!$G$132:$K$171,5,FALSE) -> WF-7 | C130: WF | J130: F86062 | L130: 7121 | M130: 27 | N130: 23 | O130: 23 | P130: 24 | Q130: 24 | R130: 9 | S130: 21 | T130: 19 | U130: 17 | V130: 17 | W130: 17 | X130: 17 | Y130: 23 | Z130: 20 | AA130: 20 | AB130: 14 | AC130: 19 | AD130: 15
A131: 2019-06-01 | B131: =VLOOKUP(J131,'Control Panel'!$G$132:$K$171,5,FALSE) -> WF-2 | C131: WF | J131: F86078 | L131: 7347 | M131: 15 | N131: 14 | O131: 14 | P131: 14 | Q131: 11 | R131: 6 | S131: 13 | T131: 13 | U131: 12 | V131: 12 | W131: 12 | X131: 12 | Y131: 18 | Z131: 18 | AA131: 17 | AB131: 11 | AC131: 17 | AD131: 14
A132: 2019-06-01 | B132: =VLOOKUP(J132,'Control Panel'!$G$132:$K$171,5,FALSE) -> WF-6 | C132: WF | J132: F86086 | L132: 5932 | M132: 23 | N132: 22 | O132: 22 | P132: 22 | Q132: 21 | R132: 7 | S132: 29 | T132: 25 | U132: 22 | V132: 22 | W132: 22 | X132: 22 | Y132: 21 | Z132: 6 | AA132: 18 | AB132: 12 | AC132: 17 | AD132: 14
A133: 2019-06-01 | B133: =VLOOKUP(J133,'Control Panel'!$G$132:$K$171,5,FALSE) -> WF-4 | C133: WF | J133: F86088 | L133: 4774 | M133: 11 | N133: 9 | O133: 9 | P133: 9 | Q133: 9 | R133: 1 | S133: 7 | T133: 6 | U133: 3 | V133: 3 | W133: 4 | X133: 3 | Y133: 5 | Z133: 3 | AA133: 4 | AB133: 3 | AC133: 5 | AD133: 3
A134: 2019-06-01 | B134: =VLOOKUP(J134,'Control Panel'!$G$132:$K$171,5,FALSE) -> WF-6 | C134: WF | J134: F86607 | L134: 14131 | M134: 54 | N134: 47 | O134: 47 | P134: 48 | Q134: 48 | R134: 23 | S134: 48 | T134: 45 | U134: 42 | V134: 44 | W134: 42 | X134: 43 | Y134: 47 | Z134: 45 | AA134: 43 | AB134: 37 | AC134: 42 | AD134: 44
A135: 2019-06-01 | B135: =VLOOKUP(J135,'Control Panel'!$G$132:$K$171,5,FALSE) -> WF-2 | C135: WF | J135: F86616 | L135: 6809 | M135: 18 | N135: 14 | O135: 13 | P135: 15 | Q135: 15 | R135: 1 | S135: 44 | T135: 39 | U135: 37 | V135: 38 | W135: 38 | X135: 35 | Y135: 15 | Z135: 13 | AA135: 12 | AB135: 12 | AC135: 11 | AD135: 11
A136: 2019-06-01 | B136: =VLOOKUP(J136,'Control Panel'!$G$132:$K$171,5,FALSE) -> WF-5 | C136: WF | J136: F86621 | L136: 5691 | M136: 20 | N136: 18 | O136: 19 | P136: 19 | Q136: 20 | R136: 7 | S136: 22 | T136: 21 | U136: 20 | V136: 20 | W136: 20 | X136: 19 | Y136: 11 | Z136: 2 | AA136: 2 | AB136: 8 | AC136: 2 | AD136: 9
A137: 2019-06-01 | B137: =VLOOKUP(J137,'Control Panel'!$G$132:$K$171,5,FALSE) -> WF-5 | C137: WF | J137: F86625 | L137: 6121 | M137: 14 | N137: 12 | O137: 12 | P137: 12 | Q137: 12 | R137: 3 | S137: 19 | T137: 17 | U137: 17 | V137: 17 | W137: 17 | X137: 17 | Y137: 17 | Z137: 16 | AA137: 15 | AB137: 13 | AC137: 4 | AD137: 14
A138: 2019-06-01 | B138: =VLOOKUP(J138,'Control Panel'!$G$132:$K$171,5,FALSE) -> WF-1 | C138: WF | J138: F86626 | L138: 5342 | M138: 13 | N138: 13 | O138: 13 | P138: 13 | Q138: 13 | R138: 5 | S138: 14 | T138: 13 | U138: 12 | V138: 12 | W138: 13 | X138: 13 | Y138: 19 | Z138: 19 | AA138: 17 | AB138: 14 | AC138: 13 | AD138: 14
A139: 2019-06-01 | B139: =VLOOKUP(J139,'Control Panel'!$G$132:$K$171,5,FALSE) -> WF-2 | C139: WF | J139: F86627 | L139: 13882 | M139: 36 | N139: 32 | O139: 31 | P139: 33 | Q139: 28 | R139: 12 | S139: 33 | T139: 33 | U139: 28 | V139: 29 | W139: 29 | X139: 29 | Y139: 42 | Z139: 36 | AA139: 36 | AB139: 35 | AC139: 35 | AD139: 35
A140: 2019-06-01 | B140: =VLOOKUP(J140,'Control Panel'!$G$132:$K$171,5,FALSE) -> WF-6 | C140: WF | J140: F86644 | L140: 10849 | M140: 34 | N140: 25 | O140: 25 | P140: 26 | Q140: 24 | R140: 7 | S140: 37 | T140: 34 | U140: 26 | V140: 26 | W140: 28 | X140: 28 | Y140: 37 | Z140: 33 | AA140: 34 | AB140: 18 | AC140: 30 | AD140: 27
A141: 2019-06-01 | B141: =VLOOKUP(J141,'Control Panel'!$G$132:$K$171,5,FALSE) -> WF-4 | C141: WF | J141: F86650 | L141: 8292 | M141: 33 | N141: 25 | O141: 25 | P141: 25 | Q141: 24 | R141: 4 | S141: 29 | T141: 27 | U141: 24 | V141: 24 | W141: 24 | X141: 24 | Y141: 24 | Z141: 20 | AA141: 19 | AB141: 12 | AC141: 20 | AD141: 12
A142: 2019-06-01 | B142: =VLOOKUP(J142,'Control Panel'!$G$132:$K$171,5,FALSE) -> WF-1 | C142: WF | J142: F86664 | L142: 8373 | M142: 25 | N142: 22 | O142: 21 | P142: 22 | Q142: 23 | R142: 2 | S142: 27 | T142: 25 | U142: 24 | V142: 24 | W142: 25 | X142: 24 | Y142: 33 | Z142: 30 | AA142: 28 | AB142: 28 | AC142: 29 | AD142: 29
A143: 2019-06-01 | B143: =VLOOKUP(J143,'Control Panel'!$G$132:$K$171,5,FALSE) -> WF-5 | C143: WF | J143: F86666 | L143: 14259 | M143: 44 | N143: 38 | O143: 38 | P143: 39 | Q143: 38 | R143: 15 | S143: 45 | T143: 42 | U143: 39 | V143: 40 | W143: 40 | X143: 40 | Y143: 52 | Z143: 43 | AA143: 44 | AB143: 41 | AC143: 43 | AD143: 43
A144: 2019-06-01 | B144: =VLOOKUP(J144,'Control Panel'!$G$132:$K$171,5,FALSE) -> WF-7 | C144: WF | J144: F86679 | L144: 5849 | M144: 28 | N144: 26 | O144: 25 | P144: 25 | Q144: 25 | R144: 8 | S144: 23 | T144: 20 | U144: 19 | V144: 19 | W144: 20 | X144: 19 | Y144: 18 | Z144: 6 | AA144: 7 | AB144: 12 | AC144: 8 | AD144: 14
A145: 2019-06-01 | B145: =VLOOKUP(J145,'Control Panel'!$G$132:$K$171,5,FALSE) -> WF-1 | C145: WF | J145: F86689 | L145: 4112 | M145: 37 | N145: 36 | O145: 37 | P145: 37 | Q145: 37 | R145: 9 | S145: 30 | T145: 25 | U145: 24 | V145: 25 | W145: 25 | X145: 25 | Y145: 13 | Z145: 7 | AA145: 11 | AB145: 9 | AC145: 11 | AD145: 9
A146: 2019-06-01 | B146: =VLOOKUP(J146,'Control Panel'!$G$132:$K$171,5,FALSE) -> WF-4 | C146: WF | J146: F86696 | L146: 5156 | M146: 11 | N146: 10 | O146: 10 | P146: 11 | Q146: 10 | R146: 0 | S146: 16 | T146: 11 | U146: 11 | V146: 12 | W146: 11 | X146: 11 | Y146: 17 | Z146: 16 | AA146: 16 | AB146: 12 | AC146: 16 | AD146: 14
A147: 2019-06-01 | B147: =VLOOKUP(J147,'Control Panel'!$G$132:$K$171,5,FALSE) -> WF-1 | C147: WF | J147: F86700 | L147: 3834 | M147: 12 | N147: 11 | O147: 11 | P147: 11 | Q147: 11 | R147: 2 | S147: 11 | T147: 11 | U147: 10 | V147: 10 | W147: 10 | X147: 9 | Y147: 16 | Z147: 15 | AA147: 16 | AB147: 15 | AC147: 16 | AD147: 16
A148: 2019-06-01 | B148: =VLOOKUP(J148,'Control Panel'!$G$132:$K$171,5,FALSE) -> WF-5 | C148: WF | J148: F86701 | L148: 3312 | M148: 9 | N148: 9 | O148: 9 | P148: 9 | Q148: 9 | R148: 1 | S148: 9 | T148: 9 | U148: 9 | V148: 9 | W148: 9 | X148: 9 | Y148: 11 | Z148: 6 | AA148: 6 | AB148: 8 | AC148: 5 | AD148: 9
A149: 2019-06-01 | B149: =VLOOKUP(J149,'Control Panel'!$G$132:$K$171,5,FALSE) -> WF-5 | C149: WF | J149: F86705 | L149: 3038 | M149: 14 | N149: 13 | O149: 13 | P149: 13 | Q149: 13 | R149: 10 | S149: 9 | T149: 9 | U149: 7 | V149: 5 | W149: 5 | X149: 6 | Y149: 10 | Z149: 10 | AA149: 10 | AB149: 9 | AC149: 9 | AD149: 9
A150: 2019-06-01 | B150: =VLOOKUP(J150,'Control Panel'!$G$132:$K$171,5,FALSE) -> WF-6 | C150: WF | J150: F86708 | L150: 2786 | M150: 9 | N150: 9 | O150: 9 | P150: 9 | Q150: 8 | R150: 6 | S150: 9 | T150: 8 | U150: 7 | V150: 7 | W150: 7 | X150: 7 | Y150: 4 | Z150: 4 | AA150: 3 | AB150: 2 | AC150: 3 | AD150: 2
A151: 2019-06-01 | B151: =VLOOKUP(J151,'Control Panel'!$G$132:$K$171,5,FALSE) -> WF-4 | C151: WF | J151: F86712 | L151: 3111 | M151: 4 | N151: 3 | O151: 3 | P151: 3 | Q151: 3 | R151: 1 | S151: 7 | T151: 6 | U151: 6 | V151: 6 | W151: 6 | X151: 6 | Y151: 8 | Z151: 2 | AA151: 6 | AB151: 5 | AC151: 6 | AD151: 6
A152: 2019-06-01 | B152: =VLOOKUP(J152,'Control Panel'!$G$132:$K$171,5,FALSE) -> WF-2 | C152: WF | J152: Y01291 | L152: 8805 | M152: 24 | N152: 23 | O152: 23 | P152: 24 | Q152: 19 | R152: 9 | S152: 32 | T152: 30 | U152: 29 | V152: 29 | W152: 29 | X152: 29 | Y152: 33 | Z152: 33 | AA152: 32 | AB152: 30 | AC152: 31 | AD152: 30
A153: 2019-06-01 | B153: =VLOOKUP(J153,'Control Panel'!$G$132:$K$171,5,FALSE) -> WF-1 | C153: WF | J153: Y01839 | L153: 6535 | M153: 31 | N153: 26 | O153: 26 | P153: 26 | Q153: 26 | R153: 9 | S153: 25 | T153: 24 | U153: 22 | V153: 23 | W153: 23 | X153: 21 | Y153: 30 | Z153: 28 | AA153: 28 | AB153: 25 | AC153: 28 | AD153: 25
A154: 2019-06-01 | B154: =VLOOKUP(J154,'Control Panel'!$G$132:$K$171,5,FALSE) -> WF-3 | C154: WF | J154: Y02585 | L154: 7977 | M154: 29 | N154: 20 | O154: 19 | P154: 20 | Q154: 19 | R154: 13 | S154: 35 | T154: 29 | U154: 24 | V154: 24 | W154: 25 | X154: 26 | Y154: 30 | Z154: 29 | AA154: 27 | AB154: 24 | AC154: 28 | AD154: 25
A155: 2019-06-01 | B155: =VLOOKUP(J155,'Control Panel'!$G$132:$K$171,5,FALSE) ->  | J155: Total | L155: 270844 | M155: 950 | N155: 817 | O155: 815 | P155: 832 | Q155: 803 | R155: 251 | S155: 955 | T155: 860 | U155: 786 | V155: 793 | W155: 799 | X155: 790 | Y155: 838 | Z155: 705 | AA155: 714 | AB155: 612 | AC155: 686 | AD155: 653
A156: 2019-07-01 | B156: =VLOOKUP(J156,'Control Panel'!$G$132:$K$171,5,FALSE) ->  | C156: Childhood Immunisations Q2 | E156: Last Run: | G156: Population Count | H156: 281296 | K156: Search | L156: All Patients | M156: (01) 12 MONTH COHORT | N156: (01.01) DTaP/IPV/Hib 6in1 | O156: (01.02) Men B (1st and 2nd) | P156: (01.03) PCV | Q156: (01.04) Rotavirus | R156: (01.05) BCG | S156: (02) 24 MONTH COHORT | T156: (02.01) DTaP/IPV/Hib Combined | U156: (02.02) MMR | V156: (02.03) HiB/Men C | W156: (02.04) PCV (Booster) | X156: (02.05) Men B (Booster) | Y156: (03) 5 YEAR COHORT | Z156: (03.01) DTaP/IPV/Hib Combined | AA156: (03.02) MMR (Primary) | AB156: (03.03) DTaP/IPV (Booster) | AC156: (03.04) HiB/Men C | AD156: (03.05) MMR (Booster)
A157: 2019-07-01 | B157: =VLOOKUP(J157,'Control Panel'!$G$132:$K$171,5,FALSE) ->  | E157: 2019-08-02T09:07:00 | G157: Males | H157: 143494 | J157: Organisation Code
A158: 2019-07-01 | B158: =VLOOKUP(J158,'Control Panel'!$G$132:$K$171,5,FALSE) -> WF-6 | C158: WF | E158: Relative Date: | G158: Females | H158: 137802 | J158: F86001 | L158: 7927 | M158: 28 | N158: 26 | O158: 26 | P158: 26 | Q158: 25 | R158: 5 | S158: 28 | T158: 25 | U158: 22 | V158: 23 | W158: 23 | X158: 24 | Y158: 30 | Z158: 24 | AA158: 24 | AB158: 17 | AC158: 24 | AD158: 19
A159: 2019-07-01 | B159: =VLOOKUP(J159,'Control Panel'!$G$132:$K$171,5,FALSE) -> WF-1 | C159: WF | E159: 2019-08-01 | J159: F86005 | L159: 8370 | M159: 39 | N159: 31 | O159: 29 | P159: 31 | Q159: 30 | R159: 3 | S159: 49 | T159: 47 | U159: 43 | V159: 43 | W159: 44 | X159: 42 | Y159: 32 | Z159: 29 | AA159: 29 | AB159: 18 | AC159: 28 | AD159: 21
A160: 2019-07-01 | B160: =VLOOKUP(J160,'Control Panel'!$G$132:$K$171,5,FALSE) -> WF-7 | C160: WF | J160: F86006 | L160: 6278 | M160: 13 | N160: 11 | O160: 11 | P160: 11 | Q160: 11 | R160: 1 | S160: 14 | T160: 14 | U160: 11 | V160: 13 | W160: 13 | X160: 11 | Y160: 21 | Z160: 21 | AA160: 20 | AB160: 14 | AC160: 17 | AD160: 16
A161: 2019-07-01 | B161: =VLOOKUP(J161,'Control Panel'!$G$132:$K$171,5,FALSE) -> WF-3 | C161: WF | J161: F86011 | L161: 9200 | M161: 16 | N161: 12 | O161: 13 | P161: 13 | Q161: 13 | R161: 0 | S161: 27 | T161: 23 | U161: 22 | V161: 23 | W161: 23 | X161: 23 | Y161: 27 | Z161: 24 | AA161: 20 | AB161: 20 | AC161: 21 | AD161: 19
A162: 2019-07-01 | B162: =VLOOKUP(J162,'Control Panel'!$G$132:$K$171,5,FALSE) -> WF-7 | C162: WF | J162: F86030 | L162: 8162 | M162: 24 | N162: 21 | O162: 21 | P162: 21 | Q162: 21 | R162: 7 | S162: 33 | T162: 32 | U162: 31 | V162: 31 | W162: 31 | X162: 31 | Y162: 30 | Z162: 25 | AA162: 24 | AB162: 24 | AC162: 25 | AD162: 24
A163: 2019-07-01 | B163: =VLOOKUP(J163,'Control Panel'!$G$132:$K$171,5,FALSE) -> WF-4 | C163: WF | J163: F86036 | L163: 16031 | M163: 70 | N163: 63 | O163: 63 | P163: 63 | Q163: 59 | R163: 34 | S163: 71 | T163: 69 | U163: 64 | V163: 63 | W163: 65 | X163: 64 | Y163: 57 | Z163: 56 | AA163: 54 | AB163: 49 | AC163: 52 | AD163: 49
A164: 2019-07-01 | B164: =VLOOKUP(J164,'Control Panel'!$G$132:$K$171,5,FALSE) -> WF-3 | C164: WF | J164: F86038 | L164: 11108 | M164: 52 | N164: 48 | O164: 47 | P164: 48 | Q164: 49 | R164: 5 | S164: 41 | T164: 41 | U164: 33 | V164: 32 | W164: 33 | X164: 33 | Y164: 56 | Z164: 48 | AA164: 48 | AB164: 37 | AC164: 50 | AD164: 39
A165: 2019-07-01 | B165: =VLOOKUP(J165,'Control Panel'!$G$132:$K$171,5,FALSE) -> WF-4 | C165: WF | J165: F86044 | L165: 8911 | M165: 49 | N165: 41 | O165: 40 | P165: 41 | Q165: 41 | R165: 4 | S165: 40 | T165: 27 | U165: 26 | V165: 26 | W165: 26 | X165: 26 | Y165: 30 | Z165: 22 | AA165: 19 | AB165: 17 | AC165: 19 | AD165: 17
A166: 2019-07-01 | B166: =VLOOKUP(J166,'Control Panel'!$G$132:$K$171,5,FALSE) -> WF-5 | C166: WF | J166: F86045 | L166: 1955 | M166: 4 | N166: 3 | O166: 3 | P166: 3 | Q166: 3 | R166: 1 | S166: 3 | T166: 3 | U166: 2 | V166: 2 | W166: 2 | X166: 2 | Y166: 4 | Z166: 3 | AA166: 4 | AB166: 3 | AC166: 4 | AD166: 4
A167: 2019-07-01 | B167: =VLOOKUP(J167,'Control Panel'!$G$132:$K$171,5,FALSE) -> WF-7 | C167: WF | J167: F86058 | L167: 15424 | M167: 64 | N167: 53 | O167: 51 | P167: 51 | Q167: 49 | R167: 15 | S167: 63 | T167: 62 | U167: 52 | V167: 51 | W167: 53 | X167: 52 | Y167: 56 | Z167: 52 | AA167: 52 | AB167: 42 | AC167: 51 | AD167: 44
A168: 2019-07-01 | B168: =VLOOKUP(J168,'Control Panel'!$G$132:$K$171,5,FALSE) -> WF-7 | C168: WF | J168: F86062 | L168: 7132 | M168: 25 | N168: 22 | O168: 22 | P168: 22 | Q168: 19 | R168: 4 | S168: 25 | T168: 23 | U168: 19 | V168: 18 | W168: 19 | X168: 19 | Y168: 15 | Z168: 14 | AA168: 15 | AB168: 12 | AC168: 14 | AD168: 11
A169: 2019-07-01 | B169: =VLOOKUP(J169,'Control Panel'!$G$132:$K$171,5,FALSE) -> WF-2 | C169: WF | J169: F86078 | L169: 7338 | M169: 22 | N169: 19 | O169: 19 | P169: 20 | Q169: 17 | R169: 5 | S169: 13 | T169: 13 | U169: 10 | V169: 10 | W169: 10 | X169: 9 | Y169: 14 | Z169: 14 | AA169: 12 | AB169: 9 | AC169: 12 | AD169: 9
A170: 2019-07-01 | B170: =VLOOKUP(J170,'Control Panel'!$G$132:$K$171,5,FALSE) -> WF-6 | C170: WF | J170: F86086 | L170: 5943 | M170: 19 | N170: 15 | O170: 15 | P170: 15 | Q170: 15 | R170: 3 | S170: 19 | T170: 17 | U170: 14 | V170: 13 | W170: 13 | X170: 13 | Y170: 25 | Z170: 9 | AA170: 23 | AB170: 11 | AC170: 23 | AD170: 19
A171: 2019-07-01 | B171: =VLOOKUP(J171,'Control Panel'!$G$132:$K$171,5,FALSE) -> WF-4 | C171: WF | J171: F86088 | L171: 4784 | M171: 18 | N171: 16 | O171: 15 | P171: 16 | Q171: 15 | R171: 3 | S171: 10 | T171: 8 | U171: 6 | V171: 5 | W171: 6 | X171: 6 | Y171: 13 | Z171: 11 | AA171: 13 | AB171: 9 | AC171: 13 | AD171: 11
A172: 2019-07-01 | B172: =VLOOKUP(J172,'Control Panel'!$G$132:$K$171,5,FALSE) -> WF-6 | C172: WF | J172: F86607 | L172: 14073 | M172: 56 | N172: 46 | O172: 52 | P172: 52 | Q172: 50 | R172: 21 | S172: 49 | T172: 44 | U172: 43 | V172: 43 | W172: 44 | X172: 43 | Y172: 65 | Z172: 61 | AA172: 60 | AB172: 56 | AC172: 59 | AD172: 60
A173: 2019-07-01 | B173: =VLOOKUP(J173,'Control Panel'!$G$132:$K$171,5,FALSE) -> WF-2 | C173: WF | J173: F86616 | L173: 6875 | M173: 25 | N173: 24 | O173: 24 | P173: 24 | Q173: 23 | R173: 2 | S173: 37 | T173: 34 | U173: 34 | V173: 34 | W173: 33 | X173: 34 | Y173: 20 | Z173: 17 | AA173: 16 | AB173: 11 | AC173: 17 | AD173: 12
A174: 2019-07-01 | B174: =VLOOKUP(J174,'Control Panel'!$G$132:$K$171,5,FALSE) -> WF-5 | C174: WF | J174: F86621 | L174: 5697 | M174: 21 | N174: 19 | O174: 18 | P174: 19 | Q174: 18 | R174: 10 | S174: 10 | T174: 10 | U174: 10 | V174: 10 | W174: 10 | X174: 10 | Y174: 15 | Z174: 6 | AA174: 14 | AB174: 11 | AC174: 14 | AD174: 11
A175: 2019-07-01 | B175: =VLOOKUP(J175,'Control Panel'!$G$132:$K$171,5,FALSE) -> WF-5 | C175: WF | J175: F86625 | L175: 6148 | M175: 14 | N175: 9 | O175: 9 | P175: 9 | Q175: 8 | R175: 2 | S175: 11 | T175: 9 | U175: 8 | V175: 8 | W175: 8 | X175: 8 | Y175: 20 | Z175: 19 | AA175: 18 | AB175: 13 | AC175: 7 | AD175: 15
A176: 2019-07-01 | B176: =VLOOKUP(J176,'Control Panel'!$G$132:$K$171,5,FALSE) -> WF-1 | C176: WF | J176: F86626 | L176: 5404 | M176: 18 | N176: 17 | O176: 17 | P176: 17 | Q176: 17 | R176: 4 | S176: 17 | T176: 16 | U176: 11 | V176: 12 | W176: 12 | X176: 12 | Y176: 22 | Z176: 22 | AA176: 20 | AB176: 19 | AC176: 21 | AD176: 18
A177: 2019-07-01 | B177: =VLOOKUP(J177,'Control Panel'!$G$132:$K$171,5,FALSE) -> WF-2 | C177: WF | J177: F86627 | L177: 13894 | M177: 38 | N177: 35 | O177: 35 | P177: 35 | Q177: 28 | R177: 8 | S177: 43 | T177: 37 | U177: 36 | V177: 36 | W177: 35 | X177: 32 | Y177: 46 | Z177: 45 | AA177: 44 | AB177: 33 | AC177: 43 | AD177: 36
A178: 2019-07-01 | B178: =VLOOKUP(J178,'Control Panel'!$G$132:$K$171,5,FALSE) -> WF-6 | C178: WF | J178: F86644 | L178: 10928 | M178: 27 | N178: 25 | O178: 25 | P178: 26 | Q178: 23 | R178: 2 | S178: 43 | T178: 38 | U178: 36 | V178: 37 | W178: 37 | X178: 37 | Y178: 35 | Z178: 34 | AA178: 34 | AB178: 13 | AC178: 34 | AD178: 27
A179: 2019-07-01 | B179: =VLOOKUP(J179,'Control Panel'!$G$132:$K$171,5,FALSE) -> WF-4 | C179: WF | J179: F86650 | L179: 8276 | M179: 33 | N179: 30 | O179: 30 | P179: 30 | Q179: 29 | R179: 8 | S179: 35 | T179: 31 | U179: 28 | V179: 28 | W179: 28 | X179: 28 | Y179: 41 | Z179: 34 | AA179: 32 | AB179: 25 | AC179: 35 | AD179: 24
A180: 2019-07-01 | B180: =VLOOKUP(J180,'Control Panel'!$G$132:$K$171,5,FALSE) -> WF-1 | C180: WF | J180: F86664 | L180: 8403 | M180: 35 | N180: 32 | O180: 32 | P180: 32 | Q180: 33 | R180: 1 | S180: 30 | T180: 30 | U180: 25 | V180: 25 | W180: 25 | X180: 25 | Y180: 25 | Z180: 23 | AA180: 22 | AB180: 19 | AC180: 22 | AD180: 19
A181: 2019-07-01 | B181: =VLOOKUP(J181,'Control Panel'!$G$132:$K$171,5,FALSE) -> WF-5 | C181: WF | J181: F86666 | L181: 14288 | M181: 43 | N181: 38 | O181: 33 | P181: 37 | Q181: 31 | R181: 16 | S181: 51 | T181: 47 | U181: 43 | V181: 45 | W181: 43 | X181: 43 | Y181: 52 | Z181: 49 | AA181: 47 | AB181: 39 | AC181: 42 | AD181: 41
A182: 2019-07-01 | B182: =VLOOKUP(J182,'Control Panel'!$G$132:$K$171,5,FALSE) -> WF-7 | C182: WF | J182: F86679 | L182: 5856 | M182: 33 | N182: 29 | O182: 29 | P182: 30 | Q182: 29 | R182: 6 | S182: 30 | T182: 29 | U182: 25 | V182: 25 | W182: 26 | X182: 26 | Y182: 16 | Z182: 12 | AA182: 15 | AB182: 13 | AC182: 14 | AD182: 13
A183: 2019-07-01 | B183: =VLOOKUP(J183,'Control Panel'!$G$132:$K$171,5,FALSE) -> WF-1 | C183: WF | J183: F86689 | L183: 4149 | M183: 35 | N183: 34 | O183: 34 | P183: 34 | Q183: 31 | R183: 7 | S183: 17 | T183: 17 | U183: 17 | V183: 17 | W183: 17 | X183: 17 | Y183: 18 | Z183: 10 | AA183: 14 | AB183: 11 | AC183: 14 | AD183: 13
A184: 2019-07-01 | B184: =VLOOKUP(J184,'Control Panel'!$G$132:$K$171,5,FALSE) -> WF-4 | C184: WF | J184: F86696 | L184: 5164 | M184: 16 | N184: 16 | O184: 16 | P184: 16 | Q184: 16 | R184: 3 | S184: 8 | T184: 7 | U184: 7 | V184: 7 | W184: 7 | X184: 7 | Y184: 10 | Z184: 10 | AA184: 10 | AB184: 7 | AC184: 10 | AD184: 7
A185: 2019-07-01 | B185: =VLOOKUP(J185,'Control Panel'!$G$132:$K$171,5,FALSE) -> WF-1 | C185: WF | J185: F86700 | L185: 3834 | M185: 13 | N185: 10 | O185: 10 | P185: 10 | Q185: 10 | R185: 4 | S185: 9 | T185: 9 | U185: 8 | V185: 8 | W185: 8 | X185: 7 | Y185: 8 | Z185: 7 | AA185: 7 | AB185: 7 | AC185: 7 | AD185: 7
A186: 2019-07-01 | B186: =VLOOKUP(J186,'Control Panel'!$G$132:$K$171,5,FALSE) -> WF-5 | C186: WF | J186: F86701 | L186: 3320 | M186: 12 | N186: 10 | O186: 10 | P186: 11 | Q186: 11 | R186: 2 | S186: 14 | T186: 12 | U186: 13 | V186: 11 | W186: 12 | X186: 12 | Y186: 12 | Z186: 4 | AA186: 9 | AB186: 9 | AC186: 9 | AD186: 8
A187: 2019-07-01 | B187: =VLOOKUP(J187,'Control Panel'!$G$132:$K$171,5,FALSE) -> WF-5 | C187: WF | J187: F86705 | L187: 3037 | M187: 9 | N187: 9 | O187: 9 | P187: 9 | Q187: 9 | R187: 6 | S187: 4 | T187: 4 | U187: 4 | V187: 3 | W187: 3 | X187: 3 | Y187: 5 | Z187: 5 | AA187: 5 | AB187: 4 | AC187: 4 | AD187: 4
A188: 2019-07-01 | B188: =VLOOKUP(J188,'Control Panel'!$G$132:$K$171,5,FALSE) -> WF-6 | C188: WF | J188: F86708 | L188: 2796 | M188: 6 | N188: 4 | O188: 4 | P188: 4 | Q188: 3 | R188: 3 | S188: 7 | T188: 7 | U188: 7 | V188: 7 | W188: 7 | X188: 6 | Y188: 10 | Z188: 10 | AA188: 10 | AB188: 7 | AC188: 10 | AD188: 7
A189: 2019-07-01 | B189: =VLOOKUP(J189,'Control Panel'!$G$132:$K$171,5,FALSE) -> WF-4 | C189: WF | J189: F86712 | L189: 3115 | M189: 16 | N189: 13 | O189: 14 | P189: 13 | Q189: 14 | R189: 1 | S189: 5 | T189: 5 | U189: 4 | V189: 4 | W189: 4 | X189: 4 | Y189: 7 | Z189: 3 | AA189: 7 | AB189: 4 | AC189: 7 | AD189: 5
A190: 2019-07-01 | B190: =VLOOKUP(J190,'Control Panel'!$G$132:$K$171,5,FALSE) -> WF-2 | C190: WF | J190: Y01291 | L190: 8772 | M190: 34 | N190: 31 | O190: 31 | P190: 31 | Q190: 30 | R190: 9 | S190: 28 | T190: 27 | U190: 24 | V190: 24 | W190: 25 | X190: 25 | Y190: 34 | Z190: 32 | AA190: 33 | AB190: 30 | AC190: 32 | AD190: 30
A191: 2019-07-01 | B191: =VLOOKUP(J191,'Control Panel'!$G$132:$K$171,5,FALSE) -> WF-1 | C191: WF | J191: Y01839 | L191: 6505 | M191: 28 | N191: 27 | O191: 27 | P191: 27 | Q191: 26 | R191: 10 | S191: 27 | T191: 26 | U191: 25 | V191: 25 | W191: 25 | X191: 25 | Y191: 22 | Z191: 18 | AA191: 19 | AB191: 17 | AC191: 17 | AD191: 16
A192: 2019-07-01 | B192: =VLOOKUP(J192,'Control Panel'!$G$132:$K$171,5,FALSE) -> WF-3 | C192: WF | J192: Y02585 | L192: 7917 | M192: 32 | N192: 29 | O192: 29 | P192: 29 | Q192: 30 | R192: 18 | S192: 31 | T192: 30 | U192: 29 | V192: 28 | W192: 28 | X192: 28 | Y192: 21 | Z192: 18 | AA192: 19 | AB192: 13 | AC192: 18 | AD192: 13
A193: 2019-07-01 | B193: =VLOOKUP(J193,'Control Panel'!$G$132:$K$171,5,FALSE) ->  | J193: Total | L193: 267014 | M193: 987 | N193: 868 | O193: 863 | P193: 876 | Q193: 836 | R193: 233 | S193: 942 | T193: 873 | U193: 792 | V193: 790 | W193: 798 | X193: 787 | Y193: 914 | Z193: 791 | AA193: 812 | AB193: 643 | AC193: 789 | AD193: 688
A194: 2019-08-01 | B194: =VLOOKUP(J194,'Control Panel'!$G$132:$K$171,5,FALSE) ->  | C194: Childhood Immunisations Q2 | E194: Last Run: | G194: Population Count | H194: 281420 | K194: Search | L194: All Patients | M194: (01) 12 MONTH COHORT | N194: (01.01) DTaP/IPV/Hib 6in1 | O194: (01.02) Men B (1st and 2nd) | P194: (01.03) PCV | Q194: (01.04) Rotavirus | R194: (01.05) BCG | S194: (02) 24 MONTH COHORT | T194: (02.01) DTaP/IPV/Hib Combined | U194: (02.02) MMR | V194: (02.03) HiB/Men C | W194: (02.04) PCV (Booster) | X194: (02.05) Men B (Booster) | Y194: (03) 5 YEAR COHORT | Z194: (03.01) DTaP/IPV/Hib Combined | AA194: (03.02) MMR (Primary) | AB194: (03.03) DTaP/IPV (Booster) | AC194: (03.04) HiB/Men C | AD194: (03.05) MMR (Booster)
A195: 2019-08-01 | B195: =VLOOKUP(J195,'Control Panel'!$G$132:$K$171,5,FALSE) ->  | E195: 2019-09-02T09:31:00 | G195: Males | H195: 143521 | J195: Organisation Code
A196: 2019-08-01 | B196: =VLOOKUP(J196,'Control Panel'!$G$132:$K$171,5,FALSE) -> WF-6 | C196: WF | E196: Relative Date: | G196: Females | H196: 137899 | J196: F86001 | L196: 7917 | M196: 28 | N196: 26 | O196: 26 | P196: 26 | Q196: 25 | R196: 5 | S196: 28 | T196: 25 | U196: 22 | V196: 23 | W196: 23 | X196: 24 | Y196: 30 | Z196: 24 | AA196: 24 | AB196: 17 | AC196: 24 | AD196: 19
A197: 2019-08-01 | B197: =VLOOKUP(J197,'Control Panel'!$G$132:$K$171,5,FALSE) -> WF-1 | C197: WF | E197: 2019-09-01 | J197: F86005 | L197: 8427 | M197: 41 | N197: 33 | O197: 30 | P197: 33 | Q197: 30 | R197: 3 | S197: 46 | T197: 44 | U197: 40 | V197: 40 | W197: 41 | X197: 39 | Y197: 32 | Z197: 29 | AA197: 29 | AB197: 18 | AC197: 28 | AD197: 21
A198: 2019-08-01 | B198: =VLOOKUP(J198,'Control Panel'!$G$132:$K$171,5,FALSE) -> WF-7 | C198: WF | J198: F86006 | L198: 6288 | M198: 13 | N198: 11 | O198: 11 | P198: 11 | Q198: 11 | R198: 1 | S198: 14 | T198: 14 | U198: 11 | V198: 13 | W198: 13 | X198: 11 | Y198: 21 | Z198: 21 | AA198: 20 | AB198: 14 | AC198: 17 | AD198: 16
A199: 2019-08-01 | B199: =VLOOKUP(J199,'Control Panel'!$G$132:$K$171,5,FALSE) -> WF-3 | C199: WF | J199: F86011 | L199: 9227 | M199: 16 | N199: 13 | O199: 13 | P199: 13 | Q199: 13 | R199: 0 | S199: 26 | T199: 22 | U199: 21 | V199: 22 | W199: 22 | X199: 22 | Y199: 27 | Z199: 24 | AA199: 20 | AB199: 20 | AC199: 21 | AD199: 19
A200: 2019-08-01 | B200: =VLOOKUP(J200,'Control Panel'!$G$132:$K$171,5,FALSE) -> WF-7 | C200: WF | J200: F86030 | L200: 8158 | M200: 24 | N200: 21 | O200: 21 | P200: 21 | Q200: 21 | R200: 7 | S200: 32 | T200: 31 | U200: 30 | V200: 30 | W200: 30 | X200: 30 | Y200: 30 | Z200: 25 | AA200: 24 | AB200: 24 | AC200: 25 | AD200: 24
... 1731 more rows

Sheet 01072021 (hidden)
A1: Registered practice ID | B1: (01)_12_MONTH_COHORT_(CEG_Dashboards___COVER_Audit_Child_Imms).csv | C1: (01.01)_DTaP_IPV_Hib_HepB_(CEG_Dashboards___COVER_Audit_Child_Imms).csv | D1: (01.02)_Men_B_(1st_and_2nd)_(CEG_Dashboards___COVER_Audit_Child_Imms).csv | E1: (01.03)_PCV_(CEG_Dashboards___COVER_Audit_Child_Imms).csv | F1: (01.04)_Rotavirus_(CEG_Dashboards___COVER_Audit_Child_Imms).csv | G1: (02)_24_MONTH_COHORT_(CEG_Dashboards___COVER_Audit_Child_Imms).csv | H1: (02.01)_DTaP_IPV_Hib_HepB_(CEG_Dashboards___COVER_Audit_Child_Imms).csv | I1: (02.02)_MMR_(CEG_Dashboards___COVER_Audit_Child_Imms).csv | J1: (02.03)_HiB_Men_C_(CEG_Dashboards___COVER_Audit_Child_Imms).csv | K1: (02.04)_PCV_(Booster)_(CEG_Dashboards___COVER_Audit_Child_Imms).csv | L1: (02.05)_Men_B_(Booster)_(CEG_Dashboards___COVER_Audit_Child_Imms).csv | M1: (03)_5_YEAR_COHORT_(CEG_Dashboards___COVER_Audit_Child_Imms).csv | N1: (03.01)_DTaP_IPV_Hib_or_DTaP_IPV_Hib_HepB_(CEG_Dashboards___COVER_Audit_Child_Imms).csv | O1: (03.02)_MMR_(Primary)_(CEG_Dashboards___COVER_Audit_Child_Imms).csv | P1: (03.03)_DTaP_IPV_(Booster)_(CEG_Dashboards___COVER_Audit_Child_Imms).csv | Q1: (03.04)_HiB_Men_C_(CEG_Dashboards___COVER_Audit_Child_Imms).csv | R1: (03.05)_MMR_(Booster)_(CEG_Dashboards___COVER_Audit_Child_Imms).csv | S1: listsize_(CEG_Dashboards___COVER_Audit_Child_Imms).csv
A2: A83020 | S2: 1
A3: A83635 | S3: 1
A4: C84023 | S4: 1
A5: D81054 | S5: 1
A6: D82008 | S6: 1
A7: D83021 | S7: 3
A8: E81014 | S8: 1
A9: E81027 | S9: 1
A10: E81064 | S10: 1
A11: E82014 | S11: 1
A12: E82068 | S12: 1
A13: E82100 | S13: 1
A14: E83003 | S14: 1
A15: E83017 | S15: 1
A16: E83045 | S16: 1
A17: E84066 | S17: 2
A18: E85033 | S18: 1
A19: E86014 | S19: 1
A20: E86028 | S20: 1
A21: E87754 | S21: 1
A22: F81115 | S22: 1
A23: F81118 | S23: 2
A24: F81122 | S24: 1
A25: F81144 | S25: 1
A26: F81218 | S26: 2
A27: F82011 | S27: 1
A28: F82680 | G28: 1 | S28: 128
A29: F83004 | S29: 2
A30: F83017 | S30: 1
A31: F84025 | M31: 1 | O31: 1 | P31: 1 | Q31: 1 | R31: 1 | S31: 1
A32: F84053 | S32: 1
A33: F84072 | S33: 1
A34: F84080 | S34: 1
A35: F84086 | S35: 1
A36: F84111 | S36: 1
A37: F84119 | S37: 1
A38: F84621 | S38: 1
A39: F84647 | S39: 1
A40: F84735 | S40: 1
A41: F84747 | S41: 1
A42: F85039 | S42: 1
A43: F85700 | S43: 3
A44: F85701 | S44: 1
A45: F86004 | B45: 29 | C45: 27 | D45: 24 | E45: 27 | F45: 27 | G45: 53 | H45: 52 | I45: 48 | J45: 50 | K45: 50 | L45: 52 | M45: 47 | N45: 44 | O45: 44 | P45: 40 | Q45: 42 | R45: 42 | S45: 16038
A46: F86006 | S46: 1
A47: F86011 | S47: 1
A48: F86013 | B48: 1 | S48: 348
A49: F86018 | B49: 32 | C49: 28 | D49: 29 | E49: 30 | F49: 30 | G49: 16 | H49: 15 | I49: 13 | J49: 14 | K49: 13 | L49: 15 | M49: 33 | N49: 27 | O49: 27 | P49: 19 | Q49: 25 | R49: 22 | S49: 9800
A50: F86023 | S50: 1
A51: F86025 | S51: 215
A52: F86026 | B52: 20 | C52: 18 | D52: 19 | E52: 19 | F52: 19 | G52: 18 | H52: 16 | I52: 15 | J52: 14 | K52: 14 | L52: 16 | M52: 17 | N52: 12 | O52: 16 | P52: 14 | Q52: 16 | R52: 14 | S52: 7118
A53: F86028 | S53: 1
A54: F86030 | S54: 1
A55: F86034 | S55: 2
A56: F86036 | S56: 1
A57: F86044 | S57: 1
A58: F86045 | S58: 1
A59: F86062 | S59: 1
A60: F86074 | B60: 39 | C60: 36 | D60: 37 | E60: 38 | F60: 34 | G60: 36 | H60: 32 | I60: 33 | J60: 31 | K60: 32 | L60: 32 | M60: 40 | N60: 29 | O60: 36 | P60: 34 | Q60: 35 | R60: 33 | S60: 15073
A61: F86082 | S61: 65
A62: F86616 | S62: 2
A63: F86638 | B63: 11 | C63: 11 | D63: 11 | E63: 11 | F63: 10 | G63: 18 | H63: 14 | I63: 12 | J63: 13 | K63: 12 | L63: 14 | M63: 18 | N63: 16 | O63: 15 | P63: 13 | Q63: 15 | R63: 13 | S63: 4981
A64: F86657 | S64: 114
A65: F86691 | S65: 4
A66: F86700 | S66: 1
A67: F86701 | S67: 1
A68: F86707 | S68: 1
A69: G82741 | S69: 1
A70: G83062 | S70: 1
A71: G85085 | S71: 1
A72: G85087 | S72: 1
A73: G85096 | S73: 1
A74: G85136 | S74: 1
A75: H83015 | S75: 1
A76: H83021 | S76: 1
A77: H84062 | S77: 1
A78: H85103 | S78: 1
A79: J81076 | S79: 1
A80: K81081 | S80: 1
A81: M88004 | S81: 1
A82: P81002 | S82: 1
A83: P84023 | S83: 1
A84: Unknown | B84: 1 | S84: 46
A85: Y00155 | M85: 1 | S85: 211
A86: Y00403 | S86: 1
A87: Y01795 | S87: 2
A88: Y01839 | S88: 1
A89: Y02575 | S89: 3
A90: Y02987 | S90: 3
A91: Y03049 | S91: 1
A92: Y06592 | S92: 4

Sheet Sheet2 (hidden)
A1: Status | B1: Practice ID | C1: Practice | D1: Locality ID | E1: Locality | F1: SubLocality ID | G1: SubLocality | H1: PCN/Network | I1: PCN code | J1: Clinical System | K1: Address 1 | L1: Address 2 | M1: Postcode | N1: Grid Reference | O1: X (easting) | P1: Y (northing) | Q1: Latitude | R1: Longitude
A2: Active | B2: F82005 | C2: Church Elm Lane Medical Practice | D2: BK | E2: Barking and Dagenham | F2: BK-1 | G2: East | H2: Network East | I2: U86967 | J2: EMISweb | K2: Church Elm Lane | L2: Dagenham | M2: RM10 9RR | N2: TQ 49667 84556 | O2: 549667 | P2: 184556 | Q2: 51.540066 | R2: 0.15673988
A3: Active | B3: Y01719 | C3: Broad Street Medical Centre | D3: BK | E3: Barking and Dagenham | F3: BK-1 | G3: East | H3: Network East | I3: U86968 | J3: EMISweb | K3: Broad Street Resource Centre | L3: Dagenham | M3: RM10 9HU | N3: TQ 49367 83962 | O3: 549367 | P3: 183962 | Q3: 51.534808 | R3: 0.15216548
A4: Active | B4: Y02575 | C4: Porters Avenue Doctors Surgery | D4: BK | E4: Barking and Dagenham | F4: BK-1 | G4: East | H4: Network East | I4: U86969 | J4: EMISweb | K4: 234 Porters Avenue | L4: Dagenham | M4: RM8 2EQ | N4: TQ 47283 85077 | O4: 547283 | P4: 185077 | Q4: 51.545373 | R4: 0.12260706
A5: Active | B5: F82003 | C5: First Avenue Surgery | D5: BK | E5: Barking and Dagenham | F5: BK-2 | G5: East One | H5: Network East One | I5: U27362 | J5: EMISweb | K5: 2 First Avenue | L5: Dagenham | M5: RM10 9AT | N5: TQ 49762 83388 | O5: 549762 | P5: 183388 | Q5: 51.529546 | R5: 0.15761231
A6: Active | B6: F82015 | C6: Hedgemans Surgery | D6: BK | E6: Barking and Dagenham | F6: BK-2 | G6: East One | H6: Network East One | I6: U27362 | J6: EMISweb | K6: 92 Hedgemans Road | L6: Dagenham | M6: RM9 6HT | N6: TQ 48734 84495 | O6: 548734 | P6: 184495 | Q6: 51.539764 | R6: 0.14327082
A7: Active | B7: F82017 | C7: St Albans Surgery | D7: BK | E7: Barking and Dagenham | F7: BK-2 | G7: East One | H7: Network East One | I7: U27362 | J7: EMISweb | K7: Urswick Road | L7: Dagenham | M7: RM9 6EA | N7: TQ 48052 84181 | O7: 548052 | P7: 184181 | Q7: 51.537122 | R7: 0.13331215
A8: Active | B8: F82621 | C8: The Dewey Practice | D8: BK | E8: Barking and Dagenham | F8: BK-2 | G8: East One | H8: Network East One | I8: U27362 | J8: EMISweb | K8: 281 Oxlow Lane | L8: Dagenham | M8: RM10 7YU | N8: TQ 50141 84824 | O8: 550141 | P8: 184824 | Q8: 51.542348 | R8: 0.16368374
A9: Active | B9: F82634 | C9: Heathway Medical Centre | D9: BK | E9: Barking and Dagenham | F9: BK-2 | G9: East One | H9: Network East One | I9: U27362 | J9: EMISweb | K9: Morland Road | L9: Dagenham | M9: RM10 9HU | N9: TQ 49367 83962 | O9: 549367 | P9: 183962 | Q9: 51.534808 | R9: 0.15216548
A10: Active | B10: F82678 | C10: Dr Alkaisy Surgery | D10: BK | E10: Barking and Dagenham | F10: BK-2 | G10: East One | H10: Network East One | I10: U27362 | J10: EMISweb | K10: Urswick Road | L10: Dagenham | M10: RM9 6EA | N10: TQ 48052 84181 | O10: 548052 | P10: 184181 | Q10: 51.537122 | R10: 0.13331215
A11: Active | B11: F82679 | C11: Parkview Medical Practice | D11: BK | E11: Barking and Dagenham | F11: BK-2 | G11: East One | H11: Network East One | I11: U27362 | J11: EMISweb | K11: 199 Reede Road | L11: Dagenham | M11: RM10 8EJ | N11: TQ 49877 85126 | O11: 549877 | P11: 185126 | Q11: 51.545131 | R11: 0.16000821
A12: Active | B12: F82034 | C12: Victoria Medical Centre | D12: BK | E12: Barking and Dagenham | F12: BK-3 | G12: New West | H12: Network New West | I12: U26744 | J12: EMISweb | K12: 1 Queens Road | L12: Barking | M12: IG11 8GD | N12: TQ 44085 84494 | O12: 544085 | P12: 184494 | Q12: 51.54096 | R12: 0.076282445
A13: Active | B13: F82042 | C13: Aurora Medcare | D13: BK | E13: Barking and Dagenham | F13: BK-3 | G13: New West | H13: Network New West | I13: U26744 | J13: EMISweb | K13: 1 King Edwards Road | L13: Barking | M13: IG11 7TB | N13: TQ 44643 83708 | O13: 544643 | P13: 183708 | Q13: 51.533755 | R13: 0.084000311
A14: Active | B14: F82625 | C14: Abbey Medical centre | D14: BK | E14: Barking and Dagenham | F14: BK-3 | G14: New West | H14: Network New West | I14: U26744 | J14: EMISweb | K14: 1 Harpour Road | L14: Barking | M14: IG11 8RJ | N14: TQ 44215 84642 | O14: 544215 | P14: 184642 | Q14: 51.542256 | R14: 0.078216284
A15: Active | B15: Y01280 | C15: Shifa Medical Practice | D15: BK | E15: Barking and Dagenham | F15: BK-3 | G15: New West | H15: Network New West | I15: U26744 | J15: EMISweb | K15: Gasgoine Road | L15: Barking | M15: IG11 7RS | N15: TQ 44478 83438 | O15: 544478 | P15: 183438 | Q15: 51.531371 | R15: 0.081512428
A16: Active | B16: F82001 | C16: Halbutt Street Surgery | D16: BK | E16: Barking and Dagenham | F16: BK-4 | G16: West One | H16: Network West One | I16: U11211 | J16: EMISweb | K16: 2 Halbutt Street | L16: Dagenham | M16: RM9 5AS | N16: TQ 48956 85305 | O16: 548956 | P16: 185305 | Q16: 51.546983 | R16: 0.14681208
A17: Active | B17: F82018 | C17: Barking Medical Group Practice | D17: BK | E17: Barking and Dagenham | F17: BK-4 | G17: West One | H17: Network West One | I17: U11211 | J17: EMISweb | K17: 130 Upney lane | L17: Barking | M17: IG11 9LT | N17: TQ 45536 84574 | O17: 545536 | P17: 184574 | Q17: 51.541307 | R17: 0.097223615
A18: Active | B18: F82040 | C18: John Smith House | D18: BK | E18: Barking and Dagenham | F18: BK-4 | G18: West One | H18: Network West One | I18: U11211 | J18: EMISweb | K18: 145-207 Bevan Avenue | L18: Barking | M18: IG11 9NS | N18: TQ 46496 84245 | O18: 546496 | P18: 184245 | Q18: 51.538102 | R18: 0.11091985
A19: Active | B19: F82612 | C19: The White House | D19: BK | E19: Barking and Dagenham | F19: BK-4 | G19: West One | H19: Network West One | I19: U11211 | J19: EMISweb | K19: 12 Movers Lane | L19: Barking | M19: IG11 7UN | N19: TQ 44930 83744 | O19: 544930 | P19: 183744 | Q19: 51.534005 | R19: 0.088149992
A20: Active | B20: F82647 | C20: Dr Gupta & Partner | D20: BK | E20: Barking and Dagenham | F20: BK-4 | G20: West One | H20: Network West One | I20: U11211 | J20: EMISweb | K20: 7 Salisbury Avenue | L20: Barking | M20: IG11 9XQ | N20: TQ 44605 84272 | O20: 544605 | P20: 184272 | Q20: 51.538832 | R20: 0.08368429
A21: Active | B21: F82650 | C21: Ripple Road Medical Centre | D21: BK | E21: Barking and Dagenham | F21: BK-4 | G21: West One | H21: Network West One | I21: U11211 | J21: EMISweb | K21: 343 Ripple Road | L21: Barking | M21: IG11 7RJ | N21: TQ 45217 83938 | O21: 545217 | P21: 183938 | Q21: 51.535674 | R21: 0.092364824
A22: Active | B22: F82680 | C22: Highgrove Surgery | D22: BK | E22: Barking and Dagenham | F22: BK-4 | G22: West One | H22: Network West One | I22: U11211 | J22: SystmOne | K22: Upney Lane | L22: Barking | M22: IG11 9LX | N22: TQ 45644 84306 | O22: 545644 | P22: 184306 | Q22: 51.538871 | R22: 0.098669045
A23: Active | B23: F82027 | C23: Faircross Health Centre | D23: BK | E23: Barking and Dagenham | F23: BK-5 | G23: North | H23: Network North | I23: U55387 | J23: EMISweb | K23: 51 Upney Lane | L23: Barking | M23: IG11 9LP | N23: TQ 45367 84850 | O23: 545367 | P23: 184850 | Q23: 51.54383 | R23: 0.094902305
A24: Active | B24: F82012 | C24: Five Elms | D24: BK | E24: Barking and Dagenham | F24: BK-5 | G24: North | H24: Network North | I24: U55387 | J24: EMISweb | K24: Five Elms Road | L24: Dagenham | M24: RM9 5TT | N24: TQ 48622 86004 | O24: 548622 | P24: 186004 | Q24: 51.553352 | R24: 0.14229391
A25: Active | B25: F82025 | C25: Julia Engwell Surgery | D25: BK | E25: Barking and Dagenham | F25: BK-5 | G25: North | H25: Network North | I25: U55387 | J25: EMISweb | K25: Woodward Road | L25: Dagenham | M25: RM9 4SR | N25: TQ 47520 84362 | O25: 547520 | P25: 184362 | Q25: 51.538887 | R25: 0.12572292
A26: Active | B26: F82051 | C26: Laburnum Health centre | D26: BK | E26: Barking and Dagenham | F26: BK-5 | G26: North | H26: Network North | I26: U55387 | J26: EMISweb | K26: 11 Althorne Way | L26: Dagenham | M26: RM10 7DF | N26: TQ 49234 86817 | O26: 549234 | P26: 186817 | Q26: 51.560495 | R26: 0.1514593
A27: Active | B27: F82642 | C27: Gables Surgery | D27: BK | E27: Barking and Dagenham | F27: BK-5 | G27: North | H27: Network North | I27: U55387 | J27: EMISweb | K27: Markyate Road | L27: Dagenham | M27: RM8 2LD | N27: TQ 46953 85105 | O27: 546953 | P27: 185105 | Q27: 51.545711 | R27: 0.11786324
A28: Active | B28: F82661 | C28: Green Lane Surgery | D28: BK | E28: Barking and Dagenham | F28: BK-5 | G28: North | H28: Network North | I28: U55387 | J28: EMISweb | K28: 872 Green Lane | L28: Dagenham | M28: RM8 1BX | N28: TQ 48005 86869 | O28: 548005 | P28: 186869 | Q28: 51.561286 | R28: 0.13376487
A29: Active | B29: F86040 | C29: The Surgery | D29: BK | E29: Barking and Dagenham | F29: BK-5 | G29: North | H29: Network North | I29: U55387 | J29: EMISweb | K29: 620 Longbridge Road | L29: Dagenham | M29: RM8 2AJ | N29: TQ 46755 85732 | O29: 546755 | P29: 185732 | Q29: 51.551396 | R29: 0.11527123
A30: Active | B30: Y01795 | C30: The Oval Practice | D30: BK | E30: Barking and Dagenham | F30: BK-5 | G30: North | H30: Network North | I30: U55388 | J30: EMISweb | K30: 69 Oval Road North | L30: Dagenham | M30: RM10 9ET | N30: TQ 49697 83763 | O30: 549697 | P30: 183763 | Q30: 51.532933 | R30: 0.15683523
A31: Active | B31: F82038 | C31: Valence Medical Centre | D31: BK | E31: Barking and Dagenham | F31: BK-5 | G31: North | H31: Network North | I31: U55389 | J31: EMISweb | K31: 563 Valence Avenue | L31: Dagenham | M31: RM8 3RH | N31: TQ 47822 85951 | O31: 547822 | P31: 185951 | Q31: 51.553086 | R31: 0.13074125
A32: Active | B32: F82604 | C32: Marks Gate Medical Practice | D32: BK | E32: Barking and Dagenham | F32: BK-6 | G32: Central | H32: Network Central | I32: U92874 | J32: EMISweb | K32: Lawn Farm Grove | L32: Dagenham | M32: RM6 5LL | N32: TQ 48155 89472 | O32: 548155 | P32: 189472 | Q32: 51.584635 | R32: 0.13702397
A33: Active | B33: F82660 | C33: Tulasi Medical Centre | D33: BK | E33: Barking and Dagenham | F33: BK-6 | G33: Central | H33: Network Central | I33: U92874 | J33: EMISweb | K33: 10 Bennetts Castle Lane | L33: Dagenham | M33: RM8 3XU | N33: TQ 47363 86819 | O33: 547363 | P33: 186819 | Q33: 51.561005 | R33: 0.12448914
A34: Active | B34: F82677 | C34: Becontree Medical Centre | D34: BK | E34: Barking and Dagenham | F34: BK-6 | G34: Central | H34: Network Central | I34: U92874 | J34: EMISweb | K34: 645 Becontree Avenue | L34: Dagenham | M34: RM8 3HP | N34: TQ 48516 86671 | O34: 548516 | P34: 186671 | Q34: 51.559373 | R34: 0.1410476
A35: Active | B35: F84013 | C35: Stamford Hill Surgery | D35: CH | E35: City & Hackney | F35: CH-NE1 | G35: Springfield Park (NE1) | H35: Springfield Park (NE1) | I35: U89154 | J35: EMISweb | K35: 2 Egerton Road | L35: Stamford Hill | M35: N16 6UA | N35: TQ 33741 87885 | O35: 533741 | P35: 187885 | Q35: 51.573976 | R35: -0.071492952
A36: Active | B36: F84686 | C36: Cranwich Road Surgery | D36: CH | E36: City & Hackney | F36: CH-NE1 | G36: Springfield Park (NE1) | H36: Springfield Park (NE1) | I36: U89154 | J36: EMISweb | K36: 62 Cranwich Road | M36: N16 5JF | N36: TQ 33045 87827 | O36: 533045 | P36: 187827 | Q36: 51.573619 | R36: -0.081552204
A37: Active | B37: Y03049 | C37: Spring Hill Practice | D37: CH | E37: City & Hackney | F37: CH-NE1 | G37: Springfield Park (NE1) | H37: Springfield Park (NE1) | I37: U89154 | J37: EMISweb | K37: 19-21 Oldhill Street | M37: N16 6LU | N37: TQ 34202 87381 | O37: 534202 | P37: 187381 | Q37: 51.569337 | R37: -0.065037069
A38: Active | B38: F84018 | C38: The Nightingale Practice | D38: CH | E38: City & Hackney | F38: CH-NE2 | G38: Hackney Downs (NE2) | H38: Hackney Downs (NE2) | I38: U21268 | J38: EMISweb | K38: 10 Kenninghall Rd | L38: Clapton | M38: E5 8BY | N38: TQ 34412 86145 | O38: 534412 | P38: 186145 | Q38: 51.55818 | R38: -0.062481117
A39: Active | B39: F84080 | C39: The Gadvhi Practice | D39: CH | E39: City & Hackney | F39: CH-NE2 | G39: Hackney Downs (NE2) | H39: Hackney Downs (NE2) | I39: U21268 | J39: EMISweb | K39: 1a Fountayne Road | M39: N16 7EA | N39: TQ 34209 86834 | O39: 534209 | P39: 186834 | Q39: 51.56442 | R39: -0.06514483
A40: Active | B40: F84619 | C40: The Riverside Practice | D40: CH | E40: City & Hackney | F40: CH-NE2 | G40: Hackney Downs (NE2) | H40: Hackney Downs (NE2) | I40: U21268 | J40: EMISweb | K40: 14 Urban Hive, Theydon Rd | M40: E5 9BQ | N40: TQ 35164 86953 | O40: 535164 | P40: 186953 | Q40: 51.565262 | R40: -0.051329752
A41: Active | B41: F84668 | C41: Clapton Surgery | D41: CH | E41: City & Hackney | F41: CH-NE2 | G41: Hackney Downs (NE2) | H41: Hackney Downs (NE2) | I41: U21268 | J41: EMISweb | K41: 14 Theydon Road | M41: E5 9BQ | N41: TQ 35164 86953 | O41: 535164 | P41: 186953 | Q41: 51.565262 | R41: -0.051329752
A42: Active | B42: F84685 | C42: Elm Practice | D42: CH | E42: City & Hackney | F42: CH-NE2 | G42: Hackney Downs (NE2) | H42: Hackney Downs (NE2) | I42: U21268 | J42: EMISweb | K42: 1a Fountayne Road | M42: N16 7EA | N42: TQ 34209 86834 | O42: 534209 | P42: 186834 | Q42: 51.56442 | R42: -0.06514483
A43: Active | B43: F84711 | C43: Rosewood Practice | D43: CH | E43: City & Hackney | F43: CH-NE2 | G43: Hackney Downs (NE2) | H43: Hackney Downs (NE2) | I43: U21268 | J43: EMISweb | K43: 1a Fountayne Road | M43: N16 7EA | N43: TQ 34209 86834 | O43: 534209 | P43: 186834 | Q43: 51.56442 | R43: -0.06514483
A44: Active | B44: F84720 | C44: Healy Medical Centre | D44: CH | E44: City & Hackney | F44: CH-NE2 | G44: Hackney Downs (NE2) | H44: Hackney Downs (NE2) | I44: U21268 | J44: EMISweb | K44: 200 Upper Clapton Road | M44: E5 9HD | N44: TQ 35028 87268 | O44: 535028 | P44: 187268 | Q44: 51.568125 | R44: -0.053169742
A45: Active | B45: F84036 | C45: Cedar Practice | D45: CH | E45: City & Hackney | F45: CH-NW1 | G45: Woodberry Wetlands (NW1) | H45: Woodberry Wetlands (NW1) | I45: U46293 | J45: EMISweb | K45: John Scott Health Centre | L45: Green Lanes | M45: N4 2NU | N45: TQ 32221 87203 | O45: 532221 | P45: 187203 | Q45: 51.568205 | R45: -0.093670043
A46: Active | B46: F84115 | C46: Statham Grove Surgery | D46: CH | E46: City & Hackney | F46: CH-NW1 | G46: Woodberry Wetlands (NW1) | H46: Woodberry Wetlands (NW1) | I46: U46293 | J46: EMISweb | K46: Statham Grove | M46: N16 9DP | N46: TQ 32544 86016 | O46: 532544 | P46: 186016 | Q46: 51.557463 | R46: -0.089459644
A47: Active | B47: F84119 | C47: The Heron Practice | D47: CH | E47: City & Hackney | F47: CH-NW1 | G47: Woodberry Wetlands (NW1) | H47: Woodberry Wetlands (NW1) | I47: U46293 | J47: EMISweb | K47: John Scott Health Centre | L47: Green Lanes | M47: N4 2NU | N47: TQ 32221 87203 | O47: 532221 | P47: 187203 | Q47: 51.568205 | R47: -0.093670043
A48: Active | B48: F84716 | C48: Allerton Road Medical Centre | D48: CH | E48: City & Hackney | F48: CH-NW1 | G48: Woodberry Wetlands (NW1) | H48: Woodberry Wetlands (NW1) | I48: U46293 | J48: EMISweb | K48: 34a Allerton Road | M48: N16 5UF | N48: TQ 32456 86933 | O48: 532456 | P48: 186933 | Q48: 51.565724 | R48: -0.090383086
A49: Active | B49: F84008 | C49: Barton House Health Centre | D49: CH | E49: City & Hackney | F49: CH-NW2 | G49: Clissold Park (NW2) | H49: Clissold Park (NW2) | I49: U51492 | J49: EMISweb | K49: 233 Albion Road | L49: Stoke Newington | M49: N16 9JT | N49: TQ 32926 86369 | O49: 532926 | P49: 186369 | Q49: 51.560545 | R49: -0.083819308
A50: Active | B50: F84033 | C50: Somerford Grove Practice | D50: CH | E50: City & Hackney | F50: CH-NW2 | G50: Clissold Park (NW2) | H50: Clissold Park (NW2) | I50: U51492 | J50: EMISweb | K50: Somerford Grove | M50: N16 7UA | N50: TQ 33722 85639 | O50: 533722 | P50: 185639 | Q50: 51.553797 | R50: -0.07262063
A51: Active | B51: F84636 | C51: Barretts Grove Surgery | D51: CH | E51: City & Hackney | F51: CH-NW2 | G51: Clissold Park (NW2) | H51: Clissold Park (NW2) | I51: U51492 | J51: EMISweb | K51: 6 Barretts Grove | M51: N16 8AR | N51: TQ 33334 85451 | O51: 533334 | P51: 185451 | Q51: 51.5522 | R51: -0.078284859
A52: Active | B52: F84694 | C52: Brooke Road Surgery | D52: CH | E52: City & Hackney | F52: CH-NW2 | G52: Clissold Park (NW2) | H52: Clissold Park (NW2) | I52: U51492 | J52: EMISweb | K52: 40-42 Brooke Road | M52: N16 7LR | N52: TQ 33833 86338 | O52: 533833 | P52: 186338 | Q52: 51.560052 | R52: -0.070754775
A53: Active | B53: F84003 | C53: Lower Clapton Group Practice | D53: CH | E53: City & Hackney | F53: CH-SE1 | G53: Hackney Marshes (SE1) | H53: Hackney Marshes (SE1) | I53: U05451 | J53: EMISweb | K53: 36 Lower Clapton Road | M53: E5 0PD | N53: TQ 35145 85320 | O53: 535145 | P53: 185320 | Q53: 51.550592 | R53: -0.052230775
A54: Active | B54: F84015 | C54: Kingsmead Healthcare | D54: CH | E54: City & Hackney | F54: CH-SE1 | G54: Hackney Marshes (SE1) | H54: Hackney Marshes (SE1) | I54: U05451 | J54: EMISweb | K54: 4 Kingsmead Way | M54: E9 5QG | N54: TQ 36351 85487 | O54: 536351 | P54: 185487 | Q54: 51.551803 | R54: -0.034783216
A55: Active | B55: F84060 | C55: Athena Medical Centre | D55: CH | E55: City & Hackney | F55: CH-SE1 | G55: Hackney Marshes (SE1) | H55: Hackney Marshes (SE1) | I55: U05451 | J55: EMISweb | K55: 21 Atherden Road | L55: Clapton | M55: E5 0QP | N55: TQ 35057 85799 | O55: 535057 | P55: 185799 | Q55: 51.554917 | R55: -0.053315427
A56: Active | B56: F84105 | C56: The Lea Surgery | D56: CH | E56: City & Hackney | F56: CH-SE1 | G56: Hackney Marshes (SE1) | H56: Hackney Marshes (SE1) | I56: U05451 | J56: EMISweb | K56: 186 Homerton High Street | M56: E9 6AG | N56: TQ 35784 85079 | O56: 535784 | P56: 185079 | Q56: 51.548273 | R56: -0.04311334
A57: Active | B57: F84719 | C57: Latimer Health Centre | D57: CH | E57: City & Hackney | F57: CH-SE1 | G57: Hackney Marshes (SE1) | H57: Hackney Marshes (SE1) | I57: U05451 | J57: EMISweb | K57: 4 Homerton Terrace | M57: E9 6RT | N57: TQ 35346 84880 | O57: 535346 | P57: 184880 | Q57: 51.54659 | R57: -0.049502727
A58: Active | B58: F84069 | C58: The Well Street Surgery | D58: CH | E58: City & Hackney | F58: CH-SE2 | G58: Well Street Common (SE2) | H58: Well Street Common (SE2) | I58: U58256 | J58: EMISweb | K58: 28 Shore Road | M58: E9 7TA | N58: TQ 35138 84055 | O58: 535138 | P58: 184055 | Q58: 51.539226 | R58: -0.052817041
A59: Active | B59: F84601 | C59: Elsdale Street Surgery | D59: CH | E59: City & Hackney | F59: CH-SE2 | G59: Well Street Common (SE2) | H59: Well Street Common (SE2) | I59: U58256 | J59: EMISweb | K59: 28 Elsdale Street | M59: E9 6QY | N59: TQ 35380 84483 | O59: 535380 | P59: 184483 | Q59: 51.543014 | R59: -0.0491653
A60: Active | B60: F84620 | C60: The Wick Health Centre | D60: CH | E60: City & Hackney | F60: CH-SE2 | G60: Well Street Common (SE2) | H60: Well Street Common (SE2) | I60: U58256 | J60: EMISweb | K60: 200 Wick Rd | M60: E9 5AN | N60: TQ 36085 84711 | O60: 536085 | P60: 184711 | Q60: 51.544894 | R60: -0.038917245
A61: Active | B61: F84632 | C61: The Greenhouse | D61: CH | E61: City & Hackney | F61: CH-SE2 | G61: Well Street Common (SE2) | H61: Well Street Common (SE2) | I61: U58256 | J61: EMISweb | K61: 19 Tudor Road | M61: E9 7SN | N61: TQ 34985 83975 | O61: 534985 | P61: 183975 | Q61: 51.538544 | R61: -0.055052455
A62: Active | B62: Y00403 | C62: Trowbridge Surgery | D62: CH | E62: City & Hackney | F62: CH-SE2 | G62: Well Street Common (SE2) | H62: Well Street Common (SE2) | I62: U58256 | J62: EMISweb | K62: 18 Merriam Avenue | M62: E9 5NE | N62: TQ 36747 84792 | O62: 536747 | P62: 184792 | Q62: 51.545462 | R62: -0.029345179
A63: Active | B63: F84021 | C63: London Fields Medical Centre | D63: CH | E63: City & Hackney | F63: CH-SW1 | G63: London Fields (SW1) | H63: London Fields (SW1) | I63: U40100 | J63: EMISweb | K63: 38-44 Broadway Market | M63: E8 4QJ | N63: TQ 34536 83745 | O63: 534536 | P63: 183745 | Q63: 51.536584 | R63: -0.061610386
A64: Active | B64: F84035 | C64: Richmond Road Medical Centre | D64: CH | E64: City & Hackney | F64: CH-SW1 | G64: London Fields (SW1) | H64: London Fields (SW1) | I64: U40100 | J64: EMISweb | K64: 136 Richmond Road | M64: E8 3HN | N64: TQ 34245 84457 | O64: 534245 | P64: 184457 | Q64: 51.543051 | R64: -0.06553224
A65: Active | B65: F84038 | C65: Beechwood Medical Centre | D65: CH | E65: City & Hackney | F65: CH-SW1 | G65: London Fields (SW1) | H65: London Fields (SW1) | I65: U40100 | J65: EMISweb | K65: 86-86a Dalston Lane | M65: E8 3AH | N65: TQ 33890 84780 | O65: 533890 | P65: 184780 | Q65: 51.546038 | R65: -0.070525556
A66: Active | B66: F84063 | C66: Dalston Practice | D66: CH | E66: City & Hackney | F66: CH-SW1 | G66: London Fields (SW1) | H66: London Fields (SW1) | I66: U40100 | J66: EMISweb | K66: 1b Madinah Road | M66: E8 1PG | N66: TQ 34111 84978 | O66: 534111 | P66: 184978 | Q66: 51.547765 | R66: -0.067264996
A67: Active | B67: F84117 | C67: Queensbridge Group Practice | D67: CH | E67: City & Hackney | F67: CH-SW1 | G67: London Fields (SW1) | H67: London Fields (SW1) | I67: U40100 | J67: EMISweb | K67: 24, Holly Street | M67: E8 3XP | N67: TQ 33838 84271 | O67: 533838 | P67: 184271 | Q67: 51.541476 | R67: -0.071468414
A68: Active | B68: F84621 | C68: The Sandringham Practice | D68: CH | E68: City & Hackney | F68: CH-SW1 | G68: London Fields (SW1) | H68: London Fields (SW1) | I68: U40100 | J68: EMISweb | K68: 1a Madinah Road | M68: E8 1PG | N68: TQ 34111 84978 | O68: 534111 | P68: 184978 | Q68: 51.547765 | R68: -0.067264996
A69: Active | B69: F84640 | C69: The Neaman Practice | D69: CH | E69: City & Hackney | F69: CH-SW2 | G69: Shoreditch Park & City (SW2) | H69: Shoreditch Park & City (SW2) | I69: U07169 | J69: EMISweb | K69: 15 Half Moon Court | M69: EC1A 7HF | N69: TQ 32048 81725 | O69: 532048 | P69: 181725 | Q69: 51.519018 | R69: -0.098218282
A70: Active | B70: F84072 | C70: De Beauvoir Surgery | D70: CH | E70: City & Hackney | F70: CH-SW2 | G70: Shoreditch Park & City (SW2) | H70: Shoreditch Park & City (SW2) | I70: U07169 | J70: EMISweb | K70: 30 Hertford Road | M70: N1 5QT | N70: TQ 33377 83922 | O70: 533377 | P70: 183922 | Q70: 51.538449 | R70: -0.078244064
A71: Active | B71: F84096 | C71: The Lawson Practice | D71: CH | E71: City & Hackney | F71: CH-SW2 | G71: Shoreditch Park & City (SW2) | H71: Shoreditch Park & City (SW2) | I71: U07169 | J71: EMISweb | K71: St Leonard's Hospital, Nuttall St | L71: Nuttall Street | M71: N1 5HZ | N71: TQ 33302 83395 | O71: 533302 | P71: 183395 | Q71: 51.533731 | R71: -0.079524183
A72: Active | B72: F84635 | C72: Shoreditch Park Surgery | D72: CH | E72: City & Hackney | F72: CH-SW2 | G72: Shoreditch Park & City (SW2) | H72: Shoreditch Park & City (SW2) | I72: U07169 | J72: EMISweb | K72: 10 Rushton Street | M72: N1 5DR | N72: TQ 32796 83359 | O72: 532796 | P72: 183359 | Q72: 51.533527 | R72: -0.086828572
A73: Active | B73: F84692 | C73: The Hoxton Surgery | D73: CH | E73: City & Hackney | F73: CH-SW2 | G73: Shoreditch Park & City (SW2) | H73: Shoreditch Park & City (SW2) | I73: U07169 | J73: EMISweb | K73: 12 Rushton Street | M73: N1 5DR | N73: TQ 32796 83359 | O73: 532796 | P73: 183359 | Q73: 51.533527 | R73: -0.086828572
A74: Active | B74: F82011 | C74: St Edwards Surgery | D74: HV | E74: Havering | F74: HV-1 | G74: Havering Crest | H74: Havering Crest Network | I74: U29424 | J74: EMISweb | K74: 7 St Edwards Way | L74: Romford | M74: RM1 3DQ | N74: TQ 51307 89056 | O74: 551307 | P74: 189056 | Q74: 51.580061 | R74: 0.18230462
A75: Active | B75: F82019 | C75: Chadwell Heath Health Centre - The Upstairs Surgery (Dr Hamilton-Smith) | D75: HV | E75: Havering | F75: HV-1 | G75: Havering Crest | H75: Havering Crest Network | I75: U29424 | J75: EMISweb | K75: Ashton Garden | L75: Chadwell Heath | M75: RM6 6RT | N75: TQ 48405 88264 | O75: 548405 | P75: 188264 | Q75: 51.573715 | R75: 0.14011965
A76: Active | B76: F82638 | C76: The Modern Medical Centre | D76: HV | E76: Havering | F76: HV-1 | G76: Havering Crest | H76: Havering Crest Network | I76: U29424 | J76: EMISweb | K76: 195 Rush Green Road | L76: Rush Green | M76: RM7 0PX | N76: TQ 51030 87418 | O76: 551030 | P76: 187418 | Q76: 51.565418 | R76: 0.17760643
A77: Active | B77: F82039 | C77: Rush Green Medical Centre (Dr Poologanathan & Partners) | D77: HV | E77: Havering | F77: HV-1 | G77: Havering Crest | H77: Havering Crest Network | I77: U29424 | J77: EMISweb | K77: 261 Dagenham Road | L77: Rush Green | M77: RM7 0XR | N77: TQ 50932 86893 | O77: 550932 | P77: 186893 | Q77: 51.560727 | R77: 0.1759684
A78: Active | B78: F82031 | C78: Rush Green Medical Centre (Dr Sanomi) | D78: HV | E78: Havering | F78: HV-1 | G78: Havering Crest | H78: Havering Crest Network | I78: U29424 | J78: EMISweb | K78: 261 Dagenham Road | L78: Rush Green | M78: RM7 0XR | N78: TQ 50932 86893 | O78: 550932 | P78: 186893 | Q78: 51.560727 | R78: 0.1759684
A79: Active | B79: F82023 | C79: High Street Surgery (Dr Pervez) | D79: HV | E79: Havering | F79: HV-1 | G79: Havering Crest | H79: Havering Crest Network | I79: U29424 | J79: EMISweb | K79: 219 High Street | L79: Hornchurch | M79: RM11 3XT | N79: TQ 54233 87089 | O79: 554233 | P79: 187089 | Q79: 51.561596 | R79: 0.22363675
A80: Active | B80: F82675 | C80: Billet Lane Medical Centre | D80: HV | E80: Havering | F80: HV-1 | G80: Havering Crest | H80: Havering Crest Network | I80: U29424 | J80: EMISweb | K80: 58b Billet Lane | L80: Hornchurch | M80: RM11 1XA | N80: TQ 53895 87670 | O80: 553895 | P80: 187670 | Q80: 51.566908 | R80: 0.21901872
A81: Active | B81: F82663 | C81: Brentwood Road Surgery (Dr Marks) | D81: HV | E81: Havering | F81: HV-1 | G81: Havering Crest | H81: Havering Crest Network | I81: U29424 | J81: EMISweb | K81: 107 Brentwood Road | L81: Romford | M81: RM1 2SB | N81: TQ 52030 88243 | O81: 552030 | P81: 188243 | Q81: 51.572562 | R81: 0.19237934
A82: Active | B82: F82013 | C82: Western Road Medical Centre | D82: HV | E82: Havering | F82: HV-2 | G82: Havering Marshall | H82: Marshall Network | I82: U50107 | J82: EMISweb | K82: 99 Western Road | L82: Romford | M82: RM1 3LS | N82: TQ 51671 88948 | O82: 551671 | P82: 188948 | Q82: 51.578992 | R82: 0.18750723
A83: Active | B83: F82021 | C83: The New Medical Centre | D83: HV | E83: Havering | F83: HV-2 | G83: Havering Marshall | H83: Marshall Network | I83: U50107 | J83: EMISweb | K83: 264 Brentwood Road | L83: Romford | M83: RM2 5SU | N83: TQ 52819 88475 | O83: 552819 | P83: 188475 | Q83: 51.574433 | R83: 0.20385631
A84: Active | B84: F82009 | C84: North Street Medical Care | D84: HV | E84: Havering | F84: HV-2 | G84: Havering Marshall | H84: Marshall Network | I84: U50107 | J84: EMISweb | K84: 274 North Street | L84: Romford | M84: RM1 4QJ | N84: TQ 50672 89720 | O84: 550672 | P84: 189720 | Q84: 51.586196 | R84: 0.17343195
A85: Active | B85: F82686 | C85: Ashton Gardens Surgery | D85: HV | E85: Havering | F85: HV-3 | G85: Havering North | H85: North Network | I85: U55939 | J85: EMISweb | K85: Ashton Gardens | L85: Chadwell Heath | M85: RM6 6RT | N85: TQ 48405 88264 | O85: 548405 | P85: 188264 | Q85: 51.573715 | R85: 0.14011965
A86: Active | B86: F82010 | C86: Petersfield Surgery | D86: HV | E86: Havering | F86: HV-3 | G86: Havering North | H86: North Network | I86: U55939 | J86: EMISweb | K86: 70 Petersfield Ave | L86: Harold Hill | M86: RM3 9PD | N86: TQ 54717 92014 | O86: 554717 | P86: 192014 | Q86: 51.605712 | R86: 0.23278189
A87: Active | B87: F82648 | C87: Ingrebourne Medical Centre | D87: HV | E87: Havering | F87: HV-3 | G87: Havering North | H87: North Network | I87: U55939 | J87: EMISweb | K87: 135 Straight Road | L87: Harold Hill | M87: RM3 7JJ | N87: TQ 53197 91366 | O87: 553197 | P87: 191366 | Q87: 51.600305 | R87: 0.21056731
A88: Active | B88: F82671 | C88: Straight Road Doctors Surgery (Dr Prasad) | D88: HV | E88: Havering | F88: HV-3 | G88: Havering North | H88: North Network | I88: U55939 | J88: EMISweb | K88: 137 Straight Road | L88: Harold Hill | M88: RM3 7JJ | N88: TQ 53197 91366 | O88: 553197 | P88: 191366 | Q88: 51.600305 | R88: 0.21056731
A89: Active | B89: F82670 | C89: AbbaMoor Surgery | D89: HV | E89: Havering | F89: HV-3 | G89: Havering North | H89: North Network | I89: U55939 | J89: EMISweb | K89: Gooshays Drive | L89: Harold Hill | M89: RM3 9SU | N89: TQ 54169 92056 | O89: 554169 | P89: 192056 | Q89: 51.606239 | R89: 0.22489343
A90: Active | B90: F82014 | C90: Harold Hill Health Centre (Dr Kuchhai) | D90: HV | E90: Havering | F90: HV-3 | G90: Havering North | H90: North Network | I90: U55939 | J90: EMISweb | K90: Gooshays Drive | L90: Harold Hill | M90: RM3 9SU | N90: TQ 54169 92056 | O90: 554169 | P90: 192056 | Q90: 51.606239 | R90: 0.22489343
A91: Active | B91: F82016 | C91: Central Park Surgery (Dr Kakad) | D91: HV | E91: Havering | F91: HV-3 | G91: Havering North | H91: North Network | I91: U55939 | J91: EMISweb | K91: Gooshays Drive | L91: Harold Hill | M91: RM3 9SU | N91: TQ 54169 92056 | O91: 554169 | P91: 192056 | Q91: 51.606239 | R91: 0.22489343
A92: Active | B92: Y00312 | C92: The Robins Surgery | D92: HV | E92: Havering | F92: HV-3 | G92: Havering North | H92: North Network | I92: U55939 | J92: EMISweb | K92: Gooshays Drive | L92: Harold Hill | M92: RM3 9SU | N92: TQ 54169 92056 | O92: 554169 | P92: 192056 | Q92: 51.606239 | R92: 0.22489343
A93: Active | B93: F82007 | C93: The Greenwood Practice | D93: HV | E93: Havering | F93: HV-3 | G93: Havering North | H93: North Network | I93: U55939 | J93: EMISweb | K93: 89 Gubbins Lane | L93: Harold Wood | M93: RM3 0DR | N93: TQ 54748 90860 | O93: 554748 | P93: 190860 | Q93: 51.595335 | R93: 0.23272048
A94: Active | B94: F82045 | C94: Oak Lodge Surgery (Dr Chowdhury) | D94: HV | E94: Havering | F94: HV-3 | G94: Havering North | H94: North Network | I94: U55939 | J94: EMISweb | K94: 6 Oak Road | L94: Harold Wood | M94: RM3 0PT | N94: TQ 54849 90533 | O94: 554849 | P94: 190533 | Q94: 51.59237 | R94: 0.23403325
A95: Active | B95: Y02973 | C95: Kings Park Surgery | D95: HV | E95: Havering | F95: HV-3 | G95: Havering North | H95: North Network | I95: U55939 | J95: EMISweb | K95: St Clements Avenue | L95: Harold Wood | M95: RM3 0FE | N95: TQ 54268 90605 | O95: 554268 | P95: 190605 | Q95: 51.593176 | R95: 0.22568428
A96: Active | B96: F82030 | C96: Lynwood Medical Centre | D96: HV | E96: Havering | F96: HV-3 | G96: Havering North | H96: North Network | I96: U55939 | J96: EMISweb | K96: 4 Lynwood Drive | L96: Collier Row | M96: RM5 3QL | N96: TQ 49970 91426 | O96: 549970 | P96: 191426 | Q96: 51.601712 | R96: 0.16403547
A97: Active | B97: F82630 | C97: Chase Cross Medical Centre (Dr Kulendran) | D97: HV | E97: Havering | F97: HV-3 | G97: Havering North | H97: North Network | I97: U55939 | J97: EMISweb | K97: Chase Cross Road | L97: Collier Row | M97: RM5 3PJ | N97: TQ 50027 91251 | O97: 550027 | P97: 191251 | Q97: 51.600124 | R97: 0.16478307
A98: Active | B98: F82610 | C98: Dr N K Gupta Surgery | D98: HV | E98: Havering | F98: HV-3 | G98: Havering North | H98: North Network | I98: U55939 | J98: EMISweb | K98: 206 Mawney Road | L98: Romford | M98: RM7 8BU | N98: TQ 50077 89338 | O98: 550077 | P98: 189338 | Q98: 51.582923 | R98: 0.16468707
A99: Active | B99: F82055 | C99: Hornchurch Healthcare | D99: HV | E99: Havering | F99: HV-4 | G99: Havering South | H99: South Network | I99: U00367 | J99: EMISweb | K99: 58b Billet Lane | L99: Hornchurch | M99: RM11 1XA | N99: TQ 53895 87670 | O99: 553895 | P99: 187670 | Q99: 51.566908 | R99: 0.21901872
A100: Active | B100: F82609 | C100: Sutton Ave surgery (P M Patel) | D100: HV | E100: Havering | F100: HV-4 | G100: Havering South | H100: South Network | I100: U00367 | J100: EMISweb | K100: 24 Suttons Ave | L100: Hornchurch | M100: RM12 4LF | N100: TQ 53941 86488 | O100: 553941 | P100: 186488 | Q100: 51.556275 | R100: 0.21916472
A101: Active | B101: F82002 | C101: Haiderian Medical Centre | D101: HV | E101: Havering | F101: HV-4 | G101: Havering South | H101: South Network | I101: U00367 | J101: EMISweb | K101: 181 Corbets Tey Road | L101: Upminster | M101: RM14 2YN | N101: TQ 55913 85795 | O101: 555913 | P101: 185795 | Q101: 51.549508 | R101: 0.24727998
A102: Active | B102: F82008 | C102: Maylands Health Care | D102: HV | E102: Havering | F102: HV-4 | G102: Havering South | H102: South Network | I102: U00367 | J102: EMISweb | K102: 300 Upper Rainham Road | L102: Elm Park | M102: RM12 4EQ | N102: TQ 51980 86056 | O102: 551980 | P102: 186056 | Q102: 51.552925 | R102: 0.19071367
A103: Active | B103: F82028 | C103: Wood Lane Medical Centre | D103: HV | E103: Havering | F103: HV-4 | G103: Havering South | H103: South Network | I103: U00367 | J103: EMISweb | K103: 39 Wood Lane | L103: Elm Park | M103: RM12 5HX | N103: TQ 52375 85087 | O103: 552375 | P103: 185087 | Q103: 51.544113 | R103: 0.19598719
A104: Active | B104: F82666 | C104: The Surgery (Dr Rahman) | D104: HV | E104: Havering | F104: HV-4 | G104: Havering South | H104: South Network | I104: U00367 | J104: EMISweb | K104: 482 South End Road | L104: Elm Park | M104: RM12 5PA | N104: TQ 52924 85456 | O104: 552924 | P104: 185456 | Q104: 51.54728 | R104: 0.20405819
A105: Active | B105: F82022 | C105: The Rosewood Medical Centre | D105: HV | E105: Havering | F105: HV-4 | G105: Havering South | H105: South Network | I105: U00367 | J105: EMISweb | K105: 30 Astra Close | L105: Hornchurch | M105: RM12 5NJ | N105: TQ 52722 84935 | O105: 552722 | P105: 184935 | Q105: 51.542653 | R105: 0.20092136
A106: Active | B106: F82619 | C106: Harlow Road Surgery (Dr N Tariq) | D106: HV | E106: Havering | F106: HV-4 | G106: Havering South | H106: South Network | I106: U00367 | J106: EMISweb | K106: 1 Harlow Road | L106: Rainham | M106: RM13 7UP | N106: TQ 51752 83712 | O106: 551752 | P106: 183712 | Q106: 51.531926 | R106: 0.1864178
A107: Active | B107: F82627 | C107: Rainham Health Centre | D107: HV | E107: Havering | F107: HV-4 | G107: Havering South | H107: South Network | I107: U00367 | J107: EMISweb | K107: Upminster Road South | L107: Rainham | M107: RM13 9AB | N107: TQ 52533 82337 | O107: 552533 | P107: 182337 | Q107: 51.519362 | R107: 0.19707375
A108: Active | B108: F82649 | C108: Berwick Surgery | D108: HV | E108: Havering | F108: HV-4 | G108: Havering South | H108: South Network | I108: U00367 | J108: EMISweb | K108: 17 Berwick Road | L108: Rainham | M108: RM13 9QU | N108: TQ 53679 83242 | O108: 553679 | P108: 183242 | Q108: 51.527183 | R108: 0.21397232
A109: Active | B109: F82607 | C109: South Hornchurch Medical Practice | D109: HV | E109: Havering | F109: HV-4 | G109: Havering South | H109: South Network | I109: U00367 | J109: EMISweb | K109: 382 Upminster Road North | L109: North Rainham | M109: RM13 9RZ | N109: TQ 53703 82663 | O109: 553703 | P109: 182663 | Q109: 51.521974 | R109: 0.21406561
A110: Active | B110: F82674 | C110: Avon Road Surgery (Cranham Health Centre) | D110: HV | E110: Havering | F110: HV-4 | G110: Havering South | H110: South Network | I110: U00367 | J110: EMISweb | K110: Avon Road | L110: Cranham | M110: RM14 1RG | N110: TQ 57095 87988 | O110: 557095 | P110: 187988 | Q110: 51.568883 | R110: 0.26529226
A111: Active | B111: F82006 | C111: Cranham Village Surgery (Dr C Dahs & Dr IP Humberstone Surgery) | D111: HV | E111: Havering | F111: HV-4 | G111: Havering South | H111: South Network | I111: U00367 | J111: EMISweb | K111: 143 Ingrebourne Gardens | L111: Cranham | M111: RM14 1BJ | N111: TQ 56984 87288 | O111: 556984 | P111: 187288 | Q111: 51.562625 | R111: 0.26337962
A112: Active | B112: F82053 | C112: Upminster Medical Centre | D112: HV | E112: Havering | F112: HV-4 | G112: Havering South | H112: South Network | I112: U00367 | J112: EMISweb | K112: 226 St Mary's Lane | L112: Upminster | M112: RM14 3DH | N112: TQ 56440 86625 | O112: 556440 | P112: 186625 | Q112: 51.556819 | R112: 0.25524324
A113: Active | B113: F82624 | C113: The Upminster Bridge Surgery (Dr O'Moore) | D113: HV | E113: Havering | F113: HV-4 | G113: Havering South | H113: South Network | I113: U00367 | J113: EMISweb | K113: 126 Upminster Road | L113: Upminster | M113: RM12 6PL | N113: TQ 55046 86819 | O113: 555046 | P113: 186819 | Q113: 51.558947 | R113: 0.23523689
A114: Active | B114: F82033 | C114: Dr V M Patel Surgery | D114: HV | E114: Havering | F114: HV-4 | G114: Havering South | H114: South Network | I114: U00367 | J114: EMISweb | K114: 9 Glanville Drive | L114: Hornchurch | M114: RM11 3SZ | N114: TQ 54586 87037 | O114: 554586 | P114: 187037 | Q114: 51.561032 | R114: 0.22870229
A115: Active | B115: F84047 | C115: Custom House Surgery | D115: NH | E115: Newham | F115: NH-PCN1 | G115: South One Newham | H115: South One Newham | I115: U23362 | J115: EMISweb | K115: 16 Freemasons Rd | M115: E16 3NA | N115: TQ 40635 81244 | O115: 540635 | P115: 181244 | Q115: 51.512625 | R115: 0.025271616
A116: Active | B116: F84666 | C116: Dr Ruiz – St Lukes Medical Centre | D116: NH | E116: Newham | F116: NH-PCN1 | G116: South One Newham | H116: South One Newham | I116: U23362 | J116: EMISweb | K116: 2 St Luke's Square | M116: E16 1HT | N116: TQ 39825 81135 | O116: 539825 | P116: 181135 | Q116: 51.511847 | R116: 0.013563443
A117: Active | B117: F84092 | C117: Glen Road Medical Centre | D117: NH | E117: Newham | F117: NH-PCN1 | G117: South One Newham | H117: South One Newham | I117: U23362 | J117: EMISweb | K117: 1-9 Glen Rd | M117: E13 8RU | N117: TQ 41109 82327 | O117: 541109 | P117: 182327 | Q117: 51.522239 | R117: 0.032530947
A118: Active | B118: F84017 | C118: Star Lane Medical Centre | D118: NH | E118: Newham | F118: NH-PCN1 | G118: South One Newham | H118: South One Newham | I118: U23362 | J118: EMISweb | K118: 121 Star Ln | M118: E16 4QH | N118: TQ 39602 82012 | O118: 539602 | P118: 182012 | Q118: 51.519782 | R118: 0.010699055
A119: Active | B119: F84717 | C119: Royal Docks Medical Centre | D119: NH | E119: Newham | F119: NH-PCN10 | G119: Docklands | H119: Docklands | I119: U56681 | J119: EMISweb | K119: 21 East Ham Manor Way | M119: E6 5NA | N119: TQ 43258 80969 | O119: 543258 | P119: 180969 | Q119: 51.509496 | R119: 0.06293342
A120: Active | B120: F84093 | C120: Tollgate Health Centre | D120: NH | E120: Newham | F120: NH-PCN10 | G120: Docklands | H120: Docklands | I120: U56681 | J120: EMISweb | K120: 220 Tollgate Rd | M120: E6 5JS | N120: TQ 42787 81629 | O120: 542787 | P120: 181629 | Q120: 51.515546 | R120: 0.056418169
A121: Active | B121: Y02928 | C121: E16 Health | D121: NH | E121: Newham | F121: NH-PCN10 | G121: Docklands | H121: Docklands | I121: U56681 | J121: EMISweb | K121: 76 Albert Rd | M121: E16 2DY | N121: TQ 42593 80059 | O121: 542593 | P121: 180059 | Q121: 51.501487 | R121: 0.052989908
A122: Active | B122: F84735 | C122: The Azad Practice | D122: NH | E122: Newham | F122: NH-PCN2 | G122: Central 1 | H122: Central 1 | I122: U71739 | J122: EMISweb | K122: 152 Barking Road | M122: E6 3BD | N122: TQ 41930 83350 | O122: 541930 | P122: 183350 | Q122: 51.531226 | R122: 0.044768459
A123: Active | B123: F84669 | C123: Newham Medical Centre | D123: NH | E123: Newham | F123: NH-PCN2 | G123: Central 1 | H123: Central 1 | I123: U71739 | J123: EMISweb | K123: 576 Green St | M123: E13 9DA | N123: TQ 41405 83360 | O123: 541405 | P123: 183360 | Q123: 51.531447 | R123: 0.037208861
A124: Active | B124: F84010 | C124: St Bartholomew Surgery | D124: NH | E124: Newham | F124: NH-PCN2 | G124: Central 1 | H124: Central 1 | I124: U71739 | J124: EMISweb | K124: 292A Barking Road | M124: E6 3BA | N124: TQ 42477 83507 | O124: 542477 | P124: 183507 | Q124: 51.532499 | R124: 0.052712424
A125: Active | B125: F84004 | C125: Market Street Health Group | D125: NH | E125: Newham | F125: NH-PCN2 | G125: Central 1 | H125: Central 1 | I125: U71739 | J125: EMISweb | K125: 52 Market St | M125: E6 2RA | N125: TQ 42814 83350 | O125: 542814 | P125: 183350 | Q125: 51.531003 | R125: 0.057504007
A126: Active | B126: F84053 | C126: Greengate Medical Practice | D126: NH | E126: Newham | F126: NH-PCN2 | G126: Central 1 | H126: Central 1 | I126: U71739 | J126: EMISweb | K126: 497 Barking Road | M126: E13 8PS | N126: TQ 40757 82646 | O126: 540757 | P126: 182646 | Q126: 51.525193 | R126: 0.027588027
A127: Active | B127: F84124 | C127: The Project Surgery | D127: NH | E127: Newham | F127: NH-PCN2 | G127: Central 1 | H127: Central 1 | I127: U71739 | J127: EMISweb | K127: 10 Lettsom Walk | M127: E13 0LN | N127: TQ 40253 83419 | O127: 540253 | P127: 183419 | Q127: 51.532264 | R127: 0.020635385
A128: Active | B128: F84050 | C128: Boleyn Medical Centre | D128: NH | E128: Newham | F128: NH-PCN2 | G128: Central 1 | H128: Central 1 | I128: U71739 | J128: EMISweb | K128: 152 Barking Road | M128: E6 3BD | N128: TQ 41930 83350 | O128: 541930 | P128: 183350 | Q128: 51.531226 | R128: 0.044768459
A129: Active | B129: F84052 | C129: Essex Lodge | D129: NH | E129: Newham | F129: NH-PCN3 | G129: Newham Central | H129: Newham Central | I129: U11373 | J129: EMISweb | K129: 94 Greengate St | M129: E13 0AS | N129: TQ 40684 82946 | O129: 540684 | P129: 182946 | Q129: 51.527907 | R129: 0.026656164
A130: Active | B130: F84681 | C130: Balaam Street Practice | D130: NH | E130: Newham | F130: NH-PCN3 | G130: Newham Central | H130: Newham Central | I130: U11373 | J130: EMISweb | K130: 113 Balaam St | M130: E13 8AF | N130: TQ 40488 82808 | O130: 540488 | P130: 182808 | Q130: 51.526716 | R130: 0.023777605
A131: Active | B131: F84642 | C131: Lucas Avenue Surgery | D131: NH | E131: Newham | F131: NH-PCN3 | G131: Newham Central | H131: Newham Central | I131: U11373 | J131: EMISweb | M131: E13 0QP | N131: TQ 40943 83883 | O131: 540943 | P131: 183883 | Q131: 51.536262 | R131: 0.030761987
A132: Active | B132: F84749 | C132: Carpenter's Practice | D132: NH | E132: Newham | F132: NH-PCN3 | G132: Newham Central | H132: Newham Central | I132: U11373 | J132: EMISweb | K132: 236-252 High St | M132: E15 2JA | N132: TQ 38568 83938 | O132: 538568 | P132: 183938 | Q132: 51.537344 | R132: -0.0034372388
A133: Active | B133: F84658 | C133: Sangam Surgery | D133: NH | E133: Newham | F133: NH-PCN4 | G133: North East 1 | H133: North East 1 | I133: U34188 | J133: EMISweb | K133: Snowshill Rd | M133: E12 6BE | N133: TQ 42142 85378 | O133: 542142 | P133: 185378 | Q133: 51.549395 | R133: 0.04864096
A134: Active | B134: F84660 | C134: Dr CM Patel | D134: NH | E134: Newham | F134: NH-PCN4 | G134: North East 1 | H134: North East 1 | I134: U34188 | J134: EMISweb | K134: 2 Jephson Rd | M134: E7 8LZ | N134: TQ 41250 84414 | O134: 541250 | P134: 184414 | Q134: 51.540957 | R134: 0.03539828
A135: Active | B135: F84088 | C135: Plashet Medical Centre | D135: NH | E135: Newham | F135: NH-PCN4 | G135: North East 1 | H135: North East 1 | I135: U34188 | J135: EMISweb | K135: 152 Plashet Rd | M135: E13 0QT | N135: TQ 41097 84021 | O135: 541097 | P135: 184021 | Q135: 51.537464 | R135: 0.033036159
A136: Active | B136: F84670 | C136: Westbury Road Medical Practice | D136: NH | E136: Newham | F136: NH-PCN4 | G136: North East 1 | H136: North East 1 | I136: U34188 | J136: EMISweb | K136: 45 Westbury Terrace | M136: E7 8BU | N136: TQ 40876 84941 | O136: 540876 | P136: 184941 | Q136: 51.545786 | R136: 0.030219712
A137: Active | B137: F84729 | C137: The Manor Park Practice | D137: NH | E137: Newham | F137: NH-PCN4 | G137: North East 1 | H137: North East 1 | I137: U34188 | J137: EMISweb | K137: 778 Romford Rd | M137: E12 5JG | N137: TQ 42725 85896 | O137: 542725 | P137: 185896 | Q137: 51.553903 | R137: 0.057253424
A138: Active | B138: F84641 | C138: Birchdale Road Medical Practice | D138: NH | E138: Newham | F138: NH-PCN4 | G138: North East 1 | H138: North East 1 | I138: U34188 | J138: EMISweb | K138: 2 Birchdale Rd | M138: E7 8AR | N138: TQ 41441 85069 | O138: 541441 | P138: 185069 | Q138: 51.546795 | R138: 0.038413612
A139: Active | B139: F84739 | C139: E12 Medical Practice | D139: NH | E139: Newham | F139: NH-PCN5 | G139: North East 2 | H139: North East 2 | I139: U06978 | J139: EMISweb | K139: 243 High Street North | M139: E12 6SJ | N139: TQ 42286 84464 | O139: 542286 | P139: 184464 | Q139: 51.541146 | R139: 0.0503471
A140: Active | B140: F84006 | C140: Shrewsbury Road Surgery | D140: NH | E140: Newham | F140: NH-PCN5 | G140: North East 2 | H140: North East 2 | I140: U06978 | J140: EMISweb | K140: Shrewsbury Annexe' Shrewsbury Road | M140: E7 8QP | N140: TQ 41796 84426 | O140: 541796 | P140: 184426 | Q140: 51.540928 | R140: 0.043270927
A141: Active | B141: F84074 | C141: Wordsworth Health Centre | D141: NH | E141: Newham | F141: NH-PCN5 | G141: North East 2 | H141: North East 2 | I141: U06978 | J141: EMISweb | K141: 19 Wordsworth Avenue | M141: E12 6SU | N141: TQ 42172 84503 | O141: 542172 | P141: 184503 | Q141: 51.541525 | R141: 0.04872011
A142: Active | B142: F84741 | C142: Plashet Harmony Practice | D142: NH | E142: Newham | F142: NH-PCN5 | G142: North East 2 | H142: North East 2 | I142: U06978 | J142: EMISweb | K142: Eastham Memorial Hospital | M142: E7 8QP | N142: TQ 41796 84426 | O142: 541796 | P142: 184426 | Q142: 51.540928 | R142: 0.043270927
A143: Active | B143: F84070 | C143: Lathom Medical Centre | D143: NH | E143: Newham | F143: NH-PCN5 | G143: North East 2 | H143: North East 2 | I143: U06978 | J143: EMISweb | K143: 2A Lathom Rd | M143: E6 2DU | N143: TQ 42458 84130 | O143: 542458 | P143: 184130 | Q143: 51.538102 | R143: 0.052690543
A144: Active | B144: F84672 | C144: E7 Health - First 4 Health Group | D144: NH | E144: Newham | F144: NH-PCN6 | G144: North Newham | H144: North Newham | I144: U52641 | J144: EMISweb | K144: 157 Leytonstone Rd | M144: E15 1LH | N144: TQ 39102 85361 | O144: 539102 | P144: 185361 | Q144: 51.55 | R144: 0.0048192101
A145: Active | B145: F84097 | C145: Claremont Clinic | D145: NH | E145: Newham | F145: NH-PCN6 | G145: North Newham | H145: North Newham | I145: U52641 | J145: EMISweb | K145: 459-463 Romford Rd | M145: E7 8AB | N145: TQ 41105 85137 | O145: 541105 | P145: 185137 | Q145: 51.54749 | R145: 0.033598485
A146: Active | B146: F84724 | C146: Woodgrange Medical Practice | D146: NH | E146: Newham | F146: NH-PCN6 | G146: North Newham | H146: North Newham | I146: U52641 | J146: EMISweb | K146: 40 Woodgrange Rd | M146: E7 0QH | N146: TQ 40516 85243 | O146: 540516 | P146: 185243 | Q146: 51.548589 | R146: 0.025152046
A147: Active | B147: F84111 | C147: Abbey Road Medical Practice | D147: NH | E147: Newham | F147: NH-PCN8 | G147: Stratford | H147: Stratford | I147: U76122 | J147: EMISweb | K147: 28a Abbey Rd | M147: E15 3LT | N147: TQ 39225 83671 | O147: 539225 | P147: 183671 | Q147: 51.534783 | R147: 0.0059240574
A148: Active | B148: Y04273 | C148: Liberty Bridge Road | D148: NH | E148: Newham | F148: NH-PCN8 | G148: Stratford | H148: Stratford | I148: U76122 | J148: EMISweb | K148: 40 Liberty Bridge Rd | M148: E20 1AS | N148: TQ 38349 85140 | O148: 538349 | P148: 185140 | Q148: 51.548199 | R148: -0.0061207496
A149: Active | B149: F84730 | C149: The Vicarage Lane Surgery | D149: NH | E149: Newham | F149: NH-PCN8 | G149: Stratford | H149: Stratford | I149: U76122 | J149: EMISweb | K149: 10 Vicarage Ln | M149: E15 4HG | N149: TQ 39553 84332 | O149: 539553 | P149: 184332 | Q149: 51.540642 | R149: 0.010911767
A150: Active | B150: F84121 | C150: First4Health Church Road | D150: NH | E150: Newham | F150: NH-PCN8 | G150: Stratford | H150: Stratford | I150: U76122 | J150: EMISweb | K150: 30 Church Road | M150: E12 6AQ | N150: TQ 42460 85199 | O150: 542460 | P150: 185199 | Q150: 51.547707 | R150: 0.053151713
A151: Active | B151: F84009 | C151: Stratford Village Surgery | D151: NH | E151: Newham | F151: NH-PCN8 | G151: Stratford | H151: Stratford | I151: U76122 | J151: EMISweb | K151: 50C Romford Rd | M151: E15 4BZ | N151: TQ 39233 84486 | O151: 539233 | P151: 184486 | Q151: 51.542105 | R151: 0.0063613933
A152: Active | B152: F84740 | C152: Newham Transitional Team | D152: NH | E152: Newham | F152: NH-PCN8 | G152: Stratford | H152: Stratford | I152: U76122 | J152: EMISweb | K152: 30 Church Rd | M152: E12 6AQ | N152: TQ 42460 85199 | O152: 542460 | P152: 185199 | Q152: 51.547707 | R152: 0.053151713
A153: Active | B153: F84077 | C153: Newham Vicarage Practice | D153: NH | E153: Newham | F153: NH-PCN9 | G153: North West 2 | H153: North West 2 | I153: U94747 | J153: EMISweb | K153: 10 Vicarage Ln | M153: E15 4ES | N153: TQ 39491 84416 | O153: 539491 | P153: 184416 | Q153: 51.541412 | R153: 0.010051602
A154: Active | B154: F84677 | C154: East End Medical Centre | D154: NH | E154: Newham | F154: NH-PCN9 | G154: North West 2 | H154: North West 2 | I154: U94747 | J154: EMISweb | K154: 61 Plashet Rd | M154: E13 0QA | N154: TQ 40567 83994 | O154: 540567 | P154: 183994 | Q154: 51.537353 | R154: 0.025388644
A155: Active | B155: F84022 | C155: Stratford Health Centre | D155: NH | E155: Newham | F155: NH-PCN9 | G155: North West 2 | H155: North West 2 | I155: U94747 | J155: EMISweb | K155: 123 The Grove | M155: E15 1EN | N155: TQ 39112 84766 | O155: 539112 | P155: 184766 | Q155: 51.54465 | R155: 0.0047282946
A156: Active | B156: F84086 | C156: The Forest Practice | D156: NH | E156: Newham | F156: NH-PCN9 | G156: North West 2 | H156: North West 2 | I156: U94747 | J156: EMISweb | K156: 121 Woodgrange Rd | M156: E7 0EP | N156: TQ 40492 85464 | O156: 540492 | P156: 185464 | Q156: 51.550581 | R156: 0.024894327
A157: Active | B157: F84014 | C157: Upton Lane Medical Centre | D157: NH | E157: Newham | F157: NH-PCN9 | G157: North West 2 | H157: North West 2 | I157: U94747 | J157: EMISweb | K157: 75-77 Upton Ln | M157: E7 9PB | N157: TQ 40620 84636 | O157: 540620 | P157: 184636 | Q157: 51.543109 | R157: 0.026408576
A158: Active | B158: F86652 | C158: Drive Surgery | D158: RB | E158: Redbridge | F158: RB-1 | G158: Cranbrook | H158: Cranbrook | I158: U51307 | J158: EMISweb | K158: 68 The Drive | L158: Ilford | M158: IG1 3HZ | N158: TQ 42899 87429 | O158: 542899 | P158: 187429 | Q158: 51.567634 | R158: 0.060384001
A159: Active | B159: F86702 | C159: St Clements Surgery | D159: RB | E159: Redbridge | F159: RB-1 | G159: Cranbrook | H159: Cranbrook | I159: U51307 | J159: EMISweb | K159: 38 Bathhurst Road | L159: Ilford | M159: IG1 4LA | N159: TQ 43751 87002 | O159: 543751 | P159: 187002 | Q159: 51.563581 | R159: 0.072493725
A160: Active | B160: Y00918 | C160: Granville Medical Centre | D160: RB | E160: Redbridge | F160: RB-1 | G160: Cranbrook | H160: Cranbrook | I160: U51307 | J160: EMISweb | K160: 4 Granville Road | L160: Ilford | M160: IG1 4JY | N160: TQ 43646 86952 | O160: 543646 | P160: 186952 | Q160: 51.563158 | R160: 0.070959546
A161: Active | B161: F86042 | C161: Balfour Road Surgery | D161: RB | E161: Redbridge | F161: RB-1 | G161: Cranbrook | H161: Cranbrook | I161: U51307 | J161: EMISweb | K161: 92 Balfour Road | L161: Ilford | M161: IG1 4JE | N161: TQ 43990 86949 | O161: 543990 | P161: 186949 | Q161: 51.563043 | R161: 0.075917641
A162: Active | B162: F86698 | C162: Cranbrook Surgery | D162: RB | E162: Redbridge | F162: RB-1 | G162: Cranbrook | H162: Cranbrook | I162: U51307 | J162: EMISweb | K162: 465 Cranbrook Road | L162: Ilford | M162: IG2 6EW | N162: TQ 43201 88032 | O162: 543201 | P162: 188032 | Q162: 51.572975 | R162: 0.06498382
A163: Active | B163: F86008 | C163: Gants Hill Medical Centre | D163: RB | E163: Redbridge | F163: RB-1 | G163: Cranbrook | H163: Cranbrook | I163: U51307 | J163: EMISweb | K163: 63-65 Ethelbert Gardens | L163: Gants Hill | M163: IG2 6UW | N163: TQ 43151 88496 | O163: 543151 | P163: 188496 | Q163: 51.577157 | R163: 0.064451751
A164: Active | B164: F86703 | C164: Redbridge Surgery | D164: RB | E164: Redbridge | F164: RB-1 | G164: Cranbrook | H164: Cranbrook | I164: U51307 | J164: EMISweb | K164: 49 Windermere Gardens | L164: Gants Hill | M164: IG4 5BZ | N164: TQ 42406 88530 | O164: 542406 | P164: 188530 | Q164: 51.577651 | R164: 0.053721702
A165: Active | B165: F86657 | C165: York Road Surgery | D165: RB | E165: Redbridge | F165: RB-1 | G165: Cranbrook | H165: Cranbrook | I165: U51307 | J165: SystmOne | K165: 55 York Road | L165: Ilford | M165: IG1 3AF | N165: TQ 43305 86498 | O165: 543305 | P165: 186498 | Q165: 51.559165 | R165: 0.065858546
A166: Active | B166: F86081 | C166: Kenwood Medical Centre | D166: RB | E166: Redbridge | F166: RB-2 | G166: Fairlop | H166: Fairlop | I166: U03653 | J166: EMISweb | K166: Kenwood Gardens | L166: Gants Hill | M166: IG2 6YG | N166: TQ 43661 88984 | O166: 543661 | P166: 188984 | Q166: 51.581413 | R166: 0.072005967
A167: Active | B167: F86083 | C167: Eastern Avenue Medical Centre | D167: RB | E167: Redbridge | F167: RB-2 | G167: Fairlop | H167: Fairlop | I167: U03653 | J167: EMISweb | K167: 167 Eastern Avenue | L167: Gants Hill | M167: IG4 5AW | N167: TQ 42226 88390 | O167: 542226 | P167: 188390 | Q167: 51.576439 | R167: 0.051069203
A168: Active | B168: F86612 | C168: Fullwell Avenue Surgery | D168: RB | E168: Redbridge | F168: RB-2 | G168: Fairlop | H168: Fairlop | I168: U03653 | J168: EMISweb | K168: 272 Fullwell Avenue | L168: Fullwell Cross | M168: IG5 0SB | N168: TQ 43621 90647 | O168: 543621 | P168: 190647 | Q168: 51.596366 | R168: 0.072108948
A169: Active | B169: F86624 | C169: Heathcote Primary Care Centre | D169: RB | E169: Redbridge | F169: RB-2 | G169: Fairlop | H169: Fairlop | I169: U03653 | J169: EMISweb | K169: Heathcote Avenue | L169: Barkingside | M169: IG5 0QS | N169: TQ 42982 90347 | O169: 542982 | P169: 190347 | Q169: 51.593832 | R169: 0.062767795
A170: Active | B170: F86707 | C170: Fencepiece Road Medical Practice | D170: RB | E170: Redbridge | F170: RB-2 | G170: Fairlop | H170: Fairlop | I170: U03653 | J170: EMISweb | K170: 83 Fencepiece Road | L170: Fairlop | M170: IG6 2NB | N170: TQ 44453 91094 | O170: 544453 | P170: 191094 | Q170: 51.60017 | R170: 0.084296186
A171: Active | B171: F86057 | C171: The Willows Practice | D171: RB | E171: Redbridge | F171: RB-2 | G171: Fairlop | H171: Fairlop | I171: U03653 | J171: EMISweb | K171: Hainault Health Centre | L171: Chigwell | M171: IG7 4DF | N171: TQ 45822 91978 | O171: 545822 | P171: 191978 | Q171: 51.60776 | R171: 0.10441554
A172: Active | B172: F86007 | C172: Forest Edge Practice | D172: RB | E172: Redbridge | F172: RB-2 | G172: Fairlop | H172: Fairlop | I172: U03653 | J172: EMISweb | K172: Hainault Health Centre | L172: Chigwell | M172: IG7 4DF | N172: TQ 45822 91978 | O172: 545822 | P172: 191978 | Q172: 51.60776 | R172: 0.10441554
A173: Active | B173: F86009 | C173: The Palms Medical Centre | D173: RB | E173: Redbridge | F173: RB-3 | G173: Seven Kings | H173: Seven Kings | I173: U27585 | J173: EMISweb | K173: 97-101 Netley Road | L173: Newbury Park | M173: IG2 7NW | N173: TQ 44820 88524 | O173: 544820 | P173: 188524 | Q173: 51.576983 | R173: 0.088531907
A174: Active | B174: F86087 | C174: Goodmayes Medical Centre | D174: RB | E174: Redbridge | F174: RB-3 | G174: Seven Kings | H174: Seven Kings | I174: U27585 | J174: EMISweb | K174: 4 Eastwood Road | L174: Goodmayes | M174: IG3 8XB | N174: TQ 46331 87526 | O174: 546331 | P174: 187526 | Q174: 51.567626 | R174: 0.10990631
A175: Active | B175: F86637 | C175: Seven Kings Practice | D175: RB | E175: Redbridge | F175: RB-3 | G175: Seven Kings | H175: Seven Kings | I175: U27585 | J175: EMISweb | K175: 1 Salisbury Road | L175: Seven Kings | M175: IG3 8BG | N175: TQ 45438 87037 | O175: 545438 | P175: 187037 | Q175: 51.563463 | R175: 0.096829019
A176: Active | B176: Y00090 | C176: Doctor's House | D176: RB | E176: Redbridge | F176: RB-3 | G176: Seven Kings | H176: Seven Kings | I176: U27585 | J176: EMISweb | K176: 40 Cameron Road | L176: Seven Kings | M176: IG3 8LF | N176: TQ 45249 87246 | O176: 545249 | P176: 187246 | Q176: 51.565389 | R176: 0.094190583
A177: Active | B177: F86034 | C177: Green Lane, Goodmayes Medical practice | D177: RB | E177: Redbridge | F177: RB-3 | G177: Seven Kings | H177: Seven Kings | I177: U27585 | J177: EMISweb | K177: 595 Green Lane | L177: Goodmayes | M177: IG3 9RN | N177: TQ 46598 87054 | O177: 546598 | P177: 187054 | Q177: 51.563316 | R177: 0.11355913
A178: Active | B178: F86642 | C178: Castleton Road Surgery | D178: RB | E178: Redbridge | F178: RB-3 | G178: Seven Kings | H178: Seven Kings | I178: U27585 | J178: EMISweb | K178: 19 Castleton Road | L178: Goodmayes | M178: IG3 9QW | N178: TQ 46532 87121 | O178: 546532 | P178: 187121 | Q178: 51.563935 | R178: 0.11263556
A179: Active | B179: F86028 | C179: Chadwell Heath Surgery | D179: RB | E179: Redbridge | F179: RB-3 | G179: Seven Kings | H179: Seven Kings | I179: U27585 | J179: EMISweb | K179: 72 Chadwell Heath Lane | L179: Chadwell Heath | M179: RM6 4AF | N179: TQ 47352 88216 | O179: 547352 | P179: 188216 | Q179: 51.57356 | R179: 0.12491581
A180: Active | B180: Y00155 | C180: Grove Surgery | D180: RB | E180: Redbridge | F180: RB-3 | G180: Seven Kings | H180: Seven Kings | I180: U27585 | J180: SystmOne | K180: 200-202 Chadwell Heath Lane | L180: Chadwell Heath | M180: RM6 4YU | N180: TQ 47178 88535 | O180: 547178 | P180: 188535 | Q180: 51.576472 | R180: 0.12254036
A181: Active | B181: F86013 | C181: Broadway Surgery | D181: RB | E181: Redbridge | F181: RB-4 | G181: Wanstead & Woodford | H181: Wanstead & Woodford | I181: U78575 | J181: SystmOne | K181: 3 The Broadway | L181: Woodford Green | M181: IG8 0HF | N181: TQ 40897 91927 | O181: 540897 | P181: 191927 | Q181: 51.608555 | R181: 0.033322328
A182: Active | B182: F86023 | C182: The Evergreen Practice | D182: RB | E182: Redbridge | F182: RB-4 | G182: Wanstead & Woodford | H182: Wanstead & Woodford | I182: U78575 | J182: EMISweb | K182: 26 High Street | L182: Wanstead | M182: E11 2AQ | N182: TQ 40453 88526 | O182: 540453 | P182: 188526 | Q182: 51.578105 | R182: 0.025554684
A183: Active | B183: F86032 | C183: Wanstead Place Surgery | D183: RB | E183: Redbridge | F183: RB-4 | G183: Wanstead & Woodford | H183: Wanstead & Woodford | I183: U78575 | J183: EMISweb | K183: 45 Wanstead Place | L183: Wanstead | M183: E11 2SW | N183: TQ 40289 88521 | O183: 540289 | P183: 188521 | Q183: 51.578101 | R183: 0.023187509
A184: Active | B184: F86731 | C184: Aldersbrook Medical Centre | D184: RB | E184: Redbridge | F184: RB-4 | G184: Wanstead & Woodford | H184: Wanstead & Woodford | I184: U78575 | J184: EMISweb | K184: 65 Aldersbrook Road | L184: Manor Park | M184: E12 5DL | N184: TQ 41394 86612 | O184: 541394 | P184: 186612 | Q184: 51.560671 | R184: 0.038356032
A185: Active | B185: F86066 | C185: Southdene Surgery | D185: RB | E185: Redbridge | F185: RB-4 | G185: Wanstead & Woodford | H185: Wanstead & Woodford | I185: U78575 | J185: EMISweb | K185: The Shrubberies, George Ln | L185: South Woodford | M185: E18 1BD | N185: TQ 40404 90279 | O185: 540404 | P185: 190279 | Q185: 51.593869 | R185: 0.02554851
A186: Active | B186: F86641 | C186: Shrubberies Medical Centre | D186: RB | E186: Redbridge | F186: RB-4 | G186: Wanstead & Woodford | H186: Wanstead & Woodford | I186: U78575 | J186: EMISweb | K186: 12 The Shrubberies, | L186: South Woodford | M186: E18 1BD | N186: TQ 40404 90279 | O186: 540404 | P186: 190279 | Q186: 51.593869 | R186: 0.02554851
A187: Active | B187: F86020 | C187: Glebelands Practice | D187: RB | E187: Redbridge | F187: RB-4 | G187: Wanstead & Woodford | H187: Wanstead & Woodford | I187: U78575 | J187: EMISweb | K187: 2 Glebelands Avenue | L187: South Woodford | M187: E18 2AB | N187: TQ 40310 90124 | O187: 540310 | P187: 190124 | Q187: 51.5925 | R187: 0.024130468
A188: Active | B188: F86064 | C188: Elmhurst Practice | D188: RB | E188: Redbridge | F188: RB-4 | G188: Wanstead & Woodford | H188: Wanstead & Woodford | I188: U78575 | J188: EMISweb | K188: 114 High Road | L188: South Woodford | M188: E18 2QS | N188: TQ 40129 90669 | O188: 540129 | P188: 190669 | Q188: 51.597442 | R188: 0.021736757
A189: Active | B189: F86691 | C189: Clayhall Clinic | D189: RB | E189: Redbridge | F189: RB-4 | G189: Wanstead & Woodford | H189: Wanstead & Woodford | I189: U78575 | J189: EMISweb | K189: 14 Clayhall Avenue | L189: Ilford | M189: IG5 0LG | N189: TQ 42206 90038 | O189: 542206 | P189: 190038 | Q189: 51.591252 | R189: 0.051447693
A190: Active | B190: F86012 | C190: Rydal Practice | D190: RB | E190: Redbridge | F190: RB-4 | G190: Wanstead & Woodford | H190: Wanstead & Woodford | I190: U78575 | J190: EMISweb | K190: 375 High Road | L190: Woodford Green | M190: IG8 9QJ | N190: TQ 39982 91888 | O190: 539982 | P190: 191888 | Q190: 51.608432 | R190: 0.020101964
A191: Active | B191: F86658 | C191: Queen Mary Practice | D191: RB | E191: Redbridge | F191: RB-4 | G191: Wanstead & Woodford | H191: Wanstead & Woodford | I191: U78575 | J191: EMISweb | K191: 114 High Road | L191: South Woodford | M191: E18 2QS | N191: TQ 40129 90669 | O191: 540129 | P191: 190669 | Q191: 51.597442 | R191: 0.021736757
A192: Active | B192: F86022 | C192: Ilford Medical Centre | D192: RB | E192: Redbridge | F192: RB-5 | G192: Loxford | H192: Loxford | I192: U20290 | J192: EMISweb | K192: 61 Cleveland Road | L192: Ilford | M192: IG1 1EE | N192: TQ 43897 86254 | O192: 543897 | P192: 186254 | Q192: 51.556822 | R192: 0.074292692
A193: Active | B193: Y02987 | C193: The Practice Loxford | D193: RB | E193: Redbridge | F193: RB-5 | G193: Loxford | H193: Loxford | I193: U20290 | J193: EMISweb | K193: 417 Ilford Lane | L193: Ilford | M193: IG1 2SN | N193: TQ 44106 85110 | O193: 544106 | P193: 185110 | Q193: 51.546489 | R193: 0.076837077
A194: Active | B194: F86692 | C194: Mathukias Surgery | D194: RB | E194: Redbridge | F194: RB-5 | G194: Loxford | H194: Loxford | I194: U20290 | J194: EMISweb | K194: 281 Ilford Lane | L194: Ilford | M194: IG1 2SF | N194: TQ 43991 85477 | O194: 543991 | P194: 185477 | Q194: 51.549816 | R194: 0.075329843
A195: Active | B195: F86082 | C195: Ilford Lane Surgery | D195: RB | E195: Redbridge | F195: RB-5 | G195: Loxford | H195: Loxford | I195: U20290 | J195: SystmOne | K195: 417 Ilford Lane | L195: Ilford | M195: IG1 2SN | N195: TQ 44106 85110 | O195: 544106 | P195: 185110 | Q195: 51.546489 | R195: 0.076837077
A196: Active | B196: F86025 | C196: Oak Tree Medical Practice | D196: RB | E196: Redbridge | F196: RB-5 | G196: Loxford | H196: Loxford | I196: U20290 | J196: SystmOne | K196: 273-275 Green Lane | L196: Seven Kings | M196: IG3 9TJ | N196: TQ 45422 86734 | O196: 545422 | P196: 186734 | Q196: 51.560744 | R196: 0.09647312
A197: Active | B197: F86085 | C197: Hainault Surgery | D197: RB | E197: Redbridge | F197: RB-6 | G197: NewCross Alliance | H197: New Cross Alliance | I197: U08578 | J197: EMISweb | K197: 34 New North Road | L197: Hainault | M197: IG6 2XG | N197: TQ 44572 91321 | O197: 544572 | P197: 191321 | Q197: 51.602179 | R197: 0.086106632
A198: Active | B198: F86010 | C198: Fullwell Cross Medical Centre | D198: RB | E198: Redbridge | F198: RB-6 | G198: NewCross Alliance | H198: New Cross Alliance | I198: U08578 | J198: EMISweb | K198: 1 Tomswood Hill | L198: Fairlop | M198: IG6 2HG | N198: TQ 44435 90476 | O198: 544435 | P198: 190476 | Q198: 51.594621 | R198: 0.083782264
A199: Active | B199: F86060 | C199: Newbury Group Practice | D199: RB | E199: Redbridge | F199: RB-6 | G199: NewCross Alliance | H199: New Cross Alliance | I199: U08578 | J199: EMISweb | K199: 40 Perrymans Farm Road | L199: Newbury Park | M199: IG2 7LE | N199: TQ 44654 88447 | O199: 544654 | P199: 188447 | Q199: 51.576334 | R199: 0.086106353
A200: Active | B200: F84083 | C200: Bethnal Green Health Centre | D200: TH | E200: Tower Hamlets | F200: TH-NW1 | G200: The One Network | H200: Network 1 | I200: U50771 | J200: EMISweb | K200: 60 Florida Street | M200: E2 6LL | N200: TQ 34381 82665 | O200: 534381 | P200: 182665 | Q200: 51.526916 | R200: -0.064255605
... 70 more rows
